Workbook

Sheet Simulation Inputs (hidden)
A1: Input Label* | B1: Input List Index | C1: Start Year (options) | D1: Energy Price Trends | E1: TSL | F1: Product Class | G1: Product Class Name | H1: Efficiency Scenario | I1: Shipment Scenario
A2: Input Choice* | C2: 2018 | D2: AEO 2012 Reference | E2: 1 | F2: =MATCH(G2, G5:G21, 0) -> 1 | G2: Cable Base | H2: 100% E*3, Fast Improvement | I2: Postive Growth
A3: Input Choice Index | C3: =VALUE(C2) -> 2018 | D3: =MATCH(D2, D5:D7, 0) -> 1 | E3: =VALUE(E2) -> 1 | F3: =VALUE(F2) -> 1 | H3: =MATCH(labelEff, list_Eff, 0) -> 5 | I3: =MATCH(ship_name, list_ship, 0) -> 3
A4: Default Choice Index* | C4: 2018 | D4: AEO 2012 Reference | E4: 1 | F4: 1
A5: Input List | B5: 1 | C5: 2017 | D5: AEO 2012 Reference | E5: 1 | F5: 1 | G5: =INDEX(list_PC, F5) -> Cable Base | H5: ='Efficiency Dist. Data'!B4 -> 90% E*3, No Improvement | I5: ='Shipment Data'!B3 -> Negative Growth
B6: 2 | C6: 2018 | D6: AEO 2012 High Growth | E6: 2 | F6: 2 | G6: Cable Video Client | H6: ='Efficiency Dist. Data'!G4 -> 100% E*3, No Improvement | I6: ='Shipment Data'!U3 -> Flat Growth
B7: 3 | C7: 2019 | D7: AEO 2012 Low Growth | E7: 3 | F7: 3 | G7: Cable Video Server | H7: ='Efficiency Dist. Data'!L4 -> 90% E*3, Avg. Improvement | I7: ='Shipment Data'!AN3 -> Postive Growth | K7: Summary Results
B8: 4 | F8: 4 | G8: Cable with DVR | H8: ='Efficiency Dist. Data'!Q4 -> 100% E*3, Avg. Improvement | M8: 1 | N8: 2 | O8: 3 | P8: 4 | Q8: 5 | R8: 6 | S8: 7 | T8: 8 | U8: 9 | V8: 10 | W8: 11 | X8: 12 | Y8: 13 | Z8: 14 | AA8: 15 | AB8: 16 | AC8: 17
B9: 5 | F9: 5 | G9: Cable with DVR & Video Server | H9: ='Efficiency Dist. Data'!V4 -> 100% E*3, Fast Improvement | K9: Powerplant | L9: =SUM(stdscase[powerplant]) -> 0.02282472102 | M9: 0.02282472102 | N9: 0.0267679903 | O9: 0.006040836681 | P9: 0.00696655072 | Q9: 0.009143242599 | R9: 0.01798895991 | S9: 0.02146820929 | T9: 0.007596968987 | U9: 0.01195270684 | V9: 0.01307661049 | W9: 0.001134636486 | X9: 0.001426035904 | Y9: 0.0005843173414 | Z9: 0.003022802039 | AA9: 0.004522775037 | AB9: 0.03724815195 | AC9: 0.009851429851 | AD9: quads
B10: 6 | F10: 6 | G10: Satellite Base | K10: Upstream | L10: =SUM(stdscase[upstream]) -> 0.0003705468567 | M10: 0.0003705468567 | N10: 0.0004345636759 | O10: 9.806967815e-05 | P10: 0.0001130981391 | Q10: 0.0001484355407 | R10: 0.0002920409211 | S10: 0.000348524631 | T10: 0.0001233326347 | U10: 0.0001940456554 | V10: 0.0002122916162 | W10: 1.84202025e-05 | X10: 2.315091262e-05 | Y10: 9.486072316e-06 | Z10: 4.907353711e-05 | AA10: 7.342477799e-05 | AB10: 0.0006050804399 | AC10: 0.0001599325732 | AD10: quads
B11: 7 | F11: 7 | G11: Satellite Video Client | K11: NPV @ 3% | L11: =SUM(stdscase[NPV 3%]) -> 0.2118287189 | M11: 0.2118287189 | N11: 0.2483953969 | O11: 0.04621922944 | P11: 0.05236792398 | Q11: 0.05433345437 | R11: 0.1487928053 | S11: 0.1800942915 | T11: 0.06111108218 | U11: 0.0897236107 | V11: 0.07444270477 | W11: 0.0105349007 | X11: 0.01334585108 | Y11: 0.005491878511 | Z11: 0.01778248309 | AA11: 0.02912738256 | AB11: 0.4641985107 | AC11: 0.03342133168 | AD11: billion 2011$
B12: 8 | F12: 8 | G12: Satellite Video Server | K12: NPV @ 7% | L12: =SUM(stdscase[NPV 7%]) -> 0.1428091531 | M12: 0.1428091531 | N12: 0.1674586082 | O12: 0.03022451546 | P12: 0.03413773786 | Q12: 0.03373032938 | R12: 0.09858703014 | S12: 0.1195957458 | T12: 0.04030694084 | U12: 0.05847453786 | V12: 0.04572979188 | W12: 0.007102790915 | X12: 0.009007981857 | Y12: 0.003709032476 | Z12: 0.01101263321 | AA12: 0.01841633068 | AB12: 0.3234142182 | AC12: 0.01702071421 | AD12: billion 2011$
B13: 9 | F13: 9 | G13: Satellite with DVR | K13: ="NPV @ " & ROUND(discRate*100,1) & "%" -> NPV @ 5% | L13: =SUM(stdscase[NPV cust]) -> 0.1733516321 | M13: 0.1733516321 | N13: 0.2032745659 | O13: 0.0372622346 | P13: 0.04215470942 | Q13: 0.04272281239 | R13: 0.1207298095 | S13: 0.1462892325 | T13: 0.04947476314 | U13: 0.07221614842 | V13: 0.05824397739 | W13: 0.008621584464 | X13: 0.01092802702 | Y13: 0.004498258181 | Z13: 0.01396642606 | AA13: 0.02310364904 | AB13: 0.3861678111 | AC13: 0.0240411319 | AD13: billion 2011$
B14: 10 | F14: 10 | G14: Satellite with DVR & Video Server | K14: Oper Cost Sav @ 3% | L14: =SUM(stdscase[OperCostSav3%]) -> 0.2374867338 | M14: 0.2374867338 | N14: 0.2785156753 | O14: 0.06285371776 | P14: 0.0724855903 | Q14: 0.09513364126 | R14: 0.1871715904 | S14: 0.223372496 | T14: 0.0790449684 | U14: 0.1243655642 | V14: 0.1360595607 | W14: 0.01180566951 | X14: 0.01483762316 | Y14: 0.006079707033 | Z14: 0.03145166079 | AA14: 0.04705858487 | AB14: 0.3872150659 | AC14: 0.1025021904 | AD14: billion 2011$
B15: 11 | F15: 11 | G15: IP Base | K15: Oper Cost Sav @ 7% | L15: =SUM(stdscase[OperCostSav7%]) -> 0.1625447832 | M15: 0.1625447832 | N15: 0.1906265219 | O15: 0.04301943003 | P15: 0.04961184304 | Q15: 0.06511301431 | R15: 0.1281072214 | S15: 0.1528844722 | T15: 0.0541013262 | U15: 0.08512043326 | V15: 0.09312424088 | W15: 0.008080240781 | X15: 0.010155423 | Y15: 0.004161178378 | Z15: 0.02152669037 | AA15: 0.03220865163 | AB15: 0.2643578491 | AC15: 0.07015632429 | AD15: billion 2011$
B16: 12 | F16: 12 | G16: IP Video Client | K16: Equip Cost Incr @ 3% | L16: =SUM(stdscase[EquipCostIncr3%]) -> 0.02565801492 | M16: 0.02565801492 | N16: 0.03012027839 | O16: 0.01663448833 | P16: 0.02011766632 | Q16: 0.04080018689 | R16: 0.0383787851 | S16: 0.04327820448 | T16: 0.01793388623 | U16: 0.03464195351 | V16: 0.06161685597 | W16: 0.001270768811 | X16: 0.001491772083 | Y16: 0.0005878285221 | Z16: 0.0136691777 | AA16: 0.01793120231 | AB16: -0.07698344478 | AC16: 0.06908085867 | AD16: billion 2011$
B17: 13 | F17: 13 | G17: IP Video Server | K17: Equip Cost Incr @ 7% | L17: =SUM(stdscase[EquipCostIncr7%]) -> 0.01973563014 | M17: 0.01973563014 | N17: 0.02316791364 | O17: 0.01279491458 | P17: 0.01547410519 | Q17: 0.03138268492 | R17: 0.02952019126 | S17: 0.03328872632 | T17: 0.01379438536 | U17: 0.02664589539 | V17: 0.047394449 | W17: 0.000977449866 | X17: 0.001147441147 | Y17: 0.0004521459018 | Z17: 0.01051405716 | AA17: 0.01379232095 | AB17: -0.0590563691 | AC17: 0.05313561008 | AD17: billion 2011$
B18: 14 | F18: 14 | G18: IP with DVR | K18: CO2 Savings | L18: =SUM(stdscase[co2]) -> 1.498612058 | M18: 1.498612058 | N18: 1.757516905 | O18: 0.3966256886 | P18: 0.4574056745 | Q18: 0.6003216248 | R18: 1.18110851 | S18: 1.409547012 | T18: 0.4987973049 | U18: 0.7847837693 | V18: 0.8585763721 | W18: 0.07449729254 | X18: 0.09362982353 | Y18: 0.03836476305 | Z18: 0.1984693517 | AA18: 0.2969536933 | AB18: 2.446353713 | AC18: 0.6468193654 | AD18: Mt
B19: 15 | F19: 15 | G19: IP with DVR & Video Server
B20: 16 | F20: 16 | G20: OTT
B21: 17 | F21: 17 | G21: Thin-client
B22: 18
B23: 19
B24: 20
B25: 21
B26: 22
B27: 23
B28: 24
B29: 25
B30: 26
B31: 27
B32: 28
B33: 29
B34: 30
B35: 31
B36: 32
B37: 33
B38: 34
B39: 35
B40: 36
B41: 37
B42: 38
B43: 39
B44: 40
B45: 41
B46: 42
B47: 43
B48: 44
B49: 45
B50: 46
B51: 47
B52: 48
B53: 49
B54: 50

Sheet TSL-CSL Mapping (hidden)
B3: TSL-CSL Mapping | C3: TSL
C4: 1 | D4: 2 | E4: 3
B5: Cable Base | C5: 1 | D5: 2 | E5: 3
B6: Cable Video Client | C6: 1 | D6: 2 | E6: 3
B7: Cable Video Server | C7: 1 | D7: 2 | E7: 3
B8: Cable with DVR | C8: 1 | D8: 2 | E8: 3
B9: Cable with DVR & Video Server | C9: 1 | D9: 2 | E9: 3
B10: Satellite Base | C10: 1 | D10: 2 | E10: 3
B11: Satellite Video Client | C11: 1 | D11: 2 | E11: 3
B12: Satellite Video Server | C12: 1 | D12: 2 | E12: 3
B13: Satellite with DVR | C13: 1 | D13: 2 | E13: 3
B14: Satellite with DVR & Video Server | C14: 1 | D14: 2 | E14: 3
B15: IP Base | C15: 1 | D15: 2 | E15: 3
B16: IP Video Client | C16: 1 | D16: 2 | E16: 3
B17: IP Video Server | C17: 1 | D17: 2 | E17: 3
B18: IP with DVR | C18: 1 | D18: 2 | E18: 3
B19: IP with DVR & Video Server | C19: 1 | D19: 2 | E19: 3
B20: OTT | C20: 1 | D20: 2 | E20: 2
B21: Thin-client | C21: 1 | D21: 2 | E21: 3

Sheet Introduction
B1: Introduction
B3: This spreadsheet is the National Impact Analysis (NIA) of potential standards for set-top boxes. The NIA calculates the total national energy savings, equipment costs, and operating savings over a given analysis period (default is 30 years). The main outputs are the cumulative energy savings and net present value of a potential standard level. The various worksheets are as described below.
B8: Summary | D8: Summary results for all product groups, including main NIA outputs. The user can adjust various parameters in the NIA from this worksheet.
B10: Calcs | D10: Detailed calculations for the given product group selected.
B11: Shipments | D11: Shipment projections for all product groups.
B12: Efficiency Dist. | D12: Efficiency distribution projection for the base case and standards case selected in Summary.
B13: Model Data | D13: Collection of cost and energy use data for each product group and efficiency level.
B14: Electricity Prices | D14: National electricity price projection.
B15: FFC Factors | D15: Conversion factors to convert site electricity use to primary energy use (at the power plant and upstream).
B16: Lifetime | D16: Set-top box lifetime distribution assumed in NIA.
B17: INPUT - LCC Data | D17: This worksheet is an output of the LCC spreadsheet, and serves as an input to the NIA.

Sheet Summary
B1: Summary
B4: CSL
B6: Start Year
B8: Discount Year | C8: 2013
B10: Custom Discount Rate | C10: 0.05
B12: Economic Scenario
B14: Analysis Length (years) | C14: 30
B16: Shipment Scenario*
B18: Efficiency Distribution†
B20: Product Group‡
B22: * Shipment scenarios are described in the notes on the Shipments worksheet.
B23: † Efficiency distribution scenarios are described in the notes on the Efficiency Dist. worksheet.
B24: ‡ Changing this value will adjust the Calcs and Efficiency Dist. worksheets only.
D25: 1 | E25: 2 | F25: 3 | G25: 4 | H25: 5 | I25: 6 | J25: 7 | K25: 8 | L25: 9 | M25: 10 | N25: 11 | O25: 12 | P25: 13 | Q25: 14 | R25: 15 | S25: 16 | T25: 17
B26: ="National Impact Summary (CSL "&iTSL&" , "&choiceEcon&" Case, " & labelEff & " efficiency scenario, all dollar values 2011$)" -> National Impact Summary (CSL 1 , AEO 2012 Reference Case, 100% E*3, Fast Improvement efficiency scenario, all dollar values 2011$)
D27: =INDEX(pc_nameList, D25, ) -> Cable Base | E27: Cable Video Client | F27: Cable Video Server | G27: Cable with DVR | H27: Cable with DVR & Video Server | I27: Satellite Base | J27: Satellite Video Client | K27: Satellite Video Server | L27: Satellite with DVR | M27: Satellite with DVR & Video Server | N27: IP Base | O27: IP Video Client | P27: IP Video Server | Q27: IP with DVR | R27: IP with DVR & Video Server | S27: OTT | T27: Thin-client | U27: Total | V27: ="Annualized (" &numYrs& " years)" -> Annualized (30 years)
B28: Results presented for CSL | D28: =INDEX(tsl_map, D25, iTSL+1) -> 1 | E28: 1 | F28: 1 | G28: 1 | H28: 1 | I28: 1 | J28: 1 | K28: 1 | L28: 1 | M28: 1 | N28: 1 | O28: 1 | P28: 1 | Q28: 1 | R28: 1 | S28: 1 | T28: 1
B29: ="Site to Power Plant Savings (" &StartYear& " to " &StartYear+numYrs+10& ")" -> Site to Power Plant Savings (2018 to 2058) | D29: ='Simulation Inputs'!M9 -> 0.02282472102 | E29: ='Simulation Inputs'!N9 -> 0.0267679903 | F29: ='Simulation Inputs'!O9 -> 0.006040836681 | G29: ='Simulation Inputs'!P9 -> 0.00696655072 | H29: ='Simulation Inputs'!Q9 -> 0.009143242599 | I29: ='Simulation Inputs'!R9 -> 0.01798895991 | J29: ='Simulation Inputs'!S9 -> 0.02146820929 | K29: ='Simulation Inputs'!T9 -> 0.007596968987 | L29: ='Simulation Inputs'!U9 -> 0.01195270684 | M29: ='Simulation Inputs'!V9 -> 0.01307661049 | N29: ='Simulation Inputs'!W9 -> 0.001134636486 | O29: ='Simulation Inputs'!X9 -> 0.001426035904 | P29: ='Simulation Inputs'!Y9 -> 0.0005843173414 | Q29: ='Simulation Inputs'!Z9 -> 0.003022802039 | R29: ='Simulation Inputs'!AA9 -> 0.004522775037 | S29: ='Simulation Inputs'!AB9 -> 0.03724815195 | T29: ='Simulation Inputs'!AC9 -> 0.009851429851 | U29: =SUM(D29:T29) -> 0.2016169454 | V29: - | W29: quad
B30: ="Upstream Savings (" &StartYear& " to " &StartYear+numYrs+10& ")" -> Upstream Savings (2018 to 2058) | D30: ='Simulation Inputs'!M10 -> 0.0003705468567 | E30: ='Simulation Inputs'!N10 -> 0.0004345636759 | F30: ='Simulation Inputs'!O10 -> 9.806967815e-05 | G30: ='Simulation Inputs'!P10 -> 0.0001130981391 | H30: ='Simulation Inputs'!Q10 -> 0.0001484355407 | I30: ='Simulation Inputs'!R10 -> 0.0002920409211 | J30: ='Simulation Inputs'!S10 -> 0.000348524631 | K30: ='Simulation Inputs'!T10 -> 0.0001233326347 | L30: ='Simulation Inputs'!U10 -> 0.0001940456554 | M30: ='Simulation Inputs'!V10 -> 0.0002122916162 | N30: ='Simulation Inputs'!W10 -> 1.84202025e-05 | O30: ='Simulation Inputs'!X10 -> 2.315091262e-05 | P30: ='Simulation Inputs'!Y10 -> 9.486072316e-06 | Q30: ='Simulation Inputs'!Z10 -> 4.907353711e-05 | R30: ='Simulation Inputs'!AA10 -> 7.342477799e-05 | S30: ='Simulation Inputs'!AB10 -> 0.0006050804399 | T30: ='Simulation Inputs'!AC10 -> 0.0001599325732 | U30: =SUM(D30:T30) -> 0.003273517865 | V30: - | W30: quad
B31: ="Full Fuel Cycle Savings (" &StartYear& " to " &StartYear+numYrs+10& ")" -> Full Fuel Cycle Savings (2018 to 2058) | D31: =SUM(D29:D30) -> 0.02319526787 | E31: =SUM(E29:E30) -> 0.02720255397 | F31: 0.006138906359 | G31: 0.007079648859 | H31: 0.009291678139 | I31: 0.01828100083 | J31: 0.02181673392 | K31: 0.007720301622 | L31: 0.01214675249 | M31: 0.01328890211 | N31: 0.001153056688 | O31: 0.001449186817 | P31: 0.0005938034137 | Q31: 0.003071875576 | R31: 0.004596199815 | S31: 0.03785323239 | T31: 0.01001136242 | U31: =SUM(D31:T31) -> 0.2048904633 | V31: - | W31: quad
B32: ="Carbon Savings (" &StartYear& " to " &StartYear+numYrs+10& ")" -> Carbon Savings (2018 to 2058) | D32: ='Simulation Inputs'!M18 -> 1.498612058 | E32: ='Simulation Inputs'!N18 -> 1.757516905 | F32: ='Simulation Inputs'!O18 -> 0.3966256886 | G32: ='Simulation Inputs'!P18 -> 0.4574056745 | H32: ='Simulation Inputs'!Q18 -> 0.6003216248 | I32: ='Simulation Inputs'!R18 -> 1.18110851 | J32: ='Simulation Inputs'!S18 -> 1.409547012 | K32: ='Simulation Inputs'!T18 -> 0.4987973049 | L32: ='Simulation Inputs'!U18 -> 0.7847837693 | M32: ='Simulation Inputs'!V18 -> 0.8585763721 | N32: ='Simulation Inputs'!W18 -> 0.07449729254 | O32: ='Simulation Inputs'!X18 -> 0.09362982353 | P32: ='Simulation Inputs'!Y18 -> 0.03836476305 | Q32: ='Simulation Inputs'!Z18 -> 0.1984693517 | R32: ='Simulation Inputs'!AA18 -> 0.2969536933 | S32: ='Simulation Inputs'!AB18 -> 2.446353713 | T32: ='Simulation Inputs'!AC18 -> 0.6468193654 | U32: =SUM(D32:T32) -> 13.23838292 | V32: - | W32: Mt
B33: ="Discounted Incremental Equipment Cost (" &StartYear& " to " &StartYear+numYrs-1& ")" -> Discounted Incremental Equipment Cost (2018 to 2047) | C33: 0.03 | D33: ='Simulation Inputs'!M16 -> 0.02565801492 | E33: ='Simulation Inputs'!N16 -> 0.03012027839 | F33: ='Simulation Inputs'!O16 -> 0.01663448833 | G33: ='Simulation Inputs'!P16 -> 0.02011766632 | H33: ='Simulation Inputs'!Q16 -> 0.04080018689 | I33: ='Simulation Inputs'!R16 -> 0.0383787851 | J33: ='Simulation Inputs'!S16 -> 0.04327820448 | K33: ='Simulation Inputs'!T16 -> 0.01793388623 | L33: ='Simulation Inputs'!U16 -> 0.03464195351 | M33: ='Simulation Inputs'!V16 -> 0.06161685597 | N33: ='Simulation Inputs'!W16 -> 0.001270768811 | O33: ='Simulation Inputs'!X16 -> 0.001491772083 | P33: ='Simulation Inputs'!Y16 -> 0.0005878285221 | Q33: ='Simulation Inputs'!Z16 -> 0.0136691777 | R33: ='Simulation Inputs'!AA16 -> 0.01793120231 | S33: ='Simulation Inputs'!AB16 -> -0.07698344478 | T33: ='Simulation Inputs'!AC16 -> 0.06908085867 | U33: =SUM(D33:T33) -> 0.3562284835 | V33: =-PMT(C33, numYrs, U33, 0, 1) -> 0.01764515862 | W33: billion $
C34: 0.07 | D34: ='Simulation Inputs'!M17 -> 0.01973563014 | E34: ='Simulation Inputs'!N17 -> 0.02316791364 | F34: ='Simulation Inputs'!O17 -> 0.01279491458 | G34: ='Simulation Inputs'!P17 -> 0.01547410519 | H34: ='Simulation Inputs'!Q17 -> 0.03138268492 | I34: ='Simulation Inputs'!R17 -> 0.02952019126 | J34: ='Simulation Inputs'!S17 -> 0.03328872632 | K34: ='Simulation Inputs'!T17 -> 0.01379438536 | L34: ='Simulation Inputs'!U17 -> 0.02664589539 | M34: ='Simulation Inputs'!V17 -> 0.047394449 | N34: ='Simulation Inputs'!W17 -> 0.000977449866 | O34: ='Simulation Inputs'!X17 -> 0.001147441147 | P34: ='Simulation Inputs'!Y17 -> 0.0004521459018 | Q34: ='Simulation Inputs'!Z17 -> 0.01051405716 | R34: ='Simulation Inputs'!AA17 -> 0.01379232095 | S34: ='Simulation Inputs'!AB17 -> -0.0590563691 | T34: ='Simulation Inputs'!AC17 -> 0.05313561008 | U34: 0.2741615518 | V34: 0.02064831163 | W34: billion $
B35: ="Discounted Oper. Cost Saving (" &StartYear& " to " &StartYear+numYrs+10& ")" -> Discounted Oper. Cost Saving (2018 to 2058) | C35: 0.03 | D35: ='Simulation Inputs'!M14 -> 0.2374867338 | E35: ='Simulation Inputs'!N14 -> 0.2785156753 | F35: ='Simulation Inputs'!O14 -> 0.06285371776 | G35: ='Simulation Inputs'!P14 -> 0.0724855903 | H35: ='Simulation Inputs'!Q14 -> 0.09513364126 | I35: ='Simulation Inputs'!R14 -> 0.1871715904 | J35: ='Simulation Inputs'!S14 -> 0.223372496 | K35: ='Simulation Inputs'!T14 -> 0.0790449684 | L35: ='Simulation Inputs'!U14 -> 0.1243655642 | M35: ='Simulation Inputs'!V14 -> 0.1360595607 | N35: ='Simulation Inputs'!W14 -> 0.01180566951 | O35: ='Simulation Inputs'!X14 -> 0.01483762316 | P35: ='Simulation Inputs'!Y14 -> 0.006079707033 | Q35: ='Simulation Inputs'!Z14 -> 0.03145166079 | R35: ='Simulation Inputs'!AA14 -> 0.04705858487 | S35: ='Simulation Inputs'!AB14 -> 0.3872150659 | T35: ='Simulation Inputs'!AC14 -> 0.1025021904 | U35: 2.09744004 | V35: 0.1038930459 | W35: billion $
C36: 0.07 | D36: ='Simulation Inputs'!M15 -> 0.1625447832 | E36: ='Simulation Inputs'!N15 -> 0.1906265219 | F36: ='Simulation Inputs'!O15 -> 0.04301943003 | G36: ='Simulation Inputs'!P15 -> 0.04961184304 | H36: ='Simulation Inputs'!Q15 -> 0.06511301431 | I36: ='Simulation Inputs'!R15 -> 0.1281072214 | J36: ='Simulation Inputs'!S15 -> 0.1528844722 | K36: ='Simulation Inputs'!T15 -> 0.0541013262 | L36: ='Simulation Inputs'!U15 -> 0.08512043326 | M36: ='Simulation Inputs'!V15 -> 0.09312424088 | N36: ='Simulation Inputs'!W15 -> 0.008080240781 | O36: ='Simulation Inputs'!X15 -> 0.010155423 | P36: ='Simulation Inputs'!Y15 -> 0.004161178378 | Q36: ='Simulation Inputs'!Z15 -> 0.02152669037 | R36: ='Simulation Inputs'!AA15 -> 0.03220865163 | S36: ='Simulation Inputs'!AB15 -> 0.2643578491 | T36: ='Simulation Inputs'!AC15 -> 0.07015632429 | U36: 1.434899644 | V36: 0.1080685997 | W36: billion $
B37: NPV | C37: 0.03 | D37: ='Simulation Inputs'!M11 -> 0.2118287189 | E37: ='Simulation Inputs'!N11 -> 0.2483953969 | F37: ='Simulation Inputs'!O11 -> 0.04621922944 | G37: ='Simulation Inputs'!P11 -> 0.05236792398 | H37: ='Simulation Inputs'!Q11 -> 0.05433345437 | I37: ='Simulation Inputs'!R11 -> 0.1487928053 | J37: ='Simulation Inputs'!S11 -> 0.1800942915 | K37: ='Simulation Inputs'!T11 -> 0.06111108218 | L37: ='Simulation Inputs'!U11 -> 0.0897236107 | M37: ='Simulation Inputs'!V11 -> 0.07444270477 | N37: ='Simulation Inputs'!W11 -> 0.0105349007 | O37: ='Simulation Inputs'!X11 -> 0.01334585108 | P37: ='Simulation Inputs'!Y11 -> 0.005491878511 | Q37: ='Simulation Inputs'!Z11 -> 0.01778248309 | R37: ='Simulation Inputs'!AA11 -> 0.02912738256 | S37: ='Simulation Inputs'!AB11 -> 0.4641985107 | T37: ='Simulation Inputs'!AC11 -> 0.03342133168 | U37: 1.741211556 | V37: 0.0862478873 | W37: billion $
C38: 0.07 | D38: ='Simulation Inputs'!M12 -> 0.1428091531 | E38: ='Simulation Inputs'!N12 -> 0.1674586082 | F38: ='Simulation Inputs'!O12 -> 0.03022451546 | G38: ='Simulation Inputs'!P12 -> 0.03413773786 | H38: ='Simulation Inputs'!Q12 -> 0.03373032938 | I38: ='Simulation Inputs'!R12 -> 0.09858703014 | J38: ='Simulation Inputs'!S12 -> 0.1195957458 | K38: ='Simulation Inputs'!T12 -> 0.04030694084 | L38: ='Simulation Inputs'!U12 -> 0.05847453786 | M38: ='Simulation Inputs'!V12 -> 0.04572979188 | N38: ='Simulation Inputs'!W12 -> 0.007102790915 | O38: ='Simulation Inputs'!X12 -> 0.009007981857 | P38: ='Simulation Inputs'!Y12 -> 0.003709032476 | Q38: ='Simulation Inputs'!Z12 -> 0.01101263321 | R38: ='Simulation Inputs'!AA12 -> 0.01841633068 | S38: ='Simulation Inputs'!AB12 -> 0.3234142182 | T38: ='Simulation Inputs'!AC12 -> 0.01702071421 | U38: 1.160738092 | V38: 0.0874202881 | W38: billion $
B41: Summary Totals
B42: FFC Energy Savings | C42: =U31 -> 0.2048904633 | D42: quads
B44: Oper Cost Sav @ 3% | C44: =SUM('Simulation Inputs'!M14:AC14) -> 2.09744004 | D44: billion 2011$
B45: Equip Cost Incr @ 3% | C45: =SUM('Simulation Inputs'!M16:AC16) -> 0.3562284835 | D45: billion 2011$
B46: NPV @ 3% | C46: =SUM('Simulation Inputs'!M11:AC11) -> 1.741211556 | D46: billion 2011$
B48: Oper Cost Sav @ 7% | C48: =SUM('Simulation Inputs'!M15:AC15) -> 1.434899644 | D48: billion 2011$
B49: Equip Cost Incr @ 7% | C49: =SUM('Simulation Inputs'!M17:AC17) -> 0.2741615518 | D49: billion 2011$
B50: NPV @ 7% | C50: =SUM('Simulation Inputs'!M12:AC12) -> 1.160738092 | D50: billion 2011$
B52: ="NPV @ " & ROUND(discRate*100,1) & "%" -> NPV @ 5% | C52: =SUM('Simulation Inputs'!M13:AC13) -> 1.417046773 | D52: billion 2011$

Sheet Calcs
B1: Calcs
B3: Product Group: | D3: =pc_name -> Cable Base
B4: CSL: | D4: =iCSL -> 1
B5: Efficiency Scenario: | D5: =labelEff -> 100% E*3, Fast Improvement
B7: Base Case | K7: Standards Case
E8: Energy Use | G8: Equipment Costs | I8: Operating Costs | L8: Energy Use and Savings | R8: Equipment Costs | W8: Operating Costs and Savings
C9: Shipments | D9: Affected Stock | E9: Shipment Unit Energy Use | F9: Total Site Energy | G9: Unit Equipment Cost | H9: Total Equipment Cost | I9: Total Operating Costs | L9: Shipment Unit Energy Use | M9: Total Site Energy | N9: Elec Site Savings | O9: Site to Powerplant Savings | P9: Upstream Savings | Q9: CO2 Savings | R9: Unit Equipment Cost | S9: Total Equipment Cost | T9: Equipment Cost Increase | U9: Equipment Cost Increase @ 3% | V9: Equipment Cost Increase @ 7% | W9: Total Operating Costs | X9: Operating Cost Savings | Y9: Operating Cost Savings @ 3% | Z9: Operating Cost Savings @ 7% | AA9: Net Savings | AB9: Net Present Value @ 3% | AC9: Net Present Value @ 7% | AD9: Net Present Value @ Custom %
C10: (million) | D10: (million) | E10: (kWh/year) | F10: (quad) | G10: (2011$) | H10: (billion 2011$) | I10: (billion 2011$) | L10: (kWh/year) | M10: (quad) | N10: (quad) | O10: (quad) | P10: (quad) | Q10: (Mton) | R10: (billion 2011$) | S10: (billion 2011$) | T10: (billion 2011$) | U10: (billion 2011$) | V10: (billion 2011$) | W10: (billion 2011$) | X10: (billion 2011$) | Y10: (billion 2011$) | Z10: (billion 2011$) | AA10: (billion 2011$) | AB10: (billion 2011$) | AC10: (billion 2011$) | AD10: (billion 2011$)
B11: Year | C11: Shipment | D11: Stock | E11: AEU | F11: ElecUse | G11: UnitEquipCost | H11: EquipCost | I11: OperCost | K11: Year | L11: AEU | M11: ElecUse | N11: SiteSavings | O11: powerplant | P11: upstream | Q11: co2 | R11: UnitEquipCost | S11: EquipCost | T11: EquipCostIncr | U11: EquipCostIncr3% | V11: EquipCostIncr7% | W11: OperCost | X11: OperCostSav | Y11: OperCostSav3% | Z11: OperCostSav7% | AA11: NetSav | AB11: NPV 3% | AC11: NPV 7% | AD11: NPV cust
B12: =StartYear -> 2018 | C12: =IF(B12-StartYear+1 <= numYrs, OFFSET(Shipments!$B$4, B12-Shipments!$B$4, iPrd), 0) -> 2.960670784 | D12: =SUMPRODUCT(C12:OFFSET(C12, -MIN(B12-StartYear, ageMax-1), 0), fSurv:OFFSET(fSurv, -MIN(B12-StartYear, ageMax-1), 0)) -> 2.960670784 | E12: =SUMPRODUCT(OFFSET(baseEff, B12-'Efficiency Dist.'!$B$10, 0), OFFSET(inputAEU, iPrd, 0)) * VLOOKUP(B12, usageTrend, 2, FALSE) -> 136.635 | F12: =SUMPRODUCT(C12:OFFSET(C12, -MIN(B12-StartYear, ageMax-1), 0), fSurv:OFFSET(fSurv, -MIN(B12-StartYear, ageMax-1), 0), E12:OFFSET(E12, -MIN(B12-StartYear, ageMax-1), 0)) * 3412 * 10 ^ (-9) -> 0.001380260634 | G12: =IF(B12-StartYear+1 <= 30, SUMPRODUCT(OFFSET(baseEff, B12-'Efficiency Dist.'!$B$10, 0), OFFSET(inputTIC, B12-StartYear+1, 0)), 0) -> 116.40434 | H12: =[Shipment] * [UnitEquipCost] * 0.001 -> 0.3446349286 | I12: =[ElecUse] * VLOOKUP(B12, elecPrices, iEcon+1) -> 0.04860860217 | K12: =StartYear -> 2018 | L12: =SUMPRODUCT(OFFSET(stdsEff, K12-'Efficiency Dist.'!$I$10, 0), OFFSET(inputAEU, iPrd, 0)) * VLOOKUP(K12, usageTrend, 2, FALSE) -> 106.01 | M12: =SUMPRODUCT(C12:OFFSET(C12, -MIN(B12-StartYear, ageMax-1), 0), fSurv:OFFSET(fSurv, -MIN(B12-StartYear, ageMax-1), 0), L12:OFFSET(L12, -MIN(B12-StartYear, ageMax-1), 0)) * 3412 * 10 ^ (-9) -> 0.001070892742 | N12: =basecase[ElecUse] - [ElecUse] -> 0.0003093678919 | O12: =[SiteSavings]/3412 * VLOOKUP(K12, powerplant, 2, FALSE) -> 0.000825749312 | P12: =[SiteSavings] * VLOOKUP(K12, upstream, 2, FALSE) -> 1.280108933e-05 | Q12: =[SiteSavings] * VLOOKUP([Year], carbon, 2, FALSE) -> 0.05173942686 | R12: =IF(K12-StartYear+1 <= 30, SUMPRODUCT(OFFSET(stdsEff, K12-'Efficiency Dist.'!$I$10, 0), OFFSET(inputTIC, K12-StartYear+1, 0)), 0) -> 119.1980014 | S12: =basecase[Shipment] * [UnitEquipCost] * 0.001 -> 0.3529060404 | T12: =[EquipCost]-basecase[EquipCost] -> 0.00827111177 | U12: =[EquipCostIncr] * (1+0.03)^(yrDsc-[Year]) -> 0.007134733669 | V12: =[EquipCostIncr] * (1+0.07)^(yrDsc-[Year]) -> 0.005897188381 | W12: =[ElecUse] * VLOOKUP(K12, elecPrices, iEcon+1, FALSE) -> 0.03771360132 | X12: =basecase[OperCost] - [OperCost] -> 0.01089500085 | Y12: =[OperCostSav] * (1+0.03)^(yrDsc-[Year]) -> 0.009398123442 | Z12: =[OperCostSav] * (1+0.07)^(yrDsc-[Year]) -> 0.007767985034 | AA12: =[OperCostSav] - [EquipCostIncr] -> 0.002623889084 | AB12: =[NetSav] * (1+0.03)^(yrDsc-[Year]) -> 0.002263389773 | AC12: =[NetSav] * (1+0.07)^(yrDsc-[Year]) -> 0.001870796653 | AD12: =[NetSav] * (1+discRate)^(yrDsc-[Year]) -> 0.002055885755
B13: =B12+1 -> 2019 | C13: =IF(B13-StartYear+1 <= numYrs, OFFSET(Shipments!$B$4, B13-Shipments!$B$4, iPrd), 0) -> 2.990277492 | D13: =SUMPRODUCT(C13:OFFSET(C13, -MIN(B13-StartYear, ageMax-1), 0), fSurv:OFFSET(fSurv, -MIN(B13-StartYear, ageMax-1), 0)) -> 5.950948277 | E13: =SUMPRODUCT(OFFSET(baseEff, B13-'Efficiency Dist.'!$B$10, 0), OFFSET(inputAEU, iPrd, 0)) * VLOOKUP(B13, usageTrend, 2, FALSE) -> 131.96925 | F13: =SUMPRODUCT(C13:OFFSET(C13, -MIN(B13-StartYear, ageMax-1), 0), fSurv:OFFSET(fSurv, -MIN(B13-StartYear, ageMax-1), 0), E13:OFFSET(E13, -MIN(B13-StartYear, ageMax-1), 0)) * 3412 * 10 ^ (-9) -> 0.002726720035 | G13: =IF(B13-StartYear+1 <= 30, SUMPRODUCT(OFFSET(baseEff, B13-'Efficiency Dist.'!$B$10, 0), OFFSET(inputTIC, B13-StartYear+1, 0)), 0) -> 116.5848926 | H13: =[Shipment] * [UnitEquipCost] * 0.001 -> 0.3486211803 | I13: =[ElecUse] * VLOOKUP(B13, elecPrices, iEcon+1) -> 0.09519851691 | K13: =K12+1 -> 2019 | L13: =SUMPRODUCT(OFFSET(stdsEff, K13-'Efficiency Dist.'!$I$10, 0), OFFSET(inputAEU, iPrd, 0)) * VLOOKUP(K13, usageTrend, 2, FALSE) -> 105.172375 | M13: =SUMPRODUCT(C13:OFFSET(C13, -MIN(B13-StartYear, ageMax-1), 0), fSurv:OFFSET(fSurv, -MIN(B13-StartYear, ageMax-1), 0), L13:OFFSET(L13, -MIN(B13-StartYear, ageMax-1), 0)) * 3412 * 10 ^ (-9) -> 0.002143948269 | N13: =basecase[ElecUse] - [ElecUse] -> 0.0005827717664 | O13: =[SiteSavings]/3412 * VLOOKUP(K13, powerplant, 2, FALSE) -> 0.001555505266 | P13: =[SiteSavings] * VLOOKUP(K13, upstream, 2, FALSE) -> 2.412334632e-05 | Q13: =[SiteSavings] * VLOOKUP([Year], carbon, 2, FALSE) -> 0.09746414534 | R13: =IF(K13-StartYear+1 <= 30, SUMPRODUCT(OFFSET(stdsEff, K13-'Efficiency Dist.'!$I$10, 0), OFFSET(inputTIC, K13-StartYear+1, 0)), 0) -> 118.8295717 | S13: =basecase[Shipment] * [UnitEquipCost] * 0.001 -> 0.3553333937 | T13: =[EquipCost]-basecase[EquipCost] -> 0.006712213441 | U13: =[EquipCostIncr] * (1+0.03)^(yrDsc-[Year]) -> 0.005621373085 | V13: =[EquipCostIncr] * (1+0.07)^(yrDsc-[Year]) -> 0.004472631231 | W13: =[ElecUse] * VLOOKUP(K13, elecPrices, iEcon+1, FALSE) -> 0.07485209074 | X13: =basecase[OperCost] - [OperCost] -> 0.02034642616 | Y13: =[OperCostSav] * (1+0.03)^(yrDsc-[Year]) -> 0.01703981159 | Z13: =[OperCostSav] * (1+0.07)^(yrDsc-[Year]) -> 0.01355768286 | AA13: =[OperCostSav] - [EquipCostIncr] -> 0.01363421272 | AB13: =[NetSav] * (1+0.03)^(yrDsc-[Year]) -> 0.01141843851 | AC13: =[NetSav] * (1+0.07)^(yrDsc-[Year]) -> 0.009085051625 | AD13: =[NetSav] * (1+discRate)^(yrDsc-[Year]) -> 0.01017405945
B14: 2020 | C14: =IF(B14-StartYear+1 <= numYrs, OFFSET(Shipments!$B$4, B14-Shipments!$B$4, iPrd), 0) -> 3.020180267 | D14: =SUMPRODUCT(C14:OFFSET(C14, -MIN(B14-StartYear, ageMax-1), 0), fSurv:OFFSET(fSurv, -MIN(B14-StartYear, ageMax-1), 0)) -> 8.962246531 | E14: =SUMPRODUCT(OFFSET(baseEff, B14-'Efficiency Dist.'!$B$10, 0), OFFSET(inputAEU, iPrd, 0)) * VLOOKUP(B14, usageTrend, 2, FALSE) -> 127.3035 | F14: =SUMPRODUCT(C14:OFFSET(C14, -MIN(B14-StartYear, ageMax-1), 0), fSurv:OFFSET(fSurv, -MIN(B14-StartYear, ageMax-1), 0), E14:OFFSET(E14, -MIN(B14-StartYear, ageMax-1), 0)) * 3412 * 10 ^ (-9) -> 0.004034423371 | G14: =IF(B14-StartYear+1 <= 30, SUMPRODUCT(OFFSET(baseEff, B14-'Efficiency Dist.'!$B$10, 0), OFFSET(inputTIC, B14-StartYear+1, 0)), 0) -> 116.7165253 | H14: =[Shipment] * [UnitEquipCost] * 0.001 -> 0.3525049466 | I14: =[ElecUse] * VLOOKUP(B14, elecPrices, iEcon+1) -> 0.1409507054 | K14: =K13+1 -> 2020 | L14: =SUMPRODUCT(OFFSET(stdsEff, K14-'Efficiency Dist.'!$I$10, 0), OFFSET(inputAEU, iPrd, 0)) * VLOOKUP(K14, usageTrend, 2, FALSE) -> 104.33475 | M14: =SUMPRODUCT(C14:OFFSET(C14, -MIN(B14-StartYear, ageMax-1), 0), fSurv:OFFSET(fSurv, -MIN(B14-StartYear, ageMax-1), 0), L14:OFFSET(L14, -MIN(B14-StartYear, ageMax-1), 0)) * 3412 * 10 ^ (-9) -> 0.003215890068 | N14: =basecase[ElecUse] - [ElecUse] -> 0.0008185333027 | O14: =[SiteSavings]/3412 * VLOOKUP(K14, powerplant, 2, FALSE) -> 0.002184788173 | P14: =[SiteSavings] * VLOOKUP(K14, upstream, 2, FALSE) -> 3.360553736e-05 | Q14: =[SiteSavings] * VLOOKUP([Year], carbon, 2, FALSE) -> 0.1368934691 | R14: =IF(K14-StartYear+1 <= 30, SUMPRODUCT(OFFSET(stdsEff, K14-'Efficiency Dist.'!$I$10, 0), OFFSET(inputTIC, K14-StartYear+1, 0)), 0) -> 118.4832949 | S14: =basecase[Shipment] * [UnitEquipCost] * 0.001 -> 0.3578409092 | T14: =[EquipCost]-basecase[EquipCost] -> 0.005335962688 | U14: =[EquipCostIncr] * (1+0.03)^(yrDsc-[Year]) -> 0.004338625966 | V14: =[EquipCostIncr] * (1+0.07)^(yrDsc-[Year]) -> 0.003322969386 | W14: =[ElecUse] * VLOOKUP(K14, elecPrices, iEcon+1, FALSE) -> 0.112353596 | X14: =basecase[OperCost] - [OperCost] -> 0.02859710938 | Y14: =[OperCostSav] * (1+0.03)^(yrDsc-[Year]) -> 0.02325206688 | Z14: =[OperCostSav] * (1+0.07)^(yrDsc-[Year]) -> 0.01780884248 | AA14: =[OperCostSav] - [EquipCostIncr] -> 0.02326114669 | AB14: =[NetSav] * (1+0.03)^(yrDsc-[Year]) -> 0.01891344092 | AC14: =[NetSav] * (1+0.07)^(yrDsc-[Year]) -> 0.0144858731 | AD14: =[NetSav] * (1+discRate)^(yrDsc-[Year]) -> 0.01653126267
B15: 2021 | C15: =IF(B15-StartYear+1 <= numYrs, OFFSET(Shipments!$B$4, B15-Shipments!$B$4, iPrd), 0) -> 3.05038207 | D15: =SUMPRODUCT(C15:OFFSET(C15, -MIN(B15-StartYear, ageMax-1), 0), fSurv:OFFSET(fSurv, -MIN(B15-StartYear, ageMax-1), 0)) -> 11.87042758 | E15: =SUMPRODUCT(OFFSET(baseEff, B15-'Efficiency Dist.'!$B$10, 0), OFFSET(inputAEU, iPrd, 0)) * VLOOKUP(B15, usageTrend, 2, FALSE) -> 122.63775 | F15: =SUMPRODUCT(C15:OFFSET(C15, -MIN(B15-StartYear, ageMax-1), 0), fSurv:OFFSET(fSurv, -MIN(B15-StartYear, ageMax-1), 0), E15:OFFSET(E15, -MIN(B15-StartYear, ageMax-1), 0)) * 3412 * 10 ^ (-9) -> 0.005244674146 | G15: =IF(B15-StartYear+1 <= 30, SUMPRODUCT(OFFSET(baseEff, B15-'Efficiency Dist.'!$B$10, 0), OFFSET(inputTIC, B15-StartYear+1, 0)), 0) -> 116.8060282 | H15: =[Shipment] * [UnitEquipCost] * 0.001 -> 0.3563030141 | I15: =[ElecUse] * VLOOKUP(B15, elecPrices, iEcon+1) -> 0.1830790622 | K15: 2021 | L15: =SUMPRODUCT(OFFSET(stdsEff, K15-'Efficiency Dist.'!$I$10, 0), OFFSET(inputAEU, iPrd, 0)) * VLOOKUP(K15, usageTrend, 2, FALSE) -> 103.497125 | M15: =SUMPRODUCT(C15:OFFSET(C15, -MIN(B15-StartYear, ageMax-1), 0), fSurv:OFFSET(fSurv, -MIN(B15-StartYear, ageMax-1), 0), L15:OFFSET(L15, -MIN(B15-StartYear, ageMax-1), 0)) * 3412 * 10 ^ (-9) -> 0.00424166883 | N15: =basecase[ElecUse] - [ElecUse] -> 0.001003005316 | O15: =[SiteSavings]/3412 * VLOOKUP(K15, powerplant, 2, FALSE) -> 0.002513031153 | P15: =[SiteSavings] * VLOOKUP(K15, upstream, 2, FALSE) -> 4.094442512e-05 | Q15: =[SiteSavings] * VLOOKUP([Year], carbon, 2, FALSE) -> 0.1721153619 | R15: =IF(K15-StartYear+1 <= 30, SUMPRODUCT(OFFSET(stdsEff, K15-'Efficiency Dist.'!$I$10, 0), OFFSET(inputTIC, K15-StartYear+1, 0)), 0) -> 118.1580108 | S15: =basecase[Shipment] * [UnitEquipCost] * 0.001 -> 0.3604270777 | T15: =[EquipCost]-basecase[EquipCost] -> 0.004124063594 | U15: =[EquipCostIncr] * (1+0.03)^(yrDsc-[Year]) -> 0.003255573884 | V15: =[EquipCostIncr] * (1+0.07)^(yrDsc-[Year]) -> 0.002400242559 | W15: =[ElecUse] * VLOOKUP(K15, elecPrices, iEcon+1, FALSE) -> 0.1480665395 | X15: =basecase[OperCost] - [OperCost] -> 0.03501252271 | Y15: =[OperCostSav] * (1+0.03)^(yrDsc-[Year]) -> 0.02763920875 | Z15: =[OperCostSav] * (1+0.07)^(yrDsc-[Year]) -> 0.02037760699 | AA15: =[OperCostSav] - [EquipCostIncr] -> 0.03088845912 | AB15: =[NetSav] * (1+0.03)^(yrDsc-[Year]) -> 0.02438363486 | AC15: =[NetSav] * (1+0.07)^(yrDsc-[Year]) -> 0.01797736443 | AD15: =[NetSav] * (1+discRate)^(yrDsc-[Year]) -> 0.02090652497
B16: 2022 | C16: =IF(B16-StartYear+1 <= numYrs, OFFSET(Shipments!$B$4, B16-Shipments!$B$4, iPrd), 0) -> 3.080885891 | D16: =SUMPRODUCT(C16:OFFSET(C16, -MIN(B16-StartYear, ageMax-1), 0), fSurv:OFFSET(fSurv, -MIN(B16-StartYear, ageMax-1), 0)) -> 14.47017398 | E16: =SUMPRODUCT(OFFSET(baseEff, B16-'Efficiency Dist.'!$B$10, 0), OFFSET(inputAEU, iPrd, 0)) * VLOOKUP(B16, usageTrend, 2, FALSE) -> 117.972 | F16: =SUMPRODUCT(C16:OFFSET(C16, -MIN(B16-StartYear, ageMax-1), 0), fSurv:OFFSET(fSurv, -MIN(B16-StartYear, ageMax-1), 0), E16:OFFSET(E16, -MIN(B16-StartYear, ageMax-1), 0)) * 3412 * 10 ^ (-9) -> 0.006262917847 | G16: =IF(B16-StartYear+1 <= 30, SUMPRODUCT(OFFSET(baseEff, B16-'Efficiency Dist.'!$B$10, 0), OFFSET(inputTIC, B16-StartYear+1, 0)), 0) -> 116.8594083 | H16: =[Shipment] * [UnitEquipCost] * 0.001 -> 0.3600305022 | I16: =[ElecUse] * VLOOKUP(B16, elecPrices, iEcon+1) -> 0.2185196663 | K16: 2022 | L16: =SUMPRODUCT(OFFSET(stdsEff, K16-'Efficiency Dist.'!$I$10, 0), OFFSET(inputAEU, iPrd, 0)) * VLOOKUP(K16, usageTrend, 2, FALSE) -> 102.6595 | M16: =SUMPRODUCT(C16:OFFSET(C16, -MIN(B16-StartYear, ageMax-1), 0), fSurv:OFFSET(fSurv, -MIN(B16-StartYear, ageMax-1), 0), L16:OFFSET(L16, -MIN(B16-StartYear, ageMax-1), 0)) * 3412 * 10 ^ (-9) -> 0.005147228979 | N16: =basecase[ElecUse] - [ElecUse] -> 0.001115688868 | O16: =[SiteSavings]/3412 * VLOOKUP(K16, powerplant, 2, FALSE) -> 0.002795359941 | P16: =[SiteSavings] * VLOOKUP(K16, upstream, 2, FALSE) -> 4.49546529e-05 | Q16: =[SiteSavings] * VLOOKUP([Year], carbon, 2, FALSE) -> 0.1914518199 | R16: =IF(K16-StartYear+1 <= 30, SUMPRODUCT(OFFSET(stdsEff, K16-'Efficiency Dist.'!$I$10, 0), OFFSET(inputTIC, K16-StartYear+1, 0)), 0) -> 117.8526011 | S16: =basecase[Shipment] * [UnitEquipCost] * 0.001 -> 0.3630904158 | T16: =[EquipCost]-basecase[EquipCost] -> 0.003059913545 | U16: =[EquipCostIncr] * (1+0.03)^(yrDsc-[Year]) -> 0.00234516894 | V16: =[EquipCostIncr] * (1+0.07)^(yrDsc-[Year]) -> 0.001664390227 | W16: =[ElecUse] * VLOOKUP(K16, elecPrices, iEcon+1, FALSE) -> 0.1795921304 | X16: =basecase[OperCost] - [OperCost] -> 0.03892753585 | Y16: =[OperCostSav] * (1+0.03)^(yrDsc-[Year]) -> 0.02983471483 | Z16: =[OperCostSav] * (1+0.07)^(yrDsc-[Year]) -> 0.02117400027 | AA16: =[OperCostSav] - [EquipCostIncr] -> 0.03586762231 | AB16: =[NetSav] * (1+0.03)^(yrDsc-[Year]) -> 0.02748954589 | AC16: =[NetSav] * (1+0.07)^(yrDsc-[Year]) -> 0.01950961004 | AD16: =[NetSav] * (1+discRate)^(yrDsc-[Year]) -> 0.02312058914
B17: 2023 | C17: =IF(B17-StartYear+1 <= numYrs, OFFSET(Shipments!$B$4, B17-Shipments!$B$4, iPrd), 0) -> 3.111694749 | D17: =SUMPRODUCT(C17:OFFSET(C17, -MIN(B17-StartYear, ageMax-1), 0), fSurv:OFFSET(fSurv, -MIN(B17-StartYear, ageMax-1), 0)) -> 16.58076112 | E17: =SUMPRODUCT(OFFSET(baseEff, B17-'Efficiency Dist.'!$B$10, 0), OFFSET(inputAEU, iPrd, 0)) * VLOOKUP(B17, usageTrend, 2, FALSE) -> 113.30625 | F17: =SUMPRODUCT(C17:OFFSET(C17, -MIN(B17-StartYear, ageMax-1), 0), fSurv:OFFSET(fSurv, -MIN(B17-StartYear, ageMax-1), 0), E17:OFFSET(E17, -MIN(B17-StartYear, ageMax-1), 0)) * 3412 * 10 ^ (-9) -> 0.007009378002 | G17: =IF(B17-StartYear+1 <= 30, SUMPRODUCT(OFFSET(baseEff, B17-'Efficiency Dist.'!$B$10, 0), OFFSET(inputTIC, B17-StartYear+1, 0)), 0) -> 116.8819721 | H17: =[Shipment] * [UnitEquipCost] * 0.001 -> 0.363701019 | I17: =[ElecUse] * VLOOKUP(B17, elecPrices, iEcon+1) -> 0.2453056072 | K17: 2023 | L17: =SUMPRODUCT(OFFSET(stdsEff, K17-'Efficiency Dist.'!$I$10, 0), OFFSET(inputAEU, iPrd, 0)) * VLOOKUP(K17, usageTrend, 2, FALSE) -> 101.821875 | M17: =SUMPRODUCT(C17:OFFSET(C17, -MIN(B17-StartYear, ageMax-1), 0), fSurv:OFFSET(fSurv, -MIN(B17-StartYear, ageMax-1), 0), L17:OFFSET(L17, -MIN(B17-StartYear, ageMax-1), 0)) * 3412 * 10 ^ (-9) -> 0.005868005078 | N17: =basecase[ElecUse] - [ElecUse] -> 0.001141372924 | O17: =[SiteSavings]/3412 * VLOOKUP(K17, powerplant, 2, FALSE) -> 0.002859711378 | P17: =[SiteSavings] * VLOOKUP(K17, upstream, 2, FALSE) -> 4.583596225e-05 | Q17: =[SiteSavings] * VLOOKUP([Year], carbon, 2, FALSE) -> 0.195859195 | R17: =IF(K17-StartYear+1 <= 30, SUMPRODUCT(OFFSET(stdsEff, K17-'Efficiency Dist.'!$I$10, 0), OFFSET(inputTIC, K17-StartYear+1, 0)), 0) -> 117.5659897 | S17: =basecase[Shipment] * [UnitEquipCost] * 0.001 -> 0.3658294728 | T17: =[EquipCost]-basecase[EquipCost] -> 0.002128453835 | U17: =[EquipCostIncr] * (1+0.03)^(yrDsc-[Year]) -> 0.001583769547 | V17: =[EquipCostIncr] * (1+0.07)^(yrDsc-[Year]) -> 0.001081998 | W17: =[ElecUse] * VLOOKUP(K17, elecPrices, iEcon+1, FALSE) -> 0.2053612387 | X17: =basecase[OperCost] - [OperCost] -> 0.03994436854 | Y17: =[OperCostSav] * (1+0.03)^(yrDsc-[Year]) -> 0.02972236157 | Z17: =[OperCostSav] * (1+0.07)^(yrDsc-[Year]) -> 0.02030569147 | AA17: =[OperCostSav] - [EquipCostIncr] -> 0.03781591471 | AB17: =[NetSav] * (1+0.03)^(yrDsc-[Year]) -> 0.02813859202 | AC17: =[NetSav] * (1+0.07)^(yrDsc-[Year]) -> 0.01922369347 | AD17: =[NetSav] * (1+discRate)^(yrDsc-[Year]) -> 0.02321569123
B18: 2024 | C18: =IF(B18-StartYear+1 <= numYrs, OFFSET(Shipments!$B$4, B18-Shipments!$B$4, iPrd), 0) -> 3.142811697 | D18: =SUMPRODUCT(C18:OFFSET(C18, -MIN(B18-StartYear, ageMax-1), 0), fSurv:OFFSET(fSurv, -MIN(B18-StartYear, ageMax-1), 0)) -> 18.12031997 | E18: =SUMPRODUCT(OFFSET(baseEff, B18-'Efficiency Dist.'!$B$10, 0), OFFSET(inputAEU, iPrd, 0)) * VLOOKUP(B18, usageTrend, 2, FALSE) -> 108.6405 | F18: =SUMPRODUCT(C18:OFFSET(C18, -MIN(B18-StartYear, ageMax-1), 0), fSurv:OFFSET(fSurv, -MIN(B18-StartYear, ageMax-1), 0), E18:OFFSET(E18, -MIN(B18-StartYear, ageMax-1), 0)) * 3412 * 10 ^ (-9) -> 0.007453315063 | G18: =IF(B18-StartYear+1 <= 30, SUMPRODUCT(OFFSET(baseEff, B18-'Efficiency Dist.'!$B$10, 0), OFFSET(inputTIC, B18-StartYear+1, 0)), 0) -> 116.8784001 | H18: =[Shipment] * [UnitEquipCost] * 0.001 -> 0.367326803 | I18: =[ElecUse] * VLOOKUP(B18, elecPrices, iEcon+1) -> 0.2618296466 | K18: 2024 | L18: =SUMPRODUCT(OFFSET(stdsEff, K18-'Efficiency Dist.'!$I$10, 0), OFFSET(inputAEU, iPrd, 0)) * VLOOKUP(K18, usageTrend, 2, FALSE) -> 100.98425 | M18: =SUMPRODUCT(C18:OFFSET(C18, -MIN(B18-StartYear, ageMax-1), 0), fSurv:OFFSET(fSurv, -MIN(B18-StartYear, ageMax-1), 0), L18:OFFSET(L18, -MIN(B18-StartYear, ageMax-1), 0)) * 3412 * 10 ^ (-9) -> 0.006375718062 | N18: =basecase[ElecUse] - [ElecUse] -> 0.001077597001 | O18: =[SiteSavings]/3412 * VLOOKUP(K18, powerplant, 2, FALSE) -> 0.002699920718 | P18: =[SiteSavings] * VLOOKUP(K18, upstream, 2, FALSE) -> 4.318464697e-05 | Q18: =[SiteSavings] * VLOOKUP([Year], carbon, 2, FALSE) -> 0.1849152689 | R18: =IF(K18-StartYear+1 <= 30, SUMPRODUCT(OFFSET(stdsEff, K18-'Efficiency Dist.'!$I$10, 0), OFFSET(inputTIC, K18-StartYear+1, 0)), 0) -> 117.2971439 | S18: =basecase[Shipment] * [UnitEquipCost] * 0.001 -> 0.368642836 | T18: =[EquipCost]-basecase[EquipCost] -> 0.001316033036 | U18: =[EquipCostIncr] * (1+0.03)^(yrDsc-[Year]) -> 0.0009507302662 | V18: =[EquipCostIncr] * (1+0.07)^(yrDsc-[Year]) -> 0.0006252378154 | W18: =[ElecUse] * VLOOKUP(K18, elecPrices, iEcon+1, FALSE) -> 0.2239744319 | X18: =basecase[OperCost] - [OperCost] -> 0.03785521471 | Y18: =[OperCostSav] * (1+0.03)^(yrDsc-[Year]) -> 0.02734741253 | Z18: =[OperCostSav] * (1+0.07)^(yrDsc-[Year]) -> 0.01798473981 | AA18: =[OperCostSav] - [EquipCostIncr] -> 0.03653918167 | AB18: =[NetSav] * (1+0.03)^(yrDsc-[Year]) -> 0.02639668227 | AC18: =[NetSav] * (1+0.07)^(yrDsc-[Year]) -> 0.017359502 | AD18: =[NetSav] * (1+discRate)^(yrDsc-[Year]) -> 0.02136370276
B19: 2025 | C19: =IF(B19-StartYear+1 <= numYrs, OFFSET(Shipments!$B$4, B19-Shipments!$B$4, iPrd), 0) -> 3.174239814 | D19: =SUMPRODUCT(C19:OFFSET(C19, -MIN(B19-StartYear, ageMax-1), 0), fSurv:OFFSET(fSurv, -MIN(B19-StartYear, ageMax-1), 0)) -> 19.13347166 | E19: =SUMPRODUCT(OFFSET(baseEff, B19-'Efficiency Dist.'!$B$10, 0), OFFSET(inputAEU, iPrd, 0)) * VLOOKUP(B19, usageTrend, 2, FALSE) -> 103.97475 | F19: =SUMPRODUCT(C19:OFFSET(C19, -MIN(B19-StartYear, ageMax-1), 0), fSurv:OFFSET(fSurv, -MIN(B19-StartYear, ageMax-1), 0), E19:OFFSET(E19, -MIN(B19-StartYear, ageMax-1), 0)) * 3412 * 10 ^ (-9) -> 0.00762434964 | G19: =IF(B19-StartYear+1 <= 30, SUMPRODUCT(OFFSET(baseEff, B19-'Efficiency Dist.'!$B$10, 0), OFFSET(inputTIC, B19-StartYear+1, 0)), 0) -> 116.8528135 | H19: =[Shipment] * [UnitEquipCost] * 0.001 -> 0.3709188528 | I19: =[ElecUse] * VLOOKUP(B19, elecPrices, iEcon+1) -> 0.2680150424 | K19: 2025 | L19: =SUMPRODUCT(OFFSET(stdsEff, K19-'Efficiency Dist.'!$I$10, 0), OFFSET(inputAEU, iPrd, 0)) * VLOOKUP(K19, usageTrend, 2, FALSE) -> 100.146625 | M19: =SUMPRODUCT(C19:OFFSET(C19, -MIN(B19-StartYear, ageMax-1), 0), fSurv:OFFSET(fSurv, -MIN(B19-StartYear, ageMax-1), 0), L19:OFFSET(L19, -MIN(B19-StartYear, ageMax-1), 0)) * 3412 * 10 ^ (-9) -> 0.00668809078 | N19: =basecase[ElecUse] - [ElecUse] -> 0.0009362588599 | O19: =[SiteSavings]/3412 * VLOOKUP(K19, powerplant, 2, FALSE) -> 0.002345797818 | P19: =[SiteSavings] * VLOOKUP(K19, upstream, 2, FALSE) -> 3.734814411e-05 | Q19: =[SiteSavings] * VLOOKUP([Year], carbon, 2, FALSE) -> 0.1606616933 | R19: =IF(K19-StartYear+1 <= 30, SUMPRODUCT(OFFSET(stdsEff, K19-'Efficiency Dist.'!$I$10, 0), OFFSET(inputTIC, K19-StartYear+1, 0)), 0) -> 117.0450743 | S19: =basecase[Shipment] * [UnitEquipCost] * 0.001 -> 0.3715291349 | T19: =[EquipCost]-basecase[EquipCost] -> 0.000610282071 | U19: =[EquipCostIncr] * (1+0.03)^(yrDsc-[Year]) -> 0.0004280395659 | V19: =[EquipCostIncr] * (1+0.07)^(yrDsc-[Year]) -> 0.0002709725381 | W19: =[ElecUse] * VLOOKUP(K19, elecPrices, iEcon+1, FALSE) -> 0.2351031915 | X19: =basecase[OperCost] - [OperCost] -> 0.03291185083 | Y19: =[OperCostSav] * (1+0.03)^(yrDsc-[Year]) -> 0.02308370999 | Z19: =[OperCostSav] * (1+0.07)^(yrDsc-[Year]) -> 0.01461325537 | AA19: =[OperCostSav] - [EquipCostIncr] -> 0.03230156876 | AB19: =[NetSav] * (1+0.03)^(yrDsc-[Year]) -> 0.02265567042 | AC19: =[NetSav] * (1+0.07)^(yrDsc-[Year]) -> 0.01434228283 | AD19: =[NetSav] * (1+discRate)^(yrDsc-[Year]) -> 0.01798672215
B20: 2026 | C20: =IF(B20-StartYear+1 <= numYrs, OFFSET(Shipments!$B$4, B20-Shipments!$B$4, iPrd), 0) -> 3.205982212 | D20: =SUMPRODUCT(C20:OFFSET(C20, -MIN(B20-StartYear, ageMax-1), 0), fSurv:OFFSET(fSurv, -MIN(B20-StartYear, ageMax-1), 0)) -> 19.75706431 | E20: =SUMPRODUCT(OFFSET(baseEff, B20-'Efficiency Dist.'!$B$10, 0), OFFSET(inputAEU, iPrd, 0)) * VLOOKUP(B20, usageTrend, 2, FALSE) -> 99.309 | F20: =SUMPRODUCT(C20:OFFSET(C20, -MIN(B20-StartYear, ageMax-1), 0), fSurv:OFFSET(fSurv, -MIN(B20-StartYear, ageMax-1), 0), E20:OFFSET(E20, -MIN(B20-StartYear, ageMax-1), 0)) * 3412 * 10 ^ (-9) -> 0.00759446918 | G20: =IF(B20-StartYear+1 <= 30, SUMPRODUCT(OFFSET(baseEff, B20-'Efficiency Dist.'!$B$10, 0), OFFSET(inputTIC, B20-StartYear+1, 0)), 0) -> 116.8088344 | H20: =[Shipment] * [UnitEquipCost] * 0.001 -> 0.3744870452 | I20: =[ElecUse] * VLOOKUP(B20, elecPrices, iEcon+1) -> 0.2671456233 | K20: 2026 | L20: =SUMPRODUCT(OFFSET(stdsEff, K20-'Efficiency Dist.'!$I$10, 0), OFFSET(inputAEU, iPrd, 0)) * VLOOKUP(K20, usageTrend, 2, FALSE) -> 99.309 | M20: =SUMPRODUCT(C20:OFFSET(C20, -MIN(B20-StartYear, ageMax-1), 0), fSurv:OFFSET(fSurv, -MIN(B20-StartYear, ageMax-1), 0), L20:OFFSET(L20, -MIN(B20-StartYear, ageMax-1), 0)) * 3412 * 10 ^ (-9) -> 0.006856092185 | N20: =basecase[ElecUse] - [ElecUse] -> 0.0007383769944 | O20: =[SiteSavings]/3412 * VLOOKUP(K20, powerplant, 2, FALSE) -> 0.001706445916 | P20: =[SiteSavings] * VLOOKUP(K20, upstream, 2, FALSE) -> 2.949649169e-05 | Q20: =[SiteSavings] * VLOOKUP([Year], carbon, 2, FALSE) -> 0.1045719424 | R20: =IF(K20-StartYear+1 <= 30, SUMPRODUCT(OFFSET(stdsEff, K20-'Efficiency Dist.'!$I$10, 0), OFFSET(inputTIC, K20-StartYear+1, 0)), 0) -> 116.8088344 | S20: =basecase[Shipment] * [UnitEquipCost] * 0.001 -> 0.3744870452 | T20: =[EquipCost]-basecase[EquipCost] -> 0 | U20: =[EquipCostIncr] * (1+0.03)^(yrDsc-[Year]) -> 0 | V20: =[EquipCostIncr] * (1+0.07)^(yrDsc-[Year]) -> 0 | W20: =[ElecUse] * VLOOKUP(K20, elecPrices, iEcon+1, FALSE) -> 0.2411722237 | X20: =basecase[OperCost] - [OperCost] -> 0.02597339955 | Y20: =[OperCostSav] * (1+0.03)^(yrDsc-[Year]) -> 0.01768662123 | Z20: =[OperCostSav] * (1+0.07)^(yrDsc-[Year]) -> 0.0107780374 | AA20: =[OperCostSav] - [EquipCostIncr] -> 0.02597339955 | AB20: =[NetSav] * (1+0.03)^(yrDsc-[Year]) -> 0.01768662123 | AC20: =[NetSav] * (1+0.07)^(yrDsc-[Year]) -> 0.0107780374 | AD20: =[NetSav] * (1+discRate)^(yrDsc-[Year]) -> 0.01377424833
B21: 2027 | C21: =IF(B21-StartYear+1 <= numYrs, OFFSET(Shipments!$B$4, B21-Shipments!$B$4, iPrd), 0) -> 3.238042034 | D21: =SUMPRODUCT(C21:OFFSET(C21, -MIN(B21-StartYear, ageMax-1), 0), fSurv:OFFSET(fSurv, -MIN(B21-StartYear, ageMax-1), 0)) -> 20.14411789 | E21: =SUMPRODUCT(OFFSET(baseEff, B21-'Efficiency Dist.'!$B$10, 0), OFFSET(inputAEU, iPrd, 0)) * VLOOKUP(B21, usageTrend, 2, FALSE) -> 99.309 | F21: =SUMPRODUCT(C21:OFFSET(C21, -MIN(B21-StartYear, ageMax-1), 0), fSurv:OFFSET(fSurv, -MIN(B21-StartYear, ageMax-1), 0), E21:OFFSET(E21, -MIN(B21-StartYear, ageMax-1), 0)) * 3412 * 10 ^ (-9) -> 0.007492630099 | G21: =IF(B21-StartYear+1 <= 30, SUMPRODUCT(OFFSET(baseEff, B21-'Efficiency Dist.'!$B$10, 0), OFFSET(inputTIC, B21-StartYear+1, 0)), 0) -> 116.5382955 | H21: =[Shipment] * [UnitEquipCost] * 0.001 -> 0.3773558993 | I21: =[ElecUse] * VLOOKUP(B21, elecPrices, iEcon+1) -> 0.2636576159 | K21: 2027 | L21: =SUMPRODUCT(OFFSET(stdsEff, K21-'Efficiency Dist.'!$I$10, 0), OFFSET(inputAEU, iPrd, 0)) * VLOOKUP(K21, usageTrend, 2, FALSE) -> 99.309 | M21: =SUMPRODUCT(C21:OFFSET(C21, -MIN(B21-StartYear, ageMax-1), 0), fSurv:OFFSET(fSurv, -MIN(B21-StartYear, ageMax-1), 0), L21:OFFSET(L21, -MIN(B21-StartYear, ageMax-1), 0)) * 3412 * 10 ^ (-9) -> 0.006945414613 | N21: =basecase[ElecUse] - [ElecUse] -> 0.0005472154862 | O21: =[SiteSavings]/3412 * VLOOKUP(K21, powerplant, 2, FALSE) -> 0.001264656996 | P21: =[SiteSavings] * VLOOKUP(K21, upstream, 2, FALSE) -> 2.188680115e-05 | Q21: =[SiteSavings] * VLOOKUP([Year], carbon, 2, FALSE) -> 0.07749887484 | R21: =IF(K21-StartYear+1 <= 30, SUMPRODUCT(OFFSET(stdsEff, K21-'Efficiency Dist.'!$I$10, 0), OFFSET(inputTIC, K21-StartYear+1, 0)), 0) -> 116.5382955 | S21: =basecase[Shipment] * [UnitEquipCost] * 0.001 -> 0.3773558993 | T21: =[EquipCost]-basecase[EquipCost] -> 0 | U21: =[EquipCostIncr] * (1+0.03)^(yrDsc-[Year]) -> 0 | V21: =[EquipCostIncr] * (1+0.07)^(yrDsc-[Year]) -> 0 | W21: =[ElecUse] * VLOOKUP(K21, elecPrices, iEcon+1, FALSE) -> 0.2444016899 | X21: =basecase[OperCost] - [OperCost] -> 0.01925592596 | Y21: =[OperCostSav] * (1+0.03)^(yrDsc-[Year]) -> 0.01273043552 | Z21: =[OperCostSav] * (1+0.07)^(yrDsc-[Year]) -> 0.007467780081 | AA21: =[OperCostSav] - [EquipCostIncr] -> 0.01925592596 | AB21: =[NetSav] * (1+0.03)^(yrDsc-[Year]) -> 0.01273043552 | AC21: =[NetSav] * (1+0.07)^(yrDsc-[Year]) -> 0.007467780081 | AD21: =[NetSav] * (1+discRate)^(yrDsc-[Year]) -> 0.00972555111
B22: 2028 | C22: =IF(B22-StartYear+1 <= numYrs, OFFSET(Shipments!$B$4, B22-Shipments!$B$4, iPrd), 0) -> 3.270422454 | D22: =SUMPRODUCT(C22:OFFSET(C22, -MIN(B22-StartYear, ageMax-1), 0), fSurv:OFFSET(fSurv, -MIN(B22-StartYear, ageMax-1), 0)) -> 20.41365449 | E22: =SUMPRODUCT(OFFSET(baseEff, B22-'Efficiency Dist.'!$B$10, 0), OFFSET(inputAEU, iPrd, 0)) * VLOOKUP(B22, usageTrend, 2, FALSE) -> 99.309 | F22: =SUMPRODUCT(C22:OFFSET(C22, -MIN(B22-StartYear, ageMax-1), 0), fSurv:OFFSET(fSurv, -MIN(B22-StartYear, ageMax-1), 0), E22:OFFSET(E22, -MIN(B22-StartYear, ageMax-1), 0)) * 3412 * 10 ^ (-9) -> 0.007379022228 | G22: =IF(B22-StartYear+1 <= 30, SUMPRODUCT(OFFSET(baseEff, B22-'Efficiency Dist.'!$B$10, 0), OFFSET(inputTIC, B22-StartYear+1, 0)), 0) -> 116.2898665 | H22: =[Shipment] * [UnitEquipCost] * 0.001 -> 0.3803169907 | I22: =[ElecUse] * VLOOKUP(B22, elecPrices, iEcon+1) -> 0.2594163174 | K22: 2028 | L22: =SUMPRODUCT(OFFSET(stdsEff, K22-'Efficiency Dist.'!$I$10, 0), OFFSET(inputAEU, iPrd, 0)) * VLOOKUP(K22, usageTrend, 2, FALSE) -> 99.309 | M22: =SUMPRODUCT(C22:OFFSET(C22, -MIN(B22-StartYear, ageMax-1), 0), fSurv:OFFSET(fSurv, -MIN(B22-StartYear, ageMax-1), 0), L22:OFFSET(L22, -MIN(B22-StartYear, ageMax-1), 0)) * 3412 * 10 ^ (-9) -> 0.006999953201 | N22: =basecase[ElecUse] - [ElecUse] -> 0.0003790690269 | O22: =[SiteSavings]/3412 * VLOOKUP(K22, powerplant, 2, FALSE) -> 0.0008760576205 | P22: =[SiteSavings] * VLOOKUP(K22, upstream, 2, FALSE) -> 1.519729957e-05 | Q22: =[SiteSavings] * VLOOKUP([Year], carbon, 2, FALSE) -> 0.05368529184 | R22: =IF(K22-StartYear+1 <= 30, SUMPRODUCT(OFFSET(stdsEff, K22-'Efficiency Dist.'!$I$10, 0), OFFSET(inputTIC, K22-StartYear+1, 0)), 0) -> 116.2898665 | S22: =basecase[Shipment] * [UnitEquipCost] * 0.001 -> 0.3803169907 | T22: =[EquipCost]-basecase[EquipCost] -> 0 | U22: =[EquipCostIncr] * (1+0.03)^(yrDsc-[Year]) -> 0 | V22: =[EquipCostIncr] * (1+0.07)^(yrDsc-[Year]) -> 0 | W22: =[ElecUse] * VLOOKUP(K22, elecPrices, iEcon+1, FALSE) -> 0.2460897969 | X22: =basecase[OperCost] - [OperCost] -> 0.0133265205 | Y22: =[OperCostSav] * (1+0.03)^(yrDsc-[Year]) -> 0.008553786402 | Z22: =[OperCostSav] * (1+0.07)^(yrDsc-[Year]) -> 0.004830144312 | AA22: =[OperCostSav] - [EquipCostIncr] -> 0.0133265205 | AB22: =[NetSav] * (1+0.03)^(yrDsc-[Year]) -> 0.008553786402 | AC22: =[NetSav] * (1+0.07)^(yrDsc-[Year]) -> 0.004830144312 | AD22: =[NetSav] * (1+discRate)^(yrDsc-[Year]) -> 0.00641028422
B23: 2029 | C23: =IF(B23-StartYear+1 <= numYrs, OFFSET(Shipments!$B$4, B23-Shipments!$B$4, iPrd), 0) -> 3.303126679 | D23: =SUMPRODUCT(C23:OFFSET(C23, -MIN(B23-StartYear, ageMax-1), 0), fSurv:OFFSET(fSurv, -MIN(B23-StartYear, ageMax-1), 0)) -> 20.63851573 | E23: =SUMPRODUCT(OFFSET(baseEff, B23-'Efficiency Dist.'!$B$10, 0), OFFSET(inputAEU, iPrd, 0)) * VLOOKUP(B23, usageTrend, 2, FALSE) -> 99.309 | F23: =SUMPRODUCT(C23:OFFSET(C23, -MIN(B23-StartYear, ageMax-1), 0), fSurv:OFFSET(fSurv, -MIN(B23-StartYear, ageMax-1), 0), E23:OFFSET(E23, -MIN(B23-StartYear, ageMax-1), 0)) * 3412 * 10 ^ (-9) -> 0.00729028991 | G23: =IF(B23-StartYear+1 <= 30, SUMPRODUCT(OFFSET(baseEff, B23-'Efficiency Dist.'!$B$10, 0), OFFSET(inputTIC, B23-StartYear+1, 0)), 0) -> 116.0617406 | H23: =[Shipment] * [UnitEquipCost] * 0.001 -> 0.3833666318 | I23: =[ElecUse] * VLOOKUP(B23, elecPrices, iEcon+1) -> 0.2562516911 | K23: 2029 | L23: =SUMPRODUCT(OFFSET(stdsEff, K23-'Efficiency Dist.'!$I$10, 0), OFFSET(inputAEU, iPrd, 0)) * VLOOKUP(K23, usageTrend, 2, FALSE) -> 99.309 | M23: =SUMPRODUCT(C23:OFFSET(C23, -MIN(B23-StartYear, ageMax-1), 0), fSurv:OFFSET(fSurv, -MIN(B23-StartYear, ageMax-1), 0), L23:OFFSET(L23, -MIN(B23-StartYear, ageMax-1), 0)) * 3412 * 10 ^ (-9) -> 0.007046537354 | N23: =basecase[ElecUse] - [ElecUse] -> 0.0002437525558 | O23: =[SiteSavings]/3412 * VLOOKUP(K23, powerplant, 2, FALSE) -> 0.0005633308681 | P23: =[SiteSavings] * VLOOKUP(K23, upstream, 2, FALSE) -> 9.782018069e-06 | Q23: =[SiteSavings] * VLOOKUP([Year], carbon, 2, FALSE) -> 0.0345212248 | R23: =IF(K23-StartYear+1 <= 30, SUMPRODUCT(OFFSET(stdsEff, K23-'Efficiency Dist.'!$I$10, 0), OFFSET(inputTIC, K23-StartYear+1, 0)), 0) -> 116.0617406 | S23: =basecase[Shipment] * [UnitEquipCost] * 0.001 -> 0.3833666318 | T23: =[EquipCost]-basecase[EquipCost] -> 0 | U23: =[EquipCostIncr] * (1+0.03)^(yrDsc-[Year]) -> 0 | V23: =[EquipCostIncr] * (1+0.07)^(yrDsc-[Year]) -> 0 | W23: =[ElecUse] * VLOOKUP(K23, elecPrices, iEcon+1, FALSE) -> 0.2476838556 | X23: =basecase[OperCost] - [OperCost] -> 0.008567835489 | Y23: =[OperCostSav] * (1+0.03)^(yrDsc-[Year]) -> 0.005339191818 | Z23: =[OperCostSav] * (1+0.07)^(yrDsc-[Year]) -> 0.002902222308 | AA23: =[OperCostSav] - [EquipCostIncr] -> 0.008567835489 | AB23: =[NetSav] * (1+0.03)^(yrDsc-[Year]) -> 0.005339191818 | AC23: =[NetSav] * (1+0.07)^(yrDsc-[Year]) -> 0.002902222308 | AD23: =[NetSav] * (1+discRate)^(yrDsc-[Year]) -> 0.003925024156
B24: 2030 | C24: =IF(B24-StartYear+1 <= numYrs, OFFSET(Shipments!$B$4, B24-Shipments!$B$4, iPrd), 0) -> 3.336157946 | D24: =SUMPRODUCT(C24:OFFSET(C24, -MIN(B24-StartYear, ageMax-1), 0), fSurv:OFFSET(fSurv, -MIN(B24-StartYear, ageMax-1), 0)) -> 20.85082223 | E24: =SUMPRODUCT(OFFSET(baseEff, B24-'Efficiency Dist.'!$B$10, 0), OFFSET(inputAEU, iPrd, 0)) * VLOOKUP(B24, usageTrend, 2, FALSE) -> 99.309 | F24: =SUMPRODUCT(C24:OFFSET(C24, -MIN(B24-StartYear, ageMax-1), 0), fSurv:OFFSET(fSurv, -MIN(B24-StartYear, ageMax-1), 0), E24:OFFSET(E24, -MIN(B24-StartYear, ageMax-1), 0)) * 3412 * 10 ^ (-9) -> 0.007240787721 | G24: =IF(B24-StartYear+1 <= 30, SUMPRODUCT(OFFSET(baseEff, B24-'Efficiency Dist.'!$B$10, 0), OFFSET(inputTIC, B24-StartYear+1, 0)), 0) -> 115.8522584 | H24: =[Shipment] * [UnitEquipCost] * 0.001 -> 0.3865014325 | I24: =[ElecUse] * VLOOKUP(B24, elecPrices, iEcon+1) -> 0.2543923202 | K24: 2030 | L24: =SUMPRODUCT(OFFSET(stdsEff, K24-'Efficiency Dist.'!$I$10, 0), OFFSET(inputAEU, iPrd, 0)) * VLOOKUP(K24, usageTrend, 2, FALSE) -> 99.309 | M24: =SUMPRODUCT(C24:OFFSET(C24, -MIN(B24-StartYear, ageMax-1), 0), fSurv:OFFSET(fSurv, -MIN(B24-StartYear, ageMax-1), 0), L24:OFFSET(L24, -MIN(B24-StartYear, ageMax-1), 0)) * 3412 * 10 ^ (-9) -> 0.00709667399 | N24: =basecase[ElecUse] - [ElecUse] -> 0.000144113731 | O24: =[SiteSavings]/3412 * VLOOKUP(K24, powerplant, 2, FALSE) -> 0.0003330578952 | P24: =[SiteSavings] * VLOOKUP(K24, upstream, 2, FALSE) -> 5.804503994e-06 | Q24: =[SiteSavings] * VLOOKUP([Year], carbon, 2, FALSE) -> 0.02040997063 | R24: =IF(K24-StartYear+1 <= 30, SUMPRODUCT(OFFSET(stdsEff, K24-'Efficiency Dist.'!$I$10, 0), OFFSET(inputTIC, K24-StartYear+1, 0)), 0) -> 115.8522584 | S24: =basecase[Shipment] * [UnitEquipCost] * 0.001 -> 0.3865014325 | T24: =[EquipCost]-basecase[EquipCost] -> 0 | U24: =[EquipCostIncr] * (1+0.03)^(yrDsc-[Year]) -> 0 | V24: =[EquipCostIncr] * (1+0.07)^(yrDsc-[Year]) -> 0 | W24: =[ElecUse] * VLOOKUP(K24, elecPrices, iEcon+1, FALSE) -> 0.2493291381 | X24: =basecase[OperCost] - [OperCost] -> 0.005063182046 | Y24: =[OperCostSav] * (1+0.03)^(yrDsc-[Year]) -> 0.003063308406 | Z24: =[OperCostSav] * (1+0.07)^(yrDsc-[Year]) -> 0.00160287377 | AA24: =[OperCostSav] - [EquipCostIncr] -> 0.005063182046 | AB24: =[NetSav] * (1+0.03)^(yrDsc-[Year]) -> 0.003063308406 | AC24: =[NetSav] * (1+0.07)^(yrDsc-[Year]) -> 0.00160287377 | AD24: =[NetSav] * (1+discRate)^(yrDsc-[Year]) -> 0.002209049555
B25: 2031 | C25: =IF(B25-StartYear+1 <= numYrs, OFFSET(Shipments!$B$4, B25-Shipments!$B$4, iPrd), 0) -> 3.369519525 | D25: =SUMPRODUCT(C25:OFFSET(C25, -MIN(B25-StartYear, ageMax-1), 0), fSurv:OFFSET(fSurv, -MIN(B25-StartYear, ageMax-1), 0)) -> 21.05933046 | E25: =SUMPRODUCT(OFFSET(baseEff, B25-'Efficiency Dist.'!$B$10, 0), OFFSET(inputAEU, iPrd, 0)) * VLOOKUP(B25, usageTrend, 2, FALSE) -> 99.309 | F25: =SUMPRODUCT(C25:OFFSET(C25, -MIN(B25-StartYear, ageMax-1), 0), fSurv:OFFSET(fSurv, -MIN(B25-StartYear, ageMax-1), 0), E25:OFFSET(E25, -MIN(B25-StartYear, ageMax-1), 0)) * 3412 * 10 ^ (-9) -> 0.007229880463 | G25: =IF(B25-StartYear+1 <= 30, SUMPRODUCT(OFFSET(baseEff, B25-'Efficiency Dist.'!$B$10, 0), OFFSET(inputTIC, B25-StartYear+1, 0)), 0) -> 115.6598963 | H25: =[Shipment] * [UnitEquipCost] * 0.001 -> 0.3897182789 | I25: =[ElecUse] * VLOOKUP(B25, elecPrices, iEcon+1) -> 0.2545770915 | K25: 2031 | L25: =SUMPRODUCT(OFFSET(stdsEff, K25-'Efficiency Dist.'!$I$10, 0), OFFSET(inputAEU, iPrd, 0)) * VLOOKUP(K25, usageTrend, 2, FALSE) -> 99.309 | M25: =SUMPRODUCT(C25:OFFSET(C25, -MIN(B25-StartYear, ageMax-1), 0), fSurv:OFFSET(fSurv, -MIN(B25-StartYear, ageMax-1), 0), L25:OFFSET(L25, -MIN(B25-StartYear, ageMax-1), 0)) * 3412 * 10 ^ (-9) -> 0.007152683469 | N25: =basecase[ElecUse] - [ElecUse] -> 7.719699435e-05 | O25: =[SiteSavings]/3412 * VLOOKUP(K25, powerplant, 2, FALSE) -> 0.0001686793743 | P25: =[SiteSavings] * VLOOKUP(K25, upstream, 2, FALSE) -> 3.119090459e-06 | Q25: =[SiteSavings] * VLOOKUP([Year], carbon, 2, FALSE) -> 0.009425133924 | R25: =IF(K25-StartYear+1 <= 30, SUMPRODUCT(OFFSET(stdsEff, K25-'Efficiency Dist.'!$I$10, 0), OFFSET(inputTIC, K25-StartYear+1, 0)), 0) -> 115.6598963 | S25: =basecase[Shipment] * [UnitEquipCost] * 0.001 -> 0.3897182789 | T25: =[EquipCost]-basecase[EquipCost] -> 0 | U25: =[EquipCostIncr] * (1+0.03)^(yrDsc-[Year]) -> 0 | V25: =[EquipCostIncr] * (1+0.07)^(yrDsc-[Year]) -> 0 | W25: =[ElecUse] * VLOOKUP(K25, elecPrices, iEcon+1, FALSE) -> 0.2518588465 | X25: =basecase[OperCost] - [OperCost] -> 0.002718244982 | Y25: =[OperCostSav] * (1+0.03)^(yrDsc-[Year]) -> 0.001596682445 | Z25: =[OperCostSav] * (1+0.07)^(yrDsc-[Year]) -> 0.000804230606 | AA25: =[OperCostSav] - [EquipCostIncr] -> 0.002718244982 | AB25: =[NetSav] * (1+0.03)^(yrDsc-[Year]) -> 0.001596682445 | AC25: =[NetSav] * (1+0.07)^(yrDsc-[Year]) -> 0.000804230606 | AD25: =[NetSav] * (1+discRate)^(yrDsc-[Year]) -> 0.001129486935
B26: 2032 | C26: =IF(B26-StartYear+1 <= numYrs, OFFSET(Shipments!$B$4, B26-Shipments!$B$4, iPrd), 0) -> 3.403214721 | D26: =SUMPRODUCT(C26:OFFSET(C26, -MIN(B26-StartYear, ageMax-1), 0), fSurv:OFFSET(fSurv, -MIN(B26-StartYear, ageMax-1), 0)) -> 21.26992376 | E26: =SUMPRODUCT(OFFSET(baseEff, B26-'Efficiency Dist.'!$B$10, 0), OFFSET(inputAEU, iPrd, 0)) * VLOOKUP(B26, usageTrend, 2, FALSE) -> 99.309 | F26: =SUMPRODUCT(C26:OFFSET(C26, -MIN(B26-StartYear, ageMax-1), 0), fSurv:OFFSET(fSurv, -MIN(B26-StartYear, ageMax-1), 0), E26:OFFSET(E26, -MIN(B26-StartYear, ageMax-1), 0)) * 3412 * 10 ^ (-9) -> 0.007252258945 | G26: =IF(B26-StartYear+1 <= 30, SUMPRODUCT(OFFSET(baseEff, B26-'Efficiency Dist.'!$B$10, 0), OFFSET(inputTIC, B26-StartYear+1, 0)), 0) -> 115.4832551 | H26: =[Shipment] * [UnitEquipCost] * 0.001 -> 0.3930143138 | I26: =[ElecUse] * VLOOKUP(B26, elecPrices, iEcon+1) -> 0.2554586002 | K26: 2032 | L26: =SUMPRODUCT(OFFSET(stdsEff, K26-'Efficiency Dist.'!$I$10, 0), OFFSET(inputAEU, iPrd, 0)) * VLOOKUP(K26, usageTrend, 2, FALSE) -> 99.309 | M26: =SUMPRODUCT(C26:OFFSET(C26, -MIN(B26-StartYear, ageMax-1), 0), fSurv:OFFSET(fSurv, -MIN(B26-StartYear, ageMax-1), 0), L26:OFFSET(L26, -MIN(B26-StartYear, ageMax-1), 0)) * 3412 * 10 ^ (-9) -> 0.007215248291 | N26: =basecase[ElecUse] - [ElecUse] -> 3.701065354e-05 | O26: =[SiteSavings]/3412 * VLOOKUP(K26, powerplant, 2, FALSE) -> 8.087016773e-05 | P26: =[SiteSavings] * VLOOKUP(K26, upstream, 2, FALSE) -> 1.501620555e-06 | Q26: =[SiteSavings] * VLOOKUP([Year], carbon, 2, FALSE) -> 0.004518703988 | R26: =IF(K26-StartYear+1 <= 30, SUMPRODUCT(OFFSET(stdsEff, K26-'Efficiency Dist.'!$I$10, 0), OFFSET(inputTIC, K26-StartYear+1, 0)), 0) -> 115.4832551 | S26: =basecase[Shipment] * [UnitEquipCost] * 0.001 -> 0.3930143138 | T26: =[EquipCost]-basecase[EquipCost] -> 0 | U26: =[EquipCostIncr] * (1+0.03)^(yrDsc-[Year]) -> 0 | V26: =[EquipCostIncr] * (1+0.07)^(yrDsc-[Year]) -> 0 | W26: =[ElecUse] * VLOOKUP(K26, elecPrices, iEcon+1, FALSE) -> 0.2541549113 | X26: =basecase[OperCost] - [OperCost] -> 0.001303688936 | Y26: =[OperCostSav] * (1+0.03)^(yrDsc-[Year]) -> 0.0007434755836 | Z26: =[OperCostSav] * (1+0.07)^(yrDsc-[Year]) -> 0.0003604808545 | AA26: =[OperCostSav] - [EquipCostIncr] -> 0.001303688936 | AB26: =[NetSav] * (1+0.03)^(yrDsc-[Year]) -> 0.0007434755836 | AC26: =[NetSav] * (1+0.07)^(yrDsc-[Year]) -> 0.0003604808545 | AD26: =[NetSav] * (1+discRate)^(yrDsc-[Year]) -> 0.0005159139814
B27: 2033 | C27: =IF(B27-StartYear+1 <= numYrs, OFFSET(Shipments!$B$4, B27-Shipments!$B$4, iPrd), 0) -> 3.437246868 | D27: =SUMPRODUCT(C27:OFFSET(C27, -MIN(B27-StartYear, ageMax-1), 0), fSurv:OFFSET(fSurv, -MIN(B27-StartYear, ageMax-1), 0)) -> 21.482623 | E27: =SUMPRODUCT(OFFSET(baseEff, B27-'Efficiency Dist.'!$B$10, 0), OFFSET(inputAEU, iPrd, 0)) * VLOOKUP(B27, usageTrend, 2, FALSE) -> 99.309 | F27: =SUMPRODUCT(C27:OFFSET(C27, -MIN(B27-StartYear, ageMax-1), 0), fSurv:OFFSET(fSurv, -MIN(B27-StartYear, ageMax-1), 0), E27:OFFSET(E27, -MIN(B27-StartYear, ageMax-1), 0)) * 3412 * 10 ^ (-9) -> 0.007298280343 | G27: =IF(B27-StartYear+1 <= 30, SUMPRODUCT(OFFSET(baseEff, B27-'Efficiency Dist.'!$B$10, 0), OFFSET(inputTIC, B27-StartYear+1, 0)), 0) -> 115.3210501 | H27: =[Shipment] * [UnitEquipCost] * 0.001 -> 0.3963869181 | I27: =[ElecUse] * VLOOKUP(B27, elecPrices, iEcon+1) -> 0.2565934669 | K27: 2033 | L27: =SUMPRODUCT(OFFSET(stdsEff, K27-'Efficiency Dist.'!$I$10, 0), OFFSET(inputAEU, iPrd, 0)) * VLOOKUP(K27, usageTrend, 2, FALSE) -> 99.309 | M27: =SUMPRODUCT(C27:OFFSET(C27, -MIN(B27-StartYear, ageMax-1), 0), fSurv:OFFSET(fSurv, -MIN(B27-StartYear, ageMax-1), 0), L27:OFFSET(L27, -MIN(B27-StartYear, ageMax-1), 0)) * 3412 * 10 ^ (-9) -> 0.007282643112 | N27: =basecase[ElecUse] - [ElecUse] -> 1.563723044e-05 | O27: =[SiteSavings]/3412 * VLOOKUP(K27, powerplant, 2, FALSE) -> 3.416814693e-05 | P27: =[SiteSavings] * VLOOKUP(K27, upstream, 2, FALSE) -> 6.353152683e-07 | Q27: =[SiteSavings] * VLOOKUP([Year], carbon, 2, FALSE) -> 0.001909180433 | R27: =IF(K27-StartYear+1 <= 30, SUMPRODUCT(OFFSET(stdsEff, K27-'Efficiency Dist.'!$I$10, 0), OFFSET(inputTIC, K27-StartYear+1, 0)), 0) -> 115.3210501 | S27: =basecase[Shipment] * [UnitEquipCost] * 0.001 -> 0.3963869181 | T27: =[EquipCost]-basecase[EquipCost] -> 0 | U27: =[EquipCostIncr] * (1+0.03)^(yrDsc-[Year]) -> 0 | V27: =[EquipCostIncr] * (1+0.07)^(yrDsc-[Year]) -> 0 | W27: =[ElecUse] * VLOOKUP(K27, elecPrices, iEcon+1, FALSE) -> 0.256043692 | X27: =basecase[OperCost] - [OperCost] -> 0.0005497748761 | Y27: =[OperCostSav] * (1+0.03)^(yrDsc-[Year]) -> 0.0003043970192 | Z27: =[OperCostSav] * (1+0.07)^(yrDsc-[Year]) -> 0.0001420722753 | AA27: =[OperCostSav] - [EquipCostIncr] -> 0.0005497748761 | AB27: =[NetSav] * (1+0.03)^(yrDsc-[Year]) -> 0.0003043970192 | AC27: =[NetSav] * (1+0.07)^(yrDsc-[Year]) -> 0.0001420722753 | AD27: =[NetSav] * (1+discRate)^(yrDsc-[Year]) -> 0.0002072043688
B28: 2034 | C28: =IF(B28-StartYear+1 <= numYrs, OFFSET(Shipments!$B$4, B28-Shipments!$B$4, iPrd), 0) -> 3.471619336 | D28: =SUMPRODUCT(C28:OFFSET(C28, -MIN(B28-StartYear, ageMax-1), 0), fSurv:OFFSET(fSurv, -MIN(B28-StartYear, ageMax-1), 0)) -> 21.69744923 | E28: =SUMPRODUCT(OFFSET(baseEff, B28-'Efficiency Dist.'!$B$10, 0), OFFSET(inputAEU, iPrd, 0)) * VLOOKUP(B28, usageTrend, 2, FALSE) -> 99.309 | F28: =SUMPRODUCT(C28:OFFSET(C28, -MIN(B28-StartYear, ageMax-1), 0), fSurv:OFFSET(fSurv, -MIN(B28-StartYear, ageMax-1), 0), E28:OFFSET(E28, -MIN(B28-StartYear, ageMax-1), 0)) * 3412 * 10 ^ (-9) -> 0.007358981969 | G28: =IF(B28-StartYear+1 <= 30, SUMPRODUCT(OFFSET(baseEff, B28-'Efficiency Dist.'!$B$10, 0), OFFSET(inputTIC, B28-StartYear+1, 0)), 0) -> 115.1721013 | H28: =[Shipment] * [UnitEquipCost] * 0.001 -> 0.399833694 | I28: =[ElecUse] * VLOOKUP(B28, elecPrices, iEcon+1) -> 0.2603968407 | K28: 2034 | L28: =SUMPRODUCT(OFFSET(stdsEff, K28-'Efficiency Dist.'!$I$10, 0), OFFSET(inputAEU, iPrd, 0)) * VLOOKUP(K28, usageTrend, 2, FALSE) -> 99.309 | M28: =SUMPRODUCT(C28:OFFSET(C28, -MIN(B28-StartYear, ageMax-1), 0), fSurv:OFFSET(fSurv, -MIN(B28-StartYear, ageMax-1), 0), L28:OFFSET(L28, -MIN(B28-StartYear, ageMax-1), 0)) * 3412 * 10 ^ (-9) -> 0.007353264749 | N28: =basecase[ElecUse] - [ElecUse] -> 5.717220448e-06 | O28: =[SiteSavings]/3412 * VLOOKUP(K28, powerplant, 2, FALSE) -> 1.24924186e-05 | P28: =[SiteSavings] * VLOOKUP(K28, upstream, 2, FALSE) -> 2.321708195e-07 | Q28: =[SiteSavings] * VLOOKUP([Year], carbon, 2, FALSE) -> 0.000698026767 | R28: =IF(K28-StartYear+1 <= 30, SUMPRODUCT(OFFSET(stdsEff, K28-'Efficiency Dist.'!$I$10, 0), OFFSET(inputTIC, K28-StartYear+1, 0)), 0) -> 115.1721013 | S28: =basecase[Shipment] * [UnitEquipCost] * 0.001 -> 0.399833694 | T28: =[EquipCost]-basecase[EquipCost] -> 0 | U28: =[EquipCostIncr] * (1+0.03)^(yrDsc-[Year]) -> 0 | V28: =[EquipCostIncr] * (1+0.07)^(yrDsc-[Year]) -> 0 | W28: =[ElecUse] * VLOOKUP(K28, elecPrices, iEcon+1, FALSE) -> 0.2601945375 | X28: =basecase[OperCost] - [OperCost] -> 0.0002023032736 | Y28: =[OperCostSav] * (1+0.03)^(yrDsc-[Year]) -> 0.0001087479782 | Z28: =[OperCostSav] * (1+0.07)^(yrDsc-[Year]) -> 4.885888806e-05 | AA28: =[OperCostSav] - [EquipCostIncr] -> 0.0002023032736 | AB28: =[NetSav] * (1+0.03)^(yrDsc-[Year]) -> 0.0001087479782 | AC28: =[NetSav] * (1+0.07)^(yrDsc-[Year]) -> 4.885888806e-05 | AD28: =[NetSav] * (1+discRate)^(yrDsc-[Year]) -> 7.261521539e-05
B29: 2035 | C29: =IF(B29-StartYear+1 <= numYrs, OFFSET(Shipments!$B$4, B29-Shipments!$B$4, iPrd), 0) -> 3.50633553 | D29: =SUMPRODUCT(C29:OFFSET(C29, -MIN(B29-StartYear, ageMax-1), 0), fSurv:OFFSET(fSurv, -MIN(B29-StartYear, ageMax-1), 0)) -> 21.91442372 | E29: =SUMPRODUCT(OFFSET(baseEff, B29-'Efficiency Dist.'!$B$10, 0), OFFSET(inputAEU, iPrd, 0)) * VLOOKUP(B29, usageTrend, 2, FALSE) -> 99.309 | F29: =SUMPRODUCT(C29:OFFSET(C29, -MIN(B29-StartYear, ageMax-1), 0), fSurv:OFFSET(fSurv, -MIN(B29-StartYear, ageMax-1), 0), E29:OFFSET(E29, -MIN(B29-StartYear, ageMax-1), 0)) * 3412 * 10 ^ (-9) -> 0.007427693828 | G29: =IF(B29-StartYear+1 <= 30, SUMPRODUCT(OFFSET(baseEff, B29-'Efficiency Dist.'!$B$10, 0), OFFSET(inputTIC, B29-StartYear+1, 0)), 0) -> 115.0353255 | H29: =[Shipment] * [UnitEquipCost] * 0.001 -> 0.4033524491 | I29: =[ElecUse] * VLOOKUP(B29, elecPrices, iEcon+1) -> 0.2649702033 | K29: 2035 | L29: =SUMPRODUCT(OFFSET(stdsEff, K29-'Efficiency Dist.'!$I$10, 0), OFFSET(inputAEU, iPrd, 0)) * VLOOKUP(K29, usageTrend, 2, FALSE) -> 99.309 | M29: =SUMPRODUCT(C29:OFFSET(C29, -MIN(B29-StartYear, ageMax-1), 0), fSurv:OFFSET(fSurv, -MIN(B29-StartYear, ageMax-1), 0), L29:OFFSET(L29, -MIN(B29-StartYear, ageMax-1), 0)) * 3412 * 10 ^ (-9) -> 0.007425921674 | N29: =basecase[ElecUse] - [ElecUse] -> 1.772154242e-06 | O29: =[SiteSavings]/3412 * VLOOKUP(K29, powerplant, 2, FALSE) -> 3.872247503e-06 | P29: =[SiteSavings] * VLOOKUP(K29, upstream, 2, FALSE) -> 7.189797883e-08 | Q29: =[SiteSavings] * VLOOKUP([Year], carbon, 2, FALSE) -> 0.000216365821 | R29: =IF(K29-StartYear+1 <= 30, SUMPRODUCT(OFFSET(stdsEff, K29-'Efficiency Dist.'!$I$10, 0), OFFSET(inputTIC, K29-StartYear+1, 0)), 0) -> 115.0353255 | S29: =basecase[Shipment] * [UnitEquipCost] * 0.001 -> 0.4033524491 | T29: =[EquipCost]-basecase[EquipCost] -> 0 | U29: =[EquipCostIncr] * (1+0.03)^(yrDsc-[Year]) -> 0 | V29: =[EquipCostIncr] * (1+0.07)^(yrDsc-[Year]) -> 0 | W29: =[ElecUse] * VLOOKUP(K29, elecPrices, iEcon+1, FALSE) -> 0.2649069847 | X29: =basecase[OperCost] - [OperCost] -> 6.321855486e-05 | Y29: =[OperCostSav] * (1+0.03)^(yrDsc-[Year]) -> 3.29932897e-05 | Z29: =[OperCostSav] * (1+0.07)^(yrDsc-[Year]) -> 1.426926012e-05 | AA29: =[OperCostSav] - [EquipCostIncr] -> 6.321855486e-05 | AB29: =[NetSav] * (1+0.03)^(yrDsc-[Year]) -> 3.29932897e-05 | AC29: =[NetSav] * (1+0.07)^(yrDsc-[Year]) -> 1.426926012e-05 | AD29: =[NetSav] * (1+discRate)^(yrDsc-[Year]) -> 2.161125483e-05
B30: 2036 | C30: =IF(B30-StartYear+1 <= numYrs, OFFSET(Shipments!$B$4, B30-Shipments!$B$4, iPrd), 0) -> 3.541398885 | D30: =SUMPRODUCT(C30:OFFSET(C30, -MIN(B30-StartYear, ageMax-1), 0), fSurv:OFFSET(fSurv, -MIN(B30-StartYear, ageMax-1), 0)) -> 22.13356796 | E30: =SUMPRODUCT(OFFSET(baseEff, B30-'Efficiency Dist.'!$B$10, 0), OFFSET(inputAEU, iPrd, 0)) * VLOOKUP(B30, usageTrend, 2, FALSE) -> 99.309 | F30: =SUMPRODUCT(C30:OFFSET(C30, -MIN(B30-StartYear, ageMax-1), 0), fSurv:OFFSET(fSurv, -MIN(B30-StartYear, ageMax-1), 0), E30:OFFSET(E30, -MIN(B30-StartYear, ageMax-1), 0)) * 3412 * 10 ^ (-9) -> 0.007500343106 | G30: =IF(B30-StartYear+1 <= 30, SUMPRODUCT(OFFSET(baseEff, B30-'Efficiency Dist.'!$B$10, 0), OFFSET(inputTIC, B30-StartYear+1, 0)), 0) -> 114.9097278 | H30: =[Shipment] * [UnitEquipCost] * 0.001 -> 0.406941182 | I30: =[ElecUse] * VLOOKUP(B30, elecPrices, iEcon+1) -> 0.2679341023 | K30: 2036 | L30: =SUMPRODUCT(OFFSET(stdsEff, K30-'Efficiency Dist.'!$I$10, 0), OFFSET(inputAEU, iPrd, 0)) * VLOOKUP(K30, usageTrend, 2, FALSE) -> 99.309 | M30: =SUMPRODUCT(C30:OFFSET(C30, -MIN(B30-StartYear, ageMax-1), 0), fSurv:OFFSET(fSurv, -MIN(B30-StartYear, ageMax-1), 0), L30:OFFSET(L30, -MIN(B30-StartYear, ageMax-1), 0)) * 3412 * 10 ^ (-9) -> 0.007499888683 | N30: =basecase[ElecUse] - [ElecUse] -> 4.544238477e-07 | O30: =[SiteSavings]/3412 * VLOOKUP(K30, powerplant, 2, FALSE) -> 1.036475088e-06 | P30: =[SiteSavings] * VLOOKUP(K30, upstream, 2, FALSE) -> 1.846732389e-08 | Q30: =[SiteSavings] * VLOOKUP([Year], carbon, 2, FALSE) -> 4.817211496e-05 | R30: =IF(K30-StartYear+1 <= 30, SUMPRODUCT(OFFSET(stdsEff, K30-'Efficiency Dist.'!$I$10, 0), OFFSET(inputTIC, K30-StartYear+1, 0)), 0) -> 114.9097278 | S30: =basecase[Shipment] * [UnitEquipCost] * 0.001 -> 0.406941182 | T30: =[EquipCost]-basecase[EquipCost] -> 0 | U30: =[EquipCostIncr] * (1+0.03)^(yrDsc-[Year]) -> 0 | V30: =[EquipCostIncr] * (1+0.07)^(yrDsc-[Year]) -> 0 | W30: =[ElecUse] * VLOOKUP(K30, elecPrices, iEcon+1, FALSE) -> 0.267917869 | X30: =basecase[OperCost] - [OperCost] -> 1.623334346e-05 | Y30: =[OperCostSav] * (1+0.03)^(yrDsc-[Year]) -> 8.22530118e-06 | Z30: =[OperCostSav] * (1+0.07)^(yrDsc-[Year]) -> 3.424373209e-06 | AA30: =[OperCostSav] - [EquipCostIncr] -> 1.623334346e-05 | AB30: =[NetSav] * (1+0.03)^(yrDsc-[Year]) -> 8.22530118e-06 | AC30: =[NetSav] * (1+0.07)^(yrDsc-[Year]) -> 3.424373209e-06 | AD30: =[NetSav] * (1+discRate)^(yrDsc-[Year]) -> 5.285110827e-06
B31: 2037 | C31: =IF(B31-StartYear+1 <= numYrs, OFFSET(Shipments!$B$4, B31-Shipments!$B$4, iPrd), 0) -> 3.576812874 | D31: =SUMPRODUCT(C31:OFFSET(C31, -MIN(B31-StartYear, ageMax-1), 0), fSurv:OFFSET(fSurv, -MIN(B31-StartYear, ageMax-1), 0)) -> 22.35490364 | E31: =SUMPRODUCT(OFFSET(baseEff, B31-'Efficiency Dist.'!$B$10, 0), OFFSET(inputAEU, iPrd, 0)) * VLOOKUP(B31, usageTrend, 2, FALSE) -> 99.309 | F31: =SUMPRODUCT(C31:OFFSET(C31, -MIN(B31-StartYear, ageMax-1), 0), fSurv:OFFSET(fSurv, -MIN(B31-StartYear, ageMax-1), 0), E31:OFFSET(E31, -MIN(B31-StartYear, ageMax-1), 0)) * 3412 * 10 ^ (-9) -> 0.007574888208 | G31: =IF(B31-StartYear+1 <= 30, SUMPRODUCT(OFFSET(baseEff, B31-'Efficiency Dist.'!$B$10, 0), OFFSET(inputTIC, B31-StartYear+1, 0)), 0) -> 114.7943947 | H31: =[Shipment] * [UnitEquipCost] * 0.001 -> 0.4105980687 | I31: =[ElecUse] * VLOOKUP(B31, elecPrices, iEcon+1) -> 0.2709735544 | K31: 2037 | L31: =SUMPRODUCT(OFFSET(stdsEff, K31-'Efficiency Dist.'!$I$10, 0), OFFSET(inputAEU, iPrd, 0)) * VLOOKUP(K31, usageTrend, 2, FALSE) -> 99.309 | M31: =SUMPRODUCT(C31:OFFSET(C31, -MIN(B31-StartYear, ageMax-1), 0), fSurv:OFFSET(fSurv, -MIN(B31-StartYear, ageMax-1), 0), L31:OFFSET(L31, -MIN(B31-StartYear, ageMax-1), 0)) * 3412 * 10 ^ (-9) -> 0.007574805287 | N31: =basecase[ElecUse] - [ElecUse] -> 8.292106344e-08 | O31: =[SiteSavings]/3412 * VLOOKUP(K31, powerplant, 2, FALSE) -> 1.891309554e-07 | P31: =[SiteSavings] * VLOOKUP(K31, upstream, 2, FALSE) -> 3.37546985e-09 | Q31: =[SiteSavings] * VLOOKUP([Year], carbon, 2, FALSE) -> 8.790214292e-06 | R31: =IF(K31-StartYear+1 <= 30, SUMPRODUCT(OFFSET(stdsEff, K31-'Efficiency Dist.'!$I$10, 0), OFFSET(inputTIC, K31-StartYear+1, 0)), 0) -> 114.7943947 | S31: =basecase[Shipment] * [UnitEquipCost] * 0.001 -> 0.4105980687 | T31: =[EquipCost]-basecase[EquipCost] -> 0 | U31: =[EquipCostIncr] * (1+0.03)^(yrDsc-[Year]) -> 0 | V31: =[EquipCostIncr] * (1+0.07)^(yrDsc-[Year]) -> 0 | W31: =[ElecUse] * VLOOKUP(K31, elecPrices, iEcon+1, FALSE) -> 0.2709705881 | X31: =basecase[OperCost] - [OperCost] -> 2.966303222e-06 | Y31: =[OperCostSav] * (1+0.03)^(yrDsc-[Year]) -> 1.459224627e-06 | Z31: =[OperCostSav] * (1+0.07)^(yrDsc-[Year]) -> 5.847966539e-07 | AA31: =[OperCostSav] - [EquipCostIncr] -> 2.966303222e-06 | AB31: =[NetSav] * (1+0.03)^(yrDsc-[Year]) -> 1.459224627e-06 | AC31: =[NetSav] * (1+0.07)^(yrDsc-[Year]) -> 5.847966539e-07 | AD31: =[NetSav] * (1+discRate)^(yrDsc-[Year]) -> 9.197554412e-07
B32: 2038 | C32: =IF(B32-StartYear+1 <= numYrs, OFFSET(Shipments!$B$4, B32-Shipments!$B$4, iPrd), 0) -> 3.612581003 | D32: =SUMPRODUCT(C32:OFFSET(C32, -MIN(B32-StartYear, ageMax-1), 0), fSurv:OFFSET(fSurv, -MIN(B32-StartYear, ageMax-1), 0)) -> 22.57845267 | E32: =SUMPRODUCT(OFFSET(baseEff, B32-'Efficiency Dist.'!$B$10, 0), OFFSET(inputAEU, iPrd, 0)) * VLOOKUP(B32, usageTrend, 2, FALSE) -> 99.309 | F32: =SUMPRODUCT(C32:OFFSET(C32, -MIN(B32-StartYear, ageMax-1), 0), fSurv:OFFSET(fSurv, -MIN(B32-StartYear, ageMax-1), 0), E32:OFFSET(E32, -MIN(B32-StartYear, ageMax-1), 0)) * 3412 * 10 ^ (-9) -> 0.007650535015 | G32: =IF(B32-StartYear+1 <= 30, SUMPRODUCT(OFFSET(baseEff, B32-'Efficiency Dist.'!$B$10, 0), OFFSET(inputTIC, B32-StartYear+1, 0)), 0) -> 114.6884872 | H32: =[Shipment] * [UnitEquipCost] * 0.001 -> 0.41432145 | I32: =[ElecUse] * VLOOKUP(B32, elecPrices, iEcon+1) -> 0.2740604112 | K32: 2038 | L32: =SUMPRODUCT(OFFSET(stdsEff, K32-'Efficiency Dist.'!$I$10, 0), OFFSET(inputAEU, iPrd, 0)) * VLOOKUP(K32, usageTrend, 2, FALSE) -> 99.309 | M32: =SUMPRODUCT(C32:OFFSET(C32, -MIN(B32-StartYear, ageMax-1), 0), fSurv:OFFSET(fSurv, -MIN(B32-StartYear, ageMax-1), 0), L32:OFFSET(L32, -MIN(B32-StartYear, ageMax-1), 0)) * 3412 * 10 ^ (-9) -> 0.007650535015 | N32: =basecase[ElecUse] - [ElecUse] -> 0 | O32: =[SiteSavings]/3412 * VLOOKUP(K32, powerplant, 2, FALSE) -> 0 | P32: =[SiteSavings] * VLOOKUP(K32, upstream, 2, FALSE) -> 0 | Q32: =[SiteSavings] * VLOOKUP([Year], carbon, 2, FALSE) -> 0 | R32: =IF(K32-StartYear+1 <= 30, SUMPRODUCT(OFFSET(stdsEff, K32-'Efficiency Dist.'!$I$10, 0), OFFSET(inputTIC, K32-StartYear+1, 0)), 0) -> 114.6884872 | S32: =basecase[Shipment] * [UnitEquipCost] * 0.001 -> 0.41432145 | T32: =[EquipCost]-basecase[EquipCost] -> 0 | U32: =[EquipCostIncr] * (1+0.03)^(yrDsc-[Year]) -> 0 | V32: =[EquipCostIncr] * (1+0.07)^(yrDsc-[Year]) -> 0 | W32: =[ElecUse] * VLOOKUP(K32, elecPrices, iEcon+1, FALSE) -> 0.2740604112 | X32: =basecase[OperCost] - [OperCost] -> 0 | Y32: =[OperCostSav] * (1+0.03)^(yrDsc-[Year]) -> 0 | Z32: =[OperCostSav] * (1+0.07)^(yrDsc-[Year]) -> 0 | AA32: =[OperCostSav] - [EquipCostIncr] -> 0 | AB32: =[NetSav] * (1+0.03)^(yrDsc-[Year]) -> 0 | AC32: =[NetSav] * (1+0.07)^(yrDsc-[Year]) -> 0 | AD32: =[NetSav] * (1+discRate)^(yrDsc-[Year]) -> 0
B33: 2039 | C33: =IF(B33-StartYear+1 <= numYrs, OFFSET(Shipments!$B$4, B33-Shipments!$B$4, iPrd), 0) -> 3.648706813 | D33: =SUMPRODUCT(C33:OFFSET(C33, -MIN(B33-StartYear, ageMax-1), 0), fSurv:OFFSET(fSurv, -MIN(B33-StartYear, ageMax-1), 0)) -> 22.8042372 | E33: =SUMPRODUCT(OFFSET(baseEff, B33-'Efficiency Dist.'!$B$10, 0), OFFSET(inputAEU, iPrd, 0)) * VLOOKUP(B33, usageTrend, 2, FALSE) -> 99.309 | F33: =SUMPRODUCT(C33:OFFSET(C33, -MIN(B33-StartYear, ageMax-1), 0), fSurv:OFFSET(fSurv, -MIN(B33-StartYear, ageMax-1), 0), E33:OFFSET(E33, -MIN(B33-StartYear, ageMax-1), 0)) * 3412 * 10 ^ (-9) -> 0.007727040365 | G33: =IF(B33-StartYear+1 <= 30, SUMPRODUCT(OFFSET(baseEff, B33-'Efficiency Dist.'!$B$10, 0), OFFSET(inputTIC, B33-StartYear+1, 0)), 0) -> 114.5912351 | H33: =[Shipment] * [UnitEquipCost] * 0.001 -> 0.4181098201 | I33: =[ElecUse] * VLOOKUP(B33, elecPrices, iEcon+1) -> 0.2771861308 | K33: 2039 | L33: =SUMPRODUCT(OFFSET(stdsEff, K33-'Efficiency Dist.'!$I$10, 0), OFFSET(inputAEU, iPrd, 0)) * VLOOKUP(K33, usageTrend, 2, FALSE) -> 99.309 | M33: =SUMPRODUCT(C33:OFFSET(C33, -MIN(B33-StartYear, ageMax-1), 0), fSurv:OFFSET(fSurv, -MIN(B33-StartYear, ageMax-1), 0), L33:OFFSET(L33, -MIN(B33-StartYear, ageMax-1), 0)) * 3412 * 10 ^ (-9) -> 0.007727040365 | N33: =basecase[ElecUse] - [ElecUse] -> 0 | O33: =[SiteSavings]/3412 * VLOOKUP(K33, powerplant, 2, FALSE) -> 0 | P33: =[SiteSavings] * VLOOKUP(K33, upstream, 2, FALSE) -> 0 | Q33: =[SiteSavings] * VLOOKUP([Year], carbon, 2, FALSE) -> 0 | R33: =IF(K33-StartYear+1 <= 30, SUMPRODUCT(OFFSET(stdsEff, K33-'Efficiency Dist.'!$I$10, 0), OFFSET(inputTIC, K33-StartYear+1, 0)), 0) -> 114.5912351 | S33: =basecase[Shipment] * [UnitEquipCost] * 0.001 -> 0.4181098201 | T33: =[EquipCost]-basecase[EquipCost] -> 0 | U33: =[EquipCostIncr] * (1+0.03)^(yrDsc-[Year]) -> 0 | V33: =[EquipCostIncr] * (1+0.07)^(yrDsc-[Year]) -> 0 | W33: =[ElecUse] * VLOOKUP(K33, elecPrices, iEcon+1, FALSE) -> 0.2771861308 | X33: =basecase[OperCost] - [OperCost] -> 0 | Y33: =[OperCostSav] * (1+0.03)^(yrDsc-[Year]) -> 0 | Z33: =[OperCostSav] * (1+0.07)^(yrDsc-[Year]) -> 0 | AA33: =[OperCostSav] - [EquipCostIncr] -> 0 | AB33: =[NetSav] * (1+0.03)^(yrDsc-[Year]) -> 0 | AC33: =[NetSav] * (1+0.07)^(yrDsc-[Year]) -> 0 | AD33: =[NetSav] * (1+discRate)^(yrDsc-[Year]) -> 0
B34: 2040 | C34: =IF(B34-StartYear+1 <= numYrs, OFFSET(Shipments!$B$4, B34-Shipments!$B$4, iPrd), 0) -> 3.685193881 | D34: =SUMPRODUCT(C34:OFFSET(C34, -MIN(B34-StartYear, ageMax-1), 0), fSurv:OFFSET(fSurv, -MIN(B34-StartYear, ageMax-1), 0)) -> 23.03227957 | E34: =SUMPRODUCT(OFFSET(baseEff, B34-'Efficiency Dist.'!$B$10, 0), OFFSET(inputAEU, iPrd, 0)) * VLOOKUP(B34, usageTrend, 2, FALSE) -> 99.309 | F34: =SUMPRODUCT(C34:OFFSET(C34, -MIN(B34-StartYear, ageMax-1), 0), fSurv:OFFSET(fSurv, -MIN(B34-StartYear, ageMax-1), 0), E34:OFFSET(E34, -MIN(B34-StartYear, ageMax-1), 0)) * 3412 * 10 ^ (-9) -> 0.007804310769 | G34: =IF(B34-StartYear+1 <= 30, SUMPRODUCT(OFFSET(baseEff, B34-'Efficiency Dist.'!$B$10, 0), OFFSET(inputTIC, B34-StartYear+1, 0)), 0) -> 114.501931 | H34: =[Shipment] * [UnitEquipCost] * 0.001 -> 0.4219618153 | I34: =[ElecUse] * VLOOKUP(B34, elecPrices, iEcon+1) -> 0.2803474999 | K34: 2040 | L34: =SUMPRODUCT(OFFSET(stdsEff, K34-'Efficiency Dist.'!$I$10, 0), OFFSET(inputAEU, iPrd, 0)) * VLOOKUP(K34, usageTrend, 2, FALSE) -> 99.309 | M34: =SUMPRODUCT(C34:OFFSET(C34, -MIN(B34-StartYear, ageMax-1), 0), fSurv:OFFSET(fSurv, -MIN(B34-StartYear, ageMax-1), 0), L34:OFFSET(L34, -MIN(B34-StartYear, ageMax-1), 0)) * 3412 * 10 ^ (-9) -> 0.007804310769 | N34: =basecase[ElecUse] - [ElecUse] -> 0 | O34: =[SiteSavings]/3412 * VLOOKUP(K34, powerplant, 2, FALSE) -> 0 | P34: =[SiteSavings] * VLOOKUP(K34, upstream, 2, FALSE) -> 0 | Q34: =[SiteSavings] * VLOOKUP([Year], carbon, 2, FALSE) -> 0 | R34: =IF(K34-StartYear+1 <= 30, SUMPRODUCT(OFFSET(stdsEff, K34-'Efficiency Dist.'!$I$10, 0), OFFSET(inputTIC, K34-StartYear+1, 0)), 0) -> 114.501931 | S34: =basecase[Shipment] * [UnitEquipCost] * 0.001 -> 0.4219618153 | T34: =[EquipCost]-basecase[EquipCost] -> 0 | U34: =[EquipCostIncr] * (1+0.03)^(yrDsc-[Year]) -> 0 | V34: =[EquipCostIncr] * (1+0.07)^(yrDsc-[Year]) -> 0 | W34: =[ElecUse] * VLOOKUP(K34, elecPrices, iEcon+1, FALSE) -> 0.2803474999 | X34: =basecase[OperCost] - [OperCost] -> 0 | Y34: =[OperCostSav] * (1+0.03)^(yrDsc-[Year]) -> 0 | Z34: =[OperCostSav] * (1+0.07)^(yrDsc-[Year]) -> 0 | AA34: =[OperCostSav] - [EquipCostIncr] -> 0 | AB34: =[NetSav] * (1+0.03)^(yrDsc-[Year]) -> 0 | AC34: =[NetSav] * (1+0.07)^(yrDsc-[Year]) -> 0 | AD34: =[NetSav] * (1+discRate)^(yrDsc-[Year]) -> 0
B35: 2041 | C35: =IF(B35-StartYear+1 <= numYrs, OFFSET(Shipments!$B$4, B35-Shipments!$B$4, iPrd), 0) -> 3.72204582 | D35: =SUMPRODUCT(C35:OFFSET(C35, -MIN(B35-StartYear, ageMax-1), 0), fSurv:OFFSET(fSurv, -MIN(B35-StartYear, ageMax-1), 0)) -> 23.26260237 | E35: =SUMPRODUCT(OFFSET(baseEff, B35-'Efficiency Dist.'!$B$10, 0), OFFSET(inputAEU, iPrd, 0)) * VLOOKUP(B35, usageTrend, 2, FALSE) -> 99.309 | F35: =SUMPRODUCT(C35:OFFSET(C35, -MIN(B35-StartYear, ageMax-1), 0), fSurv:OFFSET(fSurv, -MIN(B35-StartYear, ageMax-1), 0), E35:OFFSET(E35, -MIN(B35-StartYear, ageMax-1), 0)) * 3412 * 10 ^ (-9) -> 0.007882353876 | G35: =IF(B35-StartYear+1 <= 30, SUMPRODUCT(OFFSET(baseEff, B35-'Efficiency Dist.'!$B$10, 0), OFFSET(inputTIC, B35-StartYear+1, 0)), 0) -> 114.4199253 | H35: =[Shipment] * [UnitEquipCost] * 0.001 -> 0.4258762046 | I35: =[ElecUse] * VLOOKUP(B35, elecPrices, iEcon+1) -> 0.2835449252 | K35: 2041 | L35: =SUMPRODUCT(OFFSET(stdsEff, K35-'Efficiency Dist.'!$I$10, 0), OFFSET(inputAEU, iPrd, 0)) * VLOOKUP(K35, usageTrend, 2, FALSE) -> 99.309 | M35: =SUMPRODUCT(C35:OFFSET(C35, -MIN(B35-StartYear, ageMax-1), 0), fSurv:OFFSET(fSurv, -MIN(B35-StartYear, ageMax-1), 0), L35:OFFSET(L35, -MIN(B35-StartYear, ageMax-1), 0)) * 3412 * 10 ^ (-9) -> 0.007882353876 | N35: =basecase[ElecUse] - [ElecUse] -> 0 | O35: =[SiteSavings]/3412 * VLOOKUP(K35, powerplant, 2, FALSE) -> 0 | P35: =[SiteSavings] * VLOOKUP(K35, upstream, 2, FALSE) -> 0 | Q35: =[SiteSavings] * VLOOKUP([Year], carbon, 2, FALSE) -> 0 | R35: =IF(K35-StartYear+1 <= 30, SUMPRODUCT(OFFSET(stdsEff, K35-'Efficiency Dist.'!$I$10, 0), OFFSET(inputTIC, K35-StartYear+1, 0)), 0) -> 114.4199253 | S35: =basecase[Shipment] * [UnitEquipCost] * 0.001 -> 0.4258762046 | T35: =[EquipCost]-basecase[EquipCost] -> 0 | U35: =[EquipCostIncr] * (1+0.03)^(yrDsc-[Year]) -> 0 | V35: =[EquipCostIncr] * (1+0.07)^(yrDsc-[Year]) -> 0 | W35: =[ElecUse] * VLOOKUP(K35, elecPrices, iEcon+1, FALSE) -> 0.2835449252 | X35: =basecase[OperCost] - [OperCost] -> 0 | Y35: =[OperCostSav] * (1+0.03)^(yrDsc-[Year]) -> 0 | Z35: =[OperCostSav] * (1+0.07)^(yrDsc-[Year]) -> 0 | AA35: =[OperCostSav] - [EquipCostIncr] -> 0 | AB35: =[NetSav] * (1+0.03)^(yrDsc-[Year]) -> 0 | AC35: =[NetSav] * (1+0.07)^(yrDsc-[Year]) -> 0 | AD35: =[NetSav] * (1+discRate)^(yrDsc-[Year]) -> 0
B36: 2042 | C36: =IF(B36-StartYear+1 <= numYrs, OFFSET(Shipments!$B$4, B36-Shipments!$B$4, iPrd), 0) -> 3.759266278 | D36: =SUMPRODUCT(C36:OFFSET(C36, -MIN(B36-StartYear, ageMax-1), 0), fSurv:OFFSET(fSurv, -MIN(B36-StartYear, ageMax-1), 0)) -> 23.49522839 | E36: =SUMPRODUCT(OFFSET(baseEff, B36-'Efficiency Dist.'!$B$10, 0), OFFSET(inputAEU, iPrd, 0)) * VLOOKUP(B36, usageTrend, 2, FALSE) -> 99.309 | F36: =SUMPRODUCT(C36:OFFSET(C36, -MIN(B36-StartYear, ageMax-1), 0), fSurv:OFFSET(fSurv, -MIN(B36-StartYear, ageMax-1), 0), E36:OFFSET(E36, -MIN(B36-StartYear, ageMax-1), 0)) * 3412 * 10 ^ (-9) -> 0.007961177415 | G36: =IF(B36-StartYear+1 <= 30, SUMPRODUCT(OFFSET(baseEff, B36-'Efficiency Dist.'!$B$10, 0), OFFSET(inputTIC, B36-StartYear+1, 0)), 0) -> 114.3446216 | H36: =[Shipment] * [UnitEquipCost] * 0.001 -> 0.4298518799 | I36: =[ElecUse] * VLOOKUP(B36, elecPrices, iEcon+1) -> 0.2867788178 | K36: 2042 | L36: =SUMPRODUCT(OFFSET(stdsEff, K36-'Efficiency Dist.'!$I$10, 0), OFFSET(inputAEU, iPrd, 0)) * VLOOKUP(K36, usageTrend, 2, FALSE) -> 99.309 | M36: =SUMPRODUCT(C36:OFFSET(C36, -MIN(B36-StartYear, ageMax-1), 0), fSurv:OFFSET(fSurv, -MIN(B36-StartYear, ageMax-1), 0), L36:OFFSET(L36, -MIN(B36-StartYear, ageMax-1), 0)) * 3412 * 10 ^ (-9) -> 0.007961177415 | N36: =basecase[ElecUse] - [ElecUse] -> 0 | O36: =[SiteSavings]/3412 * VLOOKUP(K36, powerplant, 2, FALSE) -> 0 | P36: =[SiteSavings] * VLOOKUP(K36, upstream, 2, FALSE) -> 0 | Q36: =[SiteSavings] * VLOOKUP([Year], carbon, 2, FALSE) -> 0 | R36: =IF(K36-StartYear+1 <= 30, SUMPRODUCT(OFFSET(stdsEff, K36-'Efficiency Dist.'!$I$10, 0), OFFSET(inputTIC, K36-StartYear+1, 0)), 0) -> 114.3446216 | S36: =basecase[Shipment] * [UnitEquipCost] * 0.001 -> 0.4298518799 | T36: =[EquipCost]-basecase[EquipCost] -> 0 | U36: =[EquipCostIncr] * (1+0.03)^(yrDsc-[Year]) -> 0 | V36: =[EquipCostIncr] * (1+0.07)^(yrDsc-[Year]) -> 0 | W36: =[ElecUse] * VLOOKUP(K36, elecPrices, iEcon+1, FALSE) -> 0.2867788178 | X36: =basecase[OperCost] - [OperCost] -> 0 | Y36: =[OperCostSav] * (1+0.03)^(yrDsc-[Year]) -> 0 | Z36: =[OperCostSav] * (1+0.07)^(yrDsc-[Year]) -> 0 | AA36: =[OperCostSav] - [EquipCostIncr] -> 0 | AB36: =[NetSav] * (1+0.03)^(yrDsc-[Year]) -> 0 | AC36: =[NetSav] * (1+0.07)^(yrDsc-[Year]) -> 0 | AD36: =[NetSav] * (1+discRate)^(yrDsc-[Year]) -> 0
B37: 2043 | C37: =IF(B37-StartYear+1 <= numYrs, OFFSET(Shipments!$B$4, B37-Shipments!$B$4, iPrd), 0) -> 3.796858941 | D37: =SUMPRODUCT(C37:OFFSET(C37, -MIN(B37-StartYear, ageMax-1), 0), fSurv:OFFSET(fSurv, -MIN(B37-StartYear, ageMax-1), 0)) -> 23.73018068 | E37: =SUMPRODUCT(OFFSET(baseEff, B37-'Efficiency Dist.'!$B$10, 0), OFFSET(inputAEU, iPrd, 0)) * VLOOKUP(B37, usageTrend, 2, FALSE) -> 99.309 | F37: =SUMPRODUCT(C37:OFFSET(C37, -MIN(B37-StartYear, ageMax-1), 0), fSurv:OFFSET(fSurv, -MIN(B37-StartYear, ageMax-1), 0), E37:OFFSET(E37, -MIN(B37-StartYear, ageMax-1), 0)) * 3412 * 10 ^ (-9) -> 0.008040789189 | G37: =IF(B37-StartYear+1 <= 30, SUMPRODUCT(OFFSET(baseEff, B37-'Efficiency Dist.'!$B$10, 0), OFFSET(inputTIC, B37-StartYear+1, 0)), 0) -> 114.2754721 | H37: =[Shipment] * [UnitEquipCost] * 0.001 -> 0.4338878479 | I37: =[ElecUse] * VLOOKUP(B37, elecPrices, iEcon+1) -> 0.2900495937 | K37: 2043 | L37: =SUMPRODUCT(OFFSET(stdsEff, K37-'Efficiency Dist.'!$I$10, 0), OFFSET(inputAEU, iPrd, 0)) * VLOOKUP(K37, usageTrend, 2, FALSE) -> 99.309 | M37: =SUMPRODUCT(C37:OFFSET(C37, -MIN(B37-StartYear, ageMax-1), 0), fSurv:OFFSET(fSurv, -MIN(B37-StartYear, ageMax-1), 0), L37:OFFSET(L37, -MIN(B37-StartYear, ageMax-1), 0)) * 3412 * 10 ^ (-9) -> 0.008040789189 | N37: =basecase[ElecUse] - [ElecUse] -> 0 | O37: =[SiteSavings]/3412 * VLOOKUP(K37, powerplant, 2, FALSE) -> 0 | P37: =[SiteSavings] * VLOOKUP(K37, upstream, 2, FALSE) -> 0 | Q37: =[SiteSavings] * VLOOKUP([Year], carbon, 2, FALSE) -> 0 | R37: =IF(K37-StartYear+1 <= 30, SUMPRODUCT(OFFSET(stdsEff, K37-'Efficiency Dist.'!$I$10, 0), OFFSET(inputTIC, K37-StartYear+1, 0)), 0) -> 114.2754721 | S37: =basecase[Shipment] * [UnitEquipCost] * 0.001 -> 0.4338878479 | T37: =[EquipCost]-basecase[EquipCost] -> 0 | U37: =[EquipCostIncr] * (1+0.03)^(yrDsc-[Year]) -> 0 | V37: =[EquipCostIncr] * (1+0.07)^(yrDsc-[Year]) -> 0 | W37: =[ElecUse] * VLOOKUP(K37, elecPrices, iEcon+1, FALSE) -> 0.2900495937 | X37: =basecase[OperCost] - [OperCost] -> 0 | Y37: =[OperCostSav] * (1+0.03)^(yrDsc-[Year]) -> 0 | Z37: =[OperCostSav] * (1+0.07)^(yrDsc-[Year]) -> 0 | AA37: =[OperCostSav] - [EquipCostIncr] -> 0 | AB37: =[NetSav] * (1+0.03)^(yrDsc-[Year]) -> 0 | AC37: =[NetSav] * (1+0.07)^(yrDsc-[Year]) -> 0 | AD37: =[NetSav] * (1+discRate)^(yrDsc-[Year]) -> 0
B38: 2044 | C38: =IF(B38-StartYear+1 <= numYrs, OFFSET(Shipments!$B$4, B38-Shipments!$B$4, iPrd), 0) -> 3.83482753 | D38: =SUMPRODUCT(C38:OFFSET(C38, -MIN(B38-StartYear, ageMax-1), 0), fSurv:OFFSET(fSurv, -MIN(B38-StartYear, ageMax-1), 0)) -> 23.96748248 | E38: =SUMPRODUCT(OFFSET(baseEff, B38-'Efficiency Dist.'!$B$10, 0), OFFSET(inputAEU, iPrd, 0)) * VLOOKUP(B38, usageTrend, 2, FALSE) -> 99.309 | F38: =SUMPRODUCT(C38:OFFSET(C38, -MIN(B38-StartYear, ageMax-1), 0), fSurv:OFFSET(fSurv, -MIN(B38-StartYear, ageMax-1), 0), E38:OFFSET(E38, -MIN(B38-StartYear, ageMax-1), 0)) * 3412 * 10 ^ (-9) -> 0.008121197081 | G38: =IF(B38-StartYear+1 <= 30, SUMPRODUCT(OFFSET(baseEff, B38-'Efficiency Dist.'!$B$10, 0), OFFSET(inputTIC, B38-StartYear+1, 0)), 0) -> 114.2119739 | H38: =[Shipment] * [UnitEquipCost] * 0.001 -> 0.4379832219 | I38: =[ElecUse] * VLOOKUP(B38, elecPrices, iEcon+1) -> 0.2933576734 | K38: 2044 | L38: =SUMPRODUCT(OFFSET(stdsEff, K38-'Efficiency Dist.'!$I$10, 0), OFFSET(inputAEU, iPrd, 0)) * VLOOKUP(K38, usageTrend, 2, FALSE) -> 99.309 | M38: =SUMPRODUCT(C38:OFFSET(C38, -MIN(B38-StartYear, ageMax-1), 0), fSurv:OFFSET(fSurv, -MIN(B38-StartYear, ageMax-1), 0), L38:OFFSET(L38, -MIN(B38-StartYear, ageMax-1), 0)) * 3412 * 10 ^ (-9) -> 0.008121197081 | N38: =basecase[ElecUse] - [ElecUse] -> 0 | O38: =[SiteSavings]/3412 * VLOOKUP(K38, powerplant, 2, FALSE) -> 0 | P38: =[SiteSavings] * VLOOKUP(K38, upstream, 2, FALSE) -> 0 | Q38: =[SiteSavings] * VLOOKUP([Year], carbon, 2, FALSE) -> 0 | R38: =IF(K38-StartYear+1 <= 30, SUMPRODUCT(OFFSET(stdsEff, K38-'Efficiency Dist.'!$I$10, 0), OFFSET(inputTIC, K38-StartYear+1, 0)), 0) -> 114.2119739 | S38: =basecase[Shipment] * [UnitEquipCost] * 0.001 -> 0.4379832219 | T38: =[EquipCost]-basecase[EquipCost] -> 0 | U38: =[EquipCostIncr] * (1+0.03)^(yrDsc-[Year]) -> 0 | V38: =[EquipCostIncr] * (1+0.07)^(yrDsc-[Year]) -> 0 | W38: =[ElecUse] * VLOOKUP(K38, elecPrices, iEcon+1, FALSE) -> 0.2933576734 | X38: =basecase[OperCost] - [OperCost] -> 0 | Y38: =[OperCostSav] * (1+0.03)^(yrDsc-[Year]) -> 0 | Z38: =[OperCostSav] * (1+0.07)^(yrDsc-[Year]) -> 0 | AA38: =[OperCostSav] - [EquipCostIncr] -> 0 | AB38: =[NetSav] * (1+0.03)^(yrDsc-[Year]) -> 0 | AC38: =[NetSav] * (1+0.07)^(yrDsc-[Year]) -> 0 | AD38: =[NetSav] * (1+discRate)^(yrDsc-[Year]) -> 0
B39: 2045 | C39: =IF(B39-StartYear+1 <= numYrs, OFFSET(Shipments!$B$4, B39-Shipments!$B$4, iPrd), 0) -> 3.873175805 | D39: =SUMPRODUCT(C39:OFFSET(C39, -MIN(B39-StartYear, ageMax-1), 0), fSurv:OFFSET(fSurv, -MIN(B39-StartYear, ageMax-1), 0)) -> 24.20715731 | E39: =SUMPRODUCT(OFFSET(baseEff, B39-'Efficiency Dist.'!$B$10, 0), OFFSET(inputAEU, iPrd, 0)) * VLOOKUP(B39, usageTrend, 2, FALSE) -> 99.309 | F39: =SUMPRODUCT(C39:OFFSET(C39, -MIN(B39-StartYear, ageMax-1), 0), fSurv:OFFSET(fSurv, -MIN(B39-StartYear, ageMax-1), 0), E39:OFFSET(E39, -MIN(B39-StartYear, ageMax-1), 0)) * 3412 * 10 ^ (-9) -> 0.008202409052 | G39: =IF(B39-StartYear+1 <= 30, SUMPRODUCT(OFFSET(baseEff, B39-'Efficiency Dist.'!$B$10, 0), OFFSET(inputTIC, B39-StartYear+1, 0)), 0) -> 114.1536652 | H39: =[Shipment] * [UnitEquipCost] * 0.001 -> 0.4421372141 | I39: =[ElecUse] * VLOOKUP(B39, elecPrices, iEcon+1) -> 0.2967034826 | K39: 2045 | L39: =SUMPRODUCT(OFFSET(stdsEff, K39-'Efficiency Dist.'!$I$10, 0), OFFSET(inputAEU, iPrd, 0)) * VLOOKUP(K39, usageTrend, 2, FALSE) -> 99.309 | M39: =SUMPRODUCT(C39:OFFSET(C39, -MIN(B39-StartYear, ageMax-1), 0), fSurv:OFFSET(fSurv, -MIN(B39-StartYear, ageMax-1), 0), L39:OFFSET(L39, -MIN(B39-StartYear, ageMax-1), 0)) * 3412 * 10 ^ (-9) -> 0.008202409052 | N39: =basecase[ElecUse] - [ElecUse] -> 0 | O39: =[SiteSavings]/3412 * VLOOKUP(K39, powerplant, 2, FALSE) -> 0 | P39: =[SiteSavings] * VLOOKUP(K39, upstream, 2, FALSE) -> 0 | Q39: =[SiteSavings] * VLOOKUP([Year], carbon, 2, FALSE) -> 0 | R39: =IF(K39-StartYear+1 <= 30, SUMPRODUCT(OFFSET(stdsEff, K39-'Efficiency Dist.'!$I$10, 0), OFFSET(inputTIC, K39-StartYear+1, 0)), 0) -> 114.1536652 | S39: =basecase[Shipment] * [UnitEquipCost] * 0.001 -> 0.4421372141 | T39: =[EquipCost]-basecase[EquipCost] -> 0 | U39: =[EquipCostIncr] * (1+0.03)^(yrDsc-[Year]) -> 0 | V39: =[EquipCostIncr] * (1+0.07)^(yrDsc-[Year]) -> 0 | W39: =[ElecUse] * VLOOKUP(K39, elecPrices, iEcon+1, FALSE) -> 0.2967034826 | X39: =basecase[OperCost] - [OperCost] -> 0 | Y39: =[OperCostSav] * (1+0.03)^(yrDsc-[Year]) -> 0 | Z39: =[OperCostSav] * (1+0.07)^(yrDsc-[Year]) -> 0 | AA39: =[OperCostSav] - [EquipCostIncr] -> 0 | AB39: =[NetSav] * (1+0.03)^(yrDsc-[Year]) -> 0 | AC39: =[NetSav] * (1+0.07)^(yrDsc-[Year]) -> 0 | AD39: =[NetSav] * (1+discRate)^(yrDsc-[Year]) -> 0
B40: 2046 | C40: =IF(B40-StartYear+1 <= numYrs, OFFSET(Shipments!$B$4, B40-Shipments!$B$4, iPrd), 0) -> 3.911907563 | D40: =SUMPRODUCT(C40:OFFSET(C40, -MIN(B40-StartYear, ageMax-1), 0), fSurv:OFFSET(fSurv, -MIN(B40-StartYear, ageMax-1), 0)) -> 24.44922888 | E40: =SUMPRODUCT(OFFSET(baseEff, B40-'Efficiency Dist.'!$B$10, 0), OFFSET(inputAEU, iPrd, 0)) * VLOOKUP(B40, usageTrend, 2, FALSE) -> 99.309 | F40: =SUMPRODUCT(C40:OFFSET(C40, -MIN(B40-StartYear, ageMax-1), 0), fSurv:OFFSET(fSurv, -MIN(B40-StartYear, ageMax-1), 0), E40:OFFSET(E40, -MIN(B40-StartYear, ageMax-1), 0)) * 3412 * 10 ^ (-9) -> 0.008284433142 | G40: =IF(B40-StartYear+1 <= 30, SUMPRODUCT(OFFSET(baseEff, B40-'Efficiency Dist.'!$B$10, 0), OFFSET(inputTIC, B40-StartYear+1, 0)), 0) -> 114.1001218 | H40: =[Shipment] * [UnitEquipCost] * 0.001 -> 0.4463491293 | I40: =[ElecUse] * VLOOKUP(B40, elecPrices, iEcon+1) -> 0.3000874515 | K40: 2046 | L40: =SUMPRODUCT(OFFSET(stdsEff, K40-'Efficiency Dist.'!$I$10, 0), OFFSET(inputAEU, iPrd, 0)) * VLOOKUP(K40, usageTrend, 2, FALSE) -> 99.309 | M40: =SUMPRODUCT(C40:OFFSET(C40, -MIN(B40-StartYear, ageMax-1), 0), fSurv:OFFSET(fSurv, -MIN(B40-StartYear, ageMax-1), 0), L40:OFFSET(L40, -MIN(B40-StartYear, ageMax-1), 0)) * 3412 * 10 ^ (-9) -> 0.008284433142 | N40: =basecase[ElecUse] - [ElecUse] -> 0 | O40: =[SiteSavings]/3412 * VLOOKUP(K40, powerplant, 2, FALSE) -> 0 | P40: =[SiteSavings] * VLOOKUP(K40, upstream, 2, FALSE) -> 0 | Q40: =[SiteSavings] * VLOOKUP([Year], carbon, 2, FALSE) -> 0 | R40: =IF(K40-StartYear+1 <= 30, SUMPRODUCT(OFFSET(stdsEff, K40-'Efficiency Dist.'!$I$10, 0), OFFSET(inputTIC, K40-StartYear+1, 0)), 0) -> 114.1001218 | S40: =basecase[Shipment] * [UnitEquipCost] * 0.001 -> 0.4463491293 | T40: =[EquipCost]-basecase[EquipCost] -> 0 | U40: =[EquipCostIncr] * (1+0.03)^(yrDsc-[Year]) -> 0 | V40: =[EquipCostIncr] * (1+0.07)^(yrDsc-[Year]) -> 0 | W40: =[ElecUse] * VLOOKUP(K40, elecPrices, iEcon+1, FALSE) -> 0.3000874515 | X40: =basecase[OperCost] - [OperCost] -> 0 | Y40: =[OperCostSav] * (1+0.03)^(yrDsc-[Year]) -> 0 | Z40: =[OperCostSav] * (1+0.07)^(yrDsc-[Year]) -> 0 | AA40: =[OperCostSav] - [EquipCostIncr] -> 0 | AB40: =[NetSav] * (1+0.03)^(yrDsc-[Year]) -> 0 | AC40: =[NetSav] * (1+0.07)^(yrDsc-[Year]) -> 0 | AD40: =[NetSav] * (1+discRate)^(yrDsc-[Year]) -> 0
B41: 2047 | C41: =IF(B41-StartYear+1 <= numYrs, OFFSET(Shipments!$B$4, B41-Shipments!$B$4, iPrd), 0) -> 3.951026639 | D41: =SUMPRODUCT(C41:OFFSET(C41, -MIN(B41-StartYear, ageMax-1), 0), fSurv:OFFSET(fSurv, -MIN(B41-StartYear, ageMax-1), 0)) -> 24.69372117 | E41: =SUMPRODUCT(OFFSET(baseEff, B41-'Efficiency Dist.'!$B$10, 0), OFFSET(inputAEU, iPrd, 0)) * VLOOKUP(B41, usageTrend, 2, FALSE) -> 99.309 | F41: =SUMPRODUCT(C41:OFFSET(C41, -MIN(B41-StartYear, ageMax-1), 0), fSurv:OFFSET(fSurv, -MIN(B41-StartYear, ageMax-1), 0), E41:OFFSET(E41, -MIN(B41-StartYear, ageMax-1), 0)) * 3412 * 10 ^ (-9) -> 0.008367277474 | G41: =IF(B41-StartYear+1 <= 30, SUMPRODUCT(OFFSET(baseEff, B41-'Efficiency Dist.'!$B$10, 0), OFFSET(inputTIC, B41-StartYear+1, 0)), 0) -> 114.0509542 | H41: =[Shipment] * [UnitEquipCost] * 0.001 -> 0.4506183583 | I41: =[ElecUse] * VLOOKUP(B41, elecPrices, iEcon+1) -> 0.3035100152 | K41: 2047 | L41: =SUMPRODUCT(OFFSET(stdsEff, K41-'Efficiency Dist.'!$I$10, 0), OFFSET(inputAEU, iPrd, 0)) * VLOOKUP(K41, usageTrend, 2, FALSE) -> 99.309 | M41: =SUMPRODUCT(C41:OFFSET(C41, -MIN(B41-StartYear, ageMax-1), 0), fSurv:OFFSET(fSurv, -MIN(B41-StartYear, ageMax-1), 0), L41:OFFSET(L41, -MIN(B41-StartYear, ageMax-1), 0)) * 3412 * 10 ^ (-9) -> 0.008367277474 | N41: =basecase[ElecUse] - [ElecUse] -> 0 | O41: =[SiteSavings]/3412 * VLOOKUP(K41, powerplant, 2, FALSE) -> 0 | P41: =[SiteSavings] * VLOOKUP(K41, upstream, 2, FALSE) -> 0 | Q41: =[SiteSavings] * VLOOKUP([Year], carbon, 2, FALSE) -> 0 | R41: =IF(K41-StartYear+1 <= 30, SUMPRODUCT(OFFSET(stdsEff, K41-'Efficiency Dist.'!$I$10, 0), OFFSET(inputTIC, K41-StartYear+1, 0)), 0) -> 114.0509542 | S41: =basecase[Shipment] * [UnitEquipCost] * 0.001 -> 0.4506183583 | T41: =[EquipCost]-basecase[EquipCost] -> 0 | U41: =[EquipCostIncr] * (1+0.03)^(yrDsc-[Year]) -> 0 | V41: =[EquipCostIncr] * (1+0.07)^(yrDsc-[Year]) -> 0 | W41: =[ElecUse] * VLOOKUP(K41, elecPrices, iEcon+1, FALSE) -> 0.3035100152 | X41: =basecase[OperCost] - [OperCost] -> 0 | Y41: =[OperCostSav] * (1+0.03)^(yrDsc-[Year]) -> 0 | Z41: =[OperCostSav] * (1+0.07)^(yrDsc-[Year]) -> 0 | AA41: =[OperCostSav] - [EquipCostIncr] -> 0 | AB41: =[NetSav] * (1+0.03)^(yrDsc-[Year]) -> 0 | AC41: =[NetSav] * (1+0.07)^(yrDsc-[Year]) -> 0 | AD41: =[NetSav] * (1+discRate)^(yrDsc-[Year]) -> 0
B42: 2048 | C42: =IF(B42-StartYear+1 <= numYrs, OFFSET(Shipments!$B$4, B42-Shipments!$B$4, iPrd), 0) -> 0 | D42: =SUMPRODUCT(C42:OFFSET(C42, -MIN(B42-StartYear, ageMax-1), 0), fSurv:OFFSET(fSurv, -MIN(B42-StartYear, ageMax-1), 0)) -> 20.95012147 | E42: =SUMPRODUCT(OFFSET(baseEff, B42-'Efficiency Dist.'!$B$10, 0), OFFSET(inputAEU, iPrd, 0)) * VLOOKUP(B42, usageTrend, 2, FALSE) -> 99.309 | F42: =SUMPRODUCT(C42:OFFSET(C42, -MIN(B42-StartYear, ageMax-1), 0), fSurv:OFFSET(fSurv, -MIN(B42-StartYear, ageMax-1), 0), E42:OFFSET(E42, -MIN(B42-StartYear, ageMax-1), 0)) * 3412 * 10 ^ (-9) -> 0.007098787513 | G42: =IF(B42-StartYear+1 <= 30, SUMPRODUCT(OFFSET(baseEff, B42-'Efficiency Dist.'!$B$10, 0), OFFSET(inputTIC, B42-StartYear+1, 0)), 0) -> 0 | H42: =[Shipment] * [UnitEquipCost] * 0.001 -> 0 | I42: =[ElecUse] * VLOOKUP(B42, elecPrices, iEcon+1) -> 0.2578557674 | K42: 2048 | L42: =SUMPRODUCT(OFFSET(stdsEff, K42-'Efficiency Dist.'!$I$10, 0), OFFSET(inputAEU, iPrd, 0)) * VLOOKUP(K42, usageTrend, 2, FALSE) -> 99.309 | M42: =SUMPRODUCT(C42:OFFSET(C42, -MIN(B42-StartYear, ageMax-1), 0), fSurv:OFFSET(fSurv, -MIN(B42-StartYear, ageMax-1), 0), L42:OFFSET(L42, -MIN(B42-StartYear, ageMax-1), 0)) * 3412 * 10 ^ (-9) -> 0.007098787513 | N42: =basecase[ElecUse] - [ElecUse] -> 0 | O42: =[SiteSavings]/3412 * VLOOKUP(K42, powerplant, 2, FALSE) -> 0 | P42: =[SiteSavings] * VLOOKUP(K42, upstream, 2, FALSE) -> 0 | Q42: =[SiteSavings] * VLOOKUP([Year], carbon, 2, FALSE) -> 0 | R42: =IF(K42-StartYear+1 <= 30, SUMPRODUCT(OFFSET(stdsEff, K42-'Efficiency Dist.'!$I$10, 0), OFFSET(inputTIC, K42-StartYear+1, 0)), 0) -> 0 | S42: =basecase[Shipment] * [UnitEquipCost] * 0.001 -> 0 | T42: =[EquipCost]-basecase[EquipCost] -> 0 | U42: =[EquipCostIncr] * (1+0.03)^(yrDsc-[Year]) -> 0 | V42: =[EquipCostIncr] * (1+0.07)^(yrDsc-[Year]) -> 0 | W42: =[ElecUse] * VLOOKUP(K42, elecPrices, iEcon+1, FALSE) -> 0.2578557674 | X42: =basecase[OperCost] - [OperCost] -> 0 | Y42: =[OperCostSav] * (1+0.03)^(yrDsc-[Year]) -> 0 | Z42: =[OperCostSav] * (1+0.07)^(yrDsc-[Year]) -> 0 | AA42: =[OperCostSav] - [EquipCostIncr] -> 0 | AB42: =[NetSav] * (1+0.03)^(yrDsc-[Year]) -> 0 | AC42: =[NetSav] * (1+0.07)^(yrDsc-[Year]) -> 0 | AD42: =[NetSav] * (1+discRate)^(yrDsc-[Year]) -> 0
B43: 2049 | C43: =IF(B43-StartYear+1 <= numYrs, OFFSET(Shipments!$B$4, B43-Shipments!$B$4, iPrd), 0) -> 0 | D43: =SUMPRODUCT(C43:OFFSET(C43, -MIN(B43-StartYear, ageMax-1), 0), fSurv:OFFSET(fSurv, -MIN(B43-StartYear, ageMax-1), 0)) -> 17.16908578 | E43: =SUMPRODUCT(OFFSET(baseEff, B43-'Efficiency Dist.'!$B$10, 0), OFFSET(inputAEU, iPrd, 0)) * VLOOKUP(B43, usageTrend, 2, FALSE) -> 99.309 | F43: =SUMPRODUCT(C43:OFFSET(C43, -MIN(B43-StartYear, ageMax-1), 0), fSurv:OFFSET(fSurv, -MIN(B43-StartYear, ageMax-1), 0), E43:OFFSET(E43, -MIN(B43-StartYear, ageMax-1), 0)) * 3412 * 10 ^ (-9) -> 0.005817612653 | G43: =IF(B43-StartYear+1 <= 30, SUMPRODUCT(OFFSET(baseEff, B43-'Efficiency Dist.'!$B$10, 0), OFFSET(inputTIC, B43-StartYear+1, 0)), 0) -> 0 | H43: =[Shipment] * [UnitEquipCost] * 0.001 -> 0 | I43: =[ElecUse] * VLOOKUP(B43, elecPrices, iEcon+1) -> 0.2116124874 | K43: 2049 | L43: =SUMPRODUCT(OFFSET(stdsEff, K43-'Efficiency Dist.'!$I$10, 0), OFFSET(inputAEU, iPrd, 0)) * VLOOKUP(K43, usageTrend, 2, FALSE) -> 99.309 | M43: =SUMPRODUCT(C43:OFFSET(C43, -MIN(B43-StartYear, ageMax-1), 0), fSurv:OFFSET(fSurv, -MIN(B43-StartYear, ageMax-1), 0), L43:OFFSET(L43, -MIN(B43-StartYear, ageMax-1), 0)) * 3412 * 10 ^ (-9) -> 0.005817612653 | N43: =basecase[ElecUse] - [ElecUse] -> 0 | O43: =[SiteSavings]/3412 * VLOOKUP(K43, powerplant, 2, FALSE) -> 0 | P43: =[SiteSavings] * VLOOKUP(K43, upstream, 2, FALSE) -> 0 | Q43: =[SiteSavings] * VLOOKUP([Year], carbon, 2, FALSE) -> 0 | R43: =IF(K43-StartYear+1 <= 30, SUMPRODUCT(OFFSET(stdsEff, K43-'Efficiency Dist.'!$I$10, 0), OFFSET(inputTIC, K43-StartYear+1, 0)), 0) -> 0 | S43: =basecase[Shipment] * [UnitEquipCost] * 0.001 -> 0 | T43: =[EquipCost]-basecase[EquipCost] -> 0 | U43: =[EquipCostIncr] * (1+0.03)^(yrDsc-[Year]) -> 0 | V43: =[EquipCostIncr] * (1+0.07)^(yrDsc-[Year]) -> 0 | W43: =[ElecUse] * VLOOKUP(K43, elecPrices, iEcon+1, FALSE) -> 0.2116124874 | X43: =basecase[OperCost] - [OperCost] -> 0 | Y43: =[OperCostSav] * (1+0.03)^(yrDsc-[Year]) -> 0 | Z43: =[OperCostSav] * (1+0.07)^(yrDsc-[Year]) -> 0 | AA43: =[OperCostSav] - [EquipCostIncr] -> 0 | AB43: =[NetSav] * (1+0.03)^(yrDsc-[Year]) -> 0 | AC43: =[NetSav] * (1+0.07)^(yrDsc-[Year]) -> 0 | AD43: =[NetSav] * (1+discRate)^(yrDsc-[Year]) -> 0
B44: =B43+1 -> 2050 | C44: =IF(B44-StartYear+1 <= numYrs, OFFSET(Shipments!$B$4, B44-Shipments!$B$4, iPrd), 0) -> 0 | D44: =SUMPRODUCT(C44:OFFSET(C44, -MIN(B44-StartYear, ageMax-1), 0), fSurv:OFFSET(fSurv, -MIN(B44-StartYear, ageMax-1), 0)) -> 13.36221135 | E44: =SUMPRODUCT(OFFSET(baseEff, B44-'Efficiency Dist.'!$B$10, 0), OFFSET(inputAEU, iPrd, 0)) * VLOOKUP(B44, usageTrend, 2, FALSE) -> 99.309 | F44: =SUMPRODUCT(C44:OFFSET(C44, -MIN(B44-StartYear, ageMax-1), 0), fSurv:OFFSET(fSurv, -MIN(B44-StartYear, ageMax-1), 0), E44:OFFSET(E44, -MIN(B44-StartYear, ageMax-1), 0)) * 3412 * 10 ^ (-9) -> 0.004527682533 | G44: =IF(B44-StartYear+1 <= 30, SUMPRODUCT(OFFSET(baseEff, B44-'Efficiency Dist.'!$B$10, 0), OFFSET(inputTIC, B44-StartYear+1, 0)), 0) -> 0 | H44: =[Shipment] * [UnitEquipCost] * 0.001 -> 0 | I44: =[ElecUse] * VLOOKUP(B44, elecPrices, iEcon+1) -> 0.1649211201 | K44: 2050 | L44: =SUMPRODUCT(OFFSET(stdsEff, K44-'Efficiency Dist.'!$I$10, 0), OFFSET(inputAEU, iPrd, 0)) * VLOOKUP(K44, usageTrend, 2, FALSE) -> 99.309 | M44: =SUMPRODUCT(C44:OFFSET(C44, -MIN(B44-StartYear, ageMax-1), 0), fSurv:OFFSET(fSurv, -MIN(B44-StartYear, ageMax-1), 0), L44:OFFSET(L44, -MIN(B44-StartYear, ageMax-1), 0)) * 3412 * 10 ^ (-9) -> 0.004527682533 | N44: =basecase[ElecUse] - [ElecUse] -> 0 | O44: =[SiteSavings]/3412 * VLOOKUP(K44, powerplant, 2, FALSE) -> 0 | P44: =[SiteSavings] * VLOOKUP(K44, upstream, 2, FALSE) -> 0 | Q44: =[SiteSavings] * VLOOKUP([Year], carbon, 2, FALSE) -> 0 | R44: =IF(K44-StartYear+1 <= 30, SUMPRODUCT(OFFSET(stdsEff, K44-'Efficiency Dist.'!$I$10, 0), OFFSET(inputTIC, K44-StartYear+1, 0)), 0) -> 0 | S44: =basecase[Shipment] * [UnitEquipCost] * 0.001 -> 0 | T44: =[EquipCost]-basecase[EquipCost] -> 0 | U44: =[EquipCostIncr] * (1+0.03)^(yrDsc-[Year]) -> 0 | V44: =[EquipCostIncr] * (1+0.07)^(yrDsc-[Year]) -> 0 | W44: =[ElecUse] * VLOOKUP(K44, elecPrices, iEcon+1, FALSE) -> 0.1649211201 | X44: =basecase[OperCost] - [OperCost] -> 0 | Y44: =[OperCostSav] * (1+0.03)^(yrDsc-[Year]) -> 0 | Z44: =[OperCostSav] * (1+0.07)^(yrDsc-[Year]) -> 0 | AA44: =[OperCostSav] - [EquipCostIncr] -> 0 | AB44: =[NetSav] * (1+0.03)^(yrDsc-[Year]) -> 0 | AC44: =[NetSav] * (1+0.07)^(yrDsc-[Year]) -> 0 | AD44: =[NetSav] * (1+discRate)^(yrDsc-[Year]) -> 0
B45: 2051 | C45: =IF(B45-StartYear+1 <= numYrs, OFFSET(Shipments!$B$4, B45-Shipments!$B$4, iPrd), 0) -> 0 | D45: =SUMPRODUCT(C45:OFFSET(C45, -MIN(B45-StartYear, ageMax-1), 0), fSurv:OFFSET(fSurv, -MIN(B45-StartYear, ageMax-1), 0)) -> 9.696842327 | E45: =SUMPRODUCT(OFFSET(baseEff, B45-'Efficiency Dist.'!$B$10, 0), OFFSET(inputAEU, iPrd, 0)) * VLOOKUP(B45, usageTrend, 2, FALSE) -> 99.309 | F45: =SUMPRODUCT(C45:OFFSET(C45, -MIN(B45-StartYear, ageMax-1), 0), fSurv:OFFSET(fSurv, -MIN(B45-StartYear, ageMax-1), 0), E45:OFFSET(E45, -MIN(B45-StartYear, ageMax-1), 0)) * 3412 * 10 ^ (-9) -> 0.003285700434 | G45: =IF(B45-StartYear+1 <= 30, SUMPRODUCT(OFFSET(baseEff, B45-'Efficiency Dist.'!$B$10, 0), OFFSET(inputTIC, B45-StartYear+1, 0)), 0) -> 0 | H45: =[Shipment] * [UnitEquipCost] * 0.001 -> 0 | I45: =[ElecUse] * VLOOKUP(B45, elecPrices, iEcon+1) -> 0.1198483586 | K45: 2051 | L45: =SUMPRODUCT(OFFSET(stdsEff, K45-'Efficiency Dist.'!$I$10, 0), OFFSET(inputAEU, iPrd, 0)) * VLOOKUP(K45, usageTrend, 2, FALSE) -> 99.309 | M45: =SUMPRODUCT(C45:OFFSET(C45, -MIN(B45-StartYear, ageMax-1), 0), fSurv:OFFSET(fSurv, -MIN(B45-StartYear, ageMax-1), 0), L45:OFFSET(L45, -MIN(B45-StartYear, ageMax-1), 0)) * 3412 * 10 ^ (-9) -> 0.003285700434 | N45: =basecase[ElecUse] - [ElecUse] -> 0 | O45: =[SiteSavings]/3412 * VLOOKUP(K45, powerplant, 2, FALSE) -> 0 | P45: =[SiteSavings] * VLOOKUP(K45, upstream, 2, FALSE) -> 0 | Q45: =[SiteSavings] * VLOOKUP([Year], carbon, 2, FALSE) -> 0 | R45: =IF(K45-StartYear+1 <= 30, SUMPRODUCT(OFFSET(stdsEff, K45-'Efficiency Dist.'!$I$10, 0), OFFSET(inputTIC, K45-StartYear+1, 0)), 0) -> 0 | S45: =basecase[Shipment] * [UnitEquipCost] * 0.001 -> 0 | T45: =[EquipCost]-basecase[EquipCost] -> 0 | U45: =[EquipCostIncr] * (1+0.03)^(yrDsc-[Year]) -> 0 | V45: =[EquipCostIncr] * (1+0.07)^(yrDsc-[Year]) -> 0 | W45: =[ElecUse] * VLOOKUP(K45, elecPrices, iEcon+1, FALSE) -> 0.1198483586 | X45: =basecase[OperCost] - [OperCost] -> 0 | Y45: =[OperCostSav] * (1+0.03)^(yrDsc-[Year]) -> 0 | Z45: =[OperCostSav] * (1+0.07)^(yrDsc-[Year]) -> 0 | AA45: =[OperCostSav] - [EquipCostIncr] -> 0 | AB45: =[NetSav] * (1+0.03)^(yrDsc-[Year]) -> 0 | AC45: =[NetSav] * (1+0.07)^(yrDsc-[Year]) -> 0 | AD45: =[NetSav] * (1+discRate)^(yrDsc-[Year]) -> 0
B46: =B45+1 -> 2052 | C46: =IF(B46-StartYear+1 <= numYrs, OFFSET(Shipments!$B$4, B46-Shipments!$B$4, iPrd), 0) -> 0 | D46: =SUMPRODUCT(C46:OFFSET(C46, -MIN(B46-StartYear, ageMax-1), 0), fSurv:OFFSET(fSurv, -MIN(B46-StartYear, ageMax-1), 0)) -> 6.449740823 | E46: =SUMPRODUCT(OFFSET(baseEff, B46-'Efficiency Dist.'!$B$10, 0), OFFSET(inputAEU, iPrd, 0)) * VLOOKUP(B46, usageTrend, 2, FALSE) -> 99.309 | F46: =SUMPRODUCT(C46:OFFSET(C46, -MIN(B46-StartYear, ageMax-1), 0), fSurv:OFFSET(fSurv, -MIN(B46-StartYear, ageMax-1), 0), E46:OFFSET(E46, -MIN(B46-StartYear, ageMax-1), 0)) * 3412 * 10 ^ (-9) -> 0.002185445067 | G46: =IF(B46-StartYear+1 <= 30, SUMPRODUCT(OFFSET(baseEff, B46-'Efficiency Dist.'!$B$10, 0), OFFSET(inputTIC, B46-StartYear+1, 0)), 0) -> 0 | H46: =[Shipment] * [UnitEquipCost] * 0.001 -> 0 | I46: =[ElecUse] * VLOOKUP(B46, elecPrices, iEcon+1) -> 0.07982663774 | K46: 2052 | L46: =SUMPRODUCT(OFFSET(stdsEff, K46-'Efficiency Dist.'!$I$10, 0), OFFSET(inputAEU, iPrd, 0)) * VLOOKUP(K46, usageTrend, 2, FALSE) -> 99.309 | M46: =SUMPRODUCT(C46:OFFSET(C46, -MIN(B46-StartYear, ageMax-1), 0), fSurv:OFFSET(fSurv, -MIN(B46-StartYear, ageMax-1), 0), L46:OFFSET(L46, -MIN(B46-StartYear, ageMax-1), 0)) * 3412 * 10 ^ (-9) -> 0.002185445067 | N46: =basecase[ElecUse] - [ElecUse] -> 0 | O46: =[SiteSavings]/3412 * VLOOKUP(K46, powerplant, 2, FALSE) -> 0 | P46: =[SiteSavings] * VLOOKUP(K46, upstream, 2, FALSE) -> 0 | Q46: =[SiteSavings] * VLOOKUP([Year], carbon, 2, FALSE) -> 0 | R46: =IF(K46-StartYear+1 <= 30, SUMPRODUCT(OFFSET(stdsEff, K46-'Efficiency Dist.'!$I$10, 0), OFFSET(inputTIC, K46-StartYear+1, 0)), 0) -> 0 | S46: =basecase[Shipment] * [UnitEquipCost] * 0.001 -> 0 | T46: =[EquipCost]-basecase[EquipCost] -> 0 | U46: =[EquipCostIncr] * (1+0.03)^(yrDsc-[Year]) -> 0 | V46: =[EquipCostIncr] * (1+0.07)^(yrDsc-[Year]) -> 0 | W46: =[ElecUse] * VLOOKUP(K46, elecPrices, iEcon+1, FALSE) -> 0.07982663774 | X46: =basecase[OperCost] - [OperCost] -> 0 | Y46: =[OperCostSav] * (1+0.03)^(yrDsc-[Year]) -> 0 | Z46: =[OperCostSav] * (1+0.07)^(yrDsc-[Year]) -> 0 | AA46: =[OperCostSav] - [EquipCostIncr] -> 0 | AB46: =[NetSav] * (1+0.03)^(yrDsc-[Year]) -> 0 | AC46: =[NetSav] * (1+0.07)^(yrDsc-[Year]) -> 0 | AD46: =[NetSav] * (1+discRate)^(yrDsc-[Year]) -> 0
B47: 2053 | C47: =IF(B47-StartYear+1 <= numYrs, OFFSET(Shipments!$B$4, B47-Shipments!$B$4, iPrd), 0) -> 0 | D47: =SUMPRODUCT(C47:OFFSET(C47, -MIN(B47-StartYear, ageMax-1), 0), fSurv:OFFSET(fSurv, -MIN(B47-StartYear, ageMax-1), 0)) -> 3.864521727 | E47: =SUMPRODUCT(OFFSET(baseEff, B47-'Efficiency Dist.'!$B$10, 0), OFFSET(inputAEU, iPrd, 0)) * VLOOKUP(B47, usageTrend, 2, FALSE) -> 99.309 | F47: =SUMPRODUCT(C47:OFFSET(C47, -MIN(B47-StartYear, ageMax-1), 0), fSurv:OFFSET(fSurv, -MIN(B47-StartYear, ageMax-1), 0), E47:OFFSET(E47, -MIN(B47-StartYear, ageMax-1), 0)) * 3412 * 10 ^ (-9) -> 0.001309463461 | G47: =IF(B47-StartYear+1 <= 30, SUMPRODUCT(OFFSET(baseEff, B47-'Efficiency Dist.'!$B$10, 0), OFFSET(inputTIC, B47-StartYear+1, 0)), 0) -> 0 | H47: =[Shipment] * [UnitEquipCost] * 0.001 -> 0 | I47: =[ElecUse] * VLOOKUP(B47, elecPrices, iEcon+1) -> 0.04789665065 | K47: 2053 | L47: =SUMPRODUCT(OFFSET(stdsEff, K47-'Efficiency Dist.'!$I$10, 0), OFFSET(inputAEU, iPrd, 0)) * VLOOKUP(K47, usageTrend, 2, FALSE) -> 99.309 | M47: =SUMPRODUCT(C47:OFFSET(C47, -MIN(B47-StartYear, ageMax-1), 0), fSurv:OFFSET(fSurv, -MIN(B47-StartYear, ageMax-1), 0), L47:OFFSET(L47, -MIN(B47-StartYear, ageMax-1), 0)) * 3412 * 10 ^ (-9) -> 0.001309463461 | N47: =basecase[ElecUse] - [ElecUse] -> 0 | O47: =[SiteSavings]/3412 * VLOOKUP(K47, powerplant, 2, FALSE) -> 0 | P47: =[SiteSavings] * VLOOKUP(K47, upstream, 2, FALSE) -> 0 | Q47: =[SiteSavings] * VLOOKUP([Year], carbon, 2, FALSE) -> 0 | R47: =IF(K47-StartYear+1 <= 30, SUMPRODUCT(OFFSET(stdsEff, K47-'Efficiency Dist.'!$I$10, 0), OFFSET(inputTIC, K47-StartYear+1, 0)), 0) -> 0 | S47: =basecase[Shipment] * [UnitEquipCost] * 0.001 -> 0 | T47: =[EquipCost]-basecase[EquipCost] -> 0 | U47: =[EquipCostIncr] * (1+0.03)^(yrDsc-[Year]) -> 0 | V47: =[EquipCostIncr] * (1+0.07)^(yrDsc-[Year]) -> 0 | W47: =[ElecUse] * VLOOKUP(K47, elecPrices, iEcon+1, FALSE) -> 0.04789665065 | X47: =basecase[OperCost] - [OperCost] -> 0 | Y47: =[OperCostSav] * (1+0.03)^(yrDsc-[Year]) -> 0 | Z47: =[OperCostSav] * (1+0.07)^(yrDsc-[Year]) -> 0 | AA47: =[OperCostSav] - [EquipCostIncr] -> 0 | AB47: =[NetSav] * (1+0.03)^(yrDsc-[Year]) -> 0 | AC47: =[NetSav] * (1+0.07)^(yrDsc-[Year]) -> 0 | AD47: =[NetSav] * (1+discRate)^(yrDsc-[Year]) -> 0
B48: 2054 | C48: =IF(B48-StartYear+1 <= numYrs, OFFSET(Shipments!$B$4, B48-Shipments!$B$4, iPrd), 0) -> 0 | D48: =SUMPRODUCT(C48:OFFSET(C48, -MIN(B48-StartYear, ageMax-1), 0), fSurv:OFFSET(fSurv, -MIN(B48-StartYear, ageMax-1), 0)) -> 2.05155782 | E48: =SUMPRODUCT(OFFSET(baseEff, B48-'Efficiency Dist.'!$B$10, 0), OFFSET(inputAEU, iPrd, 0)) * VLOOKUP(B48, usageTrend, 2, FALSE) -> 99.309 | F48: =SUMPRODUCT(C48:OFFSET(C48, -MIN(B48-StartYear, ageMax-1), 0), fSurv:OFFSET(fSurv, -MIN(B48-StartYear, ageMax-1), 0), E48:OFFSET(E48, -MIN(B48-StartYear, ageMax-1), 0)) * 3412 * 10 ^ (-9) -> 0.0006951545866 | G48: =IF(B48-StartYear+1 <= 30, SUMPRODUCT(OFFSET(baseEff, B48-'Efficiency Dist.'!$B$10, 0), OFFSET(inputTIC, B48-StartYear+1, 0)), 0) -> 0 | H48: =[Shipment] * [UnitEquipCost] * 0.001 -> 0 | I48: =[ElecUse] * VLOOKUP(B48, elecPrices, iEcon+1) -> 0.02546226129 | K48: 2054 | L48: =SUMPRODUCT(OFFSET(stdsEff, K48-'Efficiency Dist.'!$I$10, 0), OFFSET(inputAEU, iPrd, 0)) * VLOOKUP(K48, usageTrend, 2, FALSE) -> 99.309 | M48: =SUMPRODUCT(C48:OFFSET(C48, -MIN(B48-StartYear, ageMax-1), 0), fSurv:OFFSET(fSurv, -MIN(B48-StartYear, ageMax-1), 0), L48:OFFSET(L48, -MIN(B48-StartYear, ageMax-1), 0)) * 3412 * 10 ^ (-9) -> 0.0006951545866 | N48: =basecase[ElecUse] - [ElecUse] -> 0 | O48: =[SiteSavings]/3412 * VLOOKUP(K48, powerplant, 2, FALSE) -> 0 | P48: =[SiteSavings] * VLOOKUP(K48, upstream, 2, FALSE) -> 0 | Q48: =[SiteSavings] * VLOOKUP([Year], carbon, 2, FALSE) -> 0 | R48: =IF(K48-StartYear+1 <= 30, SUMPRODUCT(OFFSET(stdsEff, K48-'Efficiency Dist.'!$I$10, 0), OFFSET(inputTIC, K48-StartYear+1, 0)), 0) -> 0 | S48: =basecase[Shipment] * [UnitEquipCost] * 0.001 -> 0 | T48: =[EquipCost]-basecase[EquipCost] -> 0 | U48: =[EquipCostIncr] * (1+0.03)^(yrDsc-[Year]) -> 0 | V48: =[EquipCostIncr] * (1+0.07)^(yrDsc-[Year]) -> 0 | W48: =[ElecUse] * VLOOKUP(K48, elecPrices, iEcon+1, FALSE) -> 0.02546226129 | X48: =basecase[OperCost] - [OperCost] -> 0 | Y48: =[OperCostSav] * (1+0.03)^(yrDsc-[Year]) -> 0 | Z48: =[OperCostSav] * (1+0.07)^(yrDsc-[Year]) -> 0 | AA48: =[OperCostSav] - [EquipCostIncr] -> 0 | AB48: =[NetSav] * (1+0.03)^(yrDsc-[Year]) -> 0 | AC48: =[NetSav] * (1+0.07)^(yrDsc-[Year]) -> 0 | AD48: =[NetSav] * (1+discRate)^(yrDsc-[Year]) -> 0
B49: =B48+1 -> 2055 | C49: =IF(B49-StartYear+1 <= numYrs, OFFSET(Shipments!$B$4, B49-Shipments!$B$4, iPrd), 0) -> 0 | D49: =SUMPRODUCT(C49:OFFSET(C49, -MIN(B49-StartYear, ageMax-1), 0), fSurv:OFFSET(fSurv, -MIN(B49-StartYear, ageMax-1), 0)) -> 0.9507325275 | E49: =SUMPRODUCT(OFFSET(baseEff, B49-'Efficiency Dist.'!$B$10, 0), OFFSET(inputAEU, iPrd, 0)) * VLOOKUP(B49, usageTrend, 2, FALSE) -> 99.309 | F49: =SUMPRODUCT(C49:OFFSET(C49, -MIN(B49-StartYear, ageMax-1), 0), fSurv:OFFSET(fSurv, -MIN(B49-StartYear, ageMax-1), 0), E49:OFFSET(E49, -MIN(B49-StartYear, ageMax-1), 0)) * 3412 * 10 ^ (-9) -> 0.0003221484039 | G49: =IF(B49-StartYear+1 <= 30, SUMPRODUCT(OFFSET(baseEff, B49-'Efficiency Dist.'!$B$10, 0), OFFSET(inputTIC, B49-StartYear+1, 0)), 0) -> 0 | H49: =[Shipment] * [UnitEquipCost] * 0.001 -> 0 | I49: =[ElecUse] * VLOOKUP(B49, elecPrices, iEcon+1) -> 0.01181613323 | K49: 2055 | L49: =SUMPRODUCT(OFFSET(stdsEff, K49-'Efficiency Dist.'!$I$10, 0), OFFSET(inputAEU, iPrd, 0)) * VLOOKUP(K49, usageTrend, 2, FALSE) -> 99.309 | M49: =SUMPRODUCT(C49:OFFSET(C49, -MIN(B49-StartYear, ageMax-1), 0), fSurv:OFFSET(fSurv, -MIN(B49-StartYear, ageMax-1), 0), L49:OFFSET(L49, -MIN(B49-StartYear, ageMax-1), 0)) * 3412 * 10 ^ (-9) -> 0.0003221484039 | N49: =basecase[ElecUse] - [ElecUse] -> 0 | O49: =[SiteSavings]/3412 * VLOOKUP(K49, powerplant, 2, FALSE) -> 0 | P49: =[SiteSavings] * VLOOKUP(K49, upstream, 2, FALSE) -> 0 | Q49: =[SiteSavings] * VLOOKUP([Year], carbon, 2, FALSE) -> 0 | R49: =IF(K49-StartYear+1 <= 30, SUMPRODUCT(OFFSET(stdsEff, K49-'Efficiency Dist.'!$I$10, 0), OFFSET(inputTIC, K49-StartYear+1, 0)), 0) -> 0 | S49: =basecase[Shipment] * [UnitEquipCost] * 0.001 -> 0 | T49: =[EquipCost]-basecase[EquipCost] -> 0 | U49: =[EquipCostIncr] * (1+0.03)^(yrDsc-[Year]) -> 0 | V49: =[EquipCostIncr] * (1+0.07)^(yrDsc-[Year]) -> 0 | W49: =[ElecUse] * VLOOKUP(K49, elecPrices, iEcon+1, FALSE) -> 0.01181613323 | X49: =basecase[OperCost] - [OperCost] -> 0 | Y49: =[OperCostSav] * (1+0.03)^(yrDsc-[Year]) -> 0 | Z49: =[OperCostSav] * (1+0.07)^(yrDsc-[Year]) -> 0 | AA49: =[OperCostSav] - [EquipCostIncr] -> 0 | AB49: =[NetSav] * (1+0.03)^(yrDsc-[Year]) -> 0 | AC49: =[NetSav] * (1+0.07)^(yrDsc-[Year]) -> 0 | AD49: =[NetSav] * (1+discRate)^(yrDsc-[Year]) -> 0
B50: 2056 | C50: =IF(B50-StartYear+1 <= numYrs, OFFSET(Shipments!$B$4, B50-Shipments!$B$4, iPrd), 0) -> 0 | D50: =SUMPRODUCT(C50:OFFSET(C50, -MIN(B50-StartYear, ageMax-1), 0), fSurv:OFFSET(fSurv, -MIN(B50-StartYear, ageMax-1), 0)) -> 0.3776214646 | E50: =SUMPRODUCT(OFFSET(baseEff, B50-'Efficiency Dist.'!$B$10, 0), OFFSET(inputAEU, iPrd, 0)) * VLOOKUP(B50, usageTrend, 2, FALSE) -> 99.309 | F50: =SUMPRODUCT(C50:OFFSET(C50, -MIN(B50-StartYear, ageMax-1), 0), fSurv:OFFSET(fSurv, -MIN(B50-StartYear, ageMax-1), 0), E50:OFFSET(E50, -MIN(B50-StartYear, ageMax-1), 0)) * 3412 * 10 ^ (-9) -> 0.0001279541286 | G50: =IF(B50-StartYear+1 <= 30, SUMPRODUCT(OFFSET(baseEff, B50-'Efficiency Dist.'!$B$10, 0), OFFSET(inputTIC, B50-StartYear+1, 0)), 0) -> 0 | H50: =[Shipment] * [UnitEquipCost] * 0.001 -> 0 | I50: =[ElecUse] * VLOOKUP(B50, elecPrices, iEcon+1) -> 0.004699779865 | K50: 2056 | L50: =SUMPRODUCT(OFFSET(stdsEff, K50-'Efficiency Dist.'!$I$10, 0), OFFSET(inputAEU, iPrd, 0)) * VLOOKUP(K50, usageTrend, 2, FALSE) -> 99.309 | M50: =SUMPRODUCT(C50:OFFSET(C50, -MIN(B50-StartYear, ageMax-1), 0), fSurv:OFFSET(fSurv, -MIN(B50-StartYear, ageMax-1), 0), L50:OFFSET(L50, -MIN(B50-StartYear, ageMax-1), 0)) * 3412 * 10 ^ (-9) -> 0.0001279541286 | N50: =basecase[ElecUse] - [ElecUse] -> 0 | O50: =[SiteSavings]/3412 * VLOOKUP(K50, powerplant, 2, FALSE) -> 0 | P50: =[SiteSavings] * VLOOKUP(K50, upstream, 2, FALSE) -> 0 | Q50: =[SiteSavings] * VLOOKUP([Year], carbon, 2, FALSE) -> 0 | R50: =IF(K50-StartYear+1 <= 30, SUMPRODUCT(OFFSET(stdsEff, K50-'Efficiency Dist.'!$I$10, 0), OFFSET(inputTIC, K50-StartYear+1, 0)), 0) -> 0 | S50: =basecase[Shipment] * [UnitEquipCost] * 0.001 -> 0 | T50: =[EquipCost]-basecase[EquipCost] -> 0 | U50: =[EquipCostIncr] * (1+0.03)^(yrDsc-[Year]) -> 0 | V50: =[EquipCostIncr] * (1+0.07)^(yrDsc-[Year]) -> 0 | W50: =[ElecUse] * VLOOKUP(K50, elecPrices, iEcon+1, FALSE) -> 0.004699779865 | X50: =basecase[OperCost] - [OperCost] -> 0 | Y50: =[OperCostSav] * (1+0.03)^(yrDsc-[Year]) -> 0 | Z50: =[OperCostSav] * (1+0.07)^(yrDsc-[Year]) -> 0 | AA50: =[OperCostSav] - [EquipCostIncr] -> 0 | AB50: =[NetSav] * (1+0.03)^(yrDsc-[Year]) -> 0 | AC50: =[NetSav] * (1+0.07)^(yrDsc-[Year]) -> 0 | AD50: =[NetSav] * (1+discRate)^(yrDsc-[Year]) -> 0
B51: =B50+1 -> 2057 | C51: =IF(B51-StartYear+1 <= numYrs, OFFSET(Shipments!$B$4, B51-Shipments!$B$4, iPrd), 0) -> 0 | D51: =SUMPRODUCT(C51:OFFSET(C51, -MIN(B51-StartYear, ageMax-1), 0), fSurv:OFFSET(fSurv, -MIN(B51-StartYear, ageMax-1), 0)) -> 0.1260033173 | E51: =SUMPRODUCT(OFFSET(baseEff, B51-'Efficiency Dist.'!$B$10, 0), OFFSET(inputAEU, iPrd, 0)) * VLOOKUP(B51, usageTrend, 2, FALSE) -> 99.309 | F51: =SUMPRODUCT(C51:OFFSET(C51, -MIN(B51-StartYear, ageMax-1), 0), fSurv:OFFSET(fSurv, -MIN(B51-StartYear, ageMax-1), 0), E51:OFFSET(E51, -MIN(B51-StartYear, ageMax-1), 0)) * 3412 * 10 ^ (-9) -> 4.269525483e-05 | G51: =IF(B51-StartYear+1 <= 30, SUMPRODUCT(OFFSET(baseEff, B51-'Efficiency Dist.'!$B$10, 0), OFFSET(inputTIC, B51-StartYear+1, 0)), 0) -> 0 | H51: =[Shipment] * [UnitEquipCost] * 0.001 -> 0 | I51: =[ElecUse] * VLOOKUP(B51, elecPrices, iEcon+1) -> 0.001570386816 | K51: 2057 | L51: =SUMPRODUCT(OFFSET(stdsEff, K51-'Efficiency Dist.'!$I$10, 0), OFFSET(inputAEU, iPrd, 0)) * VLOOKUP(K51, usageTrend, 2, FALSE) -> 99.309 | M51: =SUMPRODUCT(C51:OFFSET(C51, -MIN(B51-StartYear, ageMax-1), 0), fSurv:OFFSET(fSurv, -MIN(B51-StartYear, ageMax-1), 0), L51:OFFSET(L51, -MIN(B51-StartYear, ageMax-1), 0)) * 3412 * 10 ^ (-9) -> 4.269525483e-05 | N51: =basecase[ElecUse] - [ElecUse] -> 0 | O51: =[SiteSavings]/3412 * VLOOKUP(K51, powerplant, 2, FALSE) -> 0 | P51: =[SiteSavings] * VLOOKUP(K51, upstream, 2, FALSE) -> 0 | Q51: =[SiteSavings] * VLOOKUP([Year], carbon, 2, FALSE) -> 0 | R51: =IF(K51-StartYear+1 <= 30, SUMPRODUCT(OFFSET(stdsEff, K51-'Efficiency Dist.'!$I$10, 0), OFFSET(inputTIC, K51-StartYear+1, 0)), 0) -> 0 | S51: =basecase[Shipment] * [UnitEquipCost] * 0.001 -> 0 | T51: =[EquipCost]-basecase[EquipCost] -> 0 | U51: =[EquipCostIncr] * (1+0.03)^(yrDsc-[Year]) -> 0 | V51: =[EquipCostIncr] * (1+0.07)^(yrDsc-[Year]) -> 0 | W51: =[ElecUse] * VLOOKUP(K51, elecPrices, iEcon+1, FALSE) -> 0.001570386816 | X51: =basecase[OperCost] - [OperCost] -> 0 | Y51: =[OperCostSav] * (1+0.03)^(yrDsc-[Year]) -> 0 | Z51: =[OperCostSav] * (1+0.07)^(yrDsc-[Year]) -> 0 | AA51: =[OperCostSav] - [EquipCostIncr] -> 0 | AB51: =[NetSav] * (1+0.03)^(yrDsc-[Year]) -> 0 | AC51: =[NetSav] * (1+0.07)^(yrDsc-[Year]) -> 0 | AD51: =[NetSav] * (1+discRate)^(yrDsc-[Year]) -> 0
B52: 2058 | C52: =IF(B52-StartYear+1 <= numYrs, OFFSET(Shipments!$B$4, B52-Shipments!$B$4, iPrd), 0) -> 0 | D52: =SUMPRODUCT(C52:OFFSET(C52, -MIN(B52-StartYear, ageMax-1), 0), fSurv:OFFSET(fSurv, -MIN(B52-StartYear, ageMax-1), 0)) -> 0.0354810016 | E52: =SUMPRODUCT(OFFSET(baseEff, B52-'Efficiency Dist.'!$B$10, 0), OFFSET(inputAEU, iPrd, 0)) * VLOOKUP(B52, usageTrend, 2, FALSE) -> 99.309 | F52: =SUMPRODUCT(C52:OFFSET(C52, -MIN(B52-StartYear, ageMax-1), 0), fSurv:OFFSET(fSurv, -MIN(B52-StartYear, ageMax-1), 0), E52:OFFSET(E52, -MIN(B52-StartYear, ageMax-1), 0)) * 3412 * 10 ^ (-9) -> 1.202246447e-05 | G52: =IF(B52-StartYear+1 <= 30, SUMPRODUCT(OFFSET(baseEff, B52-'Efficiency Dist.'!$B$10, 0), OFFSET(inputTIC, B52-StartYear+1, 0)), 0) -> 0 | H52: =[Shipment] * [UnitEquipCost] * 0.001 -> 0 | I52: =[ElecUse] * VLOOKUP(B52, elecPrices, iEcon+1) -> 0.0004428170661 | K52: 2058 | L52: =SUMPRODUCT(OFFSET(stdsEff, K52-'Efficiency Dist.'!$I$10, 0), OFFSET(inputAEU, iPrd, 0)) * VLOOKUP(K52, usageTrend, 2, FALSE) -> 99.309 | M52: =SUMPRODUCT(C52:OFFSET(C52, -MIN(B52-StartYear, ageMax-1), 0), fSurv:OFFSET(fSurv, -MIN(B52-StartYear, ageMax-1), 0), L52:OFFSET(L52, -MIN(B52-StartYear, ageMax-1), 0)) * 3412 * 10 ^ (-9) -> 1.202246447e-05 | N52: =basecase[ElecUse] - [ElecUse] -> 0 | O52: =[SiteSavings]/3412 * VLOOKUP(K52, powerplant, 2, FALSE) -> 0 | P52: =[SiteSavings] * VLOOKUP(K52, upstream, 2, FALSE) -> 0 | Q52: =[SiteSavings] * VLOOKUP([Year], carbon, 2, FALSE) -> 0 | R52: =IF(K52-StartYear+1 <= 30, SUMPRODUCT(OFFSET(stdsEff, K52-'Efficiency Dist.'!$I$10, 0), OFFSET(inputTIC, K52-StartYear+1, 0)), 0) -> 0 | S52: =basecase[Shipment] * [UnitEquipCost] * 0.001 -> 0 | T52: =[EquipCost]-basecase[EquipCost] -> 0 | U52: =[EquipCostIncr] * (1+0.03)^(yrDsc-[Year]) -> 0 | V52: =[EquipCostIncr] * (1+0.07)^(yrDsc-[Year]) -> 0 | W52: =[ElecUse] * VLOOKUP(K52, elecPrices, iEcon+1, FALSE) -> 0.0004428170661 | X52: =basecase[OperCost] - [OperCost] -> 0 | Y52: =[OperCostSav] * (1+0.03)^(yrDsc-[Year]) -> 0 | Z52: =[OperCostSav] * (1+0.07)^(yrDsc-[Year]) -> 0 | AA52: =[OperCostSav] - [EquipCostIncr] -> 0 | AB52: =[NetSav] * (1+0.03)^(yrDsc-[Year]) -> 0 | AC52: =[NetSav] * (1+0.07)^(yrDsc-[Year]) -> 0 | AD52: =[NetSav] * (1+discRate)^(yrDsc-[Year]) -> 0
B53: 2059 | C53: =IF(B53-StartYear+1 <= numYrs, OFFSET(Shipments!$B$4, B53-Shipments!$B$4, iPrd), 0) -> 0 | D53: =SUMPRODUCT(C53:OFFSET(C53, -MIN(B53-StartYear, ageMax-1), 0), fSurv:OFFSET(fSurv, -MIN(B53-StartYear, ageMax-1), 0)) -> 0.007902053278 | E53: =SUMPRODUCT(OFFSET(baseEff, B53-'Efficiency Dist.'!$B$10, 0), OFFSET(inputAEU, iPrd, 0)) * VLOOKUP(B53, usageTrend, 2, FALSE) -> 99.309 | F53: =SUMPRODUCT(C53:OFFSET(C53, -MIN(B53-StartYear, ageMax-1), 0), fSurv:OFFSET(fSurv, -MIN(B53-StartYear, ageMax-1), 0), E53:OFFSET(E53, -MIN(B53-StartYear, ageMax-1), 0)) * 3412 * 10 ^ (-9) -> 2.677549971e-06 | G53: =IF(B53-StartYear+1 <= 30, SUMPRODUCT(OFFSET(baseEff, B53-'Efficiency Dist.'!$B$10, 0), OFFSET(inputTIC, B53-StartYear+1, 0)), 0) -> 0 | H53: =[Shipment] * [UnitEquipCost] * 0.001 -> 0 | I53: =[ElecUse] * VLOOKUP(B53, elecPrices, iEcon+1) -> 9.875799179e-05 | K53: 2059 | L53: =SUMPRODUCT(OFFSET(stdsEff, K53-'Efficiency Dist.'!$I$10, 0), OFFSET(inputAEU, iPrd, 0)) * VLOOKUP(K53, usageTrend, 2, FALSE) -> 99.309 | M53: =SUMPRODUCT(C53:OFFSET(C53, -MIN(B53-StartYear, ageMax-1), 0), fSurv:OFFSET(fSurv, -MIN(B53-StartYear, ageMax-1), 0), L53:OFFSET(L53, -MIN(B53-StartYear, ageMax-1), 0)) * 3412 * 10 ^ (-9) -> 2.677549971e-06 | N53: =basecase[ElecUse] - [ElecUse] -> 0 | O53: =[SiteSavings]/3412 * VLOOKUP(K53, powerplant, 2, FALSE) -> 0 | P53: =[SiteSavings] * VLOOKUP(K53, upstream, 2, FALSE) -> 0 | Q53: =[SiteSavings] * VLOOKUP([Year], carbon, 2, FALSE) -> 0 | R53: =IF(K53-StartYear+1 <= 30, SUMPRODUCT(OFFSET(stdsEff, K53-'Efficiency Dist.'!$I$10, 0), OFFSET(inputTIC, K53-StartYear+1, 0)), 0) -> 0 | S53: =basecase[Shipment] * [UnitEquipCost] * 0.001 -> 0 | T53: =[EquipCost]-basecase[EquipCost] -> 0 | U53: =[EquipCostIncr] * (1+0.03)^(yrDsc-[Year]) -> 0 | V53: =[EquipCostIncr] * (1+0.07)^(yrDsc-[Year]) -> 0 | W53: =[ElecUse] * VLOOKUP(K53, elecPrices, iEcon+1, FALSE) -> 9.875799179e-05 | X53: =basecase[OperCost] - [OperCost] -> 0 | Y53: =[OperCostSav] * (1+0.03)^(yrDsc-[Year]) -> 0 | Z53: =[OperCostSav] * (1+0.07)^(yrDsc-[Year]) -> 0 | AA53: =[OperCostSav] - [EquipCostIncr] -> 0 | AB53: =[NetSav] * (1+0.03)^(yrDsc-[Year]) -> 0 | AC53: =[NetSav] * (1+0.07)^(yrDsc-[Year]) -> 0 | AD53: =[NetSav] * (1+discRate)^(yrDsc-[Year]) -> 0
B54: 2060 | C54: =IF(B54-StartYear+1 <= numYrs, OFFSET(Shipments!$B$4, B54-Shipments!$B$4, iPrd), 0) -> 0 | D54: =SUMPRODUCT(C54:OFFSET(C54, -MIN(B54-StartYear, ageMax-1), 0), fSurv:OFFSET(fSurv, -MIN(B54-StartYear, ageMax-1), 0)) -> 0 | E54: =SUMPRODUCT(OFFSET(baseEff, B54-'Efficiency Dist.'!$B$10, 0), OFFSET(inputAEU, iPrd, 0)) * VLOOKUP(B54, usageTrend, 2, FALSE) -> 99.309 | F54: =SUMPRODUCT(C54:OFFSET(C54, -MIN(B54-StartYear, ageMax-1), 0), fSurv:OFFSET(fSurv, -MIN(B54-StartYear, ageMax-1), 0), E54:OFFSET(E54, -MIN(B54-StartYear, ageMax-1), 0)) * 3412 * 10 ^ (-9) -> 0 | G54: =IF(B54-StartYear+1 <= 30, SUMPRODUCT(OFFSET(baseEff, B54-'Efficiency Dist.'!$B$10, 0), OFFSET(inputTIC, B54-StartYear+1, 0)), 0) -> 0 | H54: =[Shipment] * [UnitEquipCost] * 0.001 -> 0 | I54: =[ElecUse] * VLOOKUP(B54, elecPrices, iEcon+1) -> 0 | K54: 2060 | L54: =SUMPRODUCT(OFFSET(stdsEff, K54-'Efficiency Dist.'!$I$10, 0), OFFSET(inputAEU, iPrd, 0)) * VLOOKUP(K54, usageTrend, 2, FALSE) -> 99.309 | M54: =SUMPRODUCT(C54:OFFSET(C54, -MIN(B54-StartYear, ageMax-1), 0), fSurv:OFFSET(fSurv, -MIN(B54-StartYear, ageMax-1), 0), L54:OFFSET(L54, -MIN(B54-StartYear, ageMax-1), 0)) * 3412 * 10 ^ (-9) -> 0 | N54: =basecase[ElecUse] - [ElecUse] -> 0 | O54: =[SiteSavings]/3412 * VLOOKUP(K54, powerplant, 2, FALSE) -> 0 | P54: =[SiteSavings] * VLOOKUP(K54, upstream, 2, FALSE) -> 0 | Q54: =[SiteSavings] * VLOOKUP([Year], carbon, 2, FALSE) -> 0 | R54: =IF(K54-StartYear+1 <= 30, SUMPRODUCT(OFFSET(stdsEff, K54-'Efficiency Dist.'!$I$10, 0), OFFSET(inputTIC, K54-StartYear+1, 0)), 0) -> 0 | S54: =basecase[Shipment] * [UnitEquipCost] * 0.001 -> 0 | T54: =[EquipCost]-basecase[EquipCost] -> 0 | U54: =[EquipCostIncr] * (1+0.03)^(yrDsc-[Year]) -> 0 | V54: =[EquipCostIncr] * (1+0.07)^(yrDsc-[Year]) -> 0 | W54: =[ElecUse] * VLOOKUP(K54, elecPrices, iEcon+1, FALSE) -> 0 | X54: =basecase[OperCost] - [OperCost] -> 0 | Y54: =[OperCostSav] * (1+0.03)^(yrDsc-[Year]) -> 0 | Z54: =[OperCostSav] * (1+0.07)^(yrDsc-[Year]) -> 0 | AA54: =[OperCostSav] - [EquipCostIncr] -> 0 | AB54: =[NetSav] * (1+0.03)^(yrDsc-[Year]) -> 0 | AC54: =[NetSav] * (1+0.07)^(yrDsc-[Year]) -> 0 | AD54: =[NetSav] * (1+discRate)^(yrDsc-[Year]) -> 0
B55: 2061 | C55: =IF(B55-StartYear+1 <= numYrs, OFFSET(Shipments!$B$4, B55-Shipments!$B$4, iPrd), 0) -> 0 | D55: =SUMPRODUCT(C55:OFFSET(C55, -MIN(B55-StartYear, ageMax-1), 0), fSurv:OFFSET(fSurv, -MIN(B55-StartYear, ageMax-1), 0)) -> 0 | E55: =SUMPRODUCT(OFFSET(baseEff, B55-'Efficiency Dist.'!$B$10, 0), OFFSET(inputAEU, iPrd, 0)) * VLOOKUP(B55, usageTrend, 2, FALSE) -> 99.309 | F55: =SUMPRODUCT(C55:OFFSET(C55, -MIN(B55-StartYear, ageMax-1), 0), fSurv:OFFSET(fSurv, -MIN(B55-StartYear, ageMax-1), 0), E55:OFFSET(E55, -MIN(B55-StartYear, ageMax-1), 0)) * 3412 * 10 ^ (-9) -> 0 | G55: =IF(B55-StartYear+1 <= 30, SUMPRODUCT(OFFSET(baseEff, B55-'Efficiency Dist.'!$B$10, 0), OFFSET(inputTIC, B55-StartYear+1, 0)), 0) -> 0 | H55: =[Shipment] * [UnitEquipCost] * 0.001 -> 0 | I55: =[ElecUse] * VLOOKUP(B55, elecPrices, iEcon+1) -> 0 | K55: 2061 | L55: =SUMPRODUCT(OFFSET(stdsEff, K55-'Efficiency Dist.'!$I$10, 0), OFFSET(inputAEU, iPrd, 0)) * VLOOKUP(K55, usageTrend, 2, FALSE) -> 99.309 | M55: =SUMPRODUCT(C55:OFFSET(C55, -MIN(B55-StartYear, ageMax-1), 0), fSurv:OFFSET(fSurv, -MIN(B55-StartYear, ageMax-1), 0), L55:OFFSET(L55, -MIN(B55-StartYear, ageMax-1), 0)) * 3412 * 10 ^ (-9) -> 0 | N55: =basecase[ElecUse] - [ElecUse] -> 0 | O55: =[SiteSavings]/3412 * VLOOKUP(K55, powerplant, 2, FALSE) -> 0 | P55: =[SiteSavings] * VLOOKUP(K55, upstream, 2, FALSE) -> 0 | Q55: =[SiteSavings] * VLOOKUP([Year], carbon, 2, FALSE) -> 0 | R55: =IF(K55-StartYear+1 <= 30, SUMPRODUCT(OFFSET(stdsEff, K55-'Efficiency Dist.'!$I$10, 0), OFFSET(inputTIC, K55-StartYear+1, 0)), 0) -> 0 | S55: =basecase[Shipment] * [UnitEquipCost] * 0.001 -> 0 | T55: =[EquipCost]-basecase[EquipCost] -> 0 | U55: =[EquipCostIncr] * (1+0.03)^(yrDsc-[Year]) -> 0 | V55: =[EquipCostIncr] * (1+0.07)^(yrDsc-[Year]) -> 0 | W55: =[ElecUse] * VLOOKUP(K55, elecPrices, iEcon+1, FALSE) -> 0 | X55: =basecase[OperCost] - [OperCost] -> 0 | Y55: =[OperCostSav] * (1+0.03)^(yrDsc-[Year]) -> 0 | Z55: =[OperCostSav] * (1+0.07)^(yrDsc-[Year]) -> 0 | AA55: =[OperCostSav] - [EquipCostIncr] -> 0 | AB55: =[NetSav] * (1+0.03)^(yrDsc-[Year]) -> 0 | AC55: =[NetSav] * (1+0.07)^(yrDsc-[Year]) -> 0 | AD55: =[NetSav] * (1+discRate)^(yrDsc-[Year]) -> 0
B56: =B55+1 -> 2062 | C56: =IF(B56-StartYear+1 <= numYrs, OFFSET(Shipments!$B$4, B56-Shipments!$B$4, iPrd), 0) -> 0 | D56: =SUMPRODUCT(C56:OFFSET(C56, -MIN(B56-StartYear, ageMax-1), 0), fSurv:OFFSET(fSurv, -MIN(B56-StartYear, ageMax-1), 0)) -> 0 | E56: =SUMPRODUCT(OFFSET(baseEff, B56-'Efficiency Dist.'!$B$10, 0), OFFSET(inputAEU, iPrd, 0)) * VLOOKUP(B56, usageTrend, 2, FALSE) -> 99.309 | F56: =SUMPRODUCT(C56:OFFSET(C56, -MIN(B56-StartYear, ageMax-1), 0), fSurv:OFFSET(fSurv, -MIN(B56-StartYear, ageMax-1), 0), E56:OFFSET(E56, -MIN(B56-StartYear, ageMax-1), 0)) * 3412 * 10 ^ (-9) -> 0 | G56: =IF(B56-StartYear+1 <= 30, SUMPRODUCT(OFFSET(baseEff, B56-'Efficiency Dist.'!$B$10, 0), OFFSET(inputTIC, B56-StartYear+1, 0)), 0) -> 0 | H56: =[Shipment] * [UnitEquipCost] * 0.001 -> 0 | I56: =[ElecUse] * VLOOKUP(B56, elecPrices, iEcon+1) -> 0 | K56: 2062 | L56: =SUMPRODUCT(OFFSET(stdsEff, K56-'Efficiency Dist.'!$I$10, 0), OFFSET(inputAEU, iPrd, 0)) * VLOOKUP(K56, usageTrend, 2, FALSE) -> 99.309 | M56: =SUMPRODUCT(C56:OFFSET(C56, -MIN(B56-StartYear, ageMax-1), 0), fSurv:OFFSET(fSurv, -MIN(B56-StartYear, ageMax-1), 0), L56:OFFSET(L56, -MIN(B56-StartYear, ageMax-1), 0)) * 3412 * 10 ^ (-9) -> 0 | N56: =basecase[ElecUse] - [ElecUse] -> 0 | O56: =[SiteSavings]/3412 * VLOOKUP(K56, powerplant, 2, FALSE) -> 0 | P56: =[SiteSavings] * VLOOKUP(K56, upstream, 2, FALSE) -> 0 | Q56: =[SiteSavings] * VLOOKUP([Year], carbon, 2, FALSE) -> 0 | R56: =IF(K56-StartYear+1 <= 30, SUMPRODUCT(OFFSET(stdsEff, K56-'Efficiency Dist.'!$I$10, 0), OFFSET(inputTIC, K56-StartYear+1, 0)), 0) -> 0 | S56: =basecase[Shipment] * [UnitEquipCost] * 0.001 -> 0 | T56: =[EquipCost]-basecase[EquipCost] -> 0 | U56: =[EquipCostIncr] * (1+0.03)^(yrDsc-[Year]) -> 0 | V56: =[EquipCostIncr] * (1+0.07)^(yrDsc-[Year]) -> 0 | W56: =[ElecUse] * VLOOKUP(K56, elecPrices, iEcon+1, FALSE) -> 0 | X56: =basecase[OperCost] - [OperCost] -> 0 | Y56: =[OperCostSav] * (1+0.03)^(yrDsc-[Year]) -> 0 | Z56: =[OperCostSav] * (1+0.07)^(yrDsc-[Year]) -> 0 | AA56: =[OperCostSav] - [EquipCostIncr] -> 0 | AB56: =[NetSav] * (1+0.03)^(yrDsc-[Year]) -> 0 | AC56: =[NetSav] * (1+0.07)^(yrDsc-[Year]) -> 0 | AD56: =[NetSav] * (1+discRate)^(yrDsc-[Year]) -> 0
B57: 2063 | C57: =IF(B57-StartYear+1 <= numYrs, OFFSET(Shipments!$B$4, B57-Shipments!$B$4, iPrd), 0) -> 0 | D57: =SUMPRODUCT(C57:OFFSET(C57, -MIN(B57-StartYear, ageMax-1), 0), fSurv:OFFSET(fSurv, -MIN(B57-StartYear, ageMax-1), 0)) -> 0 | E57: =SUMPRODUCT(OFFSET(baseEff, B57-'Efficiency Dist.'!$B$10, 0), OFFSET(inputAEU, iPrd, 0)) * VLOOKUP(B57, usageTrend, 2, FALSE) -> 99.309 | F57: =SUMPRODUCT(C57:OFFSET(C57, -MIN(B57-StartYear, ageMax-1), 0), fSurv:OFFSET(fSurv, -MIN(B57-StartYear, ageMax-1), 0), E57:OFFSET(E57, -MIN(B57-StartYear, ageMax-1), 0)) * 3412 * 10 ^ (-9) -> 0 | G57: =IF(B57-StartYear+1 <= 30, SUMPRODUCT(OFFSET(baseEff, B57-'Efficiency Dist.'!$B$10, 0), OFFSET(inputTIC, B57-StartYear+1, 0)), 0) -> 0 | H57: =[Shipment] * [UnitEquipCost] * 0.001 -> 0 | I57: =[ElecUse] * VLOOKUP(B57, elecPrices, iEcon+1) -> 0 | K57: 2063 | L57: =SUMPRODUCT(OFFSET(stdsEff, K57-'Efficiency Dist.'!$I$10, 0), OFFSET(inputAEU, iPrd, 0)) * VLOOKUP(K57, usageTrend, 2, FALSE) -> 99.309 | M57: =SUMPRODUCT(C57:OFFSET(C57, -MIN(B57-StartYear, ageMax-1), 0), fSurv:OFFSET(fSurv, -MIN(B57-StartYear, ageMax-1), 0), L57:OFFSET(L57, -MIN(B57-StartYear, ageMax-1), 0)) * 3412 * 10 ^ (-9) -> 0 | N57: =basecase[ElecUse] - [ElecUse] -> 0 | O57: =[SiteSavings]/3412 * VLOOKUP(K57, powerplant, 2, FALSE) -> 0 | P57: =[SiteSavings] * VLOOKUP(K57, upstream, 2, FALSE) -> 0 | Q57: =[SiteSavings] * VLOOKUP([Year], carbon, 2, FALSE) -> 0 | R57: =IF(K57-StartYear+1 <= 30, SUMPRODUCT(OFFSET(stdsEff, K57-'Efficiency Dist.'!$I$10, 0), OFFSET(inputTIC, K57-StartYear+1, 0)), 0) -> 0 | S57: =basecase[Shipment] * [UnitEquipCost] * 0.001 -> 0 | T57: =[EquipCost]-basecase[EquipCost] -> 0 | U57: =[EquipCostIncr] * (1+0.03)^(yrDsc-[Year]) -> 0 | V57: =[EquipCostIncr] * (1+0.07)^(yrDsc-[Year]) -> 0 | W57: =[ElecUse] * VLOOKUP(K57, elecPrices, iEcon+1, FALSE) -> 0 | X57: =basecase[OperCost] - [OperCost] -> 0 | Y57: =[OperCostSav] * (1+0.03)^(yrDsc-[Year]) -> 0 | Z57: =[OperCostSav] * (1+0.07)^(yrDsc-[Year]) -> 0 | AA57: =[OperCostSav] - [EquipCostIncr] -> 0 | AB57: =[NetSav] * (1+0.03)^(yrDsc-[Year]) -> 0 | AC57: =[NetSav] * (1+0.07)^(yrDsc-[Year]) -> 0 | AD57: =[NetSav] * (1+discRate)^(yrDsc-[Year]) -> 0
B58: 2064 | C58: =IF(B58-StartYear+1 <= numYrs, OFFSET(Shipments!$B$4, B58-Shipments!$B$4, iPrd), 0) -> 0 | D58: =SUMPRODUCT(C58:OFFSET(C58, -MIN(B58-StartYear, ageMax-1), 0), fSurv:OFFSET(fSurv, -MIN(B58-StartYear, ageMax-1), 0)) -> 0 | E58: =SUMPRODUCT(OFFSET(baseEff, B58-'Efficiency Dist.'!$B$10, 0), OFFSET(inputAEU, iPrd, 0)) * VLOOKUP(B58, usageTrend, 2, FALSE) -> 99.309 | F58: =SUMPRODUCT(C58:OFFSET(C58, -MIN(B58-StartYear, ageMax-1), 0), fSurv:OFFSET(fSurv, -MIN(B58-StartYear, ageMax-1), 0), E58:OFFSET(E58, -MIN(B58-StartYear, ageMax-1), 0)) * 3412 * 10 ^ (-9) -> 0 | G58: =IF(B58-StartYear+1 <= 30, SUMPRODUCT(OFFSET(baseEff, B58-'Efficiency Dist.'!$B$10, 0), OFFSET(inputTIC, B58-StartYear+1, 0)), 0) -> 0 | H58: =[Shipment] * [UnitEquipCost] * 0.001 -> 0 | I58: =[ElecUse] * VLOOKUP(B58, elecPrices, iEcon+1) -> 0 | K58: 2064 | L58: =SUMPRODUCT(OFFSET(stdsEff, K58-'Efficiency Dist.'!$I$10, 0), OFFSET(inputAEU, iPrd, 0)) * VLOOKUP(K58, usageTrend, 2, FALSE) -> 99.309 | M58: =SUMPRODUCT(C58:OFFSET(C58, -MIN(B58-StartYear, ageMax-1), 0), fSurv:OFFSET(fSurv, -MIN(B58-StartYear, ageMax-1), 0), L58:OFFSET(L58, -MIN(B58-StartYear, ageMax-1), 0)) * 3412 * 10 ^ (-9) -> 0 | N58: =basecase[ElecUse] - [ElecUse] -> 0 | O58: =[SiteSavings]/3412 * VLOOKUP(K58, powerplant, 2, FALSE) -> 0 | P58: =[SiteSavings] * VLOOKUP(K58, upstream, 2, FALSE) -> 0 | Q58: =[SiteSavings] * VLOOKUP([Year], carbon, 2, FALSE) -> 0 | R58: =IF(K58-StartYear+1 <= 30, SUMPRODUCT(OFFSET(stdsEff, K58-'Efficiency Dist.'!$I$10, 0), OFFSET(inputTIC, K58-StartYear+1, 0)), 0) -> 0 | S58: =basecase[Shipment] * [UnitEquipCost] * 0.001 -> 0 | T58: =[EquipCost]-basecase[EquipCost] -> 0 | U58: =[EquipCostIncr] * (1+0.03)^(yrDsc-[Year]) -> 0 | V58: =[EquipCostIncr] * (1+0.07)^(yrDsc-[Year]) -> 0 | W58: =[ElecUse] * VLOOKUP(K58, elecPrices, iEcon+1, FALSE) -> 0 | X58: =basecase[OperCost] - [OperCost] -> 0 | Y58: =[OperCostSav] * (1+0.03)^(yrDsc-[Year]) -> 0 | Z58: =[OperCostSav] * (1+0.07)^(yrDsc-[Year]) -> 0 | AA58: =[OperCostSav] - [EquipCostIncr] -> 0 | AB58: =[NetSav] * (1+0.03)^(yrDsc-[Year]) -> 0 | AC58: =[NetSav] * (1+0.07)^(yrDsc-[Year]) -> 0 | AD58: =[NetSav] * (1+discRate)^(yrDsc-[Year]) -> 0
B59: 2065 | C59: =IF(B59-StartYear+1 <= numYrs, OFFSET(Shipments!$B$4, B59-Shipments!$B$4, iPrd), 0) -> 0 | D59: =SUMPRODUCT(C59:OFFSET(C59, -MIN(B59-StartYear, ageMax-1), 0), fSurv:OFFSET(fSurv, -MIN(B59-StartYear, ageMax-1), 0)) -> 0 | E59: =SUMPRODUCT(OFFSET(baseEff, B59-'Efficiency Dist.'!$B$10, 0), OFFSET(inputAEU, iPrd, 0)) * VLOOKUP(B59, usageTrend, 2, FALSE) -> 99.309 | F59: =SUMPRODUCT(C59:OFFSET(C59, -MIN(B59-StartYear, ageMax-1), 0), fSurv:OFFSET(fSurv, -MIN(B59-StartYear, ageMax-1), 0), E59:OFFSET(E59, -MIN(B59-StartYear, ageMax-1), 0)) * 3412 * 10 ^ (-9) -> 0 | G59: =IF(B59-StartYear+1 <= 30, SUMPRODUCT(OFFSET(baseEff, B59-'Efficiency Dist.'!$B$10, 0), OFFSET(inputTIC, B59-StartYear+1, 0)), 0) -> 0 | H59: =[Shipment] * [UnitEquipCost] * 0.001 -> 0 | I59: =[ElecUse] * VLOOKUP(B59, elecPrices, iEcon+1) -> 0 | K59: 2065 | L59: =SUMPRODUCT(OFFSET(stdsEff, K59-'Efficiency Dist.'!$I$10, 0), OFFSET(inputAEU, iPrd, 0)) * VLOOKUP(K59, usageTrend, 2, FALSE) -> 99.309 | M59: =SUMPRODUCT(C59:OFFSET(C59, -MIN(B59-StartYear, ageMax-1), 0), fSurv:OFFSET(fSurv, -MIN(B59-StartYear, ageMax-1), 0), L59:OFFSET(L59, -MIN(B59-StartYear, ageMax-1), 0)) * 3412 * 10 ^ (-9) -> 0 | N59: =basecase[ElecUse] - [ElecUse] -> 0 | O59: =[SiteSavings]/3412 * VLOOKUP(K59, powerplant, 2, FALSE) -> 0 | P59: =[SiteSavings] * VLOOKUP(K59, upstream, 2, FALSE) -> 0 | Q59: =[SiteSavings] * VLOOKUP([Year], carbon, 2, FALSE) -> 0 | R59: =IF(K59-StartYear+1 <= 30, SUMPRODUCT(OFFSET(stdsEff, K59-'Efficiency Dist.'!$I$10, 0), OFFSET(inputTIC, K59-StartYear+1, 0)), 0) -> 0 | S59: =basecase[Shipment] * [UnitEquipCost] * 0.001 -> 0 | T59: =[EquipCost]-basecase[EquipCost] -> 0 | U59: =[EquipCostIncr] * (1+0.03)^(yrDsc-[Year]) -> 0 | V59: =[EquipCostIncr] * (1+0.07)^(yrDsc-[Year]) -> 0 | W59: =[ElecUse] * VLOOKUP(K59, elecPrices, iEcon+1, FALSE) -> 0 | X59: =basecase[OperCost] - [OperCost] -> 0 | Y59: =[OperCostSav] * (1+0.03)^(yrDsc-[Year]) -> 0 | Z59: =[OperCostSav] * (1+0.07)^(yrDsc-[Year]) -> 0 | AA59: =[OperCostSav] - [EquipCostIncr] -> 0 | AB59: =[NetSav] * (1+0.03)^(yrDsc-[Year]) -> 0 | AC59: =[NetSav] * (1+0.07)^(yrDsc-[Year]) -> 0 | AD59: =[NetSav] * (1+discRate)^(yrDsc-[Year]) -> 0
B60: 2066 | C60: =IF(B60-StartYear+1 <= numYrs, OFFSET(Shipments!$B$4, B60-Shipments!$B$4, iPrd), 0) -> 0 | D60: =SUMPRODUCT(C60:OFFSET(C60, -MIN(B60-StartYear, ageMax-1), 0), fSurv:OFFSET(fSurv, -MIN(B60-StartYear, ageMax-1), 0)) -> 0 | E60: =SUMPRODUCT(OFFSET(baseEff, B60-'Efficiency Dist.'!$B$10, 0), OFFSET(inputAEU, iPrd, 0)) * VLOOKUP(B60, usageTrend, 2, FALSE) -> 99.309 | F60: =SUMPRODUCT(C60:OFFSET(C60, -MIN(B60-StartYear, ageMax-1), 0), fSurv:OFFSET(fSurv, -MIN(B60-StartYear, ageMax-1), 0), E60:OFFSET(E60, -MIN(B60-StartYear, ageMax-1), 0)) * 3412 * 10 ^ (-9) -> 0 | G60: =IF(B60-StartYear+1 <= 30, SUMPRODUCT(OFFSET(baseEff, B60-'Efficiency Dist.'!$B$10, 0), OFFSET(inputTIC, B60-StartYear+1, 0)), 0) -> 0 | H60: =[Shipment] * [UnitEquipCost] * 0.001 -> 0 | I60: =[ElecUse] * VLOOKUP(B60, elecPrices, iEcon+1) -> 0 | K60: 2066 | L60: =SUMPRODUCT(OFFSET(stdsEff, K60-'Efficiency Dist.'!$I$10, 0), OFFSET(inputAEU, iPrd, 0)) * VLOOKUP(K60, usageTrend, 2, FALSE) -> 99.309 | M60: =SUMPRODUCT(C60:OFFSET(C60, -MIN(B60-StartYear, ageMax-1), 0), fSurv:OFFSET(fSurv, -MIN(B60-StartYear, ageMax-1), 0), L60:OFFSET(L60, -MIN(B60-StartYear, ageMax-1), 0)) * 3412 * 10 ^ (-9) -> 0 | N60: =basecase[ElecUse] - [ElecUse] -> 0 | O60: =[SiteSavings]/3412 * VLOOKUP(K60, powerplant, 2, FALSE) -> 0 | P60: =[SiteSavings] * VLOOKUP(K60, upstream, 2, FALSE) -> 0 | Q60: =[SiteSavings] * VLOOKUP([Year], carbon, 2, FALSE) -> 0 | R60: =IF(K60-StartYear+1 <= 30, SUMPRODUCT(OFFSET(stdsEff, K60-'Efficiency Dist.'!$I$10, 0), OFFSET(inputTIC, K60-StartYear+1, 0)), 0) -> 0 | S60: =basecase[Shipment] * [UnitEquipCost] * 0.001 -> 0 | T60: =[EquipCost]-basecase[EquipCost] -> 0 | U60: =[EquipCostIncr] * (1+0.03)^(yrDsc-[Year]) -> 0 | V60: =[EquipCostIncr] * (1+0.07)^(yrDsc-[Year]) -> 0 | W60: =[ElecUse] * VLOOKUP(K60, elecPrices, iEcon+1, FALSE) -> 0 | X60: =basecase[OperCost] - [OperCost] -> 0 | Y60: =[OperCostSav] * (1+0.03)^(yrDsc-[Year]) -> 0 | Z60: =[OperCostSav] * (1+0.07)^(yrDsc-[Year]) -> 0 | AA60: =[OperCostSav] - [EquipCostIncr] -> 0 | AB60: =[NetSav] * (1+0.03)^(yrDsc-[Year]) -> 0 | AC60: =[NetSav] * (1+0.07)^(yrDsc-[Year]) -> 0 | AD60: =[NetSav] * (1+discRate)^(yrDsc-[Year]) -> 0
B61: 2067 | C61: =IF(B61-StartYear+1 <= numYrs, OFFSET(Shipments!$B$4, B61-Shipments!$B$4, iPrd), 0) -> 0 | D61: =SUMPRODUCT(C61:OFFSET(C61, -MIN(B61-StartYear, ageMax-1), 0), fSurv:OFFSET(fSurv, -MIN(B61-StartYear, ageMax-1), 0)) -> 0 | E61: =SUMPRODUCT(OFFSET(baseEff, B61-'Efficiency Dist.'!$B$10, 0), OFFSET(inputAEU, iPrd, 0)) * VLOOKUP(B61, usageTrend, 2, FALSE) -> 99.309 | F61: =SUMPRODUCT(C61:OFFSET(C61, -MIN(B61-StartYear, ageMax-1), 0), fSurv:OFFSET(fSurv, -MIN(B61-StartYear, ageMax-1), 0), E61:OFFSET(E61, -MIN(B61-StartYear, ageMax-1), 0)) * 3412 * 10 ^ (-9) -> 0 | G61: =IF(B61-StartYear+1 <= 30, SUMPRODUCT(OFFSET(baseEff, B61-'Efficiency Dist.'!$B$10, 0), OFFSET(inputTIC, B61-StartYear+1, 0)), 0) -> 0 | H61: =[Shipment] * [UnitEquipCost] * 0.001 -> 0 | I61: =[ElecUse] * VLOOKUP(B61, elecPrices, iEcon+1) -> 0 | K61: 2067 | L61: =SUMPRODUCT(OFFSET(stdsEff, K61-'Efficiency Dist.'!$I$10, 0), OFFSET(inputAEU, iPrd, 0)) * VLOOKUP(K61, usageTrend, 2, FALSE) -> 99.309 | M61: =SUMPRODUCT(C61:OFFSET(C61, -MIN(B61-StartYear, ageMax-1), 0), fSurv:OFFSET(fSurv, -MIN(B61-StartYear, ageMax-1), 0), L61:OFFSET(L61, -MIN(B61-StartYear, ageMax-1), 0)) * 3412 * 10 ^ (-9) -> 0 | N61: =basecase[ElecUse] - [ElecUse] -> 0 | O61: =[SiteSavings]/3412 * VLOOKUP(K61, powerplant, 2, FALSE) -> 0 | P61: =[SiteSavings] * VLOOKUP(K61, upstream, 2, FALSE) -> 0 | Q61: =[SiteSavings] * VLOOKUP([Year], carbon, 2, FALSE) -> 0 | R61: =IF(K61-StartYear+1 <= 30, SUMPRODUCT(OFFSET(stdsEff, K61-'Efficiency Dist.'!$I$10, 0), OFFSET(inputTIC, K61-StartYear+1, 0)), 0) -> 0 | S61: =basecase[Shipment] * [UnitEquipCost] * 0.001 -> 0 | T61: =[EquipCost]-basecase[EquipCost] -> 0 | U61: =[EquipCostIncr] * (1+0.03)^(yrDsc-[Year]) -> 0 | V61: =[EquipCostIncr] * (1+0.07)^(yrDsc-[Year]) -> 0 | W61: =[ElecUse] * VLOOKUP(K61, elecPrices, iEcon+1, FALSE) -> 0 | X61: =basecase[OperCost] - [OperCost] -> 0 | Y61: =[OperCostSav] * (1+0.03)^(yrDsc-[Year]) -> 0 | Z61: =[OperCostSav] * (1+0.07)^(yrDsc-[Year]) -> 0 | AA61: =[OperCostSav] - [EquipCostIncr] -> 0 | AB61: =[NetSav] * (1+0.03)^(yrDsc-[Year]) -> 0 | AC61: =[NetSav] * (1+0.07)^(yrDsc-[Year]) -> 0 | AD61: =[NetSav] * (1+discRate)^(yrDsc-[Year]) -> 0
B62: 2068 | C62: =IF(B62-StartYear+1 <= numYrs, OFFSET(Shipments!$B$4, B62-Shipments!$B$4, iPrd), 0) -> 0 | D62: =SUMPRODUCT(C62:OFFSET(C62, -MIN(B62-StartYear, ageMax-1), 0), fSurv:OFFSET(fSurv, -MIN(B62-StartYear, ageMax-1), 0)) -> 0 | E62: =SUMPRODUCT(OFFSET(baseEff, B62-'Efficiency Dist.'!$B$10, 0), OFFSET(inputAEU, iPrd, 0)) * VLOOKUP(B62, usageTrend, 2, FALSE) -> 99.309 | F62: =SUMPRODUCT(C62:OFFSET(C62, -MIN(B62-StartYear, ageMax-1), 0), fSurv:OFFSET(fSurv, -MIN(B62-StartYear, ageMax-1), 0), E62:OFFSET(E62, -MIN(B62-StartYear, ageMax-1), 0)) * 3412 * 10 ^ (-9) -> 0 | G62: =IF(B62-StartYear+1 <= 30, SUMPRODUCT(OFFSET(baseEff, B62-'Efficiency Dist.'!$B$10, 0), OFFSET(inputTIC, B62-StartYear+1, 0)), 0) -> 0 | H62: =[Shipment] * [UnitEquipCost] * 0.001 -> 0 | I62: =[ElecUse] * VLOOKUP(B62, elecPrices, iEcon+1) -> 0 | K62: 2068 | L62: =SUMPRODUCT(OFFSET(stdsEff, K62-'Efficiency Dist.'!$I$10, 0), OFFSET(inputAEU, iPrd, 0)) * VLOOKUP(K62, usageTrend, 2, FALSE) -> 99.309 | M62: =SUMPRODUCT(C62:OFFSET(C62, -MIN(B62-StartYear, ageMax-1), 0), fSurv:OFFSET(fSurv, -MIN(B62-StartYear, ageMax-1), 0), L62:OFFSET(L62, -MIN(B62-StartYear, ageMax-1), 0)) * 3412 * 10 ^ (-9) -> 0 | N62: =basecase[ElecUse] - [ElecUse] -> 0 | O62: =[SiteSavings]/3412 * VLOOKUP(K62, powerplant, 2, FALSE) -> 0 | P62: =[SiteSavings] * VLOOKUP(K62, upstream, 2, FALSE) -> 0 | Q62: =[SiteSavings] * VLOOKUP([Year], carbon, 2, FALSE) -> 0 | R62: =IF(K62-StartYear+1 <= 30, SUMPRODUCT(OFFSET(stdsEff, K62-'Efficiency Dist.'!$I$10, 0), OFFSET(inputTIC, K62-StartYear+1, 0)), 0) -> 0 | S62: =basecase[Shipment] * [UnitEquipCost] * 0.001 -> 0 | T62: =[EquipCost]-basecase[EquipCost] -> 0 | U62: =[EquipCostIncr] * (1+0.03)^(yrDsc-[Year]) -> 0 | V62: =[EquipCostIncr] * (1+0.07)^(yrDsc-[Year]) -> 0 | W62: =[ElecUse] * VLOOKUP(K62, elecPrices, iEcon+1, FALSE) -> 0 | X62: =basecase[OperCost] - [OperCost] -> 0 | Y62: =[OperCostSav] * (1+0.03)^(yrDsc-[Year]) -> 0 | Z62: =[OperCostSav] * (1+0.07)^(yrDsc-[Year]) -> 0 | AA62: =[OperCostSav] - [EquipCostIncr] -> 0 | AB62: =[NetSav] * (1+0.03)^(yrDsc-[Year]) -> 0 | AC62: =[NetSav] * (1+0.07)^(yrDsc-[Year]) -> 0 | AD62: =[NetSav] * (1+discRate)^(yrDsc-[Year]) -> 0
B63: 2069 | C63: =IF(B63-StartYear+1 <= numYrs, OFFSET(Shipments!$B$4, B63-Shipments!$B$4, iPrd), 0) -> 0 | D63: =SUMPRODUCT(C63:OFFSET(C63, -MIN(B63-StartYear, ageMax-1), 0), fSurv:OFFSET(fSurv, -MIN(B63-StartYear, ageMax-1), 0)) -> 0 | E63: =SUMPRODUCT(OFFSET(baseEff, B63-'Efficiency Dist.'!$B$10, 0), OFFSET(inputAEU, iPrd, 0)) * VLOOKUP(B63, usageTrend, 2, FALSE) -> 99.309 | F63: =SUMPRODUCT(C63:OFFSET(C63, -MIN(B63-StartYear, ageMax-1), 0), fSurv:OFFSET(fSurv, -MIN(B63-StartYear, ageMax-1), 0), E63:OFFSET(E63, -MIN(B63-StartYear, ageMax-1), 0)) * 3412 * 10 ^ (-9) -> 0 | G63: =IF(B63-StartYear+1 <= 30, SUMPRODUCT(OFFSET(baseEff, B63-'Efficiency Dist.'!$B$10, 0), OFFSET(inputTIC, B63-StartYear+1, 0)), 0) -> 0 | H63: =[Shipment] * [UnitEquipCost] * 0.001 -> 0 | I63: =[ElecUse] * VLOOKUP(B63, elecPrices, iEcon+1) -> 0 | K63: 2069 | L63: =SUMPRODUCT(OFFSET(stdsEff, K63-'Efficiency Dist.'!$I$10, 0), OFFSET(inputAEU, iPrd, 0)) * VLOOKUP(K63, usageTrend, 2, FALSE) -> 99.309 | M63: =SUMPRODUCT(C63:OFFSET(C63, -MIN(B63-StartYear, ageMax-1), 0), fSurv:OFFSET(fSurv, -MIN(B63-StartYear, ageMax-1), 0), L63:OFFSET(L63, -MIN(B63-StartYear, ageMax-1), 0)) * 3412 * 10 ^ (-9) -> 0 | N63: =basecase[ElecUse] - [ElecUse] -> 0 | O63: =[SiteSavings]/3412 * VLOOKUP(K63, powerplant, 2, FALSE) -> 0 | P63: =[SiteSavings] * VLOOKUP(K63, upstream, 2, FALSE) -> 0 | Q63: =[SiteSavings] * VLOOKUP([Year], carbon, 2, FALSE) -> 0 | R63: =IF(K63-StartYear+1 <= 30, SUMPRODUCT(OFFSET(stdsEff, K63-'Efficiency Dist.'!$I$10, 0), OFFSET(inputTIC, K63-StartYear+1, 0)), 0) -> 0 | S63: =basecase[Shipment] * [UnitEquipCost] * 0.001 -> 0 | T63: =[EquipCost]-basecase[EquipCost] -> 0 | U63: =[EquipCostIncr] * (1+0.03)^(yrDsc-[Year]) -> 0 | V63: =[EquipCostIncr] * (1+0.07)^(yrDsc-[Year]) -> 0 | W63: =[ElecUse] * VLOOKUP(K63, elecPrices, iEcon+1, FALSE) -> 0 | X63: =basecase[OperCost] - [OperCost] -> 0 | Y63: =[OperCostSav] * (1+0.03)^(yrDsc-[Year]) -> 0 | Z63: =[OperCostSav] * (1+0.07)^(yrDsc-[Year]) -> 0 | AA63: =[OperCostSav] - [EquipCostIncr] -> 0 | AB63: =[NetSav] * (1+0.03)^(yrDsc-[Year]) -> 0 | AC63: =[NetSav] * (1+0.07)^(yrDsc-[Year]) -> 0 | AD63: =[NetSav] * (1+discRate)^(yrDsc-[Year]) -> 0
B64: 2070 | C64: =IF(B64-StartYear+1 <= numYrs, OFFSET(Shipments!$B$4, B64-Shipments!$B$4, iPrd), 0) -> 0 | D64: =SUMPRODUCT(C64:OFFSET(C64, -MIN(B64-StartYear, ageMax-1), 0), fSurv:OFFSET(fSurv, -MIN(B64-StartYear, ageMax-1), 0)) -> 0 | E64: =SUMPRODUCT(OFFSET(baseEff, B64-'Efficiency Dist.'!$B$10, 0), OFFSET(inputAEU, iPrd, 0)) * VLOOKUP(B64, usageTrend, 2, FALSE) -> 99.309 | F64: =SUMPRODUCT(C64:OFFSET(C64, -MIN(B64-StartYear, ageMax-1), 0), fSurv:OFFSET(fSurv, -MIN(B64-StartYear, ageMax-1), 0), E64:OFFSET(E64, -MIN(B64-StartYear, ageMax-1), 0)) * 3412 * 10 ^ (-9) -> 0 | G64: =IF(B64-StartYear+1 <= 30, SUMPRODUCT(OFFSET(baseEff, B64-'Efficiency Dist.'!$B$10, 0), OFFSET(inputTIC, B64-StartYear+1, 0)), 0) -> 0 | H64: =[Shipment] * [UnitEquipCost] * 0.001 -> 0 | I64: =[ElecUse] * VLOOKUP(B64, elecPrices, iEcon+1) -> 0 | K64: 2070 | L64: =SUMPRODUCT(OFFSET(stdsEff, K64-'Efficiency Dist.'!$I$10, 0), OFFSET(inputAEU, iPrd, 0)) * VLOOKUP(K64, usageTrend, 2, FALSE) -> 99.309 | M64: =SUMPRODUCT(C64:OFFSET(C64, -MIN(B64-StartYear, ageMax-1), 0), fSurv:OFFSET(fSurv, -MIN(B64-StartYear, ageMax-1), 0), L64:OFFSET(L64, -MIN(B64-StartYear, ageMax-1), 0)) * 3412 * 10 ^ (-9) -> 0 | N64: =basecase[ElecUse] - [ElecUse] -> 0 | O64: =[SiteSavings]/3412 * VLOOKUP(K64, powerplant, 2, FALSE) -> 0 | P64: =[SiteSavings] * VLOOKUP(K64, upstream, 2, FALSE) -> 0 | Q64: =[SiteSavings] * VLOOKUP([Year], carbon, 2, FALSE) -> 0 | R64: =IF(K64-StartYear+1 <= 30, SUMPRODUCT(OFFSET(stdsEff, K64-'Efficiency Dist.'!$I$10, 0), OFFSET(inputTIC, K64-StartYear+1, 0)), 0) -> 0 | S64: =basecase[Shipment] * [UnitEquipCost] * 0.001 -> 0 | T64: =[EquipCost]-basecase[EquipCost] -> 0 | U64: =[EquipCostIncr] * (1+0.03)^(yrDsc-[Year]) -> 0 | V64: =[EquipCostIncr] * (1+0.07)^(yrDsc-[Year]) -> 0 | W64: =[ElecUse] * VLOOKUP(K64, elecPrices, iEcon+1, FALSE) -> 0 | X64: =basecase[OperCost] - [OperCost] -> 0 | Y64: =[OperCostSav] * (1+0.03)^(yrDsc-[Year]) -> 0 | Z64: =[OperCostSav] * (1+0.07)^(yrDsc-[Year]) -> 0 | AA64: =[OperCostSav] - [EquipCostIncr] -> 0 | AB64: =[NetSav] * (1+0.03)^(yrDsc-[Year]) -> 0 | AC64: =[NetSav] * (1+0.07)^(yrDsc-[Year]) -> 0 | AD64: =[NetSav] * (1+discRate)^(yrDsc-[Year]) -> 0
B65: 2071 | C65: =IF(B65-StartYear+1 <= numYrs, OFFSET(Shipments!$B$4, B65-Shipments!$B$4, iPrd), 0) -> 0 | D65: =SUMPRODUCT(C65:OFFSET(C65, -MIN(B65-StartYear, ageMax-1), 0), fSurv:OFFSET(fSurv, -MIN(B65-StartYear, ageMax-1), 0)) -> 0 | E65: =SUMPRODUCT(OFFSET(baseEff, B65-'Efficiency Dist.'!$B$10, 0), OFFSET(inputAEU, iPrd, 0)) * VLOOKUP(B65, usageTrend, 2, FALSE) -> 99.309 | F65: =SUMPRODUCT(C65:OFFSET(C65, -MIN(B65-StartYear, ageMax-1), 0), fSurv:OFFSET(fSurv, -MIN(B65-StartYear, ageMax-1), 0), E65:OFFSET(E65, -MIN(B65-StartYear, ageMax-1), 0)) * 3412 * 10 ^ (-9) -> 0 | G65: =IF(B65-StartYear+1 <= 30, SUMPRODUCT(OFFSET(baseEff, B65-'Efficiency Dist.'!$B$10, 0), OFFSET(inputTIC, B65-StartYear+1, 0)), 0) -> 0 | H65: =[Shipment] * [UnitEquipCost] * 0.001 -> 0 | I65: =[ElecUse] * VLOOKUP(B65, elecPrices, iEcon+1) -> 0 | K65: 2071 | L65: =SUMPRODUCT(OFFSET(stdsEff, K65-'Efficiency Dist.'!$I$10, 0), OFFSET(inputAEU, iPrd, 0)) * VLOOKUP(K65, usageTrend, 2, FALSE) -> 99.309 | M65: =SUMPRODUCT(C65:OFFSET(C65, -MIN(B65-StartYear, ageMax-1), 0), fSurv:OFFSET(fSurv, -MIN(B65-StartYear, ageMax-1), 0), L65:OFFSET(L65, -MIN(B65-StartYear, ageMax-1), 0)) * 3412 * 10 ^ (-9) -> 0 | N65: =basecase[ElecUse] - [ElecUse] -> 0 | O65: =[SiteSavings]/3412 * VLOOKUP(K65, powerplant, 2, FALSE) -> 0 | P65: =[SiteSavings] * VLOOKUP(K65, upstream, 2, FALSE) -> 0 | Q65: =[SiteSavings] * VLOOKUP([Year], carbon, 2, FALSE) -> 0 | R65: =IF(K65-StartYear+1 <= 30, SUMPRODUCT(OFFSET(stdsEff, K65-'Efficiency Dist.'!$I$10, 0), OFFSET(inputTIC, K65-StartYear+1, 0)), 0) -> 0 | S65: =basecase[Shipment] * [UnitEquipCost] * 0.001 -> 0 | T65: =[EquipCost]-basecase[EquipCost] -> 0 | U65: =[EquipCostIncr] * (1+0.03)^(yrDsc-[Year]) -> 0 | V65: =[EquipCostIncr] * (1+0.07)^(yrDsc-[Year]) -> 0 | W65: =[ElecUse] * VLOOKUP(K65, elecPrices, iEcon+1, FALSE) -> 0 | X65: =basecase[OperCost] - [OperCost] -> 0 | Y65: =[OperCostSav] * (1+0.03)^(yrDsc-[Year]) -> 0 | Z65: =[OperCostSav] * (1+0.07)^(yrDsc-[Year]) -> 0 | AA65: =[OperCostSav] - [EquipCostIncr] -> 0 | AB65: =[NetSav] * (1+0.03)^(yrDsc-[Year]) -> 0 | AC65: =[NetSav] * (1+0.07)^(yrDsc-[Year]) -> 0 | AD65: =[NetSav] * (1+discRate)^(yrDsc-[Year]) -> 0
B66: =B65+1 -> 2072 | C66: =IF(B66-StartYear+1 <= numYrs, OFFSET(Shipments!$B$4, B66-Shipments!$B$4, iPrd), 0) -> 0 | D66: =SUMPRODUCT(C66:OFFSET(C66, -MIN(B66-StartYear, ageMax-1), 0), fSurv:OFFSET(fSurv, -MIN(B66-StartYear, ageMax-1), 0)) -> 0 | E66: =SUMPRODUCT(OFFSET(baseEff, B66-'Efficiency Dist.'!$B$10, 0), OFFSET(inputAEU, iPrd, 0)) * VLOOKUP(B66, usageTrend, 2, FALSE) -> 99.309 | F66: =SUMPRODUCT(C66:OFFSET(C66, -MIN(B66-StartYear, ageMax-1), 0), fSurv:OFFSET(fSurv, -MIN(B66-StartYear, ageMax-1), 0), E66:OFFSET(E66, -MIN(B66-StartYear, ageMax-1), 0)) * 3412 * 10 ^ (-9) -> 0 | G66: =IF(B66-StartYear+1 <= 30, SUMPRODUCT(OFFSET(baseEff, B66-'Efficiency Dist.'!$B$10, 0), OFFSET(inputTIC, B66-StartYear+1, 0)), 0) -> 0 | H66: =[Shipment] * [UnitEquipCost] * 0.001 -> 0 | I66: =[ElecUse] * VLOOKUP(B66, elecPrices, iEcon+1) -> 0 | K66: 2072 | L66: =SUMPRODUCT(OFFSET(stdsEff, K66-'Efficiency Dist.'!$I$10, 0), OFFSET(inputAEU, iPrd, 0)) * VLOOKUP(K66, usageTrend, 2, FALSE) -> 99.309 | M66: =SUMPRODUCT(C66:OFFSET(C66, -MIN(B66-StartYear, ageMax-1), 0), fSurv:OFFSET(fSurv, -MIN(B66-StartYear, ageMax-1), 0), L66:OFFSET(L66, -MIN(B66-StartYear, ageMax-1), 0)) * 3412 * 10 ^ (-9) -> 0 | N66: =basecase[ElecUse] - [ElecUse] -> 0 | O66: =[SiteSavings]/3412 * VLOOKUP(K66, powerplant, 2, FALSE) -> 0 | P66: =[SiteSavings] * VLOOKUP(K66, upstream, 2, FALSE) -> 0 | Q66: =[SiteSavings] * VLOOKUP([Year], carbon, 2, FALSE) -> 0 | R66: =IF(K66-StartYear+1 <= 30, SUMPRODUCT(OFFSET(stdsEff, K66-'Efficiency Dist.'!$I$10, 0), OFFSET(inputTIC, K66-StartYear+1, 0)), 0) -> 0 | S66: =basecase[Shipment] * [UnitEquipCost] * 0.001 -> 0 | T66: =[EquipCost]-basecase[EquipCost] -> 0 | U66: =[EquipCostIncr] * (1+0.03)^(yrDsc-[Year]) -> 0 | V66: =[EquipCostIncr] * (1+0.07)^(yrDsc-[Year]) -> 0 | W66: =[ElecUse] * VLOOKUP(K66, elecPrices, iEcon+1, FALSE) -> 0 | X66: =basecase[OperCost] - [OperCost] -> 0 | Y66: =[OperCostSav] * (1+0.03)^(yrDsc-[Year]) -> 0 | Z66: =[OperCostSav] * (1+0.07)^(yrDsc-[Year]) -> 0 | AA66: =[OperCostSav] - [EquipCostIncr] -> 0 | AB66: =[NetSav] * (1+0.03)^(yrDsc-[Year]) -> 0 | AC66: =[NetSav] * (1+0.07)^(yrDsc-[Year]) -> 0 | AD66: =[NetSav] * (1+discRate)^(yrDsc-[Year]) -> 0
B67: 2073 | C67: =IF(B67-StartYear+1 <= numYrs, OFFSET(Shipments!$B$4, B67-Shipments!$B$4, iPrd), 0) -> 0 | D67: =SUMPRODUCT(C67:OFFSET(C67, -MIN(B67-StartYear, ageMax-1), 0), fSurv:OFFSET(fSurv, -MIN(B67-StartYear, ageMax-1), 0)) -> 0 | E67: =SUMPRODUCT(OFFSET(baseEff, B67-'Efficiency Dist.'!$B$10, 0), OFFSET(inputAEU, iPrd, 0)) * VLOOKUP(B67, usageTrend, 2, FALSE) -> 99.309 | F67: =SUMPRODUCT(C67:OFFSET(C67, -MIN(B67-StartYear, ageMax-1), 0), fSurv:OFFSET(fSurv, -MIN(B67-StartYear, ageMax-1), 0), E67:OFFSET(E67, -MIN(B67-StartYear, ageMax-1), 0)) * 3412 * 10 ^ (-9) -> 0 | G67: =IF(B67-StartYear+1 <= 30, SUMPRODUCT(OFFSET(baseEff, B67-'Efficiency Dist.'!$B$10, 0), OFFSET(inputTIC, B67-StartYear+1, 0)), 0) -> 0 | H67: =[Shipment] * [UnitEquipCost] * 0.001 -> 0 | I67: =[ElecUse] * VLOOKUP(B67, elecPrices, iEcon+1) -> 0 | K67: 2073 | L67: =SUMPRODUCT(OFFSET(stdsEff, K67-'Efficiency Dist.'!$I$10, 0), OFFSET(inputAEU, iPrd, 0)) * VLOOKUP(K67, usageTrend, 2, FALSE) -> 99.309 | M67: =SUMPRODUCT(C67:OFFSET(C67, -MIN(B67-StartYear, ageMax-1), 0), fSurv:OFFSET(fSurv, -MIN(B67-StartYear, ageMax-1), 0), L67:OFFSET(L67, -MIN(B67-StartYear, ageMax-1), 0)) * 3412 * 10 ^ (-9) -> 0 | N67: =basecase[ElecUse] - [ElecUse] -> 0 | O67: =[SiteSavings]/3412 * VLOOKUP(K67, powerplant, 2, FALSE) -> 0 | P67: =[SiteSavings] * VLOOKUP(K67, upstream, 2, FALSE) -> 0 | Q67: =[SiteSavings] * VLOOKUP([Year], carbon, 2, FALSE) -> 0 | R67: =IF(K67-StartYear+1 <= 30, SUMPRODUCT(OFFSET(stdsEff, K67-'Efficiency Dist.'!$I$10, 0), OFFSET(inputTIC, K67-StartYear+1, 0)), 0) -> 0 | S67: =basecase[Shipment] * [UnitEquipCost] * 0.001 -> 0 | T67: =[EquipCost]-basecase[EquipCost] -> 0 | U67: =[EquipCostIncr] * (1+0.03)^(yrDsc-[Year]) -> 0 | V67: =[EquipCostIncr] * (1+0.07)^(yrDsc-[Year]) -> 0 | W67: =[ElecUse] * VLOOKUP(K67, elecPrices, iEcon+1, FALSE) -> 0 | X67: =basecase[OperCost] - [OperCost] -> 0 | Y67: =[OperCostSav] * (1+0.03)^(yrDsc-[Year]) -> 0 | Z67: =[OperCostSav] * (1+0.07)^(yrDsc-[Year]) -> 0 | AA67: =[OperCostSav] - [EquipCostIncr] -> 0 | AB67: =[NetSav] * (1+0.03)^(yrDsc-[Year]) -> 0 | AC67: =[NetSav] * (1+0.07)^(yrDsc-[Year]) -> 0 | AD67: =[NetSav] * (1+discRate)^(yrDsc-[Year]) -> 0
B68: 2074 | C68: =IF(B68-StartYear+1 <= numYrs, OFFSET(Shipments!$B$4, B68-Shipments!$B$4, iPrd), 0) -> 0 | D68: =SUMPRODUCT(C68:OFFSET(C68, -MIN(B68-StartYear, ageMax-1), 0), fSurv:OFFSET(fSurv, -MIN(B68-StartYear, ageMax-1), 0)) -> 0 | E68: =SUMPRODUCT(OFFSET(baseEff, B68-'Efficiency Dist.'!$B$10, 0), OFFSET(inputAEU, iPrd, 0)) * VLOOKUP(B68, usageTrend, 2, FALSE) -> 99.309 | F68: =SUMPRODUCT(C68:OFFSET(C68, -MIN(B68-StartYear, ageMax-1), 0), fSurv:OFFSET(fSurv, -MIN(B68-StartYear, ageMax-1), 0), E68:OFFSET(E68, -MIN(B68-StartYear, ageMax-1), 0)) * 3412 * 10 ^ (-9) -> 0 | G68: =IF(B68-StartYear+1 <= 30, SUMPRODUCT(OFFSET(baseEff, B68-'Efficiency Dist.'!$B$10, 0), OFFSET(inputTIC, B68-StartYear+1, 0)), 0) -> 0 | H68: =[Shipment] * [UnitEquipCost] * 0.001 -> 0 | I68: =[ElecUse] * VLOOKUP(B68, elecPrices, iEcon+1) -> 0 | K68: 2074 | L68: =SUMPRODUCT(OFFSET(stdsEff, K68-'Efficiency Dist.'!$I$10, 0), OFFSET(inputAEU, iPrd, 0)) * VLOOKUP(K68, usageTrend, 2, FALSE) -> 99.309 | M68: =SUMPRODUCT(C68:OFFSET(C68, -MIN(B68-StartYear, ageMax-1), 0), fSurv:OFFSET(fSurv, -MIN(B68-StartYear, ageMax-1), 0), L68:OFFSET(L68, -MIN(B68-StartYear, ageMax-1), 0)) * 3412 * 10 ^ (-9) -> 0 | N68: =basecase[ElecUse] - [ElecUse] -> 0 | O68: =[SiteSavings]/3412 * VLOOKUP(K68, powerplant, 2, FALSE) -> 0 | P68: =[SiteSavings] * VLOOKUP(K68, upstream, 2, FALSE) -> 0 | Q68: =[SiteSavings] * VLOOKUP([Year], carbon, 2, FALSE) -> 0 | R68: =IF(K68-StartYear+1 <= 30, SUMPRODUCT(OFFSET(stdsEff, K68-'Efficiency Dist.'!$I$10, 0), OFFSET(inputTIC, K68-StartYear+1, 0)), 0) -> 0 | S68: =basecase[Shipment] * [UnitEquipCost] * 0.001 -> 0 | T68: =[EquipCost]-basecase[EquipCost] -> 0 | U68: =[EquipCostIncr] * (1+0.03)^(yrDsc-[Year]) -> 0 | V68: =[EquipCostIncr] * (1+0.07)^(yrDsc-[Year]) -> 0 | W68: =[ElecUse] * VLOOKUP(K68, elecPrices, iEcon+1, FALSE) -> 0 | X68: =basecase[OperCost] - [OperCost] -> 0 | Y68: =[OperCostSav] * (1+0.03)^(yrDsc-[Year]) -> 0 | Z68: =[OperCostSav] * (1+0.07)^(yrDsc-[Year]) -> 0 | AA68: =[OperCostSav] - [EquipCostIncr] -> 0 | AB68: =[NetSav] * (1+0.03)^(yrDsc-[Year]) -> 0 | AC68: =[NetSav] * (1+0.07)^(yrDsc-[Year]) -> 0 | AD68: =[NetSav] * (1+discRate)^(yrDsc-[Year]) -> 0
B69: 2075 | C69: =IF(B69-StartYear+1 <= numYrs, OFFSET(Shipments!$B$4, B69-Shipments!$B$4, iPrd), 0) -> 0 | D69: =SUMPRODUCT(C69:OFFSET(C69, -MIN(B69-StartYear, ageMax-1), 0), fSurv:OFFSET(fSurv, -MIN(B69-StartYear, ageMax-1), 0)) -> 0 | E69: =SUMPRODUCT(OFFSET(baseEff, B69-'Efficiency Dist.'!$B$10, 0), OFFSET(inputAEU, iPrd, 0)) * VLOOKUP(B69, usageTrend, 2, FALSE) -> 99.309 | F69: =SUMPRODUCT(C69:OFFSET(C69, -MIN(B69-StartYear, ageMax-1), 0), fSurv:OFFSET(fSurv, -MIN(B69-StartYear, ageMax-1), 0), E69:OFFSET(E69, -MIN(B69-StartYear, ageMax-1), 0)) * 3412 * 10 ^ (-9) -> 0 | G69: =IF(B69-StartYear+1 <= 30, SUMPRODUCT(OFFSET(baseEff, B69-'Efficiency Dist.'!$B$10, 0), OFFSET(inputTIC, B69-StartYear+1, 0)), 0) -> 0 | H69: =[Shipment] * [UnitEquipCost] * 0.001 -> 0 | I69: =[ElecUse] * VLOOKUP(B69, elecPrices, iEcon+1) -> 0 | K69: 2075 | L69: =SUMPRODUCT(OFFSET(stdsEff, K69-'Efficiency Dist.'!$I$10, 0), OFFSET(inputAEU, iPrd, 0)) * VLOOKUP(K69, usageTrend, 2, FALSE) -> 99.309 | M69: =SUMPRODUCT(C69:OFFSET(C69, -MIN(B69-StartYear, ageMax-1), 0), fSurv:OFFSET(fSurv, -MIN(B69-StartYear, ageMax-1), 0), L69:OFFSET(L69, -MIN(B69-StartYear, ageMax-1), 0)) * 3412 * 10 ^ (-9) -> 0 | N69: =basecase[ElecUse] - [ElecUse] -> 0 | O69: =[SiteSavings]/3412 * VLOOKUP(K69, powerplant, 2, FALSE) -> 0 | P69: =[SiteSavings] * VLOOKUP(K69, upstream, 2, FALSE) -> 0 | Q69: =[SiteSavings] * VLOOKUP([Year], carbon, 2, FALSE) -> 0 | R69: =IF(K69-StartYear+1 <= 30, SUMPRODUCT(OFFSET(stdsEff, K69-'Efficiency Dist.'!$I$10, 0), OFFSET(inputTIC, K69-StartYear+1, 0)), 0) -> 0 | S69: =basecase[Shipment] * [UnitEquipCost] * 0.001 -> 0 | T69: =[EquipCost]-basecase[EquipCost] -> 0 | U69: =[EquipCostIncr] * (1+0.03)^(yrDsc-[Year]) -> 0 | V69: =[EquipCostIncr] * (1+0.07)^(yrDsc-[Year]) -> 0 | W69: =[ElecUse] * VLOOKUP(K69, elecPrices, iEcon+1, FALSE) -> 0 | X69: =basecase[OperCost] - [OperCost] -> 0 | Y69: =[OperCostSav] * (1+0.03)^(yrDsc-[Year]) -> 0 | Z69: =[OperCostSav] * (1+0.07)^(yrDsc-[Year]) -> 0 | AA69: =[OperCostSav] - [EquipCostIncr] -> 0 | AB69: =[NetSav] * (1+0.03)^(yrDsc-[Year]) -> 0 | AC69: =[NetSav] * (1+0.07)^(yrDsc-[Year]) -> 0 | AD69: =[NetSav] * (1+discRate)^(yrDsc-[Year]) -> 0
B70: 2076 | C70: =IF(B70-StartYear+1 <= numYrs, OFFSET(Shipments!$B$4, B70-Shipments!$B$4, iPrd), 0) -> 0 | D70: =SUMPRODUCT(C70:OFFSET(C70, -MIN(B70-StartYear, ageMax-1), 0), fSurv:OFFSET(fSurv, -MIN(B70-StartYear, ageMax-1), 0)) -> 0 | E70: =SUMPRODUCT(OFFSET(baseEff, B70-'Efficiency Dist.'!$B$10, 0), OFFSET(inputAEU, iPrd, 0)) * VLOOKUP(B70, usageTrend, 2, FALSE) -> 99.309 | F70: =SUMPRODUCT(C70:OFFSET(C70, -MIN(B70-StartYear, ageMax-1), 0), fSurv:OFFSET(fSurv, -MIN(B70-StartYear, ageMax-1), 0), E70:OFFSET(E70, -MIN(B70-StartYear, ageMax-1), 0)) * 3412 * 10 ^ (-9) -> 0 | G70: =IF(B70-StartYear+1 <= 30, SUMPRODUCT(OFFSET(baseEff, B70-'Efficiency Dist.'!$B$10, 0), OFFSET(inputTIC, B70-StartYear+1, 0)), 0) -> 0 | H70: =[Shipment] * [UnitEquipCost] * 0.001 -> 0 | I70: =[ElecUse] * VLOOKUP(B70, elecPrices, iEcon+1) -> 0 | K70: 2076 | L70: =SUMPRODUCT(OFFSET(stdsEff, K70-'Efficiency Dist.'!$I$10, 0), OFFSET(inputAEU, iPrd, 0)) * VLOOKUP(K70, usageTrend, 2, FALSE) -> 99.309 | M70: =SUMPRODUCT(C70:OFFSET(C70, -MIN(B70-StartYear, ageMax-1), 0), fSurv:OFFSET(fSurv, -MIN(B70-StartYear, ageMax-1), 0), L70:OFFSET(L70, -MIN(B70-StartYear, ageMax-1), 0)) * 3412 * 10 ^ (-9) -> 0 | N70: =basecase[ElecUse] - [ElecUse] -> 0 | O70: =[SiteSavings]/3412 * VLOOKUP(K70, powerplant, 2, FALSE) -> 0 | P70: =[SiteSavings] * VLOOKUP(K70, upstream, 2, FALSE) -> 0 | Q70: =[SiteSavings] * VLOOKUP([Year], carbon, 2, FALSE) -> 0 | R70: =IF(K70-StartYear+1 <= 30, SUMPRODUCT(OFFSET(stdsEff, K70-'Efficiency Dist.'!$I$10, 0), OFFSET(inputTIC, K70-StartYear+1, 0)), 0) -> 0 | S70: =basecase[Shipment] * [UnitEquipCost] * 0.001 -> 0 | T70: =[EquipCost]-basecase[EquipCost] -> 0 | U70: =[EquipCostIncr] * (1+0.03)^(yrDsc-[Year]) -> 0 | V70: =[EquipCostIncr] * (1+0.07)^(yrDsc-[Year]) -> 0 | W70: =[ElecUse] * VLOOKUP(K70, elecPrices, iEcon+1, FALSE) -> 0 | X70: =basecase[OperCost] - [OperCost] -> 0 | Y70: =[OperCostSav] * (1+0.03)^(yrDsc-[Year]) -> 0 | Z70: =[OperCostSav] * (1+0.07)^(yrDsc-[Year]) -> 0 | AA70: =[OperCostSav] - [EquipCostIncr] -> 0 | AB70: =[NetSav] * (1+0.03)^(yrDsc-[Year]) -> 0 | AC70: =[NetSav] * (1+0.07)^(yrDsc-[Year]) -> 0 | AD70: =[NetSav] * (1+discRate)^(yrDsc-[Year]) -> 0
B71: 2077 | C71: =IF(B71-StartYear+1 <= numYrs, OFFSET(Shipments!$B$4, B71-Shipments!$B$4, iPrd), 0) -> 0 | D71: =SUMPRODUCT(C71:OFFSET(C71, -MIN(B71-StartYear, ageMax-1), 0), fSurv:OFFSET(fSurv, -MIN(B71-StartYear, ageMax-1), 0)) -> 0 | E71: =SUMPRODUCT(OFFSET(baseEff, B71-'Efficiency Dist.'!$B$10, 0), OFFSET(inputAEU, iPrd, 0)) * VLOOKUP(B71, usageTrend, 2, FALSE) -> 99.309 | F71: =SUMPRODUCT(C71:OFFSET(C71, -MIN(B71-StartYear, ageMax-1), 0), fSurv:OFFSET(fSurv, -MIN(B71-StartYear, ageMax-1), 0), E71:OFFSET(E71, -MIN(B71-StartYear, ageMax-1), 0)) * 3412 * 10 ^ (-9) -> 0 | G71: =IF(B71-StartYear+1 <= 30, SUMPRODUCT(OFFSET(baseEff, B71-'Efficiency Dist.'!$B$10, 0), OFFSET(inputTIC, B71-StartYear+1, 0)), 0) -> 0 | H71: =[Shipment] * [UnitEquipCost] * 0.001 -> 0 | I71: =[ElecUse] * VLOOKUP(B71, elecPrices, iEcon+1) -> 0 | K71: 2077 | L71: =SUMPRODUCT(OFFSET(stdsEff, K71-'Efficiency Dist.'!$I$10, 0), OFFSET(inputAEU, iPrd, 0)) * VLOOKUP(K71, usageTrend, 2, FALSE) -> 99.309 | M71: =SUMPRODUCT(C71:OFFSET(C71, -MIN(B71-StartYear, ageMax-1), 0), fSurv:OFFSET(fSurv, -MIN(B71-StartYear, ageMax-1), 0), L71:OFFSET(L71, -MIN(B71-StartYear, ageMax-1), 0)) * 3412 * 10 ^ (-9) -> 0 | N71: =basecase[ElecUse] - [ElecUse] -> 0 | O71: =[SiteSavings]/3412 * VLOOKUP(K71, powerplant, 2, FALSE) -> 0 | P71: =[SiteSavings] * VLOOKUP(K71, upstream, 2, FALSE) -> 0 | Q71: =[SiteSavings] * VLOOKUP([Year], carbon, 2, FALSE) -> 0 | R71: =IF(K71-StartYear+1 <= 30, SUMPRODUCT(OFFSET(stdsEff, K71-'Efficiency Dist.'!$I$10, 0), OFFSET(inputTIC, K71-StartYear+1, 0)), 0) -> 0 | S71: =basecase[Shipment] * [UnitEquipCost] * 0.001 -> 0 | T71: =[EquipCost]-basecase[EquipCost] -> 0 | U71: =[EquipCostIncr] * (1+0.03)^(yrDsc-[Year]) -> 0 | V71: =[EquipCostIncr] * (1+0.07)^(yrDsc-[Year]) -> 0 | W71: =[ElecUse] * VLOOKUP(K71, elecPrices, iEcon+1, FALSE) -> 0 | X71: =basecase[OperCost] - [OperCost] -> 0 | Y71: =[OperCostSav] * (1+0.03)^(yrDsc-[Year]) -> 0 | Z71: =[OperCostSav] * (1+0.07)^(yrDsc-[Year]) -> 0 | AA71: =[OperCostSav] - [EquipCostIncr] -> 0 | AB71: =[NetSav] * (1+0.03)^(yrDsc-[Year]) -> 0 | AC71: =[NetSav] * (1+0.07)^(yrDsc-[Year]) -> 0 | AD71: =[NetSav] * (1+discRate)^(yrDsc-[Year]) -> 0

Sheet Shipments
B1: Shipments
B3: (millions) | C3: Cable With DVR & Video Server | D3: Cable With DVR | E3: Cable With Video Server | F3: Cable With Video Client | G3: Cable Base | H3: Satellite With DVR & Video Server | I3: Satellite With DVR | J3: Satellite With Video Server | K3: Satellite With Video Client | L3: Satellite Base | M3: IP With DVR & Video Server | N3: IP With DVR | O3: IP With Video Server | P3: IP With Video Client | Q3: IP Base | R3: IP OTT | S3: Thin-client Total
B4: 2011 | C4: =OFFSET('Shipment Data'!C5, 0, 19*(iShip-1)) -> 2.448031357 | D4: =OFFSET('Shipment Data'!D5, 0, 19*(iShip-1)) -> 2.873775941 | E4: =OFFSET('Shipment Data'!E5, 0, 19*(iShip-1)) -> 1.132532278 | F4: =OFFSET('Shipment Data'!F5, 0, 19*(iShip-1)) -> 0.001415109388 | G4: =OFFSET('Shipment Data'!G5, 0, 19*(iShip-1)) -> 17.67577058 | H4: =OFFSET('Shipment Data'!H5, 0, 19*(iShip-1)) -> 2.782481428 | I4: =OFFSET('Shipment Data'!I5, 0, 19*(iShip-1)) -> 3.137691823 | J4: =OFFSET('Shipment Data'!J5, 0, 19*(iShip-1)) -> 1.28725885 | K4: =OFFSET('Shipment Data'!K5, 0, 19*(iShip-1)) -> 0.0001096087622 | L4: =OFFSET('Shipment Data'!L5, 0, 19*(iShip-1)) -> 8.043905036 | M4: =OFFSET('Shipment Data'!M5, 0, 19*(iShip-1)) -> 0.3782232367 | N4: =OFFSET('Shipment Data'!N5, 0, 19*(iShip-1)) -> 0.444001191 | O4: =OFFSET('Shipment Data'!O5, 0, 19*(iShip-1)) -> 0.1749773435 | P4: =OFFSET('Shipment Data'!P5, 0, 19*(iShip-1)) -> 0.0009965418998 | Q4: =OFFSET('Shipment Data'!Q5, 0, 19*(iShip-1)) -> 1.221807642 | R4: =OFFSET('Shipment Data'!R5, 0, 19*(iShip-1)) -> 6.166666667 | S4: =OFFSET('Shipment Data'!S5, 0, 19*(iShip-1)) -> 0.008095121998
B5: 2012 | C5: =OFFSET('Shipment Data'!C6, 0, 19*(iShip-1)) -> 1.617951126 | D5: =OFFSET('Shipment Data'!D6, 0, 19*(iShip-1)) -> 1.899333931 | E5: =OFFSET('Shipment Data'!E6, 0, 19*(iShip-1)) -> 0.7485124196 | F5: =OFFSET('Shipment Data'!F6, 0, 19*(iShip-1)) -> 0.1546375775 | G5: =OFFSET('Shipment Data'!G6, 0, 19*(iShip-1)) -> 11.91871241 | H5: =OFFSET('Shipment Data'!H6, 0, 19*(iShip-1)) -> 2.963265421 | I5: =OFFSET('Shipment Data'!I6, 0, 19*(iShip-1)) -> 3.341554623 | J5: =OFFSET('Shipment Data'!J6, 0, 19*(iShip-1)) -> 1.370894914 | K5: =OFFSET('Shipment Data'!K6, 0, 19*(iShip-1)) -> 0.1171745692 | L5: =OFFSET('Shipment Data'!L6, 0, 19*(iShip-1)) -> 4.952534786 | M5: =OFFSET('Shipment Data'!M6, 0, 19*(iShip-1)) -> 0.4912278744 | N5: =OFFSET('Shipment Data'!N6, 0, 19*(iShip-1)) -> 0.576658809 | O5: =OFFSET('Shipment Data'!O6, 0, 19*(iShip-1)) -> 0.2272566574 | P5: =OFFSET('Shipment Data'!P6, 0, 19*(iShip-1)) -> 0.2139966439 | Q5: =OFFSET('Shipment Data'!Q6, 0, 19*(iShip-1)) -> 1.706800762 | R5: =OFFSET('Shipment Data'!R6, 0, 19*(iShip-1)) -> 7.866666667 | S5: =OFFSET('Shipment Data'!S6, 0, 19*(iShip-1)) -> 0.9577060016
B6: 2013 | C6: =OFFSET('Shipment Data'!C7, 0, 19*(iShip-1)) -> 1.894076428 | D6: =OFFSET('Shipment Data'!D7, 0, 19*(iShip-1)) -> 2.223481025 | E6: =OFFSET('Shipment Data'!E7, 0, 19*(iShip-1)) -> 0.8762562151 | F6: =OFFSET('Shipment Data'!F7, 0, 19*(iShip-1)) -> 0.2356495524 | G6: =OFFSET('Shipment Data'!G7, 0, 19*(iShip-1)) -> 8.545410013 | H6: =OFFSET('Shipment Data'!H7, 0, 19*(iShip-1)) -> 3.580121526 | I6: =OFFSET('Shipment Data'!I7, 0, 19*(iShip-1)) -> 4.037158317 | J6: =OFFSET('Shipment Data'!J7, 0, 19*(iShip-1)) -> 1.656270936 | K6: =OFFSET('Shipment Data'!K7, 0, 19*(iShip-1)) -> 0.3171345656 | L6: =OFFSET('Shipment Data'!L7, 0, 19*(iShip-1)) -> 4.551115557 | M6: =OFFSET('Shipment Data'!M7, 0, 19*(iShip-1)) -> 0.7220657272 | N6: =OFFSET('Shipment Data'!N7, 0, 19*(iShip-1)) -> 0.8476423754 | O6: =OFFSET('Shipment Data'!O7, 0, 19*(iShip-1)) -> 0.334049129 | P6: =OFFSET('Shipment Data'!P7, 0, 19*(iShip-1)) -> 0.4094681934 | Q6: =OFFSET('Shipment Data'!Q7, 0, 19*(iShip-1)) -> 2.269851322 | R6: =OFFSET('Shipment Data'!R7, 0, 19*(iShip-1)) -> 10 | S6: =OFFSET('Shipment Data'!S7, 0, 19*(iShip-1)) -> 1.555729111
B7: 2014 | C7: =OFFSET('Shipment Data'!C8, 0, 19*(iShip-1)) -> 2.666663591 | D7: =OFFSET('Shipment Data'!D8, 0, 19*(iShip-1)) -> 3.130431172 | E7: =OFFSET('Shipment Data'!E8, 0, 19*(iShip-1)) -> 1.233678066 | F7: =OFFSET('Shipment Data'!F8, 0, 19*(iShip-1)) -> 0.4096477719 | G7: =OFFSET('Shipment Data'!G8, 0, 19*(iShip-1)) -> 8.104087766 | H7: =OFFSET('Shipment Data'!H8, 0, 19*(iShip-1)) -> 3.792018254 | I7: =OFFSET('Shipment Data'!I8, 0, 19*(iShip-1)) -> 4.27610569 | J7: =OFFSET('Shipment Data'!J8, 0, 19*(iShip-1)) -> 1.754300678 | K7: =OFFSET('Shipment Data'!K8, 0, 19*(iShip-1)) -> 0.681105787 | L7: =OFFSET('Shipment Data'!L8, 0, 19*(iShip-1)) -> 3.209395422 | M7: =OFFSET('Shipment Data'!M8, 0, 19*(iShip-1)) -> 0.788259942 | N7: =OFFSET('Shipment Data'!N8, 0, 19*(iShip-1)) -> 0.9253486276 | O7: =OFFSET('Shipment Data'!O8, 0, 19*(iShip-1)) -> 0.364672546 | P7: =OFFSET('Shipment Data'!P8, 0, 19*(iShip-1)) -> 0.5519327233 | Q7: =OFFSET('Shipment Data'!Q8, 0, 19*(iShip-1)) -> 1.996529299 | R7: =OFFSET('Shipment Data'!R8, 0, 19*(iShip-1)) -> 12.3 | S7: =OFFSET('Shipment Data'!S8, 0, 19*(iShip-1)) -> 2.794648175
B8: 2015 | C8: =OFFSET('Shipment Data'!C9, 0, 19*(iShip-1)) -> 2.784498732 | D8: =OFFSET('Shipment Data'!D9, 0, 19*(iShip-1)) -> 3.268759381 | E8: =OFFSET('Shipment Data'!E9, 0, 19*(iShip-1)) -> 1.288192115 | F8: =OFFSET('Shipment Data'!F9, 0, 19*(iShip-1)) -> 0.6500015266 | G8: =OFFSET('Shipment Data'!G9, 0, 19*(iShip-1)) -> 4.687404229 | H8: =OFFSET('Shipment Data'!H9, 0, 19*(iShip-1)) -> 4.296421698 | I8: =OFFSET('Shipment Data'!I9, 0, 19*(iShip-1)) -> 4.844901063 | J8: =OFFSET('Shipment Data'!J9, 0, 19*(iShip-1)) -> 1.987652747 | K8: =OFFSET('Shipment Data'!K9, 0, 19*(iShip-1)) -> 1.28379305 | L8: =OFFSET('Shipment Data'!L9, 0, 19*(iShip-1)) -> 1.921669676 | M8: =OFFSET('Shipment Data'!M9, 0, 19*(iShip-1)) -> 0.7487446365 | N8: =OFFSET('Shipment Data'!N9, 0, 19*(iShip-1)) -> 0.8789610951 | O8: =OFFSET('Shipment Data'!O9, 0, 19*(iShip-1)) -> 0.3463915877 | P8: =OFFSET('Shipment Data'!P9, 0, 19*(iShip-1)) -> 0.7966643759 | Q8: =OFFSET('Shipment Data'!Q9, 0, 19*(iShip-1)) -> 1.62404378 | R8: =OFFSET('Shipment Data'!R9, 0, 19*(iShip-1)) -> 15 | S8: =OFFSET('Shipment Data'!S9, 0, 19*(iShip-1)) -> 4.575469358
B9: 2016 | C9: =OFFSET('Shipment Data'!C10, 0, 19*(iShip-1)) -> 2.902333874 | D9: =OFFSET('Shipment Data'!D10, 0, 19*(iShip-1)) -> 3.407087591 | E9: =OFFSET('Shipment Data'!E10, 0, 19*(iShip-1)) -> 1.342706164 | F9: =OFFSET('Shipment Data'!F10, 0, 19*(iShip-1)) -> 0.8903552813 | G9: =OFFSET('Shipment Data'!G10, 0, 19*(iShip-1)) -> 1.270720693 | H9: =OFFSET('Shipment Data'!H10, 0, 19*(iShip-1)) -> 4.392010367 | I9: =OFFSET('Shipment Data'!I10, 0, 19*(iShip-1)) -> 4.952692541 | J9: =OFFSET('Shipment Data'!J10, 0, 19*(iShip-1)) -> 2.031874914 | K9: =OFFSET('Shipment Data'!K10, 0, 19*(iShip-1)) -> 1.530369977 | L9: =OFFSET('Shipment Data'!L10, 0, 19*(iShip-1)) -> 1.914754872 | M9: =OFFSET('Shipment Data'!M10, 0, 19*(iShip-1)) -> 0.7092293311 | N9: =OFFSET('Shipment Data'!N10, 0, 19*(iShip-1)) -> 0.8325735625 | O9: =OFFSET('Shipment Data'!O10, 0, 19*(iShip-1)) -> 0.3281106295 | P9: =OFFSET('Shipment Data'!P10, 0, 19*(iShip-1)) -> 0.991692383 | Q9: =OFFSET('Shipment Data'!Q10, 0, 19*(iShip-1)) -> 1.301261907 | R9: =OFFSET('Shipment Data'!R10, 0, 19*(iShip-1)) -> 19.12658825 | S9: =OFFSET('Shipment Data'!S10, 0, 19*(iShip-1)) -> 6.108824036
B10: 2017 | C10: =OFFSET('Shipment Data'!C11, 0, 19*(iShip-1)) -> 2.931357212 | D10: =OFFSET('Shipment Data'!D11, 0, 19*(iShip-1)) -> 3.441158467 | E10: =OFFSET('Shipment Data'!E11, 0, 19*(iShip-1)) -> 1.356133225 | F10: =OFFSET('Shipment Data'!F11, 0, 19*(iShip-1)) -> 0.8992588341 | G10: =OFFSET('Shipment Data'!G11, 0, 19*(iShip-1)) -> 1.2834279 | H10: =OFFSET('Shipment Data'!H11, 0, 19*(iShip-1)) -> 4.43593047 | I10: =OFFSET('Shipment Data'!I11, 0, 19*(iShip-1)) -> 5.002219467 | J10: =OFFSET('Shipment Data'!J11, 0, 19*(iShip-1)) -> 2.052193664 | K10: =OFFSET('Shipment Data'!K11, 0, 19*(iShip-1)) -> 1.545673677 | L10: =OFFSET('Shipment Data'!L11, 0, 19*(iShip-1)) -> 1.933902421 | M10: =OFFSET('Shipment Data'!M11, 0, 19*(iShip-1)) -> 0.7163216244 | N10: =OFFSET('Shipment Data'!N11, 0, 19*(iShip-1)) -> 0.8408992982 | O10: =OFFSET('Shipment Data'!O11, 0, 19*(iShip-1)) -> 0.3313917358 | P10: =OFFSET('Shipment Data'!P11, 0, 19*(iShip-1)) -> 1.001609307 | Q10: =OFFSET('Shipment Data'!Q11, 0, 19*(iShip-1)) -> 1.314274526 | R10: =OFFSET('Shipment Data'!R11, 0, 19*(iShip-1)) -> 19.31785413 | S10: =OFFSET('Shipment Data'!S11, 0, 19*(iShip-1)) -> 6.169912276
B11: 2018 | C11: =OFFSET('Shipment Data'!C12, 0, 19*(iShip-1)) -> 2.960670784 | D11: =OFFSET('Shipment Data'!D12, 0, 19*(iShip-1)) -> 3.475570051 | E11: =OFFSET('Shipment Data'!E12, 0, 19*(iShip-1)) -> 1.369694558 | F11: =OFFSET('Shipment Data'!F12, 0, 19*(iShip-1)) -> 0.9082514225 | G11: =OFFSET('Shipment Data'!G12, 0, 19*(iShip-1)) -> 1.296262179 | H11: =OFFSET('Shipment Data'!H12, 0, 19*(iShip-1)) -> 4.480289775 | I11: =OFFSET('Shipment Data'!I12, 0, 19*(iShip-1)) -> 5.052241661 | J11: =OFFSET('Shipment Data'!J12, 0, 19*(iShip-1)) -> 2.0727156 | K11: =OFFSET('Shipment Data'!K12, 0, 19*(iShip-1)) -> 1.561130413 | L11: =OFFSET('Shipment Data'!L12, 0, 19*(iShip-1)) -> 1.953241445 | M11: =OFFSET('Shipment Data'!M12, 0, 19*(iShip-1)) -> 0.7234848406 | N11: =OFFSET('Shipment Data'!N12, 0, 19*(iShip-1)) -> 0.8493082911 | O11: =OFFSET('Shipment Data'!O12, 0, 19*(iShip-1)) -> 0.3347056532 | P11: =OFFSET('Shipment Data'!P12, 0, 19*(iShip-1)) -> 1.0116254 | Q11: =OFFSET('Shipment Data'!Q12, 0, 19*(iShip-1)) -> 1.327417271 | R11: =OFFSET('Shipment Data'!R12, 0, 19*(iShip-1)) -> 19.51103268 | S11: =OFFSET('Shipment Data'!S12, 0, 19*(iShip-1)) -> 6.231611399
B12: 2019 | C12: =OFFSET('Shipment Data'!C13, 0, 19*(iShip-1)) -> 2.990277492 | D12: =OFFSET('Shipment Data'!D13, 0, 19*(iShip-1)) -> 3.510325752 | E12: =OFFSET('Shipment Data'!E13, 0, 19*(iShip-1)) -> 1.383391503 | F12: =OFFSET('Shipment Data'!F13, 0, 19*(iShip-1)) -> 0.9173339367 | G12: =OFFSET('Shipment Data'!G13, 0, 19*(iShip-1)) -> 1.309224801 | H12: =OFFSET('Shipment Data'!H13, 0, 19*(iShip-1)) -> 4.525092673 | I12: =OFFSET('Shipment Data'!I13, 0, 19*(iShip-1)) -> 5.102764078 | J12: =OFFSET('Shipment Data'!J13, 0, 19*(iShip-1)) -> 2.093442756 | K12: =OFFSET('Shipment Data'!K13, 0, 19*(iShip-1)) -> 1.576741717 | L12: =OFFSET('Shipment Data'!L13, 0, 19*(iShip-1)) -> 1.972773859 | M12: =OFFSET('Shipment Data'!M13, 0, 19*(iShip-1)) -> 0.730719689 | N12: =OFFSET('Shipment Data'!N13, 0, 19*(iShip-1)) -> 0.8578013741 | O12: =OFFSET('Shipment Data'!O13, 0, 19*(iShip-1)) -> 0.3380527097 | P12: =OFFSET('Shipment Data'!P13, 0, 19*(iShip-1)) -> 1.021741654 | Q12: =OFFSET('Shipment Data'!Q13, 0, 19*(iShip-1)) -> 1.340691444 | R12: =OFFSET('Shipment Data'!R13, 0, 19*(iShip-1)) -> 19.706143 | S12: =OFFSET('Shipment Data'!S13, 0, 19*(iShip-1)) -> 6.293927513
B13: 2020 | C13: =OFFSET('Shipment Data'!C14, 0, 19*(iShip-1)) -> 3.020180267 | D13: =OFFSET('Shipment Data'!D14, 0, 19*(iShip-1)) -> 3.545429009 | E13: =OFFSET('Shipment Data'!E14, 0, 19*(iShip-1)) -> 1.397225418 | F13: =OFFSET('Shipment Data'!F14, 0, 19*(iShip-1)) -> 0.9265072761 | G13: =OFFSET('Shipment Data'!G14, 0, 19*(iShip-1)) -> 1.322317049 | H13: =OFFSET('Shipment Data'!H14, 0, 19*(iShip-1)) -> 4.5703436 | I13: =OFFSET('Shipment Data'!I14, 0, 19*(iShip-1)) -> 5.153791719 | J13: =OFFSET('Shipment Data'!J14, 0, 19*(iShip-1)) -> 2.114377184 | K13: =OFFSET('Shipment Data'!K14, 0, 19*(iShip-1)) -> 1.592509135 | L13: =OFFSET('Shipment Data'!L14, 0, 19*(iShip-1)) -> 1.992501598 | M13: =OFFSET('Shipment Data'!M14, 0, 19*(iShip-1)) -> 0.7380268859 | N13: =OFFSET('Shipment Data'!N14, 0, 19*(iShip-1)) -> 0.8663793878 | O13: =OFFSET('Shipment Data'!O14, 0, 19*(iShip-1)) -> 0.3414332368 | P13: =OFFSET('Shipment Data'!P14, 0, 19*(iShip-1)) -> 1.03195907 | Q13: =OFFSET('Shipment Data'!Q14, 0, 19*(iShip-1)) -> 1.354098358 | R13: =OFFSET('Shipment Data'!R14, 0, 19*(iShip-1)) -> 19.90320443 | S13: =OFFSET('Shipment Data'!S14, 0, 19*(iShip-1)) -> 6.356866788
B14: 2021 | C14: =OFFSET('Shipment Data'!C15, 0, 19*(iShip-1)) -> 3.05038207 | D14: =OFFSET('Shipment Data'!D15, 0, 19*(iShip-1)) -> 3.580883299 | E14: =OFFSET('Shipment Data'!E15, 0, 19*(iShip-1)) -> 1.411197672 | F14: =OFFSET('Shipment Data'!F15, 0, 19*(iShip-1)) -> 0.9357723488 | G14: =OFFSET('Shipment Data'!G15, 0, 19*(iShip-1)) -> 1.335540219 | H14: =OFFSET('Shipment Data'!H15, 0, 19*(iShip-1)) -> 4.616047036 | I14: =OFFSET('Shipment Data'!I15, 0, 19*(iShip-1)) -> 5.205329636 | J14: =OFFSET('Shipment Data'!J15, 0, 19*(iShip-1)) -> 2.135520956 | K14: =OFFSET('Shipment Data'!K15, 0, 19*(iShip-1)) -> 1.608434226 | L14: =OFFSET('Shipment Data'!L15, 0, 19*(iShip-1)) -> 2.012426614 | M14: =OFFSET('Shipment Data'!M15, 0, 19*(iShip-1)) -> 0.7454071548 | N14: =OFFSET('Shipment Data'!N15, 0, 19*(iShip-1)) -> 0.8750431817 | O14: =OFFSET('Shipment Data'!O15, 0, 19*(iShip-1)) -> 0.3448475692 | P14: =OFFSET('Shipment Data'!P15, 0, 19*(iShip-1)) -> 1.042278661 | Q14: =OFFSET('Shipment Data'!Q15, 0, 19*(iShip-1)) -> 1.367639342 | R14: =OFFSET('Shipment Data'!R15, 0, 19*(iShip-1)) -> 20.10223648 | S14: =OFFSET('Shipment Data'!S15, 0, 19*(iShip-1)) -> 6.420435456
B15: 2022 | C15: =OFFSET('Shipment Data'!C16, 0, 19*(iShip-1)) -> 3.080885891 | D15: =OFFSET('Shipment Data'!D16, 0, 19*(iShip-1)) -> 3.616692132 | E15: =OFFSET('Shipment Data'!E16, 0, 19*(iShip-1)) -> 1.425309649 | F15: =OFFSET('Shipment Data'!F16, 0, 19*(iShip-1)) -> 0.9451300723 | G15: =OFFSET('Shipment Data'!G16, 0, 19*(iShip-1)) -> 1.348895621 | H15: =OFFSET('Shipment Data'!H16, 0, 19*(iShip-1)) -> 4.662207506 | I15: =OFFSET('Shipment Data'!I16, 0, 19*(iShip-1)) -> 5.257382932 | J15: =OFFSET('Shipment Data'!J16, 0, 19*(iShip-1)) -> 2.156876165 | K15: =OFFSET('Shipment Data'!K16, 0, 19*(iShip-1)) -> 1.624518568 | L15: =OFFSET('Shipment Data'!L16, 0, 19*(iShip-1)) -> 2.03255088 | M15: =OFFSET('Shipment Data'!M16, 0, 19*(iShip-1)) -> 0.7528612263 | N15: =OFFSET('Shipment Data'!N16, 0, 19*(iShip-1)) -> 0.8837936135 | O15: =OFFSET('Shipment Data'!O16, 0, 19*(iShip-1)) -> 0.3482960449 | P15: =OFFSET('Shipment Data'!P16, 0, 19*(iShip-1)) -> 1.052701448 | Q15: =OFFSET('Shipment Data'!Q16, 0, 19*(iShip-1)) -> 1.381315735 | R15: =OFFSET('Shipment Data'!R16, 0, 19*(iShip-1)) -> 20.30325884 | S15: =OFFSET('Shipment Data'!S16, 0, 19*(iShip-1)) -> 6.48463981
B16: 2023 | C16: =OFFSET('Shipment Data'!C17, 0, 19*(iShip-1)) -> 3.111694749 | D16: =OFFSET('Shipment Data'!D17, 0, 19*(iShip-1)) -> 3.652859054 | E16: =OFFSET('Shipment Data'!E17, 0, 19*(iShip-1)) -> 1.439562746 | F16: =OFFSET('Shipment Data'!F17, 0, 19*(iShip-1)) -> 0.954581373 | G16: =OFFSET('Shipment Data'!G17, 0, 19*(iShip-1)) -> 1.362384577 | H16: =OFFSET('Shipment Data'!H17, 0, 19*(iShip-1)) -> 4.708829581 | I16: =OFFSET('Shipment Data'!I17, 0, 19*(iShip-1)) -> 5.309956762 | J16: =OFFSET('Shipment Data'!J17, 0, 19*(iShip-1)) -> 2.178444927 | K16: =OFFSET('Shipment Data'!K17, 0, 19*(iShip-1)) -> 1.640763754 | L16: =OFFSET('Shipment Data'!L17, 0, 19*(iShip-1)) -> 2.052876389 | M16: =OFFSET('Shipment Data'!M17, 0, 19*(iShip-1)) -> 0.7603898386 | N16: =OFFSET('Shipment Data'!N17, 0, 19*(iShip-1)) -> 0.8926315496 | O16: =OFFSET('Shipment Data'!O17, 0, 19*(iShip-1)) -> 0.3517790053 | P16: =OFFSET('Shipment Data'!P17, 0, 19*(iShip-1)) -> 1.063228462 | Q16: =OFFSET('Shipment Data'!Q17, 0, 19*(iShip-1)) -> 1.395128892 | R16: =OFFSET('Shipment Data'!R17, 0, 19*(iShip-1)) -> 20.50629143 | S16: =OFFSET('Shipment Data'!S17, 0, 19*(iShip-1)) -> 6.549486208
B17: 2024 | C17: =OFFSET('Shipment Data'!C18, 0, 19*(iShip-1)) -> 3.142811697 | D17: =OFFSET('Shipment Data'!D18, 0, 19*(iShip-1)) -> 3.689387644 | E17: =OFFSET('Shipment Data'!E18, 0, 19*(iShip-1)) -> 1.453958373 | F17: =OFFSET('Shipment Data'!F18, 0, 19*(iShip-1)) -> 0.9641271868 | G17: =OFFSET('Shipment Data'!G18, 0, 19*(iShip-1)) -> 1.376008423 | H17: =OFFSET('Shipment Data'!H18, 0, 19*(iShip-1)) -> 4.755917877 | I17: =OFFSET('Shipment Data'!I18, 0, 19*(iShip-1)) -> 5.363056329 | J17: =OFFSET('Shipment Data'!J18, 0, 19*(iShip-1)) -> 2.200229376 | K17: =OFFSET('Shipment Data'!K18, 0, 19*(iShip-1)) -> 1.657171391 | L17: =OFFSET('Shipment Data'!L18, 0, 19*(iShip-1)) -> 2.073405153 | M17: =OFFSET('Shipment Data'!M18, 0, 19*(iShip-1)) -> 0.767993737 | N17: =OFFSET('Shipment Data'!N18, 0, 19*(iShip-1)) -> 0.9015578651 | O17: =OFFSET('Shipment Data'!O18, 0, 19*(iShip-1)) -> 0.3552967954 | P17: =OFFSET('Shipment Data'!P18, 0, 19*(iShip-1)) -> 1.073860747 | Q17: =OFFSET('Shipment Data'!Q18, 0, 19*(iShip-1)) -> 1.409080181 | R17: =OFFSET('Shipment Data'!R18, 0, 19*(iShip-1)) -> 20.71135434 | S17: =OFFSET('Shipment Data'!S18, 0, 19*(iShip-1)) -> 6.614981071
B18: 2025 | C18: =OFFSET('Shipment Data'!C19, 0, 19*(iShip-1)) -> 3.174239814 | D18: =OFFSET('Shipment Data'!D19, 0, 19*(iShip-1)) -> 3.726281521 | E18: =OFFSET('Shipment Data'!E19, 0, 19*(iShip-1)) -> 1.468497957 | F18: =OFFSET('Shipment Data'!F19, 0, 19*(iShip-1)) -> 0.9737684586 | G18: =OFFSET('Shipment Data'!G19, 0, 19*(iShip-1)) -> 1.389768507 | H18: =OFFSET('Shipment Data'!H19, 0, 19*(iShip-1)) -> 4.803477056 | I18: =OFFSET('Shipment Data'!I19, 0, 19*(iShip-1)) -> 5.416686892 | J18: =OFFSET('Shipment Data'!J19, 0, 19*(iShip-1)) -> 2.22223167 | K18: =OFFSET('Shipment Data'!K19, 0, 19*(iShip-1)) -> 1.673743105 | L18: =OFFSET('Shipment Data'!L19, 0, 19*(iShip-1)) -> 2.094139204 | M18: =OFFSET('Shipment Data'!M19, 0, 19*(iShip-1)) -> 0.7756736743 | N18: =OFFSET('Shipment Data'!N19, 0, 19*(iShip-1)) -> 0.9105734438 | O18: =OFFSET('Shipment Data'!O19, 0, 19*(iShip-1)) -> 0.3588497633 | P18: =OFFSET('Shipment Data'!P19, 0, 19*(iShip-1)) -> 1.084599354 | Q18: =OFFSET('Shipment Data'!Q19, 0, 19*(iShip-1)) -> 1.423170983 | R18: =OFFSET('Shipment Data'!R19, 0, 19*(iShip-1)) -> 20.91846789 | S18: =OFFSET('Shipment Data'!S19, 0, 19*(iShip-1)) -> 6.681130881
B19: 2026 | C19: =OFFSET('Shipment Data'!C20, 0, 19*(iShip-1)) -> 3.205982212 | D19: =OFFSET('Shipment Data'!D20, 0, 19*(iShip-1)) -> 3.763544336 | E19: =OFFSET('Shipment Data'!E20, 0, 19*(iShip-1)) -> 1.483182936 | F19: =OFFSET('Shipment Data'!F20, 0, 19*(iShip-1)) -> 0.9835061432 | G19: =OFFSET('Shipment Data'!G20, 0, 19*(iShip-1)) -> 1.403666193 | H19: =OFFSET('Shipment Data'!H20, 0, 19*(iShip-1)) -> 4.851511826 | I19: =OFFSET('Shipment Data'!I20, 0, 19*(iShip-1)) -> 5.470853761 | J19: =OFFSET('Shipment Data'!J20, 0, 19*(iShip-1)) -> 2.244453987 | K19: =OFFSET('Shipment Data'!K20, 0, 19*(iShip-1)) -> 1.690480536 | L19: =OFFSET('Shipment Data'!L20, 0, 19*(iShip-1)) -> 2.115080596 | M19: =OFFSET('Shipment Data'!M20, 0, 19*(iShip-1)) -> 0.7834304111 | N19: =OFFSET('Shipment Data'!N20, 0, 19*(iShip-1)) -> 0.9196791782 | O19: =OFFSET('Shipment Data'!O20, 0, 19*(iShip-1)) -> 0.362438261 | P19: =OFFSET('Shipment Data'!P20, 0, 19*(iShip-1)) -> 1.095445348 | Q19: =OFFSET('Shipment Data'!Q20, 0, 19*(iShip-1)) -> 1.437402693 | R19: =OFFSET('Shipment Data'!R20, 0, 19*(iShip-1)) -> 21.12765257 | S19: =OFFSET('Shipment Data'!S20, 0, 19*(iShip-1)) -> 6.74794219
B20: 2027 | C20: =OFFSET('Shipment Data'!C21, 0, 19*(iShip-1)) -> 3.238042034 | D20: =OFFSET('Shipment Data'!D21, 0, 19*(iShip-1)) -> 3.801179779 | E20: =OFFSET('Shipment Data'!E21, 0, 19*(iShip-1)) -> 1.498014766 | F20: =OFFSET('Shipment Data'!F21, 0, 19*(iShip-1)) -> 0.9933412047 | G20: =OFFSET('Shipment Data'!G21, 0, 19*(iShip-1)) -> 1.417702854 | H20: =OFFSET('Shipment Data'!H21, 0, 19*(iShip-1)) -> 4.900026944 | I20: =OFFSET('Shipment Data'!I21, 0, 19*(iShip-1)) -> 5.525562299 | J20: =OFFSET('Shipment Data'!J21, 0, 19*(iShip-1)) -> 2.266898526 | K20: =OFFSET('Shipment Data'!K21, 0, 19*(iShip-1)) -> 1.707385342 | L20: =OFFSET('Shipment Data'!L21, 0, 19*(iShip-1)) -> 2.136231402 | M20: =OFFSET('Shipment Data'!M21, 0, 19*(iShip-1)) -> 0.7912647152 | N20: =OFFSET('Shipment Data'!N21, 0, 19*(iShip-1)) -> 0.92887597 | O20: =OFFSET('Shipment Data'!O21, 0, 19*(iShip-1)) -> 0.3660626436 | P20: =OFFSET('Shipment Data'!P21, 0, 19*(iShip-1)) -> 1.106399801 | Q20: =OFFSET('Shipment Data'!Q21, 0, 19*(iShip-1)) -> 1.45177672 | R20: =OFFSET('Shipment Data'!R21, 0, 19*(iShip-1)) -> 21.33892909 | S20: =OFFSET('Shipment Data'!S21, 0, 19*(iShip-1)) -> 6.815421612
B21: 2028 | C21: =OFFSET('Shipment Data'!C22, 0, 19*(iShip-1)) -> 3.270422454 | D21: =OFFSET('Shipment Data'!D22, 0, 19*(iShip-1)) -> 3.839191577 | E21: =OFFSET('Shipment Data'!E22, 0, 19*(iShip-1)) -> 1.512994913 | F21: =OFFSET('Shipment Data'!F22, 0, 19*(iShip-1)) -> 1.003274617 | G21: =OFFSET('Shipment Data'!G22, 0, 19*(iShip-1)) -> 1.431879883 | H21: =OFFSET('Shipment Data'!H22, 0, 19*(iShip-1)) -> 4.949027214 | I21: =OFFSET('Shipment Data'!I22, 0, 19*(iShip-1)) -> 5.580817922 | J21: =OFFSET('Shipment Data'!J22, 0, 19*(iShip-1)) -> 2.289567512 | K21: =OFFSET('Shipment Data'!K22, 0, 19*(iShip-1)) -> 1.724459195 | L21: =OFFSET('Shipment Data'!L22, 0, 19*(iShip-1)) -> 2.157593716 | M21: =OFFSET('Shipment Data'!M22, 0, 19*(iShip-1)) -> 0.7991773623 | N21: =OFFSET('Shipment Data'!N22, 0, 19*(iShip-1)) -> 0.9381647297 | O21: =OFFSET('Shipment Data'!O22, 0, 19*(iShip-1)) -> 0.36972327 | P21: =OFFSET('Shipment Data'!P22, 0, 19*(iShip-1)) -> 1.117463799 | Q21: =OFFSET('Shipment Data'!Q22, 0, 19*(iShip-1)) -> 1.466294487 | R21: =OFFSET('Shipment Data'!R22, 0, 19*(iShip-1)) -> 21.55231838 | S21: =OFFSET('Shipment Data'!S22, 0, 19*(iShip-1)) -> 6.883575828
B22: 2029 | C22: =OFFSET('Shipment Data'!C23, 0, 19*(iShip-1)) -> 3.303126679 | D22: =OFFSET('Shipment Data'!D23, 0, 19*(iShip-1)) -> 3.877583493 | E22: =OFFSET('Shipment Data'!E23, 0, 19*(iShip-1)) -> 1.528124863 | F22: =OFFSET('Shipment Data'!F23, 0, 19*(iShip-1)) -> 1.013307363 | G22: =OFFSET('Shipment Data'!G23, 0, 19*(iShip-1)) -> 1.446198682 | H22: =OFFSET('Shipment Data'!H23, 0, 19*(iShip-1)) -> 4.998517486 | I22: =OFFSET('Shipment Data'!I23, 0, 19*(iShip-1)) -> 5.636626101 | J22: =OFFSET('Shipment Data'!J23, 0, 19*(iShip-1)) -> 2.312463187 | K22: =OFFSET('Shipment Data'!K23, 0, 19*(iShip-1)) -> 1.741703787 | L22: =OFFSET('Shipment Data'!L23, 0, 19*(iShip-1)) -> 2.179169653 | M22: =OFFSET('Shipment Data'!M23, 0, 19*(iShip-1)) -> 0.807169136 | N22: =OFFSET('Shipment Data'!N23, 0, 19*(iShip-1)) -> 0.947546377 | O22: =OFFSET('Shipment Data'!O23, 0, 19*(iShip-1)) -> 0.3734205027 | P22: =OFFSET('Shipment Data'!P23, 0, 19*(iShip-1)) -> 1.128638437 | Q22: =OFFSET('Shipment Data'!Q23, 0, 19*(iShip-1)) -> 1.480957432 | R22: =OFFSET('Shipment Data'!R23, 0, 19*(iShip-1)) -> 21.76784157 | S22: =OFFSET('Shipment Data'!S23, 0, 19*(iShip-1)) -> 6.952411586
B23: 2030 | C23: =OFFSET('Shipment Data'!C24, 0, 19*(iShip-1)) -> 3.336157946 | D23: =OFFSET('Shipment Data'!D24, 0, 19*(iShip-1)) -> 3.916359328 | E23: =OFFSET('Shipment Data'!E24, 0, 19*(iShip-1)) -> 1.543406111 | F23: =OFFSET('Shipment Data'!F24, 0, 19*(iShip-1)) -> 1.023440437 | G23: =OFFSET('Shipment Data'!G24, 0, 19*(iShip-1)) -> 1.460660669 | H23: =OFFSET('Shipment Data'!H24, 0, 19*(iShip-1)) -> 5.048502661 | I23: =OFFSET('Shipment Data'!I24, 0, 19*(iShip-1)) -> 5.692992362 | J23: =OFFSET('Shipment Data'!J24, 0, 19*(iShip-1)) -> 2.335587819 | K23: =OFFSET('Shipment Data'!K24, 0, 19*(iShip-1)) -> 1.759120825 | L23: =OFFSET('Shipment Data'!L24, 0, 19*(iShip-1)) -> 2.20096135 | M23: =OFFSET('Shipment Data'!M24, 0, 19*(iShip-1)) -> 0.8152408273 | N23: =OFFSET('Shipment Data'!N24, 0, 19*(iShip-1)) -> 0.9570218408 | O23: =OFFSET('Shipment Data'!O24, 0, 19*(iShip-1)) -> 0.3771547077 | P23: =OFFSET('Shipment Data'!P24, 0, 19*(iShip-1)) -> 1.139924822 | Q23: =OFFSET('Shipment Data'!Q24, 0, 19*(iShip-1)) -> 1.495767006 | R23: =OFFSET('Shipment Data'!R24, 0, 19*(iShip-1)) -> 21.98551998 | S23: =OFFSET('Shipment Data'!S24, 0, 19*(iShip-1)) -> 7.021935702
B24: 2031 | C24: =OFFSET('Shipment Data'!C25, 0, 19*(iShip-1)) -> 3.369519525 | D24: =OFFSET('Shipment Data'!D25, 0, 19*(iShip-1)) -> 3.955522921 | E24: =OFFSET('Shipment Data'!E25, 0, 19*(iShip-1)) -> 1.558840172 | F24: =OFFSET('Shipment Data'!F25, 0, 19*(iShip-1)) -> 1.033674841 | G24: =OFFSET('Shipment Data'!G25, 0, 19*(iShip-1)) -> 1.475267275 | H24: =OFFSET('Shipment Data'!H25, 0, 19*(iShip-1)) -> 5.098987687 | I24: =OFFSET('Shipment Data'!I25, 0, 19*(iShip-1)) -> 5.749922286 | J24: =OFFSET('Shipment Data'!J25, 0, 19*(iShip-1)) -> 2.358943697 | K24: =OFFSET('Shipment Data'!K25, 0, 19*(iShip-1)) -> 1.776712033 | L24: =OFFSET('Shipment Data'!L25, 0, 19*(iShip-1)) -> 2.222970963 | M24: =OFFSET('Shipment Data'!M25, 0, 19*(iShip-1)) -> 0.8233932356 | N24: =OFFSET('Shipment Data'!N25, 0, 19*(iShip-1)) -> 0.9665920592 | O24: =OFFSET('Shipment Data'!O25, 0, 19*(iShip-1)) -> 0.3809262548 | P24: =OFFSET('Shipment Data'!P25, 0, 19*(iShip-1)) -> 1.15132407 | Q24: =OFFSET('Shipment Data'!Q25, 0, 19*(iShip-1)) -> 1.510724676 | R24: =OFFSET('Shipment Data'!R25, 0, 19*(iShip-1)) -> 22.20537518 | S24: =OFFSET('Shipment Data'!S25, 0, 19*(iShip-1)) -> 7.092155059
B25: 2032 | C25: =OFFSET('Shipment Data'!C26, 0, 19*(iShip-1)) -> 3.403214721 | D25: =OFFSET('Shipment Data'!D26, 0, 19*(iShip-1)) -> 3.99507815 | E25: =OFFSET('Shipment Data'!E26, 0, 19*(iShip-1)) -> 1.574428574 | F25: =OFFSET('Shipment Data'!F26, 0, 19*(iShip-1)) -> 1.044011589 | G25: =OFFSET('Shipment Data'!G26, 0, 19*(iShip-1)) -> 1.490019948 | H25: =OFFSET('Shipment Data'!H26, 0, 19*(iShip-1)) -> 5.149977564 | I25: =OFFSET('Shipment Data'!I26, 0, 19*(iShip-1)) -> 5.807421509 | J25: =OFFSET('Shipment Data'!J26, 0, 19*(iShip-1)) -> 2.382533134 | K25: =OFFSET('Shipment Data'!K26, 0, 19*(iShip-1)) -> 1.794479154 | L25: =OFFSET('Shipment Data'!L26, 0, 19*(iShip-1)) -> 2.245200673 | M25: =OFFSET('Shipment Data'!M26, 0, 19*(iShip-1)) -> 0.8316271679 | N25: =OFFSET('Shipment Data'!N26, 0, 19*(iShip-1)) -> 0.9762579798 | O25: =OFFSET('Shipment Data'!O26, 0, 19*(iShip-1)) -> 0.3847355174 | P25: =OFFSET('Shipment Data'!P26, 0, 19*(iShip-1)) -> 1.162837311 | Q25: =OFFSET('Shipment Data'!Q26, 0, 19*(iShip-1)) -> 1.525831923 | R25: =OFFSET('Shipment Data'!R26, 0, 19*(iShip-1)) -> 22.42742893 | S25: =OFFSET('Shipment Data'!S26, 0, 19*(iShip-1)) -> 7.16307661
B26: 2033 | C26: =OFFSET('Shipment Data'!C27, 0, 19*(iShip-1)) -> 3.437246868 | D26: =OFFSET('Shipment Data'!D27, 0, 19*(iShip-1)) -> 4.035028932 | E26: =OFFSET('Shipment Data'!E27, 0, 19*(iShip-1)) -> 1.59017286 | F26: =OFFSET('Shipment Data'!F27, 0, 19*(iShip-1)) -> 1.054451705 | G26: =OFFSET('Shipment Data'!G27, 0, 19*(iShip-1)) -> 1.504920148 | H26: =OFFSET('Shipment Data'!H27, 0, 19*(iShip-1)) -> 5.20147734 | I26: =OFFSET('Shipment Data'!I27, 0, 19*(iShip-1)) -> 5.865495724 | J26: =OFFSET('Shipment Data'!J27, 0, 19*(iShip-1)) -> 2.406358465 | K26: =OFFSET('Shipment Data'!K27, 0, 19*(iShip-1)) -> 1.812423945 | L26: =OFFSET('Shipment Data'!L27, 0, 19*(iShip-1)) -> 2.26765268 | M26: =OFFSET('Shipment Data'!M27, 0, 19*(iShip-1)) -> 0.8399434396 | N26: =OFFSET('Shipment Data'!N27, 0, 19*(iShip-1)) -> 0.9860205596 | O26: =OFFSET('Shipment Data'!O27, 0, 19*(iShip-1)) -> 0.3885828725 | P26: =OFFSET('Shipment Data'!P27, 0, 19*(iShip-1)) -> 1.174465684 | Q26: =OFFSET('Shipment Data'!Q27, 0, 19*(iShip-1)) -> 1.541090242 | R26: =OFFSET('Shipment Data'!R27, 0, 19*(iShip-1)) -> 22.65170322 | S26: =OFFSET('Shipment Data'!S27, 0, 19*(iShip-1)) -> 7.234707376
B27: 2034 | C27: =OFFSET('Shipment Data'!C28, 0, 19*(iShip-1)) -> 3.471619336 | D27: =OFFSET('Shipment Data'!D28, 0, 19*(iShip-1)) -> 4.075379221 | E27: =OFFSET('Shipment Data'!E28, 0, 19*(iShip-1)) -> 1.606074588 | F27: =OFFSET('Shipment Data'!F28, 0, 19*(iShip-1)) -> 1.064996222 | G27: =OFFSET('Shipment Data'!G28, 0, 19*(iShip-1)) -> 1.519969349 | H27: =OFFSET('Shipment Data'!H28, 0, 19*(iShip-1)) -> 5.253492113 | I27: =OFFSET('Shipment Data'!I28, 0, 19*(iShip-1)) -> 5.924150681 | J27: =OFFSET('Shipment Data'!J28, 0, 19*(iShip-1)) -> 2.43042205 | K27: =OFFSET('Shipment Data'!K28, 0, 19*(iShip-1)) -> 1.830548185 | L27: =OFFSET('Shipment Data'!L28, 0, 19*(iShip-1)) -> 2.290329207 | M27: =OFFSET('Shipment Data'!M28, 0, 19*(iShip-1)) -> 0.848342874 | N27: =OFFSET('Shipment Data'!N28, 0, 19*(iShip-1)) -> 0.9958807652 | O27: =OFFSET('Shipment Data'!O28, 0, 19*(iShip-1)) -> 0.3924687013 | P27: =OFFSET('Shipment Data'!P28, 0, 19*(iShip-1)) -> 1.186210341 | Q27: =OFFSET('Shipment Data'!Q28, 0, 19*(iShip-1)) -> 1.556501145 | R27: =OFFSET('Shipment Data'!R28, 0, 19*(iShip-1)) -> 22.87822026 | S27: =OFFSET('Shipment Data'!S28, 0, 19*(iShip-1)) -> 7.30705445
B28: 2035 | C28: =OFFSET('Shipment Data'!C29, 0, 19*(iShip-1)) -> 3.50633553 | D28: =OFFSET('Shipment Data'!D29, 0, 19*(iShip-1)) -> 4.116133013 | E28: =OFFSET('Shipment Data'!E29, 0, 19*(iShip-1)) -> 1.622135334 | F28: =OFFSET('Shipment Data'!F29, 0, 19*(iShip-1)) -> 1.075646184 | G28: =OFFSET('Shipment Data'!G29, 0, 19*(iShip-1)) -> 1.535169043 | H28: =OFFSET('Shipment Data'!H29, 0, 19*(iShip-1)) -> 5.306027035 | I28: =OFFSET('Shipment Data'!I29, 0, 19*(iShip-1)) -> 5.983392188 | J28: =OFFSET('Shipment Data'!J29, 0, 19*(iShip-1)) -> 2.45472627 | K28: =OFFSET('Shipment Data'!K29, 0, 19*(iShip-1)) -> 1.848853666 | L28: =OFFSET('Shipment Data'!L29, 0, 19*(iShip-1)) -> 2.313232499 | M28: =OFFSET('Shipment Data'!M29, 0, 19*(iShip-1)) -> 0.8568263028 | N28: =OFFSET('Shipment Data'!N29, 0, 19*(iShip-1)) -> 1.005839573 | O28: =OFFSET('Shipment Data'!O29, 0, 19*(iShip-1)) -> 0.3963933883 | P28: =OFFSET('Shipment Data'!P29, 0, 19*(iShip-1)) -> 1.198072444 | Q28: =OFFSET('Shipment Data'!Q29, 0, 19*(iShip-1)) -> 1.572066156 | R28: =OFFSET('Shipment Data'!R29, 0, 19*(iShip-1)) -> 23.10700246 | S28: =OFFSET('Shipment Data'!S29, 0, 19*(iShip-1)) -> 7.380124994
B29: 2036 | C29: =OFFSET('Shipment Data'!C30, 0, 19*(iShip-1)) -> 3.541398885 | D29: =OFFSET('Shipment Data'!D30, 0, 19*(iShip-1)) -> 4.157294343 | E29: =OFFSET('Shipment Data'!E30, 0, 19*(iShip-1)) -> 1.638356688 | F29: =OFFSET('Shipment Data'!F30, 0, 19*(iShip-1)) -> 1.086402646 | G29: =OFFSET('Shipment Data'!G30, 0, 19*(iShip-1)) -> 1.550520733 | H29: =OFFSET('Shipment Data'!H30, 0, 19*(iShip-1)) -> 5.359087305 | I29: =OFFSET('Shipment Data'!I30, 0, 19*(iShip-1)) -> 6.04322611 | J29: =OFFSET('Shipment Data'!J30, 0, 19*(iShip-1)) -> 2.479273533 | K29: =OFFSET('Shipment Data'!K30, 0, 19*(iShip-1)) -> 1.867342203 | L29: =OFFSET('Shipment Data'!L30, 0, 19*(iShip-1)) -> 2.336364824 | M29: =OFFSET('Shipment Data'!M30, 0, 19*(iShip-1)) -> 0.8653945658 | N29: =OFFSET('Shipment Data'!N30, 0, 19*(iShip-1)) -> 1.015897969 | O29: =OFFSET('Shipment Data'!O30, 0, 19*(iShip-1)) -> 0.4003573222 | P29: =OFFSET('Shipment Data'!P30, 0, 19*(iShip-1)) -> 1.210053168 | Q29: =OFFSET('Shipment Data'!Q30, 0, 19*(iShip-1)) -> 1.587786818 | R29: =OFFSET('Shipment Data'!R30, 0, 19*(iShip-1)) -> 23.33807248 | S29: =OFFSET('Shipment Data'!S30, 0, 19*(iShip-1)) -> 7.453926244
B30: 2037 | C30: =OFFSET('Shipment Data'!C31, 0, 19*(iShip-1)) -> 3.576812874 | D30: =OFFSET('Shipment Data'!D31, 0, 19*(iShip-1)) -> 4.198867287 | E30: =OFFSET('Shipment Data'!E31, 0, 19*(iShip-1)) -> 1.654740255 | F30: =OFFSET('Shipment Data'!F31, 0, 19*(iShip-1)) -> 1.097266673 | G30: =OFFSET('Shipment Data'!G31, 0, 19*(iShip-1)) -> 1.56602594 | H30: =OFFSET('Shipment Data'!H31, 0, 19*(iShip-1)) -> 5.412678178 | I30: =OFFSET('Shipment Data'!I31, 0, 19*(iShip-1)) -> 6.103658371 | J30: =OFFSET('Shipment Data'!J31, 0, 19*(iShip-1)) -> 2.504066268 | K30: =OFFSET('Shipment Data'!K31, 0, 19*(iShip-1)) -> 1.886015625 | L30: =OFFSET('Shipment Data'!L31, 0, 19*(iShip-1)) -> 2.359728472 | M30: =OFFSET('Shipment Data'!M31, 0, 19*(iShip-1)) -> 0.8740485114 | N30: =OFFSET('Shipment Data'!N31, 0, 19*(iShip-1)) -> 1.026056948 | O30: =OFFSET('Shipment Data'!O31, 0, 19*(iShip-1)) -> 0.4043608954 | P30: =OFFSET('Shipment Data'!P31, 0, 19*(iShip-1)) -> 1.2221537 | Q30: =OFFSET('Shipment Data'!Q31, 0, 19*(iShip-1)) -> 1.603664686 | R30: =OFFSET('Shipment Data'!R31, 0, 19*(iShip-1)) -> 23.57145321 | S30: =OFFSET('Shipment Data'!S31, 0, 19*(iShip-1)) -> 7.528465507
B31: 2038 | C31: =OFFSET('Shipment Data'!C32, 0, 19*(iShip-1)) -> 3.612581003 | D31: =OFFSET('Shipment Data'!D32, 0, 19*(iShip-1)) -> 4.24085596 | E31: =OFFSET('Shipment Data'!E32, 0, 19*(iShip-1)) -> 1.671287657 | F31: =OFFSET('Shipment Data'!F32, 0, 19*(iShip-1)) -> 1.108239339 | G31: =OFFSET('Shipment Data'!G32, 0, 19*(iShip-1)) -> 1.5816862 | H31: =OFFSET('Shipment Data'!H32, 0, 19*(iShip-1)) -> 5.46680496 | I31: =OFFSET('Shipment Data'!I32, 0, 19*(iShip-1)) -> 6.164694955 | J31: =OFFSET('Shipment Data'!J32, 0, 19*(iShip-1)) -> 2.529106931 | K31: =OFFSET('Shipment Data'!K32, 0, 19*(iShip-1)) -> 1.904875781 | L31: =OFFSET('Shipment Data'!L32, 0, 19*(iShip-1)) -> 2.383325757 | M31: =OFFSET('Shipment Data'!M32, 0, 19*(iShip-1)) -> 0.8827889966 | N31: =OFFSET('Shipment Data'!N32, 0, 19*(iShip-1)) -> 1.036317518 | O31: =OFFSET('Shipment Data'!O32, 0, 19*(iShip-1)) -> 0.4084045043 | P31: =OFFSET('Shipment Data'!P32, 0, 19*(iShip-1)) -> 1.234375237 | Q31: =OFFSET('Shipment Data'!Q32, 0, 19*(iShip-1)) -> 1.619701333 | R31: =OFFSET('Shipment Data'!R32, 0, 19*(iShip-1)) -> 23.80716774 | S31: =OFFSET('Shipment Data'!S32, 0, 19*(iShip-1)) -> 7.603750162
B32: 2039 | C32: =OFFSET('Shipment Data'!C33, 0, 19*(iShip-1)) -> 3.648706813 | D32: =OFFSET('Shipment Data'!D33, 0, 19*(iShip-1)) -> 4.283264519 | E32: =OFFSET('Shipment Data'!E33, 0, 19*(iShip-1)) -> 1.688000534 | F32: =OFFSET('Shipment Data'!F33, 0, 19*(iShip-1)) -> 1.119321733 | G32: =OFFSET('Shipment Data'!G33, 0, 19*(iShip-1)) -> 1.597503062 | H32: =OFFSET('Shipment Data'!H33, 0, 19*(iShip-1)) -> 5.521473009 | I32: =OFFSET('Shipment Data'!I33, 0, 19*(iShip-1)) -> 6.226341904 | J32: =OFFSET('Shipment Data'!J33, 0, 19*(iShip-1)) -> 2.554398 | K32: =OFFSET('Shipment Data'!K33, 0, 19*(iShip-1)) -> 1.923924539 | L32: =OFFSET('Shipment Data'!L33, 0, 19*(iShip-1)) -> 2.407159014 | M32: =OFFSET('Shipment Data'!M33, 0, 19*(iShip-1)) -> 0.8916168865 | N32: =OFFSET('Shipment Data'!N33, 0, 19*(iShip-1)) -> 1.046680693 | O32: =OFFSET('Shipment Data'!O33, 0, 19*(iShip-1)) -> 0.4124885494 | P32: =OFFSET('Shipment Data'!P33, 0, 19*(iShip-1)) -> 1.246718989 | Q32: =OFFSET('Shipment Data'!Q33, 0, 19*(iShip-1)) -> 1.635898346 | R32: =OFFSET('Shipment Data'!R33, 0, 19*(iShip-1)) -> 24.04523942 | S32: =OFFSET('Shipment Data'!S33, 0, 19*(iShip-1)) -> 7.679787663
B33: 2040 | C33: =OFFSET('Shipment Data'!C34, 0, 19*(iShip-1)) -> 3.685193881 | D33: =OFFSET('Shipment Data'!D34, 0, 19*(iShip-1)) -> 4.326097164 | E33: =OFFSET('Shipment Data'!E34, 0, 19*(iShip-1)) -> 1.704880539 | F33: =OFFSET('Shipment Data'!F34, 0, 19*(iShip-1)) -> 1.13051495 | G33: =OFFSET('Shipment Data'!G34, 0, 19*(iShip-1)) -> 1.613478092 | H33: =OFFSET('Shipment Data'!H34, 0, 19*(iShip-1)) -> 5.576687739 | I33: =OFFSET('Shipment Data'!I34, 0, 19*(iShip-1)) -> 6.288605323 | J33: =OFFSET('Shipment Data'!J34, 0, 19*(iShip-1)) -> 2.57994198 | K33: =OFFSET('Shipment Data'!K34, 0, 19*(iShip-1)) -> 1.943163785 | L33: =OFFSET('Shipment Data'!L34, 0, 19*(iShip-1)) -> 2.431230604 | M33: =OFFSET('Shipment Data'!M34, 0, 19*(iShip-1)) -> 0.9005330554 | N33: =OFFSET('Shipment Data'!N34, 0, 19*(iShip-1)) -> 1.0571475 | O33: =OFFSET('Shipment Data'!O34, 0, 19*(iShip-1)) -> 0.4166134349 | P33: =OFFSET('Shipment Data'!P34, 0, 19*(iShip-1)) -> 1.259186179 | Q33: =OFFSET('Shipment Data'!Q34, 0, 19*(iShip-1)) -> 1.65225733 | R33: =OFFSET('Shipment Data'!R34, 0, 19*(iShip-1)) -> 24.28569181 | S33: =OFFSET('Shipment Data'!S34, 0, 19*(iShip-1)) -> 7.75658554
B34: 2041 | C34: =OFFSET('Shipment Data'!C35, 0, 19*(iShip-1)) -> 3.72204582 | D34: =OFFSET('Shipment Data'!D35, 0, 19*(iShip-1)) -> 4.369358136 | E34: =OFFSET('Shipment Data'!E35, 0, 19*(iShip-1)) -> 1.721929344 | F34: =OFFSET('Shipment Data'!F35, 0, 19*(iShip-1)) -> 1.1418201 | G34: =OFFSET('Shipment Data'!G35, 0, 19*(iShip-1)) -> 1.629612873 | H34: =OFFSET('Shipment Data'!H35, 0, 19*(iShip-1)) -> 5.632454617 | I34: =OFFSET('Shipment Data'!I35, 0, 19*(iShip-1)) -> 6.351491376 | J34: =OFFSET('Shipment Data'!J35, 0, 19*(iShip-1)) -> 2.6057414 | K34: =OFFSET('Shipment Data'!K35, 0, 19*(iShip-1)) -> 1.962595422 | L34: =OFFSET('Shipment Data'!L35, 0, 19*(iShip-1)) -> 2.45554291 | M34: =OFFSET('Shipment Data'!M35, 0, 19*(iShip-1)) -> 0.9095383859 | N34: =OFFSET('Shipment Data'!N35, 0, 19*(iShip-1)) -> 1.067718975 | O34: =OFFSET('Shipment Data'!O35, 0, 19*(iShip-1)) -> 0.4207795692 | P34: =OFFSET('Shipment Data'!P35, 0, 19*(iShip-1)) -> 1.271778041 | Q34: =OFFSET('Shipment Data'!Q35, 0, 19*(iShip-1)) -> 1.668779903 | R34: =OFFSET('Shipment Data'!R35, 0, 19*(iShip-1)) -> 24.52854873 | S34: =OFFSET('Shipment Data'!S35, 0, 19*(iShip-1)) -> 7.834151395
B35: 2042 | C35: =OFFSET('Shipment Data'!C36, 0, 19*(iShip-1)) -> 3.759266278 | D35: =OFFSET('Shipment Data'!D36, 0, 19*(iShip-1)) -> 4.413051717 | E35: =OFFSET('Shipment Data'!E36, 0, 19*(iShip-1)) -> 1.739148638 | F35: =OFFSET('Shipment Data'!F36, 0, 19*(iShip-1)) -> 1.153238301 | G35: =OFFSET('Shipment Data'!G36, 0, 19*(iShip-1)) -> 1.645909002 | H35: =OFFSET('Shipment Data'!H36, 0, 19*(iShip-1)) -> 5.688779163 | I35: =OFFSET('Shipment Data'!I36, 0, 19*(iShip-1)) -> 6.41500629 | J35: =OFFSET('Shipment Data'!J36, 0, 19*(iShip-1)) -> 2.631798814 | K35: =OFFSET('Shipment Data'!K36, 0, 19*(iShip-1)) -> 1.982221377 | L35: =OFFSET('Shipment Data'!L36, 0, 19*(iShip-1)) -> 2.480098339 | M35: =OFFSET('Shipment Data'!M36, 0, 19*(iShip-1)) -> 0.9186337698 | N35: =OFFSET('Shipment Data'!N36, 0, 19*(iShip-1)) -> 1.078396165 | O35: =OFFSET('Shipment Data'!O36, 0, 19*(iShip-1)) -> 0.4249873649 | P35: =OFFSET('Shipment Data'!P36, 0, 19*(iShip-1)) -> 1.284495822 | Q35: =OFFSET('Shipment Data'!Q36, 0, 19*(iShip-1)) -> 1.685467702 | R35: =OFFSET('Shipment Data'!R36, 0, 19*(iShip-1)) -> 24.77383422 | S35: =OFFSET('Shipment Data'!S36, 0, 19*(iShip-1)) -> 7.912492909
B36: 2043 | C36: =OFFSET('Shipment Data'!C37, 0, 19*(iShip-1)) -> 3.796858941 | D36: =OFFSET('Shipment Data'!D37, 0, 19*(iShip-1)) -> 4.457182235 | E36: =OFFSET('Shipment Data'!E37, 0, 19*(iShip-1)) -> 1.756540124 | F36: =OFFSET('Shipment Data'!F37, 0, 19*(iShip-1)) -> 1.164770684 | G36: =OFFSET('Shipment Data'!G37, 0, 19*(iShip-1)) -> 1.662368092 | H36: =OFFSET('Shipment Data'!H37, 0, 19*(iShip-1)) -> 5.745666955 | I36: =OFFSET('Shipment Data'!I37, 0, 19*(iShip-1)) -> 6.479156353 | J36: =OFFSET('Shipment Data'!J37, 0, 19*(iShip-1)) -> 2.658116802 | K36: =OFFSET('Shipment Data'!K37, 0, 19*(iShip-1)) -> 2.00204359 | L36: =OFFSET('Shipment Data'!L37, 0, 19*(iShip-1)) -> 2.504899323 | M36: =OFFSET('Shipment Data'!M37, 0, 19*(iShip-1)) -> 0.9278201075 | N36: =OFFSET('Shipment Data'!N37, 0, 19*(iShip-1)) -> 1.089180126 | O36: =OFFSET('Shipment Data'!O37, 0, 19*(iShip-1)) -> 0.4292372386 | P36: =OFFSET('Shipment Data'!P37, 0, 19*(iShip-1)) -> 1.29734078 | Q36: =OFFSET('Shipment Data'!Q37, 0, 19*(iShip-1)) -> 1.702322379 | R36: =OFFSET('Shipment Data'!R37, 0, 19*(iShip-1)) -> 25.02157256 | S36: =OFFSET('Shipment Data'!S37, 0, 19*(iShip-1)) -> 7.991617838
B37: 2044 | C37: =OFFSET('Shipment Data'!C38, 0, 19*(iShip-1)) -> 3.83482753 | D37: =OFFSET('Shipment Data'!D38, 0, 19*(iShip-1)) -> 4.501754057 | E37: =OFFSET('Shipment Data'!E38, 0, 19*(iShip-1)) -> 1.774105525 | F37: =OFFSET('Shipment Data'!F38, 0, 19*(iShip-1)) -> 1.176418391 | G37: =OFFSET('Shipment Data'!G38, 0, 19*(iShip-1)) -> 1.678991773 | H37: =OFFSET('Shipment Data'!H38, 0, 19*(iShip-1)) -> 5.803123624 | I37: =OFFSET('Shipment Data'!I38, 0, 19*(iShip-1)) -> 6.543947917 | J37: =OFFSET('Shipment Data'!J38, 0, 19*(iShip-1)) -> 2.68469797 | K37: =OFFSET('Shipment Data'!K38, 0, 19*(iShip-1)) -> 2.022064026 | L37: =OFFSET('Shipment Data'!L38, 0, 19*(iShip-1)) -> 2.529948316 | M37: =OFFSET('Shipment Data'!M38, 0, 19*(iShip-1)) -> 0.9370983086 | N37: =OFFSET('Shipment Data'!N38, 0, 19*(iShip-1)) -> 1.100071927 | O37: =OFFSET('Shipment Data'!O38, 0, 19*(iShip-1)) -> 0.4335296109 | P37: =OFFSET('Shipment Data'!P38, 0, 19*(iShip-1)) -> 1.310314188 | Q37: =OFFSET('Shipment Data'!Q38, 0, 19*(iShip-1)) -> 1.719345603 | R37: =OFFSET('Shipment Data'!R38, 0, 19*(iShip-1)) -> 25.27178828 | S37: =OFFSET('Shipment Data'!S38, 0, 19*(iShip-1)) -> 8.071534017
B38: 2045 | C38: =OFFSET('Shipment Data'!C39, 0, 19*(iShip-1)) -> 3.873175805 | D38: =OFFSET('Shipment Data'!D39, 0, 19*(iShip-1)) -> 4.546771598 | E38: =OFFSET('Shipment Data'!E39, 0, 19*(iShip-1)) -> 1.791846581 | F38: =OFFSET('Shipment Data'!F39, 0, 19*(iShip-1)) -> 1.188182574 | G38: =OFFSET('Shipment Data'!G39, 0, 19*(iShip-1)) -> 1.695781691 | H38: =OFFSET('Shipment Data'!H39, 0, 19*(iShip-1)) -> 5.86115486 | I38: =OFFSET('Shipment Data'!I39, 0, 19*(iShip-1)) -> 6.609387396 | J38: =OFFSET('Shipment Data'!J39, 0, 19*(iShip-1)) -> 2.71154495 | K38: =OFFSET('Shipment Data'!K39, 0, 19*(iShip-1)) -> 2.042284667 | L38: =OFFSET('Shipment Data'!L39, 0, 19*(iShip-1)) -> 2.555247799 | M38: =OFFSET('Shipment Data'!M39, 0, 19*(iShip-1)) -> 0.9464692917 | N38: =OFFSET('Shipment Data'!N39, 0, 19*(iShip-1)) -> 1.111072647 | O38: =OFFSET('Shipment Data'!O39, 0, 19*(iShip-1)) -> 0.4378649071 | P38: =OFFSET('Shipment Data'!P39, 0, 19*(iShip-1)) -> 1.323417329 | Q38: =OFFSET('Shipment Data'!Q39, 0, 19*(iShip-1)) -> 1.736539059 | R38: =OFFSET('Shipment Data'!R39, 0, 19*(iShip-1)) -> 25.52450617 | S38: =OFFSET('Shipment Data'!S39, 0, 19*(iShip-1)) -> 8.152249357
B39: 2046 | C39: =OFFSET('Shipment Data'!C40, 0, 19*(iShip-1)) -> 3.911907563 | D39: =OFFSET('Shipment Data'!D40, 0, 19*(iShip-1)) -> 4.592239314 | E39: =OFFSET('Shipment Data'!E40, 0, 19*(iShip-1)) -> 1.809765047 | F39: =OFFSET('Shipment Data'!F40, 0, 19*(iShip-1)) -> 1.2000644 | G39: =OFFSET('Shipment Data'!G40, 0, 19*(iShip-1)) -> 1.712739508 | H39: =OFFSET('Shipment Data'!H40, 0, 19*(iShip-1)) -> 5.919766409 | I39: =OFFSET('Shipment Data'!I40, 0, 19*(iShip-1)) -> 6.67548127 | J39: =OFFSET('Shipment Data'!J40, 0, 19*(iShip-1)) -> 2.7386604 | K39: =OFFSET('Shipment Data'!K40, 0, 19*(iShip-1)) -> 2.062707513 | L39: =OFFSET('Shipment Data'!L40, 0, 19*(iShip-1)) -> 2.580800277 | M39: =OFFSET('Shipment Data'!M40, 0, 19*(iShip-1)) -> 0.9559339846 | N39: =OFFSET('Shipment Data'!N40, 0, 19*(iShip-1)) -> 1.122183373 | O39: =OFFSET('Shipment Data'!O40, 0, 19*(iShip-1)) -> 0.4422435561 | P39: =OFFSET('Shipment Data'!P40, 0, 19*(iShip-1)) -> 1.336651503 | Q39: =OFFSET('Shipment Data'!Q40, 0, 19*(iShip-1)) -> 1.753904449 | R39: =OFFSET('Shipment Data'!R40, 0, 19*(iShip-1)) -> 25.77975123 | S39: =OFFSET('Shipment Data'!S40, 0, 19*(iShip-1)) -> 8.233771851
B40: 2047 | C40: =OFFSET('Shipment Data'!C41, 0, 19*(iShip-1)) -> 3.951026639 | D40: =OFFSET('Shipment Data'!D41, 0, 19*(iShip-1)) -> 4.638161707 | E40: =OFFSET('Shipment Data'!E41, 0, 19*(iShip-1)) -> 1.827862697 | F40: =OFFSET('Shipment Data'!F41, 0, 19*(iShip-1)) -> 1.212065044 | G40: =OFFSET('Shipment Data'!G41, 0, 19*(iShip-1)) -> 1.729866903 | H40: =OFFSET('Shipment Data'!H41, 0, 19*(iShip-1)) -> 5.978964073 | I40: =OFFSET('Shipment Data'!I41, 0, 19*(iShip-1)) -> 6.742236082 | J40: =OFFSET('Shipment Data'!J41, 0, 19*(iShip-1)) -> 2.766047004 | K40: =OFFSET('Shipment Data'!K41, 0, 19*(iShip-1)) -> 2.083334588 | L40: =OFFSET('Shipment Data'!L41, 0, 19*(iShip-1)) -> 2.60660828 | M40: =OFFSET('Shipment Data'!M41, 0, 19*(iShip-1)) -> 0.9654933244 | N40: =OFFSET('Shipment Data'!N41, 0, 19*(iShip-1)) -> 1.133405207 | O40: =OFFSET('Shipment Data'!O41, 0, 19*(iShip-1)) -> 0.4466659917 | P40: =OFFSET('Shipment Data'!P41, 0, 19*(iShip-1)) -> 1.350018018 | Q40: =OFFSET('Shipment Data'!Q41, 0, 19*(iShip-1)) -> 1.771443494 | R40: =OFFSET('Shipment Data'!R41, 0, 19*(iShip-1)) -> 26.03754874 | S40: =OFFSET('Shipment Data'!S41, 0, 19*(iShip-1)) -> 8.316109569
B41: 2048 | C41: =OFFSET('Shipment Data'!C42, 0, 19*(iShip-1)) -> 3.990536905 | D41: =OFFSET('Shipment Data'!D42, 0, 19*(iShip-1)) -> 4.684543324 | E41: =OFFSET('Shipment Data'!E42, 0, 19*(iShip-1)) -> 1.846141324 | F41: =OFFSET('Shipment Data'!F42, 0, 19*(iShip-1)) -> 1.224185695 | G41: =OFFSET('Shipment Data'!G42, 0, 19*(iShip-1)) -> 1.747165572 | H41: =OFFSET('Shipment Data'!H42, 0, 19*(iShip-1)) -> 6.038753714 | I41: =OFFSET('Shipment Data'!I42, 0, 19*(iShip-1)) -> 6.809658443 | J41: =OFFSET('Shipment Data'!J42, 0, 19*(iShip-1)) -> 2.793707474 | K41: =OFFSET('Shipment Data'!K42, 0, 19*(iShip-1)) -> 2.104167934 | L41: =OFFSET('Shipment Data'!L42, 0, 19*(iShip-1)) -> 2.632674363 | M41: =OFFSET('Shipment Data'!M42, 0, 19*(iShip-1)) -> 0.9751482577 | N41: =OFFSET('Shipment Data'!N42, 0, 19*(iShip-1)) -> 1.144739259 | O41: =OFFSET('Shipment Data'!O42, 0, 19*(iShip-1)) -> 0.4511326516 | P41: =OFFSET('Shipment Data'!P42, 0, 19*(iShip-1)) -> 1.363518198 | Q41: =OFFSET('Shipment Data'!Q42, 0, 19*(iShip-1)) -> 1.789157929 | R41: =OFFSET('Shipment Data'!R42, 0, 19*(iShip-1)) -> 26.29792423 | S41: =OFFSET('Shipment Data'!S42, 0, 19*(iShip-1)) -> 8.399270665
B42: 2049 | C42: =OFFSET('Shipment Data'!C43, 0, 19*(iShip-1)) -> 4.030442274 | D42: =OFFSET('Shipment Data'!D43, 0, 19*(iShip-1)) -> 4.731388757 | E42: =OFFSET('Shipment Data'!E43, 0, 19*(iShip-1)) -> 1.864602737 | F42: =OFFSET('Shipment Data'!F43, 0, 19*(iShip-1)) -> 1.236427552 | G42: =OFFSET('Shipment Data'!G43, 0, 19*(iShip-1)) -> 1.764637227 | H42: =OFFSET('Shipment Data'!H43, 0, 19*(iShip-1)) -> 6.099141251 | I42: =OFFSET('Shipment Data'!I43, 0, 19*(iShip-1)) -> 6.877755028 | J42: =OFFSET('Shipment Data'!J43, 0, 19*(iShip-1)) -> 2.821644548 | K42: =OFFSET('Shipment Data'!K43, 0, 19*(iShip-1)) -> 2.125209614 | L42: =OFFSET('Shipment Data'!L43, 0, 19*(iShip-1)) -> 2.659001106 | M42: =OFFSET('Shipment Data'!M43, 0, 19*(iShip-1)) -> 0.9848997402 | N42: =OFFSET('Shipment Data'!N43, 0, 19*(iShip-1)) -> 1.156186652 | O42: =OFFSET('Shipment Data'!O43, 0, 19*(iShip-1)) -> 0.4556439781 | P42: =OFFSET('Shipment Data'!P43, 0, 19*(iShip-1)) -> 1.37715338 | Q42: =OFFSET('Shipment Data'!Q43, 0, 19*(iShip-1)) -> 1.807049508 | R42: =OFFSET('Shipment Data'!R43, 0, 19*(iShip-1)) -> 26.56090347 | S42: =OFFSET('Shipment Data'!S43, 0, 19*(iShip-1)) -> 8.483263371
B43: 2050 | C43: =OFFSET('Shipment Data'!C44, 0, 19*(iShip-1)) -> 4.070746697 | D43: =OFFSET('Shipment Data'!D44, 0, 19*(iShip-1)) -> 4.778702645 | E43: =OFFSET('Shipment Data'!E44, 0, 19*(iShip-1)) -> 1.883248765 | F43: =OFFSET('Shipment Data'!F44, 0, 19*(iShip-1)) -> 1.248791827 | G43: =OFFSET('Shipment Data'!G44, 0, 19*(iShip-1)) -> 1.7822836 | H43: =OFFSET('Shipment Data'!H44, 0, 19*(iShip-1)) -> 6.160132663 | I43: =OFFSET('Shipment Data'!I44, 0, 19*(iShip-1)) -> 6.946532578 | J43: =OFFSET('Shipment Data'!J44, 0, 19*(iShip-1)) -> 2.849860994 | K43: =OFFSET('Shipment Data'!K44, 0, 19*(iShip-1)) -> 2.14646171 | L43: =OFFSET('Shipment Data'!L44, 0, 19*(iShip-1)) -> 2.685591118 | M43: =OFFSET('Shipment Data'!M44, 0, 19*(iShip-1)) -> 0.9947487377 | N43: =OFFSET('Shipment Data'!N44, 0, 19*(iShip-1)) -> 1.167748518 | O43: =OFFSET('Shipment Data'!O44, 0, 19*(iShip-1)) -> 0.4602004179 | P43: =OFFSET('Shipment Data'!P44, 0, 19*(iShip-1)) -> 1.390924914 | Q43: =OFFSET('Shipment Data'!Q44, 0, 19*(iShip-1)) -> 1.825120003 | R43: =OFFSET('Shipment Data'!R44, 0, 19*(iShip-1)) -> 26.82651251 | S43: =OFFSET('Shipment Data'!S44, 0, 19*(iShip-1)) -> 8.568096005
B46: Notes
B47: Shipments projections from 2011-2016 are based on total cable, satellite, and IPTV industry projections from IMS Research. Shipment projections from 2011-2015 for OTT STBs are based on industry projections from CEA (extended to 2016 using average annual growth). Depending on the shipments scenario chosen, projections from 2016-2050 are either assumed to be: (a) declining at 1%/year; (b) flat; or (c) based on the same average annual growth rate for housing units in the U.S. from EIA's Annual Energy Outlook 2012 (i.e. 1%/year). Shipments are assumed to have zero price elasticity and zero price cross-elasticity under standards cases. To dissaggregate total cable, satellite, and IPTV industry projections, the following assumptions are used: 1. The cable and satellite thin client projections were aggregated into a single thin client product group. IP thin clients are not projected to enter the market by 2016, and thus have zero market share. 2. Households with 3+ TVs were assumed to have a multi-room setup with a server STB. The fraction of 3+ TV households in the Nielsen cable subsample (see LCC spreadsheet) is 46% and in the Nielsen satellite subsample it is 47%. Thus the DVR categories were split into server and non-server product groups according to the above fractions. The IP product groups were based on the Nielsen cable subsample. 3. The ratio of video servers to DVR servers was assumed to be the same as the overall ratio of non-DVR households to DVR households in the Nielsen sample. 4. The fraction of video clients relative to thin clients was assumed to be 15%/85% for cable, based on current STB manufacturer market shares. Only some cable STB manufacturers are producing video clients. 5. The fraction of video clients relative to thin clients was assumed to be 59%/41% for satellite, based on the relative market share of DirecTV and DISH Network. Each service provider is pursuing a different multi-room architecture. 6. For IP, all clients are projected to be video clients. The ratio of total clients to total servers was assumed to be that same as for cable. 7. For cable, satellite, and IP, all non-DVR shipments that are not assigned as video clients or video servers are assumed to be base STBs. Sources: IMS Research. Online Set-top Box and iDTV Database. Posted August 31, 2012. (accessed October 9, 2012). CEA, Consumer Electronics Detailed Forecast Module 2010-2015, January 2012. In CEE Consumer Electronics Program Center Set-top Box Forecast. (accessed July 24, 2012). Energy Information Administration, Annual Energy Outlook 2012 with Projections to 2035, 2012. Washington, DC. Report No. DOE/EIA-0383(2012). http://www.eia.doe.gov/oiaf/aeo/

Sheet Shipment Data (hidden)
B1: Shipment Data
B3: Negative Growth | U3: Flat Growth | AN3: Postive Growth
B4: (millions) | C4: Cable With DVR & Video Server | D4: Cable With DVR | E4: Cable With Video Server | F4: Cable With Video Client | G4: Cable Base | H4: Satellite With DVR & Video Server | I4: Satellite With DVR | J4: Satellite With Video Server | K4: Satellite With Video Client | L4: Satellite Base | M4: IP With DVR & Video Server | N4: IP With DVR | O4: IP With Video Server | P4: IP With Video Client | Q4: IP Base | R4: IP OTT | S4: Thin-client Total | U4: (millions) | V4: Cable With DVR & Video Server | W4: Cable With DVR | X4: Cable With Video Server | Y4: Cable With Video Client | Z4: Cable Base | AA4: Satellite With DVR & Video Server | AB4: Satellite With DVR | AC4: Satellite With Video Server | AD4: Satellite With Video Client | AE4: Satellite Base | AF4: IP With DVR & Video Server | AG4: IP With DVR | AH4: IP With Video Server | AI4: IP With Video Client | AJ4: IP Base | AK4: IP OTT | AL4: Thin-client Total | AN4: (millions) | AO4: Cable With DVR & Video Server | AP4: Cable With DVR | AQ4: Cable With Video Server | AR4: Cable With Video Client | AS4: Cable Base | AT4: Satellite With DVR & Video Server | AU4: Satellite With DVR | AV4: Satellite With Video Server | AW4: Satellite With Video Client | AX4: Satellite Base | AY4: IP With DVR & Video Server | AZ4: IP With DVR | BA4: IP With Video Server | BB4: IP With Video Client | BC4: IP Base | BD4: IP OTT | BE4: Thin-client Total
B5: 2011 | C5: 2.448031357 | D5: 2.873775941 | E5: 1.132532278 | F5: 0.001415109388 | G5: 17.67577058 | H5: 2.782481428 | I5: 3.137691823 | J5: 1.28725885 | K5: 0.0001096087622 | L5: 8.043905036 | M5: 0.3782232367 | N5: 0.444001191 | O5: 0.1749773435 | P5: 0.0009965418998 | Q5: 1.221807642 | R5: 6.166666667 | S5: 0.008095121998 | U5: 2011 | V5: 2.448031357 | W5: 2.873775941 | X5: 1.132532278 | Y5: 0.001415109388 | Z5: 17.67577058 | AA5: 2.782481428 | AB5: 3.137691823 | AC5: 1.28725885 | AD5: 0.0001096087622 | AE5: 8.043905036 | AF5: 0.3782232367 | AG5: 0.444001191 | AH5: 0.1749773435 | AI5: 0.0009965418998 | AJ5: 1.221807642 | AK5: 6.166666667 | AL5: 0.008095121998 | AN5: 2011 | AO5: 2.448031357 | AP5: 2.873775941 | AQ5: 1.132532278 | AR5: 0.001415109388 | AS5: 17.67577058 | AT5: 2.782481428 | AU5: 3.137691823 | AV5: 1.28725885 | AW5: 0.0001096087622 | AX5: 8.043905036 | AY5: 0.3782232367 | AZ5: 0.444001191 | BA5: 0.1749773435 | BB5: 0.0009965418998 | BC5: 1.221807642 | BD5: 6.166666667 | BE5: 0.008095121998
B6: 2012 | C6: 1.617951126 | D6: 1.899333931 | E6: 0.7485124196 | F6: 0.1546375775 | G6: 11.91871241 | H6: 2.963265421 | I6: 3.341554623 | J6: 1.370894914 | K6: 0.1171745692 | L6: 4.952534786 | M6: 0.4912278744 | N6: 0.576658809 | O6: 0.2272566574 | P6: 0.2139966439 | Q6: 1.706800762 | R6: 7.866666667 | S6: 0.9577060016 | U6: 2012 | V6: 1.617951126 | W6: 1.899333931 | X6: 0.7485124196 | Y6: 0.1546375775 | Z6: 11.91871241 | AA6: 2.963265421 | AB6: 3.341554623 | AC6: 1.370894914 | AD6: 0.1171745692 | AE6: 4.952534786 | AF6: 0.4912278744 | AG6: 0.576658809 | AH6: 0.2272566574 | AI6: 0.2139966439 | AJ6: 1.706800762 | AK6: 7.866666667 | AL6: 0.9577060016 | AN6: 2012 | AO6: 1.617951126 | AP6: 1.899333931 | AQ6: 0.7485124196 | AR6: 0.1546375775 | AS6: 11.91871241 | AT6: 2.963265421 | AU6: 3.341554623 | AV6: 1.370894914 | AW6: 0.1171745692 | AX6: 4.952534786 | AY6: 0.4912278744 | AZ6: 0.576658809 | BA6: 0.2272566574 | BB6: 0.2139966439 | BC6: 1.706800762 | BD6: 7.866666667 | BE6: 0.9577060016
B7: 2013 | C7: 1.894076428 | D7: 2.223481025 | E7: 0.8762562151 | F7: 0.2356495524 | G7: 8.545410013 | H7: 3.580121526 | I7: 4.037158317 | J7: 1.656270936 | K7: 0.3171345656 | L7: 4.551115557 | M7: 0.7220657272 | N7: 0.8476423754 | O7: 0.334049129 | P7: 0.4094681934 | Q7: 2.269851322 | R7: 10 | S7: 1.555729111 | U7: 2013 | V7: 1.894076428 | W7: 2.223481025 | X7: 0.8762562151 | Y7: 0.2356495524 | Z7: 8.545410013 | AA7: 3.580121526 | AB7: 4.037158317 | AC7: 1.656270936 | AD7: 0.3171345656 | AE7: 4.551115557 | AF7: 0.7220657272 | AG7: 0.8476423754 | AH7: 0.334049129 | AI7: 0.4094681934 | AJ7: 2.269851322 | AK7: 10 | AL7: 1.555729111 | AN7: 2013 | AO7: 1.894076428 | AP7: 2.223481025 | AQ7: 0.8762562151 | AR7: 0.2356495524 | AS7: 8.545410013 | AT7: 3.580121526 | AU7: 4.037158317 | AV7: 1.656270936 | AW7: 0.3171345656 | AX7: 4.551115557 | AY7: 0.7220657272 | AZ7: 0.8476423754 | BA7: 0.334049129 | BB7: 0.4094681934 | BC7: 2.269851322 | BD7: 10 | BE7: 1.555729111
B8: 2014 | C8: 2.666663591 | D8: 3.130431172 | E8: 1.233678066 | F8: 0.4096477719 | G8: 8.104087766 | H8: 3.792018254 | I8: 4.27610569 | J8: 1.754300678 | K8: 0.681105787 | L8: 3.209395422 | M8: 0.788259942 | N8: 0.9253486276 | O8: 0.364672546 | P8: 0.5519327233 | Q8: 1.996529299 | R8: 12.3 | S8: 2.794648175 | U8: 2014 | V8: 2.666663591 | W8: 3.130431172 | X8: 1.233678066 | Y8: 0.4096477719 | Z8: 8.104087766 | AA8: 3.792018254 | AB8: 4.27610569 | AC8: 1.754300678 | AD8: 0.681105787 | AE8: 3.209395422 | AF8: 0.788259942 | AG8: 0.9253486276 | AH8: 0.364672546 | AI8: 0.5519327233 | AJ8: 1.996529299 | AK8: 12.3 | AL8: 2.794648175 | AN8: 2014 | AO8: 2.666663591 | AP8: 3.130431172 | AQ8: 1.233678066 | AR8: 0.4096477719 | AS8: 8.104087766 | AT8: 3.792018254 | AU8: 4.27610569 | AV8: 1.754300678 | AW8: 0.681105787 | AX8: 3.209395422 | AY8: 0.788259942 | AZ8: 0.9253486276 | BA8: 0.364672546 | BB8: 0.5519327233 | BC8: 1.996529299 | BD8: 12.3 | BE8: 2.794648175
B9: 2015 | C9: 2.784498732 | D9: 3.268759381 | E9: 1.288192115 | F9: 0.6500015266 | G9: 4.687404229 | H9: 4.296421698 | I9: 4.844901063 | J9: 1.987652747 | K9: 1.28379305 | L9: 1.921669676 | M9: 0.7487446365 | N9: 0.8789610951 | O9: 0.3463915877 | P9: 0.7966643759 | Q9: 1.62404378 | R9: 15 | S9: 4.575469358 | U9: 2015 | V9: 2.784498732 | W9: 3.268759381 | X9: 1.288192115 | Y9: 0.6500015266 | Z9: 4.687404229 | AA9: 4.296421698 | AB9: 4.844901063 | AC9: 1.987652747 | AD9: 1.28379305 | AE9: 1.921669676 | AF9: 0.7487446365 | AG9: 0.8789610951 | AH9: 0.3463915877 | AI9: 0.7966643759 | AJ9: 1.62404378 | AK9: 15 | AL9: 4.575469358 | AN9: 2015 | AO9: 2.784498732 | AP9: 3.268759381 | AQ9: 1.288192115 | AR9: 0.6500015266 | AS9: 4.687404229 | AT9: 4.296421698 | AU9: 4.844901063 | AV9: 1.987652747 | AW9: 1.28379305 | AX9: 1.921669676 | AY9: 0.7487446365 | AZ9: 0.8789610951 | BA9: 0.3463915877 | BB9: 0.7966643759 | BC9: 1.62404378 | BD9: 15 | BE9: 4.575469358
B10: 2016 | C10: 2.902333874 | D10: 3.407087591 | E10: 1.342706164 | F10: 0.8903552813 | G10: 1.270720693 | H10: 4.392010367 | I10: 4.952692541 | J10: 2.031874914 | K10: 1.530369977 | L10: 1.914754872 | M10: 0.7092293311 | N10: 0.8325735625 | O10: 0.3281106295 | P10: 0.991692383 | Q10: 1.301261907 | R10: 19.12658825 | S10: 6.108824036 | U10: 2016 | V10: 2.902333874 | W10: 3.407087591 | X10: 1.342706164 | Y10: 0.8903552813 | Z10: 1.270720693 | AA10: 4.392010367 | AB10: 4.952692541 | AC10: 2.031874914 | AD10: 1.530369977 | AE10: 1.914754872 | AF10: 0.7092293311 | AG10: 0.8325735625 | AH10: 0.3281106295 | AI10: 0.991692383 | AJ10: 1.301261907 | AK10: 19.12658825 | AL10: 6.108824036 | AN10: 2016 | AO10: 2.902333874 | AP10: 3.407087591 | AQ10: 1.342706164 | AR10: 0.8903552813 | AS10: 1.270720693 | AT10: 4.392010367 | AU10: 4.952692541 | AV10: 2.031874914 | AW10: 1.530369977 | AX10: 1.914754872 | AY10: 0.7092293311 | AZ10: 0.8325735625 | BA10: 0.3281106295 | BB10: 0.991692383 | BC10: 1.301261907 | BD10: 19.12658825 | BE10: 6.108824036
B11: 2017 | C11: 2.873310535 | D11: 3.373016715 | E11: 1.329279102 | F11: 0.8814517285 | G11: 1.258013486 | H11: 4.348090263 | I11: 4.903165616 | J11: 2.011556165 | K11: 1.515066277 | L11: 1.895607323 | M11: 0.7021370377 | N11: 0.8242478269 | O11: 0.3248295232 | P11: 0.9817754592 | Q11: 1.288249288 | R11: 18.93532237 | S11: 6.047735795 | U11: 2017 | V11: 2.902333874 | W11: 3.407087591 | X11: 1.342706164 | Y11: 0.8903552813 | Z11: 1.270720693 | AA11: 4.392010367 | AB11: 4.952692541 | AC11: 2.031874914 | AD11: 1.530369977 | AE11: 1.914754872 | AF11: 0.7092293311 | AG11: 0.8325735625 | AH11: 0.3281106295 | AI11: 0.991692383 | AJ11: 1.301261907 | AK11: 19.12658825 | AL11: 6.108824036 | AN11: 2017 | AO11: 2.931357212 | AP11: 3.441158467 | AQ11: 1.356133225 | AR11: 0.8992588341 | AS11: 1.2834279 | AT11: 4.43593047 | AU11: 5.002219467 | AV11: 2.052193664 | AW11: 1.545673677 | AX11: 1.933902421 | AY11: 0.7163216244 | AZ11: 0.8408992982 | BA11: 0.3313917358 | BB11: 1.001609307 | BC11: 1.314274526 | BD11: 19.31785413 | BE11: 6.169912276
B12: 2018 | C12: 2.844577429 | D12: 3.339286548 | E12: 1.315986311 | F12: 0.8726372112 | G12: 1.245433351 | H12: 4.30460936 | I12: 4.85413396 | J12: 1.991440604 | K12: 1.499915614 | L12: 1.87665125 | M12: 0.6951156674 | N12: 0.8160053486 | O12: 0.321581228 | P12: 0.9719577046 | Q12: 1.275366795 | R12: 18.74596915 | S12: 5.987258437 | U12: 2018 | V12: 2.902333874 | W12: 3.407087591 | X12: 1.342706164 | Y12: 0.8903552813 | Z12: 1.270720693 | AA12: 4.392010367 | AB12: 4.952692541 | AC12: 2.031874914 | AD12: 1.530369977 | AE12: 1.914754872 | AF12: 0.7092293311 | AG12: 0.8325735625 | AH12: 0.3281106295 | AI12: 0.991692383 | AJ12: 1.301261907 | AK12: 19.12658825 | AL12: 6.108824036 | AN12: 2018 | AO12: 2.960670784 | AP12: 3.475570051 | AQ12: 1.369694558 | AR12: 0.9082514225 | AS12: 1.296262179 | AT12: 4.480289775 | AU12: 5.052241661 | AV12: 2.0727156 | AW12: 1.561130413 | AX12: 1.953241445 | AY12: 0.7234848406 | AZ12: 0.8493082911 | BA12: 0.3347056532 | BB12: 1.0116254 | BC12: 1.327417271 | BD12: 19.51103268 | BE12: 6.231611399
B13: 2019 | C13: 2.816131655 | D13: 3.305893682 | E13: 1.302826448 | F13: 0.8639108391 | G13: 1.232979018 | H13: 4.261563267 | I13: 4.80559262 | J13: 1.971526198 | K13: 1.484916458 | L13: 1.857884737 | M13: 0.6881645107 | N13: 0.8078452952 | O13: 0.3183654157 | P13: 0.9622381275 | Q13: 1.262613127 | R13: 18.55850945 | S13: 5.927385853 | U13: 2019 | V13: 2.902333874 | W13: 3.407087591 | X13: 1.342706164 | Y13: 0.8903552813 | Z13: 1.270720693 | AA13: 4.392010367 | AB13: 4.952692541 | AC13: 2.031874914 | AD13: 1.530369977 | AE13: 1.914754872 | AF13: 0.7092293311 | AG13: 0.8325735625 | AH13: 0.3281106295 | AI13: 0.991692383 | AJ13: 1.301261907 | AK13: 19.12658825 | AL13: 6.108824036 | AN13: 2019 | AO13: 2.990277492 | AP13: 3.510325752 | AQ13: 1.383391503 | AR13: 0.9173339367 | AS13: 1.309224801 | AT13: 4.525092673 | AU13: 5.102764078 | AV13: 2.093442756 | AW13: 1.576741717 | AX13: 1.972773859 | AY13: 0.730719689 | AZ13: 0.8578013741 | BA13: 0.3380527097 | BB13: 1.021741654 | BC13: 1.340691444 | BD13: 19.706143 | BE13: 6.293927513
B14: 2020 | C14: 2.787970339 | D14: 3.272834745 | E14: 1.289798184 | F14: 0.8552717307 | G14: 1.220649227 | H14: 4.218947634 | I14: 4.757536694 | J14: 1.951810936 | K14: 1.470067294 | L14: 1.83930589 | M14: 0.6812828656 | N14: 0.7997668422 | O14: 0.3151817616 | P14: 0.9526157462 | Q14: 1.249986995 | R14: 18.37292436 | S14: 5.868111995 | U14: 2020 | V14: 2.902333874 | W14: 3.407087591 | X14: 1.342706164 | Y14: 0.8903552813 | Z14: 1.270720693 | AA14: 4.392010367 | AB14: 4.952692541 | AC14: 2.031874914 | AD14: 1.530369977 | AE14: 1.914754872 | AF14: 0.7092293311 | AG14: 0.8325735625 | AH14: 0.3281106295 | AI14: 0.991692383 | AJ14: 1.301261907 | AK14: 19.12658825 | AL14: 6.108824036 | AN14: 2020 | AO14: 3.020180267 | AP14: 3.545429009 | AQ14: 1.397225418 | AR14: 0.9265072761 | AS14: 1.322317049 | AT14: 4.5703436 | AU14: 5.153791719 | AV14: 2.114377184 | AW14: 1.592509135 | AX14: 1.992501598 | AY14: 0.7380268859 | AZ14: 0.8663793878 | BA14: 0.3414332368 | BB14: 1.03195907 | BC14: 1.354098358 | BD14: 19.90320443 | BE14: 6.356866788
B15: 2021 | C15: 2.760090635 | D15: 3.240106398 | E15: 1.276900202 | F15: 0.8467190134 | G15: 1.208442735 | H15: 4.176758158 | I15: 4.709961327 | J15: 1.932292826 | K15: 1.455366621 | L15: 1.820912831 | M15: 0.6744700369 | N15: 0.7917691738 | O15: 0.312029944 | P15: 0.9430895888 | Q15: 1.237487125 | R15: 18.18919512 | S15: 5.809430875 | U15: 2021 | V15: 2.902333874 | W15: 3.407087591 | X15: 1.342706164 | Y15: 0.8903552813 | Z15: 1.270720693 | AA15: 4.392010367 | AB15: 4.952692541 | AC15: 2.031874914 | AD15: 1.530369977 | AE15: 1.914754872 | AF15: 0.7092293311 | AG15: 0.8325735625 | AH15: 0.3281106295 | AI15: 0.991692383 | AJ15: 1.301261907 | AK15: 19.12658825 | AL15: 6.108824036 | AN15: 2021 | AO15: 3.05038207 | AP15: 3.580883299 | AQ15: 1.411197672 | AR15: 0.9357723488 | AS15: 1.335540219 | AT15: 4.616047036 | AU15: 5.205329636 | AV15: 2.135520956 | AW15: 1.608434226 | AX15: 2.012426614 | AY15: 0.7454071548 | AZ15: 0.8750431817 | BA15: 0.3448475692 | BB15: 1.042278661 | BC15: 1.367639342 | BD15: 20.10223648 | BE15: 6.420435456
B16: 2022 | C16: 2.732489729 | D16: 3.207705334 | E16: 1.2641312 | F16: 0.8382518233 | G16: 1.196358308 | H16: 4.134990576 | I16: 4.662861714 | J16: 1.912969898 | K16: 1.440812954 | L16: 1.802703703 | M16: 0.6677253366 | N16: 0.783851482 | O16: 0.3089096445 | P16: 0.9336586929 | Q16: 1.225112254 | R16: 18.00730316 | S16: 5.751336566 | U16: 2022 | V16: 2.902333874 | W16: 3.407087591 | X16: 1.342706164 | Y16: 0.8903552813 | Z16: 1.270720693 | AA16: 4.392010367 | AB16: 4.952692541 | AC16: 2.031874914 | AD16: 1.530369977 | AE16: 1.914754872 | AF16: 0.7092293311 | AG16: 0.8325735625 | AH16: 0.3281106295 | AI16: 0.991692383 | AJ16: 1.301261907 | AK16: 19.12658825 | AL16: 6.108824036 | AN16: 2022 | AO16: 3.080885891 | AP16: 3.616692132 | AQ16: 1.425309649 | AR16: 0.9451300723 | AS16: 1.348895621 | AT16: 4.662207506 | AU16: 5.257382932 | AV16: 2.156876165 | AW16: 1.624518568 | AX16: 2.03255088 | AY16: 0.7528612263 | AZ16: 0.8837936135 | BA16: 0.3482960449 | BB16: 1.052701448 | BC16: 1.381315735 | BD16: 20.30325884 | BE16: 6.48463981
B17: 2023 | C17: 2.705164832 | D17: 3.175628281 | E17: 1.251489888 | F17: 0.8298693051 | G17: 1.184394725 | H17: 4.093640671 | I17: 4.616233097 | J17: 1.893840199 | K17: 1.426404825 | L17: 1.784676666 | M17: 0.6610480832 | N17: 0.7760129672 | O17: 0.3058205481 | P17: 0.924322106 | Q17: 1.212861132 | R17: 17.82723013 | S17: 5.6938232 | U17: 2023 | V17: 2.902333874 | W17: 3.407087591 | X17: 1.342706164 | Y17: 0.8903552813 | Z17: 1.270720693 | AA17: 4.392010367 | AB17: 4.952692541 | AC17: 2.031874914 | AD17: 1.530369977 | AE17: 1.914754872 | AF17: 0.7092293311 | AG17: 0.8325735625 | AH17: 0.3281106295 | AI17: 0.991692383 | AJ17: 1.301261907 | AK17: 19.12658825 | AL17: 6.108824036 | AN17: 2023 | AO17: 3.111694749 | AP17: 3.652859054 | AQ17: 1.439562746 | AR17: 0.954581373 | AS17: 1.362384577 | AT17: 4.708829581 | AU17: 5.309956762 | AV17: 2.178444927 | AW17: 1.640763754 | AX17: 2.052876389 | AY17: 0.7603898386 | AZ17: 0.8926315496 | BA17: 0.3517790053 | BB17: 1.063228462 | BC17: 1.395128892 | BD17: 20.50629143 | BE17: 6.549486208
B18: 2024 | C18: 2.678113183 | D18: 3.143871998 | E18: 1.238974989 | F18: 0.821570612 | G18: 1.172550777 | H18: 4.052704264 | I18: 4.570070766 | J18: 1.874901797 | K18: 1.412140777 | L18: 1.766829899 | M18: 0.6544376024 | N18: 0.7682528376 | O18: 0.3027623426 | P18: 0.9150788849 | Q18: 1.20073252 | R18: 17.64895783 | S18: 5.636884968 | U18: 2024 | V18: 2.902333874 | W18: 3.407087591 | X18: 1.342706164 | Y18: 0.8903552813 | Z18: 1.270720693 | AA18: 4.392010367 | AB18: 4.952692541 | AC18: 2.031874914 | AD18: 1.530369977 | AE18: 1.914754872 | AF18: 0.7092293311 | AG18: 0.8325735625 | AH18: 0.3281106295 | AI18: 0.991692383 | AJ18: 1.301261907 | AK18: 19.12658825 | AL18: 6.108824036 | AN18: 2024 | AO18: 3.142811697 | AP18: 3.689387644 | AQ18: 1.453958373 | AR18: 0.9641271868 | AS18: 1.376008423 | AT18: 4.755917877 | AU18: 5.363056329 | AV18: 2.200229376 | AW18: 1.657171391 | AX18: 2.073405153 | AY18: 0.767993737 | AZ18: 0.9015578651 | BA18: 0.3552967954 | BB18: 1.073860747 | BC18: 1.409080181 | BD18: 20.71135434 | BE18: 6.614981071
B19: 2025 | C19: 2.651332051 | D19: 3.112433278 | E19: 1.226585239 | F19: 0.8133549059 | G19: 1.16082527 | H19: 4.012177221 | I19: 4.524370058 | J19: 1.856152779 | K19: 1.398019369 | L19: 1.7491616 | M19: 0.6478932263 | N19: 0.7605703092 | O19: 0.2997347192 | P19: 0.9059280961 | Q19: 1.188725195 | R19: 17.47246825 | S19: 5.580516118 | U19: 2025 | V19: 2.902333874 | W19: 3.407087591 | X19: 1.342706164 | Y19: 0.8903552813 | Z19: 1.270720693 | AA19: 4.392010367 | AB19: 4.952692541 | AC19: 2.031874914 | AD19: 1.530369977 | AE19: 1.914754872 | AF19: 0.7092293311 | AG19: 0.8325735625 | AH19: 0.3281106295 | AI19: 0.991692383 | AJ19: 1.301261907 | AK19: 19.12658825 | AL19: 6.108824036 | AN19: 2025 | AO19: 3.174239814 | AP19: 3.726281521 | AQ19: 1.468497957 | AR19: 0.9737684586 | AS19: 1.389768507 | AT19: 4.803477056 | AU19: 5.416686892 | AV19: 2.22223167 | AW19: 1.673743105 | AX19: 2.094139204 | AY19: 0.7756736743 | AZ19: 0.9105734438 | BA19: 0.3588497633 | BB19: 1.084599354 | BC19: 1.423170983 | BD19: 20.91846789 | BE19: 6.681130881
B20: 2026 | C20: 2.624818731 | D20: 3.081308945 | E20: 1.214319387 | F20: 0.8052213568 | G20: 1.149217017 | H20: 3.972055449 | I20: 4.479126357 | J20: 1.837591251 | K20: 1.384039175 | L20: 1.731669984 | M20: 0.6414142941 | N20: 0.7529646061 | O20: 0.296737372 | P20: 0.8968688151 | Q20: 1.176837943 | R20: 17.29774357 | S20: 5.524710957 | U20: 2026 | V20: 2.902333874 | W20: 3.407087591 | X20: 1.342706164 | Y20: 0.8903552813 | Z20: 1.270720693 | AA20: 4.392010367 | AB20: 4.952692541 | AC20: 2.031874914 | AD20: 1.530369977 | AE20: 1.914754872 | AF20: 0.7092293311 | AG20: 0.8325735625 | AH20: 0.3281106295 | AI20: 0.991692383 | AJ20: 1.301261907 | AK20: 19.12658825 | AL20: 6.108824036 | AN20: 2026 | AO20: 3.205982212 | AP20: 3.763544336 | AQ20: 1.483182936 | AR20: 0.9835061432 | AS20: 1.403666193 | AT20: 4.851511826 | AU20: 5.470853761 | AV20: 2.244453987 | AW20: 1.690480536 | AX20: 2.115080596 | AY20: 0.7834304111 | AZ20: 0.9196791782 | BA20: 0.362438261 | BB20: 1.095445348 | BC20: 1.437402693 | BD20: 21.12765257 | BE20: 6.74794219
B21: 2027 | C21: 2.598570544 | D21: 3.050495856 | E21: 1.202176193 | F21: 0.7971691433 | G21: 1.137724847 | H21: 3.932334894 | I21: 4.434335094 | J21: 1.819215339 | K21: 1.370198783 | L21: 1.714353284 | M21: 0.6350001511 | N21: 0.74543496 | O21: 0.2937699983 | P21: 0.8879001269 | Q21: 1.165069564 | R21: 17.12476613 | S21: 5.469463848 | U21: 2027 | V21: 2.902333874 | W21: 3.407087591 | X21: 1.342706164 | Y21: 0.8903552813 | Z21: 1.270720693 | AA21: 4.392010367 | AB21: 4.952692541 | AC21: 2.031874914 | AD21: 1.530369977 | AE21: 1.914754872 | AF21: 0.7092293311 | AG21: 0.8325735625 | AH21: 0.3281106295 | AI21: 0.991692383 | AJ21: 1.301261907 | AK21: 19.12658825 | AL21: 6.108824036 | AN21: 2027 | AO21: 3.238042034 | AP21: 3.801179779 | AQ21: 1.498014766 | AR21: 0.9933412047 | AS21: 1.417702854 | AT21: 4.900026944 | AU21: 5.525562299 | AV21: 2.266898526 | AW21: 1.707385342 | AX21: 2.136231402 | AY21: 0.7912647152 | AZ21: 0.92887597 | BA21: 0.3660626436 | BB21: 1.106399801 | BC21: 1.45177672 | BD21: 21.33892909 | BE21: 6.815421612
B22: 2028 | C22: 2.572584838 | D22: 3.019990897 | E22: 1.190154431 | F22: 0.7891974518 | G22: 1.126347598 | H22: 3.893011546 | I22: 4.389991743 | J22: 1.801023185 | K22: 1.356496796 | L22: 1.697209752 | M22: 0.6286501496 | N22: 0.7379806104 | O22: 0.2908322983 | P22: 0.8790211257 | Q22: 1.153418868 | R22: 16.95351847 | S22: 5.414769209 | U22: 2028 | V22: 2.902333874 | W22: 3.407087591 | X22: 1.342706164 | Y22: 0.8903552813 | Z22: 1.270720693 | AA22: 4.392010367 | AB22: 4.952692541 | AC22: 2.031874914 | AD22: 1.530369977 | AE22: 1.914754872 | AF22: 0.7092293311 | AG22: 0.8325735625 | AH22: 0.3281106295 | AI22: 0.991692383 | AJ22: 1.301261907 | AK22: 19.12658825 | AL22: 6.108824036 | AN22: 2028 | AO22: 3.270422454 | AP22: 3.839191577 | AQ22: 1.512994913 | AR22: 1.003274617 | AS22: 1.431879883 | AT22: 4.949027214 | AU22: 5.580817922 | AV22: 2.289567512 | AW22: 1.724459195 | AX22: 2.157593716 | AY22: 0.7991773623 | AZ22: 0.9381647297 | BA22: 0.36972327 | BB22: 1.117463799 | BC22: 1.466294487 | BD22: 21.55231838 | BE22: 6.883575828
B23: 2029 | C23: 2.54685899 | D23: 2.989790988 | E23: 1.178252886 | F23: 0.7813054773 | G23: 1.115084122 | H23: 3.85408143 | I23: 4.346091825 | J23: 1.783012954 | K23: 1.342931828 | L23: 1.680237654 | M23: 0.6223636481 | N23: 0.7306008043 | O23: 0.2879239753 | P23: 0.8702309144 | Q23: 1.141884679 | R23: 16.78398329 | S23: 5.360621517 | U23: 2029 | V23: 2.902333874 | W23: 3.407087591 | X23: 1.342706164 | Y23: 0.8903552813 | Z23: 1.270720693 | AA23: 4.392010367 | AB23: 4.952692541 | AC23: 2.031874914 | AD23: 1.530369977 | AE23: 1.914754872 | AF23: 0.7092293311 | AG23: 0.8325735625 | AH23: 0.3281106295 | AI23: 0.991692383 | AJ23: 1.301261907 | AK23: 19.12658825 | AL23: 6.108824036 | AN23: 2029 | AO23: 3.303126679 | AP23: 3.877583493 | AQ23: 1.528124863 | AR23: 1.013307363 | AS23: 1.446198682 | AT23: 4.998517486 | AU23: 5.636626101 | AV23: 2.312463187 | AW23: 1.741703787 | AX23: 2.179169653 | AY23: 0.807169136 | AZ23: 0.947546377 | BA23: 0.3734205027 | BB23: 1.128638437 | BC23: 1.480957432 | BD23: 21.76784157 | BE23: 6.952411586
B24: 2030 | C24: 2.5213904 | D24: 2.959893078 | E24: 1.166470358 | F24: 0.7734924225 | G24: 1.103933281 | H24: 3.815540616 | I24: 4.302630907 | J24: 1.765182824 | K24: 1.329502509 | L24: 1.663435277 | M24: 0.6161400116 | N24: 0.7232947963 | O24: 0.2850447355 | P24: 0.8615286053 | Q24: 1.130465833 | R24: 16.61614346 | S24: 5.307015302 | U24: 2030 | V24: 2.902333874 | W24: 3.407087591 | X24: 1.342706164 | Y24: 0.8903552813 | Z24: 1.270720693 | AA24: 4.392010367 | AB24: 4.952692541 | AC24: 2.031874914 | AD24: 1.530369977 | AE24: 1.914754872 | AF24: 0.7092293311 | AG24: 0.8325735625 | AH24: 0.3281106295 | AI24: 0.991692383 | AJ24: 1.301261907 | AK24: 19.12658825 | AL24: 6.108824036 | AN24: 2030 | AO24: 3.336157946 | AP24: 3.916359328 | AQ24: 1.543406111 | AR24: 1.023440437 | AS24: 1.460660669 | AT24: 5.048502661 | AU24: 5.692992362 | AV24: 2.335587819 | AW24: 1.759120825 | AX24: 2.20096135 | AY24: 0.8152408273 | AZ24: 0.9570218408 | BA24: 0.3771547077 | BB24: 1.139924822 | BC24: 1.495767006 | BD24: 21.98551998 | BE24: 7.021935702
B25: 2031 | C25: 2.496176496 | D25: 2.930294147 | E25: 1.154805654 | F25: 0.7657574983 | G25: 1.092893948 | H25: 3.77738521 | I25: 4.259604598 | J25: 1.747530996 | K25: 1.316207484 | L25: 1.646800925 | M25: 0.6099786115 | N25: 0.7160618483 | O25: 0.2821942882 | P25: 0.8529133192 | Q25: 1.119161174 | R25: 16.44998202 | S25: 5.253945149 | U25: 2031 | V25: 2.902333874 | W25: 3.407087591 | X25: 1.342706164 | Y25: 0.8903552813 | Z25: 1.270720693 | AA25: 4.392010367 | AB25: 4.952692541 | AC25: 2.031874914 | AD25: 1.530369977 | AE25: 1.914754872 | AF25: 0.7092293311 | AG25: 0.8325735625 | AH25: 0.3281106295 | AI25: 0.991692383 | AJ25: 1.301261907 | AK25: 19.12658825 | AL25: 6.108824036 | AN25: 2031 | AO25: 3.369519525 | AP25: 3.955522921 | AQ25: 1.558840172 | AR25: 1.033674841 | AS25: 1.475267275 | AT25: 5.098987687 | AU25: 5.749922286 | AV25: 2.358943697 | AW25: 1.776712033 | AX25: 2.222970963 | AY25: 0.8233932356 | AZ25: 0.9665920592 | BA25: 0.3809262548 | BB25: 1.15132407 | BC25: 1.510724676 | BD25: 22.20537518 | BE25: 7.092155059
B26: 2032 | C26: 2.471214731 | D26: 2.900991206 | E26: 1.143257597 | F26: 0.7580999233 | G26: 1.081965009 | H26: 3.739611358 | I26: 4.217008552 | J26: 1.730055686 | K26: 1.303045409 | L26: 1.630332915 | M26: 0.6038788254 | N26: 0.7089012298 | O26: 0.2793723453 | P26: 0.844384186 | Q26: 1.107969563 | R26: 16.2854822 | S26: 5.201405697 | U26: 2032 | V26: 2.902333874 | W26: 3.407087591 | X26: 1.342706164 | Y26: 0.8903552813 | Z26: 1.270720693 | AA26: 4.392010367 | AB26: 4.952692541 | AC26: 2.031874914 | AD26: 1.530369977 | AE26: 1.914754872 | AF26: 0.7092293311 | AG26: 0.8325735625 | AH26: 0.3281106295 | AI26: 0.991692383 | AJ26: 1.301261907 | AK26: 19.12658825 | AL26: 6.108824036 | AN26: 2032 | AO26: 3.403214721 | AP26: 3.99507815 | AQ26: 1.574428574 | AR26: 1.044011589 | AS26: 1.490019948 | AT26: 5.149977564 | AU26: 5.807421509 | AV26: 2.382533134 | AW26: 1.794479154 | AX26: 2.245200673 | AY26: 0.8316271679 | AZ26: 0.9762579798 | BA26: 0.3847355174 | BB26: 1.162837311 | BC26: 1.525831923 | BD26: 22.42742893 | BE26: 7.16307661
B27: 2033 | C27: 2.446502584 | D27: 2.871981294 | E27: 1.131825021 | F27: 0.7505189241 | G27: 1.071145359 | H27: 3.702215244 | I27: 4.174838467 | J27: 1.712755129 | K27: 1.290014955 | L27: 1.614029586 | M27: 0.5978400372 | N27: 0.7018122175 | O27: 0.2765786218 | P27: 0.8359403442 | Q27: 1.096889867 | R27: 16.12262738 | S27: 5.14939164 | U27: 2033 | V27: 2.902333874 | W27: 3.407087591 | X27: 1.342706164 | Y27: 0.8903552813 | Z27: 1.270720693 | AA27: 4.392010367 | AB27: 4.952692541 | AC27: 2.031874914 | AD27: 1.530369977 | AE27: 1.914754872 | AF27: 0.7092293311 | AG27: 0.8325735625 | AH27: 0.3281106295 | AI27: 0.991692383 | AJ27: 1.301261907 | AK27: 19.12658825 | AL27: 6.108824036 | AN27: 2033 | AO27: 3.437246868 | AP27: 4.035028932 | AQ27: 1.59017286 | AR27: 1.054451705 | AS27: 1.504920148 | AT27: 5.20147734 | AU27: 5.865495724 | AV27: 2.406358465 | AW27: 1.812423945 | AX27: 2.26765268 | AY27: 0.8399434396 | AZ27: 0.9860205596 | BA27: 0.3885828725 | BB27: 1.174465684 | BC27: 1.541090242 | BD27: 22.65170322 | BE27: 7.234707376
B28: 2034 | C28: 2.422037558 | D28: 2.843261481 | E28: 1.120506771 | F28: 0.7430137349 | G28: 1.060433905 | H28: 3.665193091 | I28: 4.133090082 | J28: 1.695627578 | K28: 1.277114806 | L28: 1.59788929 | M28: 0.5918616368 | N28: 0.6947940954 | O28: 0.2738128356 | P28: 0.8275809407 | Q28: 1.085920968 | R28: 15.96140111 | S28: 5.097897724 | U28: 2034 | V28: 2.902333874 | W28: 3.407087591 | X28: 1.342706164 | Y28: 0.8903552813 | Z28: 1.270720693 | AA28: 4.392010367 | AB28: 4.952692541 | AC28: 2.031874914 | AD28: 1.530369977 | AE28: 1.914754872 | AF28: 0.7092293311 | AG28: 0.8325735625 | AH28: 0.3281106295 | AI28: 0.991692383 | AJ28: 1.301261907 | AK28: 19.12658825 | AL28: 6.108824036 | AN28: 2034 | AO28: 3.471619336 | AP28: 4.075379221 | AQ28: 1.606074588 | AR28: 1.064996222 | AS28: 1.519969349 | AT28: 5.253492113 | AU28: 5.924150681 | AV28: 2.43042205 | AW28: 1.830548185 | AX28: 2.290329207 | AY28: 0.848342874 | AZ28: 0.9958807652 | BA28: 0.3924687013 | BB28: 1.186210341 | BC28: 1.556501145 | BD28: 22.87822026 | BE28: 7.30705445
B29: 2035 | C29: 2.397817182 | D29: 2.814828866 | E29: 1.109301704 | F29: 0.7355835975 | G29: 1.049829566 | H29: 3.628541161 | I29: 4.091759181 | J29: 1.678671302 | K29: 1.264343658 | L29: 1.581910398 | M29: 0.5859430204 | N29: 0.6878461544 | O29: 0.2710747073 | P29: 0.8193051313 | Q29: 1.075061759 | R29: 15.80178709 | S29: 5.046918747 | U29: 2035 | V29: 2.902333874 | W29: 3.407087591 | X29: 1.342706164 | Y29: 0.8903552813 | Z29: 1.270720693 | AA29: 4.392010367 | AB29: 4.952692541 | AC29: 2.031874914 | AD29: 1.530369977 | AE29: 1.914754872 | AF29: 0.7092293311 | AG29: 0.8325735625 | AH29: 0.3281106295 | AI29: 0.991692383 | AJ29: 1.301261907 | AK29: 19.12658825 | AL29: 6.108824036 | AN29: 2035 | AO29: 3.50633553 | AP29: 4.116133013 | AQ29: 1.622135334 | AR29: 1.075646184 | AS29: 1.535169043 | AT29: 5.306027035 | AU29: 5.983392188 | AV29: 2.45472627 | AW29: 1.848853666 | AX29: 2.313232499 | AY29: 0.8568263028 | AZ29: 1.005839573 | BA29: 0.3963933883 | BB29: 1.198072444 | BC29: 1.572066156 | BD29: 23.10700246 | BE29: 7.380124994
B30: 2036 | C30: 2.37383901 | D30: 2.786680577 | E30: 1.098208687 | F30: 0.7282277615 | G30: 1.03933127 | H30: 3.592255749 | I30: 4.050841589 | J30: 1.661884589 | K30: 1.251700221 | L30: 1.566091294 | M30: 0.5800835902 | N30: 0.6809676929 | O30: 0.2683639602 | P30: 0.81111208 | Q30: 1.064311141 | R30: 15.64376922 | S30: 4.996449559 | U30: 2036 | V30: 2.902333874 | W30: 3.407087591 | X30: 1.342706164 | Y30: 0.8903552813 | Z30: 1.270720693 | AA30: 4.392010367 | AB30: 4.952692541 | AC30: 2.031874914 | AD30: 1.530369977 | AE30: 1.914754872 | AF30: 0.7092293311 | AG30: 0.8325735625 | AH30: 0.3281106295 | AI30: 0.991692383 | AJ30: 1.301261907 | AK30: 19.12658825 | AL30: 6.108824036 | AN30: 2036 | AO30: 3.541398885 | AP30: 4.157294343 | AQ30: 1.638356688 | AR30: 1.086402646 | AS30: 1.550520733 | AT30: 5.359087305 | AU30: 6.04322611 | AV30: 2.479273533 | AW30: 1.867342203 | AX30: 2.336364824 | AY30: 0.8653945658 | AZ30: 1.015897969 | BA30: 0.4003573222 | BB30: 1.210053168 | BC30: 1.587786818 | BD30: 23.33807248 | BE30: 7.453926244
B31: 2037 | C31: 2.35010062 | D31: 2.758813772 | E31: 1.0872266 | F31: 0.7209454839 | G31: 1.028937958 | H31: 3.556333191 | I31: 4.010333173 | J31: 1.645265743 | K31: 1.239183219 | L31: 1.550430381 | M31: 0.5742827543 | N31: 0.6741580159 | O31: 0.2656803206 | P31: 0.8030009592 | Q31: 1.05366803 | R31: 15.48733153 | S31: 4.946485064 | U31: 2037 | V31: 2.902333874 | W31: 3.407087591 | X31: 1.342706164 | Y31: 0.8903552813 | Z31: 1.270720693 | AA31: 4.392010367 | AB31: 4.952692541 | AC31: 2.031874914 | AD31: 1.530369977 | AE31: 1.914754872 | AF31: 0.7092293311 | AG31: 0.8325735625 | AH31: 0.3281106295 | AI31: 0.991692383 | AJ31: 1.301261907 | AK31: 19.12658825 | AL31: 6.108824036 | AN31: 2037 | AO31: 3.576812874 | AP31: 4.198867287 | AQ31: 1.654740255 | AR31: 1.097266673 | AS31: 1.56602594 | AT31: 5.412678178 | AU31: 6.103658371 | AV31: 2.504066268 | AW31: 1.886015625 | AX31: 2.359728472 | AY31: 0.8740485114 | AZ31: 1.026056948 | BA31: 0.4043608954 | BB31: 1.2221537 | BC31: 1.603664686 | BD31: 23.57145321 | BE31: 7.528465507
B32: 2038 | C32: 2.326599614 | D32: 2.731225634 | E32: 1.076354334 | F32: 0.7137360291 | G32: 1.018648578 | H32: 3.52076986 | I32: 3.970229842 | J32: 1.628813086 | K32: 1.226791387 | L32: 1.534926077 | M32: 0.5685399268 | N32: 0.6674164358 | O32: 0.2630235174 | P32: 0.7949709496 | Q32: 1.043131349 | R32: 15.33245822 | S32: 4.897020213 | U32: 2038 | V32: 2.902333874 | W32: 3.407087591 | X32: 1.342706164 | Y32: 0.8903552813 | Z32: 1.270720693 | AA32: 4.392010367 | AB32: 4.952692541 | AC32: 2.031874914 | AD32: 1.530369977 | AE32: 1.914754872 | AF32: 0.7092293311 | AG32: 0.8325735625 | AH32: 0.3281106295 | AI32: 0.991692383 | AJ32: 1.301261907 | AK32: 19.12658825 | AL32: 6.108824036 | AN32: 2038 | AO32: 3.612581003 | AP32: 4.24085596 | AQ32: 1.671287657 | AR32: 1.108239339 | AS32: 1.5816862 | AT32: 5.46680496 | AU32: 6.164694955 | AV32: 2.529106931 | AW32: 1.904875781 | AX32: 2.383325757 | AY32: 0.8827889966 | AZ32: 1.036317518 | BA32: 0.4084045043 | BB32: 1.234375237 | BC32: 1.619701333 | BD32: 23.80716774 | BE32: 7.603750162
B33: 2039 | C33: 2.303333618 | D33: 2.703913378 | E33: 1.06559079 | F33: 0.7065986688 | G33: 1.008462092 | H33: 3.485562161 | I33: 3.930527543 | J33: 1.612524955 | K33: 1.214523473 | L33: 1.519576816 | M33: 0.5628545275 | N33: 0.6607422714 | O33: 0.2603932822 | P33: 0.7870212401 | Q33: 1.032700036 | R33: 15.17913363 | S33: 4.848050011 | U33: 2039 | V33: 2.902333874 | W33: 3.407087591 | X33: 1.342706164 | Y33: 0.8903552813 | Z33: 1.270720693 | AA33: 4.392010367 | AB33: 4.952692541 | AC33: 2.031874914 | AD33: 1.530369977 | AE33: 1.914754872 | AF33: 0.7092293311 | AG33: 0.8325735625 | AH33: 0.3281106295 | AI33: 0.991692383 | AJ33: 1.301261907 | AK33: 19.12658825 | AL33: 6.108824036 | AN33: 2039 | AO33: 3.648706813 | AP33: 4.283264519 | AQ33: 1.688000534 | AR33: 1.119321733 | AS33: 1.597503062 | AT33: 5.521473009 | AU33: 6.226341904 | AV33: 2.554398 | AW33: 1.923924539 | AX33: 2.407159014 | AY33: 0.8916168865 | AZ33: 1.046680693 | BA33: 0.4124885494 | BB33: 1.246718989 | BC33: 1.635898346 | BD33: 24.04523942 | BE33: 7.679787663
B34: 2040 | C34: 2.280300282 | D34: 2.676874244 | E34: 1.054934882 | F34: 0.6995326821 | G34: 0.9983774714 | H34: 3.450706539 | I34: 3.891222268 | J34: 1.596399705 | K34: 1.202378238 | L34: 1.504381048 | M34: 0.5572259822 | N34: 0.6541348487 | O34: 0.2577893494 | P34: 0.7791510277 | Q34: 1.022373035 | R34: 15.0273423 | S34: 4.799569511 | U34: 2040 | V34: 2.902333874 | W34: 3.407087591 | X34: 1.342706164 | Y34: 0.8903552813 | Z34: 1.270720693 | AA34: 4.392010367 | AB34: 4.952692541 | AC34: 2.031874914 | AD34: 1.530369977 | AE34: 1.914754872 | AF34: 0.7092293311 | AG34: 0.8325735625 | AH34: 0.3281106295 | AI34: 0.991692383 | AJ34: 1.301261907 | AK34: 19.12658825 | AL34: 6.108824036 | AN34: 2040 | AO34: 3.685193881 | AP34: 4.326097164 | AQ34: 1.704880539 | AR34: 1.13051495 | AS34: 1.613478092 | AT34: 5.576687739 | AU34: 6.288605323 | AV34: 2.57994198 | AW34: 1.943163785 | AX34: 2.431230604 | AY34: 0.9005330554 | AZ34: 1.0571475 | BA34: 0.4166134349 | BB34: 1.259186179 | BC34: 1.65225733 | BD34: 24.28569181 | BE34: 7.75658554
B35: 2041 | C35: 2.257497279 | D35: 2.650105501 | E35: 1.044385534 | F35: 0.6925373553 | G35: 0.9883936967 | H35: 3.416199474 | I35: 3.852310045 | J35: 1.580435708 | K35: 1.190354456 | L35: 1.489337237 | M35: 0.5516537224 | N35: 0.6475935002 | O35: 0.2552114559 | P35: 0.7713595174 | Q35: 1.012149305 | R35: 14.87706887 | S35: 4.751573816 | U35: 2041 | V35: 2.902333874 | W35: 3.407087591 | X35: 1.342706164 | Y35: 0.8903552813 | Z35: 1.270720693 | AA35: 4.392010367 | AB35: 4.952692541 | AC35: 2.031874914 | AD35: 1.530369977 | AE35: 1.914754872 | AF35: 0.7092293311 | AG35: 0.8325735625 | AH35: 0.3281106295 | AI35: 0.991692383 | AJ35: 1.301261907 | AK35: 19.12658825 | AL35: 6.108824036 | AN35: 2041 | AO35: 3.72204582 | AP35: 4.369358136 | AQ35: 1.721929344 | AR35: 1.1418201 | AS35: 1.629612873 | AT35: 5.632454617 | AU35: 6.351491376 | AV35: 2.6057414 | AW35: 1.962595422 | AX35: 2.45554291 | AY35: 0.9095383859 | AZ35: 1.067718975 | BA35: 0.4207795692 | BB35: 1.271778041 | BC35: 1.668779903 | BD35: 24.52854873 | BE35: 7.834151395
B36: 2042 | C36: 2.234922306 | D36: 2.623604446 | E36: 1.033941678 | F36: 0.6856119817 | G36: 0.9785097598 | H36: 3.382037479 | I36: 3.813786945 | J36: 1.564631351 | K36: 1.178450911 | L36: 1.474443865 | M36: 0.5461371852 | N36: 0.6411175652 | O36: 0.2526593413 | P36: 0.7636459223 | Q36: 1.002027812 | R36: 14.72829819 | S36: 4.704058078 | U36: 2042 | V36: 2.902333874 | W36: 3.407087591 | X36: 1.342706164 | Y36: 0.8903552813 | Z36: 1.270720693 | AA36: 4.392010367 | AB36: 4.952692541 | AC36: 2.031874914 | AD36: 1.530369977 | AE36: 1.914754872 | AF36: 0.7092293311 | AG36: 0.8325735625 | AH36: 0.3281106295 | AI36: 0.991692383 | AJ36: 1.301261907 | AK36: 19.12658825 | AL36: 6.108824036 | AN36: 2042 | AO36: 3.759266278 | AP36: 4.413051717 | AQ36: 1.739148638 | AR36: 1.153238301 | AS36: 1.645909002 | AT36: 5.688779163 | AU36: 6.41500629 | AV36: 2.631798814 | AW36: 1.982221377 | AX36: 2.480098339 | AY36: 0.9186337698 | AZ36: 1.078396165 | BA36: 0.4249873649 | BB36: 1.284495822 | BC36: 1.685467702 | BD36: 24.77383422 | BE36: 7.912492909
B37: 2043 | C37: 2.212573083 | D37: 2.597368402 | E37: 1.023602261 | F37: 0.6787558619 | G37: 0.9687246622 | H37: 3.348217104 | I37: 3.775649075 | J37: 1.548985037 | K37: 1.166666402 | L37: 1.459699426 | M37: 0.5406758133 | N37: 0.6347063896 | O37: 0.2501327479 | P37: 0.756009463 | Q37: 0.9920075339 | R37: 14.5810152 | S37: 4.657017497 | U37: 2043 | V37: 2.902333874 | W37: 3.407087591 | X37: 1.342706164 | Y37: 0.8903552813 | Z37: 1.270720693 | AA37: 4.392010367 | AB37: 4.952692541 | AC37: 2.031874914 | AD37: 1.530369977 | AE37: 1.914754872 | AF37: 0.7092293311 | AG37: 0.8325735625 | AH37: 0.3281106295 | AI37: 0.991692383 | AJ37: 1.301261907 | AK37: 19.12658825 | AL37: 6.108824036 | AN37: 2043 | AO37: 3.796858941 | AP37: 4.457182235 | AQ37: 1.756540124 | AR37: 1.164770684 | AS37: 1.662368092 | AT37: 5.745666955 | AU37: 6.479156353 | AV37: 2.658116802 | AW37: 2.00204359 | AX37: 2.504899323 | AY37: 0.9278201075 | AZ37: 1.089180126 | BA37: 0.4292372386 | BB37: 1.29734078 | BC37: 1.702322379 | BD37: 25.02157256 | BE37: 7.991617838
B38: 2044 | C38: 2.190447352 | D38: 2.571394718 | E38: 1.013366239 | F38: 0.6719683033 | G38: 0.9590374155 | H38: 3.314734933 | I38: 3.737892584 | J38: 1.533495187 | K38: 1.154999738 | L38: 1.445102432 | M38: 0.5352690552 | N38: 0.6283593257 | O38: 0.2476314204 | P38: 0.7484493684 | Q38: 0.9820874586 | R38: 14.43520505 | S38: 4.610447322 | U38: 2044 | V38: 2.902333874 | W38: 3.407087591 | X38: 1.342706164 | Y38: 0.8903552813 | Z38: 1.270720693 | AA38: 4.392010367 | AB38: 4.952692541 | AC38: 2.031874914 | AD38: 1.530369977 | AE38: 1.914754872 | AF38: 0.7092293311 | AG38: 0.8325735625 | AH38: 0.3281106295 | AI38: 0.991692383 | AJ38: 1.301261907 | AK38: 19.12658825 | AL38: 6.108824036 | AN38: 2044 | AO38: 3.83482753 | AP38: 4.501754057 | AQ38: 1.774105525 | AR38: 1.176418391 | AS38: 1.678991773 | AT38: 5.803123624 | AU38: 6.543947917 | AV38: 2.68469797 | AW38: 2.022064026 | AX38: 2.529948316 | AY38: 0.9370983086 | AZ38: 1.100071927 | BA38: 0.4335296109 | BB38: 1.310314188 | BC38: 1.719345603 | BD38: 25.27178828 | BE38: 8.071534017
B39: 2045 | C39: 2.168542879 | D39: 2.545680771 | E39: 1.003232576 | F39: 0.6652486203 | G39: 0.9494470414 | H39: 3.281587584 | I39: 3.700513659 | J39: 1.518160235 | K39: 1.143449741 | L39: 1.430651408 | M39: 0.5299163646 | N39: 0.6220757324 | O39: 0.2451551062 | P39: 0.7409648747 | Q39: 0.972266584 | R39: 14.290853 | S39: 4.564342849 | U39: 2045 | V39: 2.902333874 | W39: 3.407087591 | X39: 1.342706164 | Y39: 0.8903552813 | Z39: 1.270720693 | AA39: 4.392010367 | AB39: 4.952692541 | AC39: 2.031874914 | AD39: 1.530369977 | AE39: 1.914754872 | AF39: 0.7092293311 | AG39: 0.8325735625 | AH39: 0.3281106295 | AI39: 0.991692383 | AJ39: 1.301261907 | AK39: 19.12658825 | AL39: 6.108824036 | AN39: 2045 | AO39: 3.873175805 | AP39: 4.546771598 | AQ39: 1.791846581 | AR39: 1.188182574 | AS39: 1.695781691 | AT39: 5.86115486 | AU39: 6.609387396 | AV39: 2.71154495 | AW39: 2.042284667 | AX39: 2.555247799 | AY39: 0.9464692917 | AZ39: 1.111072647 | BA39: 0.4378649071 | BB39: 1.323417329 | BC39: 1.736539059 | BD39: 25.52450617 | BE39: 8.152249357
B40: 2046 | C40: 2.14685745 | D40: 2.520223963 | E40: 0.9932002507 | F40: 0.658596134 | G40: 0.939952571 | H40: 3.248771708 | I40: 3.663508522 | J40: 1.502978633 | K40: 1.132015243 | L40: 1.416344894 | M40: 0.524617201 | N40: 0.6158549751 | O40: 0.2427035552 | P40: 0.733555226 | Q40: 0.9625439182 | R40: 14.14794447 | S40: 4.51869942 | U40: 2046 | V40: 2.902333874 | W40: 3.407087591 | X40: 1.342706164 | Y40: 0.8903552813 | Z40: 1.270720693 | AA40: 4.392010367 | AB40: 4.952692541 | AC40: 2.031874914 | AD40: 1.530369977 | AE40: 1.914754872 | AF40: 0.7092293311 | AG40: 0.8325735625 | AH40: 0.3281106295 | AI40: 0.991692383 | AJ40: 1.301261907 | AK40: 19.12658825 | AL40: 6.108824036 | AN40: 2046 | AO40: 3.911907563 | AP40: 4.592239314 | AQ40: 1.809765047 | AR40: 1.2000644 | AS40: 1.712739508 | AT40: 5.919766409 | AU40: 6.67548127 | AV40: 2.7386604 | AW40: 2.062707513 | AX40: 2.580800277 | AY40: 0.9559339846 | AZ40: 1.122183373 | BA40: 0.4422435561 | BB40: 1.336651503 | BC40: 1.753904449 | BD40: 25.77975123 | BE40: 8.233771851
B41: 2047 | C41: 2.125388875 | D41: 2.495021723 | E41: 0.9832682482 | F41: 0.6520101727 | G41: 0.9305530453 | H41: 3.216283991 | I41: 3.626873437 | J41: 1.487948847 | K41: 1.120695091 | L41: 1.402181445 | M41: 0.519371029 | N41: 0.6096964253 | O41: 0.2402765196 | P41: 0.7262196737 | Q41: 0.952918479 | R41: 14.00646503 | S41: 4.473512426 | U41: 2047 | V41: 2.902333874 | W41: 3.407087591 | X41: 1.342706164 | Y41: 0.8903552813 | Z41: 1.270720693 | AA41: 4.392010367 | AB41: 4.952692541 | AC41: 2.031874914 | AD41: 1.530369977 | AE41: 1.914754872 | AF41: 0.7092293311 | AG41: 0.8325735625 | AH41: 0.3281106295 | AI41: 0.991692383 | AJ41: 1.301261907 | AK41: 19.12658825 | AL41: 6.108824036 | AN41: 2047 | AO41: 3.951026639 | AP41: 4.638161707 | AQ41: 1.827862697 | AR41: 1.212065044 | AS41: 1.729866903 | AT41: 5.978964073 | AU41: 6.742236082 | AV41: 2.766047004 | AW41: 2.083334588 | AX41: 2.60660828 | AY41: 0.9654933244 | AZ41: 1.133405207 | BA41: 0.4466659917 | BB41: 1.350018018 | BC41: 1.771443494 | BD41: 26.03754874 | BE41: 8.316109569
B42: 2048 | C42: 2.104134987 | D42: 2.470071506 | E42: 0.9734355657 | F42: 0.645490071 | G42: 0.9212475148 | H42: 3.184121151 | I42: 3.590604702 | J42: 1.473069358 | K42: 1.10948814 | L42: 1.38815963 | M42: 0.5141773187 | N42: 0.6035994611 | O42: 0.2378737544 | P42: 0.718957477 | Q42: 0.9433892942 | R42: 13.86640038 | S42: 4.428777302 | U42: 2048 | V42: 2.902333874 | W42: 3.407087591 | X42: 1.342706164 | Y42: 0.8903552813 | Z42: 1.270720693 | AA42: 4.392010367 | AB42: 4.952692541 | AC42: 2.031874914 | AD42: 1.530369977 | AE42: 1.914754872 | AF42: 0.7092293311 | AG42: 0.8325735625 | AH42: 0.3281106295 | AI42: 0.991692383 | AJ42: 1.301261907 | AK42: 19.12658825 | AL42: 6.108824036 | AN42: 2048 | AO42: 3.990536905 | AP42: 4.684543324 | AQ42: 1.846141324 | AR42: 1.224185695 | AS42: 1.747165572 | AT42: 6.038753714 | AU42: 6.809658443 | AV42: 2.793707474 | AW42: 2.104167934 | AX42: 2.632674363 | AY42: 0.9751482577 | AZ42: 1.144739259 | BA42: 0.4511326516 | BB42: 1.363518198 | BC42: 1.789157929 | BD42: 26.29792423 | BE42: 8.399270665
B43: 2049 | C43: 2.083093637 | D43: 2.445370791 | E43: 0.9637012101 | F43: 0.6390351703 | G43: 0.9120350397 | H43: 3.15227994 | I43: 3.554698655 | J43: 1.458338665 | K43: 1.098393259 | L43: 1.374278034 | M43: 0.5090355455 | N43: 0.5975634665 | O43: 0.2354950169 | P43: 0.7117679022 | Q43: 0.9339554013 | R43: 13.72773637 | S43: 4.384489529 | U43: 2049 | V43: 2.902333874 | W43: 3.407087591 | X43: 1.342706164 | Y43: 0.8903552813 | Z43: 1.270720693 | AA43: 4.392010367 | AB43: 4.952692541 | AC43: 2.031874914 | AD43: 1.530369977 | AE43: 1.914754872 | AF43: 0.7092293311 | AG43: 0.8325735625 | AH43: 0.3281106295 | AI43: 0.991692383 | AJ43: 1.301261907 | AK43: 19.12658825 | AL43: 6.108824036 | AN43: 2049 | AO43: 4.030442274 | AP43: 4.731388757 | AQ43: 1.864602737 | AR43: 1.236427552 | AS43: 1.764637227 | AT43: 6.099141251 | AU43: 6.877755028 | AV43: 2.821644548 | AW43: 2.125209614 | AX43: 2.659001106 | AY43: 0.9848997402 | AZ43: 1.156186652 | BA43: 0.4556439781 | BB43: 1.37715338 | BC43: 1.807049508 | BD43: 26.56090347 | BE43: 8.483263371
B44: 2050 | C44: 2.0622627 | D44: 2.420917083 | E44: 0.954064198 | F44: 0.6326448186 | G44: 0.9029146893 | H44: 3.12075714 | I44: 3.519151669 | J44: 1.443755278 | K44: 1.087409326 | L44: 1.360535254 | M44: 0.5039451901 | N44: 0.5915878318 | O44: 0.2331400667 | P44: 0.7046502232 | Q44: 0.9246158473 | R44: 13.59045901 | S44: 4.340644633 | U44: 2050 | V44: 2.902333874 | W44: 3.407087591 | X44: 1.342706164 | Y44: 0.8903552813 | Z44: 1.270720693 | AA44: 4.392010367 | AB44: 4.952692541 | AC44: 2.031874914 | AD44: 1.530369977 | AE44: 1.914754872 | AF44: 0.7092293311 | AG44: 0.8325735625 | AH44: 0.3281106295 | AI44: 0.991692383 | AJ44: 1.301261907 | AK44: 19.12658825 | AL44: 6.108824036 | AN44: 2050 | AO44: 4.070746697 | AP44: 4.778702645 | AQ44: 1.883248765 | AR44: 1.248791827 | AS44: 1.7822836 | AT44: 6.160132663 | AU44: 6.946532578 | AV44: 2.849860994 | AW44: 2.14646171 | AX44: 2.685591118 | AY44: 0.9947487377 | AZ44: 1.167748518 | BA44: 0.4602004179 | BB44: 1.390924914 | BC44: 1.825120003 | BD44: 26.82651251 | BE44: 8.568096005

Sheet Efficiency Dist.
B1: Efficiency Distributions
B3: CSL: | D3: =OFFSET('TSL-CSL Mapping'!B4, iPrd, iTSL) -> 1
B4: Efficiency Scenario: | D4: =labelEff -> 100% E*3, Fast Improvement
B5: Max CSL: | D5: =MAX(OFFSET('TSL-CSL Mapping'!B4,iPrd,1,,3)) -> 3
B6: Product Group: | D6: =pc_name -> Cable Base
B8: ="Base Case Efficiency Mix, Scenario: " & labelEff -> Base Case Efficiency Mix, Scenario: 100% E*3, Fast Improvement | I8: ="Standards Case Efficiency Mix, Scenario: " & labelEff -> Standards Case Efficiency Mix, Scenario: 100% E*3, Fast Improvement
B9: Year | C9: 0 | D9: 1 | E9: 2 | F9: 3 | G9: Total | I9: Year | J9: 0 | K9: 1 | L9: 2 | M9: 3 | N9: Total
B10: 2012 | C10: =IF(C$9<$D$5, OFFSET('Efficiency Dist. Data'!C6, 73*(iPrd-1), 5*(iEff-1)), IF(C$9=$D$5, OFFSET('Efficiency Dist. Data'!C6, 73*(iPrd-1), 5*(iEff-1))+OFFSET('Efficiency Dist. Data'!D6, 73*(iPrd-1), 5*(iEff-1))+OFFSET('Efficiency Dist. Data'!E6, 73*(iPrd-1), 5*(iEff-1))+OFFSET('Efficiency Dist. Data'!F6, 73*(iPrd-1), 5*(iEff-1)),0)) -> 0.5 | D10: =IF(D$9<$D$5, OFFSET('Efficiency Dist. Data'!D6, 73*(iPrd-1), 5*(iEff-1)), IF(D$9=$D$5, OFFSET('Efficiency Dist. Data'!D6, 73*(iPrd-1), 5*(iEff-1))+OFFSET('Efficiency Dist. Data'!E6, 73*(iPrd-1), 5*(iEff-1))+OFFSET('Efficiency Dist. Data'!F6, 73*(iPrd-1), 5*(iEff-1)),0)) -> 0.4 | E10: =IF(E$9<$D$5, OFFSET('Efficiency Dist. Data'!E6, 73*(iPrd-1), 5*(iEff-1)), IF(E$9=$D$5, OFFSET('Efficiency Dist. Data'!E6, 73*(iPrd-1), 5*(iEff-1))+OFFSET('Efficiency Dist. Data'!F6, 73*(iPrd-1), 5*(iEff-1)),0)) -> 0.1 | F10: =IF(F$9<$D$5, OFFSET('Efficiency Dist. Data'!F6, 73*(iPrd-1), 5*(iEff-1)), IF(F$9=$D$5, OFFSET('Efficiency Dist. Data'!F6, 73*(iPrd-1), 5*(iEff-1)),0)) -> 0 | G10: =SUM(C10:F10) -> 1 | I10: 2012 | J10: =IF(AND(iCSL>J$9, StartYear<=$I10),0,IF(AND(iCSL=J$9, StartYear<=$I10), SUM($C10:C10), C10)) -> 0.5 | K10: =IF(AND(iCSL>K$9, StartYear<=$I10),0,IF(AND(iCSL=K$9, StartYear<=$I10), SUM($C10:D10), D10)) -> 0.4 | L10: =IF(AND(iCSL>L$9, StartYear<=$I10),0,IF(AND(iCSL=L$9, StartYear<=$I10), SUM($C10:E10), E10)) -> 0.1 | M10: =IF(AND(iCSL>M$9, StartYear<=$I10),0,IF(AND(iCSL=M$9, StartYear<=$I10), SUM($C10:F10), F10)) -> 0 | N10: =SUM(J10:M10) -> 1
B11: =B10+1 -> 2013 | C11: =IF(C$9<$D$5, OFFSET('Efficiency Dist. Data'!C7, 73*(iPrd-1), 5*(iEff-1)), IF(C$9=$D$5, OFFSET('Efficiency Dist. Data'!C7, 73*(iPrd-1), 5*(iEff-1))+OFFSET('Efficiency Dist. Data'!D7, 73*(iPrd-1), 5*(iEff-1))+OFFSET('Efficiency Dist. Data'!E7, 73*(iPrd-1), 5*(iEff-1))+OFFSET('Efficiency Dist. Data'!F7, 73*(iPrd-1), 5*(iEff-1)),0)) -> 0.5 | D11: =IF(D$9<$D$5, OFFSET('Efficiency Dist. Data'!D7, 73*(iPrd-1), 5*(iEff-1)), IF(D$9=$D$5, OFFSET('Efficiency Dist. Data'!D7, 73*(iPrd-1), 5*(iEff-1))+OFFSET('Efficiency Dist. Data'!E7, 73*(iPrd-1), 5*(iEff-1))+OFFSET('Efficiency Dist. Data'!F7, 73*(iPrd-1), 5*(iEff-1)),0)) -> 0.4 | E11: =IF(E$9<$D$5, OFFSET('Efficiency Dist. Data'!E7, 73*(iPrd-1), 5*(iEff-1)), IF(E$9=$D$5, OFFSET('Efficiency Dist. Data'!E7, 73*(iPrd-1), 5*(iEff-1))+OFFSET('Efficiency Dist. Data'!F7, 73*(iPrd-1), 5*(iEff-1)),0)) -> 0.1 | F11: =IF(F$9<$D$5, OFFSET('Efficiency Dist. Data'!F7, 73*(iPrd-1), 5*(iEff-1)), IF(F$9=$D$5, OFFSET('Efficiency Dist. Data'!F7, 73*(iPrd-1), 5*(iEff-1)),0)) -> 0 | G11: =SUM(C11:F11) -> 1 | I11: =I10+1 -> 2013 | J11: =IF(AND(iCSL>J$9, StartYear<=$I11),0,IF(AND(iCSL=J$9, StartYear<=$I11), SUM($C11:C11), C11)) -> 0.5 | K11: =IF(AND(iCSL>K$9, StartYear<=$I11),0,IF(AND(iCSL=K$9, StartYear<=$I11), SUM($C11:D11), D11)) -> 0.4 | L11: =IF(AND(iCSL>L$9, StartYear<=$I11),0,IF(AND(iCSL=L$9, StartYear<=$I11), SUM($C11:E11), E11)) -> 0.1 | M11: =IF(AND(iCSL>M$9, StartYear<=$I11),0,IF(AND(iCSL=M$9, StartYear<=$I11), SUM($C11:F11), F11)) -> 0 | N11: =SUM(J11:M11) -> 1
B12: =B11+1 -> 2014 | C12: =IF(C$9<$D$5, OFFSET('Efficiency Dist. Data'!C8, 73*(iPrd-1), 5*(iEff-1)), IF(C$9=$D$5, OFFSET('Efficiency Dist. Data'!C8, 73*(iPrd-1), 5*(iEff-1))+OFFSET('Efficiency Dist. Data'!D8, 73*(iPrd-1), 5*(iEff-1))+OFFSET('Efficiency Dist. Data'!E8, 73*(iPrd-1), 5*(iEff-1))+OFFSET('Efficiency Dist. Data'!F8, 73*(iPrd-1), 5*(iEff-1)),0)) -> 0.5 | D12: =IF(D$9<$D$5, OFFSET('Efficiency Dist. Data'!D8, 73*(iPrd-1), 5*(iEff-1)), IF(D$9=$D$5, OFFSET('Efficiency Dist. Data'!D8, 73*(iPrd-1), 5*(iEff-1))+OFFSET('Efficiency Dist. Data'!E8, 73*(iPrd-1), 5*(iEff-1))+OFFSET('Efficiency Dist. Data'!F8, 73*(iPrd-1), 5*(iEff-1)),0)) -> 0.4 | E12: =IF(E$9<$D$5, OFFSET('Efficiency Dist. Data'!E8, 73*(iPrd-1), 5*(iEff-1)), IF(E$9=$D$5, OFFSET('Efficiency Dist. Data'!E8, 73*(iPrd-1), 5*(iEff-1))+OFFSET('Efficiency Dist. Data'!F8, 73*(iPrd-1), 5*(iEff-1)),0)) -> 0.1 | F12: =IF(F$9<$D$5, OFFSET('Efficiency Dist. Data'!F8, 73*(iPrd-1), 5*(iEff-1)), IF(F$9=$D$5, OFFSET('Efficiency Dist. Data'!F8, 73*(iPrd-1), 5*(iEff-1)),0)) -> 0 | G12: 1 | I12: =I11+1 -> 2014 | J12: =IF(AND(iCSL>J$9, StartYear<=$I12),0,IF(AND(iCSL=J$9, StartYear<=$I12), SUM($C12:C12), C12)) -> 0.5 | K12: =IF(AND(iCSL>K$9, StartYear<=$I12),0,IF(AND(iCSL=K$9, StartYear<=$I12), SUM($C12:D12), D12)) -> 0.4 | L12: =IF(AND(iCSL>L$9, StartYear<=$I12),0,IF(AND(iCSL=L$9, StartYear<=$I12), SUM($C12:E12), E12)) -> 0.1 | M12: =IF(AND(iCSL>M$9, StartYear<=$I12),0,IF(AND(iCSL=M$9, StartYear<=$I12), SUM($C12:F12), F12)) -> 0 | N12: 1
B13: 2015 | C13: =IF(C$9<$D$5, OFFSET('Efficiency Dist. Data'!C9, 73*(iPrd-1), 5*(iEff-1)), IF(C$9=$D$5, OFFSET('Efficiency Dist. Data'!C9, 73*(iPrd-1), 5*(iEff-1))+OFFSET('Efficiency Dist. Data'!D9, 73*(iPrd-1), 5*(iEff-1))+OFFSET('Efficiency Dist. Data'!E9, 73*(iPrd-1), 5*(iEff-1))+OFFSET('Efficiency Dist. Data'!F9, 73*(iPrd-1), 5*(iEff-1)),0)) -> 0.5 | D13: =IF(D$9<$D$5, OFFSET('Efficiency Dist. Data'!D9, 73*(iPrd-1), 5*(iEff-1)), IF(D$9=$D$5, OFFSET('Efficiency Dist. Data'!D9, 73*(iPrd-1), 5*(iEff-1))+OFFSET('Efficiency Dist. Data'!E9, 73*(iPrd-1), 5*(iEff-1))+OFFSET('Efficiency Dist. Data'!F9, 73*(iPrd-1), 5*(iEff-1)),0)) -> 0.4 | E13: =IF(E$9<$D$5, OFFSET('Efficiency Dist. Data'!E9, 73*(iPrd-1), 5*(iEff-1)), IF(E$9=$D$5, OFFSET('Efficiency Dist. Data'!E9, 73*(iPrd-1), 5*(iEff-1))+OFFSET('Efficiency Dist. Data'!F9, 73*(iPrd-1), 5*(iEff-1)),0)) -> 0.1 | F13: =IF(F$9<$D$5, OFFSET('Efficiency Dist. Data'!F9, 73*(iPrd-1), 5*(iEff-1)), IF(F$9=$D$5, OFFSET('Efficiency Dist. Data'!F9, 73*(iPrd-1), 5*(iEff-1)),0)) -> 0 | G13: 1 | I13: 2015 | J13: =IF(AND(iCSL>J$9, StartYear<=$I13),0,IF(AND(iCSL=J$9, StartYear<=$I13), SUM($C13:C13), C13)) -> 0.5 | K13: =IF(AND(iCSL>K$9, StartYear<=$I13),0,IF(AND(iCSL=K$9, StartYear<=$I13), SUM($C13:D13), D13)) -> 0.4 | L13: =IF(AND(iCSL>L$9, StartYear<=$I13),0,IF(AND(iCSL=L$9, StartYear<=$I13), SUM($C13:E13), E13)) -> 0.1 | M13: =IF(AND(iCSL>M$9, StartYear<=$I13),0,IF(AND(iCSL=M$9, StartYear<=$I13), SUM($C13:F13), F13)) -> 0 | N13: 1
B14: 2016 | C14: =IF(C$9<$D$5, OFFSET('Efficiency Dist. Data'!C10, 73*(iPrd-1), 5*(iEff-1)), IF(C$9=$D$5, OFFSET('Efficiency Dist. Data'!C10, 73*(iPrd-1), 5*(iEff-1))+OFFSET('Efficiency Dist. Data'!D10, 73*(iPrd-1), 5*(iEff-1))+OFFSET('Efficiency Dist. Data'!E10, 73*(iPrd-1), 5*(iEff-1))+OFFSET('Efficiency Dist. Data'!F10, 73*(iPrd-1), 5*(iEff-1)),0)) -> 0.5 | D14: =IF(D$9<$D$5, OFFSET('Efficiency Dist. Data'!D10, 73*(iPrd-1), 5*(iEff-1)), IF(D$9=$D$5, OFFSET('Efficiency Dist. Data'!D10, 73*(iPrd-1), 5*(iEff-1))+OFFSET('Efficiency Dist. Data'!E10, 73*(iPrd-1), 5*(iEff-1))+OFFSET('Efficiency Dist. Data'!F10, 73*(iPrd-1), 5*(iEff-1)),0)) -> 0.4 | E14: =IF(E$9<$D$5, OFFSET('Efficiency Dist. Data'!E10, 73*(iPrd-1), 5*(iEff-1)), IF(E$9=$D$5, OFFSET('Efficiency Dist. Data'!E10, 73*(iPrd-1), 5*(iEff-1))+OFFSET('Efficiency Dist. Data'!F10, 73*(iPrd-1), 5*(iEff-1)),0)) -> 0.1 | F14: =IF(F$9<$D$5, OFFSET('Efficiency Dist. Data'!F10, 73*(iPrd-1), 5*(iEff-1)), IF(F$9=$D$5, OFFSET('Efficiency Dist. Data'!F10, 73*(iPrd-1), 5*(iEff-1)),0)) -> 0 | G14: 1 | I14: 2016 | J14: =IF(AND(iCSL>J$9, StartYear<=$I14),0,IF(AND(iCSL=J$9, StartYear<=$I14), SUM($C14:C14), C14)) -> 0.5 | K14: =IF(AND(iCSL>K$9, StartYear<=$I14),0,IF(AND(iCSL=K$9, StartYear<=$I14), SUM($C14:D14), D14)) -> 0.4 | L14: =IF(AND(iCSL>L$9, StartYear<=$I14),0,IF(AND(iCSL=L$9, StartYear<=$I14), SUM($C14:E14), E14)) -> 0.1 | M14: =IF(AND(iCSL>M$9, StartYear<=$I14),0,IF(AND(iCSL=M$9, StartYear<=$I14), SUM($C14:F14), F14)) -> 0 | N14: 1
B15: 2017 | C15: =IF(C$9<$D$5, OFFSET('Efficiency Dist. Data'!C11, 73*(iPrd-1), 5*(iEff-1)), IF(C$9=$D$5, OFFSET('Efficiency Dist. Data'!C11, 73*(iPrd-1), 5*(iEff-1))+OFFSET('Efficiency Dist. Data'!D11, 73*(iPrd-1), 5*(iEff-1))+OFFSET('Efficiency Dist. Data'!E11, 73*(iPrd-1), 5*(iEff-1))+OFFSET('Efficiency Dist. Data'!F11, 73*(iPrd-1), 5*(iEff-1)),0)) -> 0.5 | D15: =IF(D$9<$D$5, OFFSET('Efficiency Dist. Data'!D11, 73*(iPrd-1), 5*(iEff-1)), IF(D$9=$D$5, OFFSET('Efficiency Dist. Data'!D11, 73*(iPrd-1), 5*(iEff-1))+OFFSET('Efficiency Dist. Data'!E11, 73*(iPrd-1), 5*(iEff-1))+OFFSET('Efficiency Dist. Data'!F11, 73*(iPrd-1), 5*(iEff-1)),0)) -> 0.4 | E15: =IF(E$9<$D$5, OFFSET('Efficiency Dist. Data'!E11, 73*(iPrd-1), 5*(iEff-1)), IF(E$9=$D$5, OFFSET('Efficiency Dist. Data'!E11, 73*(iPrd-1), 5*(iEff-1))+OFFSET('Efficiency Dist. Data'!F11, 73*(iPrd-1), 5*(iEff-1)),0)) -> 0.1 | F15: =IF(F$9<$D$5, OFFSET('Efficiency Dist. Data'!F11, 73*(iPrd-1), 5*(iEff-1)), IF(F$9=$D$5, OFFSET('Efficiency Dist. Data'!F11, 73*(iPrd-1), 5*(iEff-1)),0)) -> 0 | G15: 1 | I15: 2017 | J15: =IF(AND(iCSL>J$9, StartYear<=$I15),0,IF(AND(iCSL=J$9, StartYear<=$I15), SUM($C15:C15), C15)) -> 0.5 | K15: =IF(AND(iCSL>K$9, StartYear<=$I15),0,IF(AND(iCSL=K$9, StartYear<=$I15), SUM($C15:D15), D15)) -> 0.4 | L15: =IF(AND(iCSL>L$9, StartYear<=$I15),0,IF(AND(iCSL=L$9, StartYear<=$I15), SUM($C15:E15), E15)) -> 0.1 | M15: =IF(AND(iCSL>M$9, StartYear<=$I15),0,IF(AND(iCSL=M$9, StartYear<=$I15), SUM($C15:F15), F15)) -> 0 | N15: 1
B16: 2018 | C16: =IF(C$9<$D$5, OFFSET('Efficiency Dist. Data'!C12, 73*(iPrd-1), 5*(iEff-1)), IF(C$9=$D$5, OFFSET('Efficiency Dist. Data'!C12, 73*(iPrd-1), 5*(iEff-1))+OFFSET('Efficiency Dist. Data'!D12, 73*(iPrd-1), 5*(iEff-1))+OFFSET('Efficiency Dist. Data'!E12, 73*(iPrd-1), 5*(iEff-1))+OFFSET('Efficiency Dist. Data'!F12, 73*(iPrd-1), 5*(iEff-1)),0)) -> 0.5 | D16: =IF(D$9<$D$5, OFFSET('Efficiency Dist. Data'!D12, 73*(iPrd-1), 5*(iEff-1)), IF(D$9=$D$5, OFFSET('Efficiency Dist. Data'!D12, 73*(iPrd-1), 5*(iEff-1))+OFFSET('Efficiency Dist. Data'!E12, 73*(iPrd-1), 5*(iEff-1))+OFFSET('Efficiency Dist. Data'!F12, 73*(iPrd-1), 5*(iEff-1)),0)) -> 0.4 | E16: =IF(E$9<$D$5, OFFSET('Efficiency Dist. Data'!E12, 73*(iPrd-1), 5*(iEff-1)), IF(E$9=$D$5, OFFSET('Efficiency Dist. Data'!E12, 73*(iPrd-1), 5*(iEff-1))+OFFSET('Efficiency Dist. Data'!F12, 73*(iPrd-1), 5*(iEff-1)),0)) -> 0.1 | F16: =IF(F$9<$D$5, OFFSET('Efficiency Dist. Data'!F12, 73*(iPrd-1), 5*(iEff-1)), IF(F$9=$D$5, OFFSET('Efficiency Dist. Data'!F12, 73*(iPrd-1), 5*(iEff-1)),0)) -> 0 | G16: 1 | I16: 2018 | J16: =IF(AND(iCSL>J$9, StartYear<=$I16),0,IF(AND(iCSL=J$9, StartYear<=$I16), SUM($C16:C16), C16)) -> 0 | K16: =IF(AND(iCSL>K$9, StartYear<=$I16),0,IF(AND(iCSL=K$9, StartYear<=$I16), SUM($C16:D16), D16)) -> 0.9 | L16: =IF(AND(iCSL>L$9, StartYear<=$I16),0,IF(AND(iCSL=L$9, StartYear<=$I16), SUM($C16:E16), E16)) -> 0.1 | M16: =IF(AND(iCSL>M$9, StartYear<=$I16),0,IF(AND(iCSL=M$9, StartYear<=$I16), SUM($C16:F16), F16)) -> 0 | N16: 1
B17: 2019 | C17: =IF(C$9<$D$5, OFFSET('Efficiency Dist. Data'!C13, 73*(iPrd-1), 5*(iEff-1)), IF(C$9=$D$5, OFFSET('Efficiency Dist. Data'!C13, 73*(iPrd-1), 5*(iEff-1))+OFFSET('Efficiency Dist. Data'!D13, 73*(iPrd-1), 5*(iEff-1))+OFFSET('Efficiency Dist. Data'!E13, 73*(iPrd-1), 5*(iEff-1))+OFFSET('Efficiency Dist. Data'!F13, 73*(iPrd-1), 5*(iEff-1)),0)) -> 0.4375 | D17: =IF(D$9<$D$5, OFFSET('Efficiency Dist. Data'!D13, 73*(iPrd-1), 5*(iEff-1)), IF(D$9=$D$5, OFFSET('Efficiency Dist. Data'!D13, 73*(iPrd-1), 5*(iEff-1))+OFFSET('Efficiency Dist. Data'!E13, 73*(iPrd-1), 5*(iEff-1))+OFFSET('Efficiency Dist. Data'!F13, 73*(iPrd-1), 5*(iEff-1)),0)) -> 0.4125 | E17: =IF(E$9<$D$5, OFFSET('Efficiency Dist. Data'!E13, 73*(iPrd-1), 5*(iEff-1)), IF(E$9=$D$5, OFFSET('Efficiency Dist. Data'!E13, 73*(iPrd-1), 5*(iEff-1))+OFFSET('Efficiency Dist. Data'!F13, 73*(iPrd-1), 5*(iEff-1)),0)) -> 0.1375 | F17: =IF(F$9<$D$5, OFFSET('Efficiency Dist. Data'!F13, 73*(iPrd-1), 5*(iEff-1)), IF(F$9=$D$5, OFFSET('Efficiency Dist. Data'!F13, 73*(iPrd-1), 5*(iEff-1)),0)) -> 0.0125 | G17: 1 | I17: 2019 | J17: =IF(AND(iCSL>J$9, StartYear<=$I17),0,IF(AND(iCSL=J$9, StartYear<=$I17), SUM($C17:C17), C17)) -> 0 | K17: =IF(AND(iCSL>K$9, StartYear<=$I17),0,IF(AND(iCSL=K$9, StartYear<=$I17), SUM($C17:D17), D17)) -> 0.85 | L17: =IF(AND(iCSL>L$9, StartYear<=$I17),0,IF(AND(iCSL=L$9, StartYear<=$I17), SUM($C17:E17), E17)) -> 0.1375 | M17: =IF(AND(iCSL>M$9, StartYear<=$I17),0,IF(AND(iCSL=M$9, StartYear<=$I17), SUM($C17:F17), F17)) -> 0.0125 | N17: 1
B18: 2020 | C18: =IF(C$9<$D$5, OFFSET('Efficiency Dist. Data'!C14, 73*(iPrd-1), 5*(iEff-1)), IF(C$9=$D$5, OFFSET('Efficiency Dist. Data'!C14, 73*(iPrd-1), 5*(iEff-1))+OFFSET('Efficiency Dist. Data'!D14, 73*(iPrd-1), 5*(iEff-1))+OFFSET('Efficiency Dist. Data'!E14, 73*(iPrd-1), 5*(iEff-1))+OFFSET('Efficiency Dist. Data'!F14, 73*(iPrd-1), 5*(iEff-1)),0)) -> 0.375 | D18: =IF(D$9<$D$5, OFFSET('Efficiency Dist. Data'!D14, 73*(iPrd-1), 5*(iEff-1)), IF(D$9=$D$5, OFFSET('Efficiency Dist. Data'!D14, 73*(iPrd-1), 5*(iEff-1))+OFFSET('Efficiency Dist. Data'!E14, 73*(iPrd-1), 5*(iEff-1))+OFFSET('Efficiency Dist. Data'!F14, 73*(iPrd-1), 5*(iEff-1)),0)) -> 0.425 | E18: =IF(E$9<$D$5, OFFSET('Efficiency Dist. Data'!E14, 73*(iPrd-1), 5*(iEff-1)), IF(E$9=$D$5, OFFSET('Efficiency Dist. Data'!E14, 73*(iPrd-1), 5*(iEff-1))+OFFSET('Efficiency Dist. Data'!F14, 73*(iPrd-1), 5*(iEff-1)),0)) -> 0.175 | F18: =IF(F$9<$D$5, OFFSET('Efficiency Dist. Data'!F14, 73*(iPrd-1), 5*(iEff-1)), IF(F$9=$D$5, OFFSET('Efficiency Dist. Data'!F14, 73*(iPrd-1), 5*(iEff-1)),0)) -> 0.025 | G18: 1 | I18: 2020 | J18: =IF(AND(iCSL>J$9, StartYear<=$I18),0,IF(AND(iCSL=J$9, StartYear<=$I18), SUM($C18:C18), C18)) -> 0 | K18: =IF(AND(iCSL>K$9, StartYear<=$I18),0,IF(AND(iCSL=K$9, StartYear<=$I18), SUM($C18:D18), D18)) -> 0.8 | L18: =IF(AND(iCSL>L$9, StartYear<=$I18),0,IF(AND(iCSL=L$9, StartYear<=$I18), SUM($C18:E18), E18)) -> 0.175 | M18: =IF(AND(iCSL>M$9, StartYear<=$I18),0,IF(AND(iCSL=M$9, StartYear<=$I18), SUM($C18:F18), F18)) -> 0.025 | N18: 1
B19: 2021 | C19: =IF(C$9<$D$5, OFFSET('Efficiency Dist. Data'!C15, 73*(iPrd-1), 5*(iEff-1)), IF(C$9=$D$5, OFFSET('Efficiency Dist. Data'!C15, 73*(iPrd-1), 5*(iEff-1))+OFFSET('Efficiency Dist. Data'!D15, 73*(iPrd-1), 5*(iEff-1))+OFFSET('Efficiency Dist. Data'!E15, 73*(iPrd-1), 5*(iEff-1))+OFFSET('Efficiency Dist. Data'!F15, 73*(iPrd-1), 5*(iEff-1)),0)) -> 0.3125 | D19: =IF(D$9<$D$5, OFFSET('Efficiency Dist. Data'!D15, 73*(iPrd-1), 5*(iEff-1)), IF(D$9=$D$5, OFFSET('Efficiency Dist. Data'!D15, 73*(iPrd-1), 5*(iEff-1))+OFFSET('Efficiency Dist. Data'!E15, 73*(iPrd-1), 5*(iEff-1))+OFFSET('Efficiency Dist. Data'!F15, 73*(iPrd-1), 5*(iEff-1)),0)) -> 0.4375 | E19: =IF(E$9<$D$5, OFFSET('Efficiency Dist. Data'!E15, 73*(iPrd-1), 5*(iEff-1)), IF(E$9=$D$5, OFFSET('Efficiency Dist. Data'!E15, 73*(iPrd-1), 5*(iEff-1))+OFFSET('Efficiency Dist. Data'!F15, 73*(iPrd-1), 5*(iEff-1)),0)) -> 0.2125 | F19: =IF(F$9<$D$5, OFFSET('Efficiency Dist. Data'!F15, 73*(iPrd-1), 5*(iEff-1)), IF(F$9=$D$5, OFFSET('Efficiency Dist. Data'!F15, 73*(iPrd-1), 5*(iEff-1)),0)) -> 0.0375 | G19: 1 | I19: 2021 | J19: =IF(AND(iCSL>J$9, StartYear<=$I19),0,IF(AND(iCSL=J$9, StartYear<=$I19), SUM($C19:C19), C19)) -> 0 | K19: =IF(AND(iCSL>K$9, StartYear<=$I19),0,IF(AND(iCSL=K$9, StartYear<=$I19), SUM($C19:D19), D19)) -> 0.75 | L19: =IF(AND(iCSL>L$9, StartYear<=$I19),0,IF(AND(iCSL=L$9, StartYear<=$I19), SUM($C19:E19), E19)) -> 0.2125 | M19: =IF(AND(iCSL>M$9, StartYear<=$I19),0,IF(AND(iCSL=M$9, StartYear<=$I19), SUM($C19:F19), F19)) -> 0.0375 | N19: 1
B20: 2022 | C20: =IF(C$9<$D$5, OFFSET('Efficiency Dist. Data'!C16, 73*(iPrd-1), 5*(iEff-1)), IF(C$9=$D$5, OFFSET('Efficiency Dist. Data'!C16, 73*(iPrd-1), 5*(iEff-1))+OFFSET('Efficiency Dist. Data'!D16, 73*(iPrd-1), 5*(iEff-1))+OFFSET('Efficiency Dist. Data'!E16, 73*(iPrd-1), 5*(iEff-1))+OFFSET('Efficiency Dist. Data'!F16, 73*(iPrd-1), 5*(iEff-1)),0)) -> 0.25 | D20: =IF(D$9<$D$5, OFFSET('Efficiency Dist. Data'!D16, 73*(iPrd-1), 5*(iEff-1)), IF(D$9=$D$5, OFFSET('Efficiency Dist. Data'!D16, 73*(iPrd-1), 5*(iEff-1))+OFFSET('Efficiency Dist. Data'!E16, 73*(iPrd-1), 5*(iEff-1))+OFFSET('Efficiency Dist. Data'!F16, 73*(iPrd-1), 5*(iEff-1)),0)) -> 0.45 | E20: =IF(E$9<$D$5, OFFSET('Efficiency Dist. Data'!E16, 73*(iPrd-1), 5*(iEff-1)), IF(E$9=$D$5, OFFSET('Efficiency Dist. Data'!E16, 73*(iPrd-1), 5*(iEff-1))+OFFSET('Efficiency Dist. Data'!F16, 73*(iPrd-1), 5*(iEff-1)),0)) -> 0.25 | F20: =IF(F$9<$D$5, OFFSET('Efficiency Dist. Data'!F16, 73*(iPrd-1), 5*(iEff-1)), IF(F$9=$D$5, OFFSET('Efficiency Dist. Data'!F16, 73*(iPrd-1), 5*(iEff-1)),0)) -> 0.05 | G20: 1 | I20: 2022 | J20: =IF(AND(iCSL>J$9, StartYear<=$I20),0,IF(AND(iCSL=J$9, StartYear<=$I20), SUM($C20:C20), C20)) -> 0 | K20: =IF(AND(iCSL>K$9, StartYear<=$I20),0,IF(AND(iCSL=K$9, StartYear<=$I20), SUM($C20:D20), D20)) -> 0.7 | L20: =IF(AND(iCSL>L$9, StartYear<=$I20),0,IF(AND(iCSL=L$9, StartYear<=$I20), SUM($C20:E20), E20)) -> 0.25 | M20: =IF(AND(iCSL>M$9, StartYear<=$I20),0,IF(AND(iCSL=M$9, StartYear<=$I20), SUM($C20:F20), F20)) -> 0.05 | N20: 1
B21: 2023 | C21: =IF(C$9<$D$5, OFFSET('Efficiency Dist. Data'!C17, 73*(iPrd-1), 5*(iEff-1)), IF(C$9=$D$5, OFFSET('Efficiency Dist. Data'!C17, 73*(iPrd-1), 5*(iEff-1))+OFFSET('Efficiency Dist. Data'!D17, 73*(iPrd-1), 5*(iEff-1))+OFFSET('Efficiency Dist. Data'!E17, 73*(iPrd-1), 5*(iEff-1))+OFFSET('Efficiency Dist. Data'!F17, 73*(iPrd-1), 5*(iEff-1)),0)) -> 0.1875 | D21: =IF(D$9<$D$5, OFFSET('Efficiency Dist. Data'!D17, 73*(iPrd-1), 5*(iEff-1)), IF(D$9=$D$5, OFFSET('Efficiency Dist. Data'!D17, 73*(iPrd-1), 5*(iEff-1))+OFFSET('Efficiency Dist. Data'!E17, 73*(iPrd-1), 5*(iEff-1))+OFFSET('Efficiency Dist. Data'!F17, 73*(iPrd-1), 5*(iEff-1)),0)) -> 0.4625 | E21: =IF(E$9<$D$5, OFFSET('Efficiency Dist. Data'!E17, 73*(iPrd-1), 5*(iEff-1)), IF(E$9=$D$5, OFFSET('Efficiency Dist. Data'!E17, 73*(iPrd-1), 5*(iEff-1))+OFFSET('Efficiency Dist. Data'!F17, 73*(iPrd-1), 5*(iEff-1)),0)) -> 0.2875 | F21: =IF(F$9<$D$5, OFFSET('Efficiency Dist. Data'!F17, 73*(iPrd-1), 5*(iEff-1)), IF(F$9=$D$5, OFFSET('Efficiency Dist. Data'!F17, 73*(iPrd-1), 5*(iEff-1)),0)) -> 0.0625 | G21: 1 | I21: 2023 | J21: =IF(AND(iCSL>J$9, StartYear<=$I21),0,IF(AND(iCSL=J$9, StartYear<=$I21), SUM($C21:C21), C21)) -> 0 | K21: =IF(AND(iCSL>K$9, StartYear<=$I21),0,IF(AND(iCSL=K$9, StartYear<=$I21), SUM($C21:D21), D21)) -> 0.65 | L21: =IF(AND(iCSL>L$9, StartYear<=$I21),0,IF(AND(iCSL=L$9, StartYear<=$I21), SUM($C21:E21), E21)) -> 0.2875 | M21: =IF(AND(iCSL>M$9, StartYear<=$I21),0,IF(AND(iCSL=M$9, StartYear<=$I21), SUM($C21:F21), F21)) -> 0.0625 | N21: 1
B22: 2024 | C22: =IF(C$9<$D$5, OFFSET('Efficiency Dist. Data'!C18, 73*(iPrd-1), 5*(iEff-1)), IF(C$9=$D$5, OFFSET('Efficiency Dist. Data'!C18, 73*(iPrd-1), 5*(iEff-1))+OFFSET('Efficiency Dist. Data'!D18, 73*(iPrd-1), 5*(iEff-1))+OFFSET('Efficiency Dist. Data'!E18, 73*(iPrd-1), 5*(iEff-1))+OFFSET('Efficiency Dist. Data'!F18, 73*(iPrd-1), 5*(iEff-1)),0)) -> 0.125 | D22: =IF(D$9<$D$5, OFFSET('Efficiency Dist. Data'!D18, 73*(iPrd-1), 5*(iEff-1)), IF(D$9=$D$5, OFFSET('Efficiency Dist. Data'!D18, 73*(iPrd-1), 5*(iEff-1))+OFFSET('Efficiency Dist. Data'!E18, 73*(iPrd-1), 5*(iEff-1))+OFFSET('Efficiency Dist. Data'!F18, 73*(iPrd-1), 5*(iEff-1)),0)) -> 0.475 | E22: =IF(E$9<$D$5, OFFSET('Efficiency Dist. Data'!E18, 73*(iPrd-1), 5*(iEff-1)), IF(E$9=$D$5, OFFSET('Efficiency Dist. Data'!E18, 73*(iPrd-1), 5*(iEff-1))+OFFSET('Efficiency Dist. Data'!F18, 73*(iPrd-1), 5*(iEff-1)),0)) -> 0.325 | F22: =IF(F$9<$D$5, OFFSET('Efficiency Dist. Data'!F18, 73*(iPrd-1), 5*(iEff-1)), IF(F$9=$D$5, OFFSET('Efficiency Dist. Data'!F18, 73*(iPrd-1), 5*(iEff-1)),0)) -> 0.075 | G22: 1 | I22: 2024 | J22: =IF(AND(iCSL>J$9, StartYear<=$I22),0,IF(AND(iCSL=J$9, StartYear<=$I22), SUM($C22:C22), C22)) -> 0 | K22: =IF(AND(iCSL>K$9, StartYear<=$I22),0,IF(AND(iCSL=K$9, StartYear<=$I22), SUM($C22:D22), D22)) -> 0.6 | L22: =IF(AND(iCSL>L$9, StartYear<=$I22),0,IF(AND(iCSL=L$9, StartYear<=$I22), SUM($C22:E22), E22)) -> 0.325 | M22: =IF(AND(iCSL>M$9, StartYear<=$I22),0,IF(AND(iCSL=M$9, StartYear<=$I22), SUM($C22:F22), F22)) -> 0.075 | N22: 1
B23: 2025 | C23: =IF(C$9<$D$5, OFFSET('Efficiency Dist. Data'!C19, 73*(iPrd-1), 5*(iEff-1)), IF(C$9=$D$5, OFFSET('Efficiency Dist. Data'!C19, 73*(iPrd-1), 5*(iEff-1))+OFFSET('Efficiency Dist. Data'!D19, 73*(iPrd-1), 5*(iEff-1))+OFFSET('Efficiency Dist. Data'!E19, 73*(iPrd-1), 5*(iEff-1))+OFFSET('Efficiency Dist. Data'!F19, 73*(iPrd-1), 5*(iEff-1)),0)) -> 0.0625 | D23: =IF(D$9<$D$5, OFFSET('Efficiency Dist. Data'!D19, 73*(iPrd-1), 5*(iEff-1)), IF(D$9=$D$5, OFFSET('Efficiency Dist. Data'!D19, 73*(iPrd-1), 5*(iEff-1))+OFFSET('Efficiency Dist. Data'!E19, 73*(iPrd-1), 5*(iEff-1))+OFFSET('Efficiency Dist. Data'!F19, 73*(iPrd-1), 5*(iEff-1)),0)) -> 0.4875 | E23: =IF(E$9<$D$5, OFFSET('Efficiency Dist. Data'!E19, 73*(iPrd-1), 5*(iEff-1)), IF(E$9=$D$5, OFFSET('Efficiency Dist. Data'!E19, 73*(iPrd-1), 5*(iEff-1))+OFFSET('Efficiency Dist. Data'!F19, 73*(iPrd-1), 5*(iEff-1)),0)) -> 0.3625 | F23: =IF(F$9<$D$5, OFFSET('Efficiency Dist. Data'!F19, 73*(iPrd-1), 5*(iEff-1)), IF(F$9=$D$5, OFFSET('Efficiency Dist. Data'!F19, 73*(iPrd-1), 5*(iEff-1)),0)) -> 0.0875 | G23: 1 | I23: 2025 | J23: =IF(AND(iCSL>J$9, StartYear<=$I23),0,IF(AND(iCSL=J$9, StartYear<=$I23), SUM($C23:C23), C23)) -> 0 | K23: =IF(AND(iCSL>K$9, StartYear<=$I23),0,IF(AND(iCSL=K$9, StartYear<=$I23), SUM($C23:D23), D23)) -> 0.55 | L23: =IF(AND(iCSL>L$9, StartYear<=$I23),0,IF(AND(iCSL=L$9, StartYear<=$I23), SUM($C23:E23), E23)) -> 0.3625 | M23: =IF(AND(iCSL>M$9, StartYear<=$I23),0,IF(AND(iCSL=M$9, StartYear<=$I23), SUM($C23:F23), F23)) -> 0.0875 | N23: 1
B24: 2026 | C24: =IF(C$9<$D$5, OFFSET('Efficiency Dist. Data'!C20, 73*(iPrd-1), 5*(iEff-1)), IF(C$9=$D$5, OFFSET('Efficiency Dist. Data'!C20, 73*(iPrd-1), 5*(iEff-1))+OFFSET('Efficiency Dist. Data'!D20, 73*(iPrd-1), 5*(iEff-1))+OFFSET('Efficiency Dist. Data'!E20, 73*(iPrd-1), 5*(iEff-1))+OFFSET('Efficiency Dist. Data'!F20, 73*(iPrd-1), 5*(iEff-1)),0)) -> 0 | D24: =IF(D$9<$D$5, OFFSET('Efficiency Dist. Data'!D20, 73*(iPrd-1), 5*(iEff-1)), IF(D$9=$D$5, OFFSET('Efficiency Dist. Data'!D20, 73*(iPrd-1), 5*(iEff-1))+OFFSET('Efficiency Dist. Data'!E20, 73*(iPrd-1), 5*(iEff-1))+OFFSET('Efficiency Dist. Data'!F20, 73*(iPrd-1), 5*(iEff-1)),0)) -> 0.5 | E24: =IF(E$9<$D$5, OFFSET('Efficiency Dist. Data'!E20, 73*(iPrd-1), 5*(iEff-1)), IF(E$9=$D$5, OFFSET('Efficiency Dist. Data'!E20, 73*(iPrd-1), 5*(iEff-1))+OFFSET('Efficiency Dist. Data'!F20, 73*(iPrd-1), 5*(iEff-1)),0)) -> 0.4 | F24: =IF(F$9<$D$5, OFFSET('Efficiency Dist. Data'!F20, 73*(iPrd-1), 5*(iEff-1)), IF(F$9=$D$5, OFFSET('Efficiency Dist. Data'!F20, 73*(iPrd-1), 5*(iEff-1)),0)) -> 0.1 | G24: 1 | I24: 2026 | J24: =IF(AND(iCSL>J$9, StartYear<=$I24),0,IF(AND(iCSL=J$9, StartYear<=$I24), SUM($C24:C24), C24)) -> 0 | K24: =IF(AND(iCSL>K$9, StartYear<=$I24),0,IF(AND(iCSL=K$9, StartYear<=$I24), SUM($C24:D24), D24)) -> 0.5 | L24: =IF(AND(iCSL>L$9, StartYear<=$I24),0,IF(AND(iCSL=L$9, StartYear<=$I24), SUM($C24:E24), E24)) -> 0.4 | M24: =IF(AND(iCSL>M$9, StartYear<=$I24),0,IF(AND(iCSL=M$9, StartYear<=$I24), SUM($C24:F24), F24)) -> 0.1 | N24: 1
B25: 2027 | C25: =IF(C$9<$D$5, OFFSET('Efficiency Dist. Data'!C21, 73*(iPrd-1), 5*(iEff-1)), IF(C$9=$D$5, OFFSET('Efficiency Dist. Data'!C21, 73*(iPrd-1), 5*(iEff-1))+OFFSET('Efficiency Dist. Data'!D21, 73*(iPrd-1), 5*(iEff-1))+OFFSET('Efficiency Dist. Data'!E21, 73*(iPrd-1), 5*(iEff-1))+OFFSET('Efficiency Dist. Data'!F21, 73*(iPrd-1), 5*(iEff-1)),0)) -> 0 | D25: =IF(D$9<$D$5, OFFSET('Efficiency Dist. Data'!D21, 73*(iPrd-1), 5*(iEff-1)), IF(D$9=$D$5, OFFSET('Efficiency Dist. Data'!D21, 73*(iPrd-1), 5*(iEff-1))+OFFSET('Efficiency Dist. Data'!E21, 73*(iPrd-1), 5*(iEff-1))+OFFSET('Efficiency Dist. Data'!F21, 73*(iPrd-1), 5*(iEff-1)),0)) -> 0.5 | E25: =IF(E$9<$D$5, OFFSET('Efficiency Dist. Data'!E21, 73*(iPrd-1), 5*(iEff-1)), IF(E$9=$D$5, OFFSET('Efficiency Dist. Data'!E21, 73*(iPrd-1), 5*(iEff-1))+OFFSET('Efficiency Dist. Data'!F21, 73*(iPrd-1), 5*(iEff-1)),0)) -> 0.4 | F25: =IF(F$9<$D$5, OFFSET('Efficiency Dist. Data'!F21, 73*(iPrd-1), 5*(iEff-1)), IF(F$9=$D$5, OFFSET('Efficiency Dist. Data'!F21, 73*(iPrd-1), 5*(iEff-1)),0)) -> 0.1 | G25: 1 | I25: 2027 | J25: =IF(AND(iCSL>J$9, StartYear<=$I25),0,IF(AND(iCSL=J$9, StartYear<=$I25), SUM($C25:C25), C25)) -> 0 | K25: =IF(AND(iCSL>K$9, StartYear<=$I25),0,IF(AND(iCSL=K$9, StartYear<=$I25), SUM($C25:D25), D25)) -> 0.5 | L25: =IF(AND(iCSL>L$9, StartYear<=$I25),0,IF(AND(iCSL=L$9, StartYear<=$I25), SUM($C25:E25), E25)) -> 0.4 | M25: =IF(AND(iCSL>M$9, StartYear<=$I25),0,IF(AND(iCSL=M$9, StartYear<=$I25), SUM($C25:F25), F25)) -> 0.1 | N25: 1
B26: 2028 | C26: =IF(C$9<$D$5, OFFSET('Efficiency Dist. Data'!C22, 73*(iPrd-1), 5*(iEff-1)), IF(C$9=$D$5, OFFSET('Efficiency Dist. Data'!C22, 73*(iPrd-1), 5*(iEff-1))+OFFSET('Efficiency Dist. Data'!D22, 73*(iPrd-1), 5*(iEff-1))+OFFSET('Efficiency Dist. Data'!E22, 73*(iPrd-1), 5*(iEff-1))+OFFSET('Efficiency Dist. Data'!F22, 73*(iPrd-1), 5*(iEff-1)),0)) -> 0 | D26: =IF(D$9<$D$5, OFFSET('Efficiency Dist. Data'!D22, 73*(iPrd-1), 5*(iEff-1)), IF(D$9=$D$5, OFFSET('Efficiency Dist. Data'!D22, 73*(iPrd-1), 5*(iEff-1))+OFFSET('Efficiency Dist. Data'!E22, 73*(iPrd-1), 5*(iEff-1))+OFFSET('Efficiency Dist. Data'!F22, 73*(iPrd-1), 5*(iEff-1)),0)) -> 0.5 | E26: =IF(E$9<$D$5, OFFSET('Efficiency Dist. Data'!E22, 73*(iPrd-1), 5*(iEff-1)), IF(E$9=$D$5, OFFSET('Efficiency Dist. Data'!E22, 73*(iPrd-1), 5*(iEff-1))+OFFSET('Efficiency Dist. Data'!F22, 73*(iPrd-1), 5*(iEff-1)),0)) -> 0.4 | F26: =IF(F$9<$D$5, OFFSET('Efficiency Dist. Data'!F22, 73*(iPrd-1), 5*(iEff-1)), IF(F$9=$D$5, OFFSET('Efficiency Dist. Data'!F22, 73*(iPrd-1), 5*(iEff-1)),0)) -> 0.1 | G26: 1 | I26: 2028 | J26: =IF(AND(iCSL>J$9, StartYear<=$I26),0,IF(AND(iCSL=J$9, StartYear<=$I26), SUM($C26:C26), C26)) -> 0 | K26: =IF(AND(iCSL>K$9, StartYear<=$I26),0,IF(AND(iCSL=K$9, StartYear<=$I26), SUM($C26:D26), D26)) -> 0.5 | L26: =IF(AND(iCSL>L$9, StartYear<=$I26),0,IF(AND(iCSL=L$9, StartYear<=$I26), SUM($C26:E26), E26)) -> 0.4 | M26: =IF(AND(iCSL>M$9, StartYear<=$I26),0,IF(AND(iCSL=M$9, StartYear<=$I26), SUM($C26:F26), F26)) -> 0.1 | N26: 1
B27: 2029 | C27: =IF(C$9<$D$5, OFFSET('Efficiency Dist. Data'!C23, 73*(iPrd-1), 5*(iEff-1)), IF(C$9=$D$5, OFFSET('Efficiency Dist. Data'!C23, 73*(iPrd-1), 5*(iEff-1))+OFFSET('Efficiency Dist. Data'!D23, 73*(iPrd-1), 5*(iEff-1))+OFFSET('Efficiency Dist. Data'!E23, 73*(iPrd-1), 5*(iEff-1))+OFFSET('Efficiency Dist. Data'!F23, 73*(iPrd-1), 5*(iEff-1)),0)) -> 0 | D27: =IF(D$9<$D$5, OFFSET('Efficiency Dist. Data'!D23, 73*(iPrd-1), 5*(iEff-1)), IF(D$9=$D$5, OFFSET('Efficiency Dist. Data'!D23, 73*(iPrd-1), 5*(iEff-1))+OFFSET('Efficiency Dist. Data'!E23, 73*(iPrd-1), 5*(iEff-1))+OFFSET('Efficiency Dist. Data'!F23, 73*(iPrd-1), 5*(iEff-1)),0)) -> 0.5 | E27: =IF(E$9<$D$5, OFFSET('Efficiency Dist. Data'!E23, 73*(iPrd-1), 5*(iEff-1)), IF(E$9=$D$5, OFFSET('Efficiency Dist. Data'!E23, 73*(iPrd-1), 5*(iEff-1))+OFFSET('Efficiency Dist. Data'!F23, 73*(iPrd-1), 5*(iEff-1)),0)) -> 0.4 | F27: =IF(F$9<$D$5, OFFSET('Efficiency Dist. Data'!F23, 73*(iPrd-1), 5*(iEff-1)), IF(F$9=$D$5, OFFSET('Efficiency Dist. Data'!F23, 73*(iPrd-1), 5*(iEff-1)),0)) -> 0.1 | G27: 1 | I27: 2029 | J27: =IF(AND(iCSL>J$9, StartYear<=$I27),0,IF(AND(iCSL=J$9, StartYear<=$I27), SUM($C27:C27), C27)) -> 0 | K27: =IF(AND(iCSL>K$9, StartYear<=$I27),0,IF(AND(iCSL=K$9, StartYear<=$I27), SUM($C27:D27), D27)) -> 0.5 | L27: =IF(AND(iCSL>L$9, StartYear<=$I27),0,IF(AND(iCSL=L$9, StartYear<=$I27), SUM($C27:E27), E27)) -> 0.4 | M27: =IF(AND(iCSL>M$9, StartYear<=$I27),0,IF(AND(iCSL=M$9, StartYear<=$I27), SUM($C27:F27), F27)) -> 0.1 | N27: 1
B28: 2030 | C28: =IF(C$9<$D$5, OFFSET('Efficiency Dist. Data'!C24, 73*(iPrd-1), 5*(iEff-1)), IF(C$9=$D$5, OFFSET('Efficiency Dist. Data'!C24, 73*(iPrd-1), 5*(iEff-1))+OFFSET('Efficiency Dist. Data'!D24, 73*(iPrd-1), 5*(iEff-1))+OFFSET('Efficiency Dist. Data'!E24, 73*(iPrd-1), 5*(iEff-1))+OFFSET('Efficiency Dist. Data'!F24, 73*(iPrd-1), 5*(iEff-1)),0)) -> 0 | D28: =IF(D$9<$D$5, OFFSET('Efficiency Dist. Data'!D24, 73*(iPrd-1), 5*(iEff-1)), IF(D$9=$D$5, OFFSET('Efficiency Dist. Data'!D24, 73*(iPrd-1), 5*(iEff-1))+OFFSET('Efficiency Dist. Data'!E24, 73*(iPrd-1), 5*(iEff-1))+OFFSET('Efficiency Dist. Data'!F24, 73*(iPrd-1), 5*(iEff-1)),0)) -> 0.5 | E28: =IF(E$9<$D$5, OFFSET('Efficiency Dist. Data'!E24, 73*(iPrd-1), 5*(iEff-1)), IF(E$9=$D$5, OFFSET('Efficiency Dist. Data'!E24, 73*(iPrd-1), 5*(iEff-1))+OFFSET('Efficiency Dist. Data'!F24, 73*(iPrd-1), 5*(iEff-1)),0)) -> 0.4 | F28: =IF(F$9<$D$5, OFFSET('Efficiency Dist. Data'!F24, 73*(iPrd-1), 5*(iEff-1)), IF(F$9=$D$5, OFFSET('Efficiency Dist. Data'!F24, 73*(iPrd-1), 5*(iEff-1)),0)) -> 0.1 | G28: 1 | I28: 2030 | J28: =IF(AND(iCSL>J$9, StartYear<=$I28),0,IF(AND(iCSL=J$9, StartYear<=$I28), SUM($C28:C28), C28)) -> 0 | K28: =IF(AND(iCSL>K$9, StartYear<=$I28),0,IF(AND(iCSL=K$9, StartYear<=$I28), SUM($C28:D28), D28)) -> 0.5 | L28: =IF(AND(iCSL>L$9, StartYear<=$I28),0,IF(AND(iCSL=L$9, StartYear<=$I28), SUM($C28:E28), E28)) -> 0.4 | M28: =IF(AND(iCSL>M$9, StartYear<=$I28),0,IF(AND(iCSL=M$9, StartYear<=$I28), SUM($C28:F28), F28)) -> 0.1 | N28: 1
B29: 2031 | C29: =IF(C$9<$D$5, OFFSET('Efficiency Dist. Data'!C25, 73*(iPrd-1), 5*(iEff-1)), IF(C$9=$D$5, OFFSET('Efficiency Dist. Data'!C25, 73*(iPrd-1), 5*(iEff-1))+OFFSET('Efficiency Dist. Data'!D25, 73*(iPrd-1), 5*(iEff-1))+OFFSET('Efficiency Dist. Data'!E25, 73*(iPrd-1), 5*(iEff-1))+OFFSET('Efficiency Dist. Data'!F25, 73*(iPrd-1), 5*(iEff-1)),0)) -> 0 | D29: =IF(D$9<$D$5, OFFSET('Efficiency Dist. Data'!D25, 73*(iPrd-1), 5*(iEff-1)), IF(D$9=$D$5, OFFSET('Efficiency Dist. Data'!D25, 73*(iPrd-1), 5*(iEff-1))+OFFSET('Efficiency Dist. Data'!E25, 73*(iPrd-1), 5*(iEff-1))+OFFSET('Efficiency Dist. Data'!F25, 73*(iPrd-1), 5*(iEff-1)),0)) -> 0.5 | E29: =IF(E$9<$D$5, OFFSET('Efficiency Dist. Data'!E25, 73*(iPrd-1), 5*(iEff-1)), IF(E$9=$D$5, OFFSET('Efficiency Dist. Data'!E25, 73*(iPrd-1), 5*(iEff-1))+OFFSET('Efficiency Dist. Data'!F25, 73*(iPrd-1), 5*(iEff-1)),0)) -> 0.4 | F29: =IF(F$9<$D$5, OFFSET('Efficiency Dist. Data'!F25, 73*(iPrd-1), 5*(iEff-1)), IF(F$9=$D$5, OFFSET('Efficiency Dist. Data'!F25, 73*(iPrd-1), 5*(iEff-1)),0)) -> 0.1 | G29: 1 | I29: 2031 | J29: =IF(AND(iCSL>J$9, StartYear<=$I29),0,IF(AND(iCSL=J$9, StartYear<=$I29), SUM($C29:C29), C29)) -> 0 | K29: =IF(AND(iCSL>K$9, StartYear<=$I29),0,IF(AND(iCSL=K$9, StartYear<=$I29), SUM($C29:D29), D29)) -> 0.5 | L29: =IF(AND(iCSL>L$9, StartYear<=$I29),0,IF(AND(iCSL=L$9, StartYear<=$I29), SUM($C29:E29), E29)) -> 0.4 | M29: =IF(AND(iCSL>M$9, StartYear<=$I29),0,IF(AND(iCSL=M$9, StartYear<=$I29), SUM($C29:F29), F29)) -> 0.1 | N29: 1
B30: 2032 | C30: =IF(C$9<$D$5, OFFSET('Efficiency Dist. Data'!C26, 73*(iPrd-1), 5*(iEff-1)), IF(C$9=$D$5, OFFSET('Efficiency Dist. Data'!C26, 73*(iPrd-1), 5*(iEff-1))+OFFSET('Efficiency Dist. Data'!D26, 73*(iPrd-1), 5*(iEff-1))+OFFSET('Efficiency Dist. Data'!E26, 73*(iPrd-1), 5*(iEff-1))+OFFSET('Efficiency Dist. Data'!F26, 73*(iPrd-1), 5*(iEff-1)),0)) -> 0 | D30: =IF(D$9<$D$5, OFFSET('Efficiency Dist. Data'!D26, 73*(iPrd-1), 5*(iEff-1)), IF(D$9=$D$5, OFFSET('Efficiency Dist. Data'!D26, 73*(iPrd-1), 5*(iEff-1))+OFFSET('Efficiency Dist. Data'!E26, 73*(iPrd-1), 5*(iEff-1))+OFFSET('Efficiency Dist. Data'!F26, 73*(iPrd-1), 5*(iEff-1)),0)) -> 0.5 | E30: =IF(E$9<$D$5, OFFSET('Efficiency Dist. Data'!E26, 73*(iPrd-1), 5*(iEff-1)), IF(E$9=$D$5, OFFSET('Efficiency Dist. Data'!E26, 73*(iPrd-1), 5*(iEff-1))+OFFSET('Efficiency Dist. Data'!F26, 73*(iPrd-1), 5*(iEff-1)),0)) -> 0.4 | F30: =IF(F$9<$D$5, OFFSET('Efficiency Dist. Data'!F26, 73*(iPrd-1), 5*(iEff-1)), IF(F$9=$D$5, OFFSET('Efficiency Dist. Data'!F26, 73*(iPrd-1), 5*(iEff-1)),0)) -> 0.1 | G30: 1 | I30: 2032 | J30: =IF(AND(iCSL>J$9, StartYear<=$I30),0,IF(AND(iCSL=J$9, StartYear<=$I30), SUM($C30:C30), C30)) -> 0 | K30: =IF(AND(iCSL>K$9, StartYear<=$I30),0,IF(AND(iCSL=K$9, StartYear<=$I30), SUM($C30:D30), D30)) -> 0.5 | L30: =IF(AND(iCSL>L$9, StartYear<=$I30),0,IF(AND(iCSL=L$9, StartYear<=$I30), SUM($C30:E30), E30)) -> 0.4 | M30: =IF(AND(iCSL>M$9, StartYear<=$I30),0,IF(AND(iCSL=M$9, StartYear<=$I30), SUM($C30:F30), F30)) -> 0.1 | N30: 1
B31: 2033 | C31: =IF(C$9<$D$5, OFFSET('Efficiency Dist. Data'!C27, 73*(iPrd-1), 5*(iEff-1)), IF(C$9=$D$5, OFFSET('Efficiency Dist. Data'!C27, 73*(iPrd-1), 5*(iEff-1))+OFFSET('Efficiency Dist. Data'!D27, 73*(iPrd-1), 5*(iEff-1))+OFFSET('Efficiency Dist. Data'!E27, 73*(iPrd-1), 5*(iEff-1))+OFFSET('Efficiency Dist. Data'!F27, 73*(iPrd-1), 5*(iEff-1)),0)) -> 0 | D31: =IF(D$9<$D$5, OFFSET('Efficiency Dist. Data'!D27, 73*(iPrd-1), 5*(iEff-1)), IF(D$9=$D$5, OFFSET('Efficiency Dist. Data'!D27, 73*(iPrd-1), 5*(iEff-1))+OFFSET('Efficiency Dist. Data'!E27, 73*(iPrd-1), 5*(iEff-1))+OFFSET('Efficiency Dist. Data'!F27, 73*(iPrd-1), 5*(iEff-1)),0)) -> 0.5 | E31: =IF(E$9<$D$5, OFFSET('Efficiency Dist. Data'!E27, 73*(iPrd-1), 5*(iEff-1)), IF(E$9=$D$5, OFFSET('Efficiency Dist. Data'!E27, 73*(iPrd-1), 5*(iEff-1))+OFFSET('Efficiency Dist. Data'!F27, 73*(iPrd-1), 5*(iEff-1)),0)) -> 0.4 | F31: =IF(F$9<$D$5, OFFSET('Efficiency Dist. Data'!F27, 73*(iPrd-1), 5*(iEff-1)), IF(F$9=$D$5, OFFSET('Efficiency Dist. Data'!F27, 73*(iPrd-1), 5*(iEff-1)),0)) -> 0.1 | G31: 1 | I31: 2033 | J31: =IF(AND(iCSL>J$9, StartYear<=$I31),0,IF(AND(iCSL=J$9, StartYear<=$I31), SUM($C31:C31), C31)) -> 0 | K31: =IF(AND(iCSL>K$9, StartYear<=$I31),0,IF(AND(iCSL=K$9, StartYear<=$I31), SUM($C31:D31), D31)) -> 0.5 | L31: =IF(AND(iCSL>L$9, StartYear<=$I31),0,IF(AND(iCSL=L$9, StartYear<=$I31), SUM($C31:E31), E31)) -> 0.4 | M31: =IF(AND(iCSL>M$9, StartYear<=$I31),0,IF(AND(iCSL=M$9, StartYear<=$I31), SUM($C31:F31), F31)) -> 0.1 | N31: 1
B32: 2034 | C32: =IF(C$9<$D$5, OFFSET('Efficiency Dist. Data'!C28, 73*(iPrd-1), 5*(iEff-1)), IF(C$9=$D$5, OFFSET('Efficiency Dist. Data'!C28, 73*(iPrd-1), 5*(iEff-1))+OFFSET('Efficiency Dist. Data'!D28, 73*(iPrd-1), 5*(iEff-1))+OFFSET('Efficiency Dist. Data'!E28, 73*(iPrd-1), 5*(iEff-1))+OFFSET('Efficiency Dist. Data'!F28, 73*(iPrd-1), 5*(iEff-1)),0)) -> 0 | D32: =IF(D$9<$D$5, OFFSET('Efficiency Dist. Data'!D28, 73*(iPrd-1), 5*(iEff-1)), IF(D$9=$D$5, OFFSET('Efficiency Dist. Data'!D28, 73*(iPrd-1), 5*(iEff-1))+OFFSET('Efficiency Dist. Data'!E28, 73*(iPrd-1), 5*(iEff-1))+OFFSET('Efficiency Dist. Data'!F28, 73*(iPrd-1), 5*(iEff-1)),0)) -> 0.5 | E32: =IF(E$9<$D$5, OFFSET('Efficiency Dist. Data'!E28, 73*(iPrd-1), 5*(iEff-1)), IF(E$9=$D$5, OFFSET('Efficiency Dist. Data'!E28, 73*(iPrd-1), 5*(iEff-1))+OFFSET('Efficiency Dist. Data'!F28, 73*(iPrd-1), 5*(iEff-1)),0)) -> 0.4 | F32: =IF(F$9<$D$5, OFFSET('Efficiency Dist. Data'!F28, 73*(iPrd-1), 5*(iEff-1)), IF(F$9=$D$5, OFFSET('Efficiency Dist. Data'!F28, 73*(iPrd-1), 5*(iEff-1)),0)) -> 0.1 | G32: 1 | I32: 2034 | J32: =IF(AND(iCSL>J$9, StartYear<=$I32),0,IF(AND(iCSL=J$9, StartYear<=$I32), SUM($C32:C32), C32)) -> 0 | K32: =IF(AND(iCSL>K$9, StartYear<=$I32),0,IF(AND(iCSL=K$9, StartYear<=$I32), SUM($C32:D32), D32)) -> 0.5 | L32: =IF(AND(iCSL>L$9, StartYear<=$I32),0,IF(AND(iCSL=L$9, StartYear<=$I32), SUM($C32:E32), E32)) -> 0.4 | M32: =IF(AND(iCSL>M$9, StartYear<=$I32),0,IF(AND(iCSL=M$9, StartYear<=$I32), SUM($C32:F32), F32)) -> 0.1 | N32: 1
B33: 2035 | C33: =IF(C$9<$D$5, OFFSET('Efficiency Dist. Data'!C29, 73*(iPrd-1), 5*(iEff-1)), IF(C$9=$D$5, OFFSET('Efficiency Dist. Data'!C29, 73*(iPrd-1), 5*(iEff-1))+OFFSET('Efficiency Dist. Data'!D29, 73*(iPrd-1), 5*(iEff-1))+OFFSET('Efficiency Dist. Data'!E29, 73*(iPrd-1), 5*(iEff-1))+OFFSET('Efficiency Dist. Data'!F29, 73*(iPrd-1), 5*(iEff-1)),0)) -> 0 | D33: =IF(D$9<$D$5, OFFSET('Efficiency Dist. Data'!D29, 73*(iPrd-1), 5*(iEff-1)), IF(D$9=$D$5, OFFSET('Efficiency Dist. Data'!D29, 73*(iPrd-1), 5*(iEff-1))+OFFSET('Efficiency Dist. Data'!E29, 73*(iPrd-1), 5*(iEff-1))+OFFSET('Efficiency Dist. Data'!F29, 73*(iPrd-1), 5*(iEff-1)),0)) -> 0.5 | E33: =IF(E$9<$D$5, OFFSET('Efficiency Dist. Data'!E29, 73*(iPrd-1), 5*(iEff-1)), IF(E$9=$D$5, OFFSET('Efficiency Dist. Data'!E29, 73*(iPrd-1), 5*(iEff-1))+OFFSET('Efficiency Dist. Data'!F29, 73*(iPrd-1), 5*(iEff-1)),0)) -> 0.4 | F33: =IF(F$9<$D$5, OFFSET('Efficiency Dist. Data'!F29, 73*(iPrd-1), 5*(iEff-1)), IF(F$9=$D$5, OFFSET('Efficiency Dist. Data'!F29, 73*(iPrd-1), 5*(iEff-1)),0)) -> 0.1 | G33: 1 | I33: 2035 | J33: =IF(AND(iCSL>J$9, StartYear<=$I33),0,IF(AND(iCSL=J$9, StartYear<=$I33), SUM($C33:C33), C33)) -> 0 | K33: =IF(AND(iCSL>K$9, StartYear<=$I33),0,IF(AND(iCSL=K$9, StartYear<=$I33), SUM($C33:D33), D33)) -> 0.5 | L33: =IF(AND(iCSL>L$9, StartYear<=$I33),0,IF(AND(iCSL=L$9, StartYear<=$I33), SUM($C33:E33), E33)) -> 0.4 | M33: =IF(AND(iCSL>M$9, StartYear<=$I33),0,IF(AND(iCSL=M$9, StartYear<=$I33), SUM($C33:F33), F33)) -> 0.1 | N33: 1
B34: 2036 | C34: =IF(C$9<$D$5, OFFSET('Efficiency Dist. Data'!C30, 73*(iPrd-1), 5*(iEff-1)), IF(C$9=$D$5, OFFSET('Efficiency Dist. Data'!C30, 73*(iPrd-1), 5*(iEff-1))+OFFSET('Efficiency Dist. Data'!D30, 73*(iPrd-1), 5*(iEff-1))+OFFSET('Efficiency Dist. Data'!E30, 73*(iPrd-1), 5*(iEff-1))+OFFSET('Efficiency Dist. Data'!F30, 73*(iPrd-1), 5*(iEff-1)),0)) -> 0 | D34: =IF(D$9<$D$5, OFFSET('Efficiency Dist. Data'!D30, 73*(iPrd-1), 5*(iEff-1)), IF(D$9=$D$5, OFFSET('Efficiency Dist. Data'!D30, 73*(iPrd-1), 5*(iEff-1))+OFFSET('Efficiency Dist. Data'!E30, 73*(iPrd-1), 5*(iEff-1))+OFFSET('Efficiency Dist. Data'!F30, 73*(iPrd-1), 5*(iEff-1)),0)) -> 0.5 | E34: =IF(E$9<$D$5, OFFSET('Efficiency Dist. Data'!E30, 73*(iPrd-1), 5*(iEff-1)), IF(E$9=$D$5, OFFSET('Efficiency Dist. Data'!E30, 73*(iPrd-1), 5*(iEff-1))+OFFSET('Efficiency Dist. Data'!F30, 73*(iPrd-1), 5*(iEff-1)),0)) -> 0.4 | F34: =IF(F$9<$D$5, OFFSET('Efficiency Dist. Data'!F30, 73*(iPrd-1), 5*(iEff-1)), IF(F$9=$D$5, OFFSET('Efficiency Dist. Data'!F30, 73*(iPrd-1), 5*(iEff-1)),0)) -> 0.1 | G34: 1 | I34: 2036 | J34: =IF(AND(iCSL>J$9, StartYear<=$I34),0,IF(AND(iCSL=J$9, StartYear<=$I34), SUM($C34:C34), C34)) -> 0 | K34: =IF(AND(iCSL>K$9, StartYear<=$I34),0,IF(AND(iCSL=K$9, StartYear<=$I34), SUM($C34:D34), D34)) -> 0.5 | L34: =IF(AND(iCSL>L$9, StartYear<=$I34),0,IF(AND(iCSL=L$9, StartYear<=$I34), SUM($C34:E34), E34)) -> 0.4 | M34: =IF(AND(iCSL>M$9, StartYear<=$I34),0,IF(AND(iCSL=M$9, StartYear<=$I34), SUM($C34:F34), F34)) -> 0.1 | N34: 1
B35: 2037 | C35: =IF(C$9<$D$5, OFFSET('Efficiency Dist. Data'!C31, 73*(iPrd-1), 5*(iEff-1)), IF(C$9=$D$5, OFFSET('Efficiency Dist. Data'!C31, 73*(iPrd-1), 5*(iEff-1))+OFFSET('Efficiency Dist. Data'!D31, 73*(iPrd-1), 5*(iEff-1))+OFFSET('Efficiency Dist. Data'!E31, 73*(iPrd-1), 5*(iEff-1))+OFFSET('Efficiency Dist. Data'!F31, 73*(iPrd-1), 5*(iEff-1)),0)) -> 0 | D35: =IF(D$9<$D$5, OFFSET('Efficiency Dist. Data'!D31, 73*(iPrd-1), 5*(iEff-1)), IF(D$9=$D$5, OFFSET('Efficiency Dist. Data'!D31, 73*(iPrd-1), 5*(iEff-1))+OFFSET('Efficiency Dist. Data'!E31, 73*(iPrd-1), 5*(iEff-1))+OFFSET('Efficiency Dist. Data'!F31, 73*(iPrd-1), 5*(iEff-1)),0)) -> 0.5 | E35: =IF(E$9<$D$5, OFFSET('Efficiency Dist. Data'!E31, 73*(iPrd-1), 5*(iEff-1)), IF(E$9=$D$5, OFFSET('Efficiency Dist. Data'!E31, 73*(iPrd-1), 5*(iEff-1))+OFFSET('Efficiency Dist. Data'!F31, 73*(iPrd-1), 5*(iEff-1)),0)) -> 0.4 | F35: =IF(F$9<$D$5, OFFSET('Efficiency Dist. Data'!F31, 73*(iPrd-1), 5*(iEff-1)), IF(F$9=$D$5, OFFSET('Efficiency Dist. Data'!F31, 73*(iPrd-1), 5*(iEff-1)),0)) -> 0.1 | G35: 1 | I35: 2037 | J35: =IF(AND(iCSL>J$9, StartYear<=$I35),0,IF(AND(iCSL=J$9, StartYear<=$I35), SUM($C35:C35), C35)) -> 0 | K35: =IF(AND(iCSL>K$9, StartYear<=$I35),0,IF(AND(iCSL=K$9, StartYear<=$I35), SUM($C35:D35), D35)) -> 0.5 | L35: =IF(AND(iCSL>L$9, StartYear<=$I35),0,IF(AND(iCSL=L$9, StartYear<=$I35), SUM($C35:E35), E35)) -> 0.4 | M35: =IF(AND(iCSL>M$9, StartYear<=$I35),0,IF(AND(iCSL=M$9, StartYear<=$I35), SUM($C35:F35), F35)) -> 0.1 | N35: 1
B36: 2038 | C36: =IF(C$9<$D$5, OFFSET('Efficiency Dist. Data'!C32, 73*(iPrd-1), 5*(iEff-1)), IF(C$9=$D$5, OFFSET('Efficiency Dist. Data'!C32, 73*(iPrd-1), 5*(iEff-1))+OFFSET('Efficiency Dist. Data'!D32, 73*(iPrd-1), 5*(iEff-1))+OFFSET('Efficiency Dist. Data'!E32, 73*(iPrd-1), 5*(iEff-1))+OFFSET('Efficiency Dist. Data'!F32, 73*(iPrd-1), 5*(iEff-1)),0)) -> 0 | D36: =IF(D$9<$D$5, OFFSET('Efficiency Dist. Data'!D32, 73*(iPrd-1), 5*(iEff-1)), IF(D$9=$D$5, OFFSET('Efficiency Dist. Data'!D32, 73*(iPrd-1), 5*(iEff-1))+OFFSET('Efficiency Dist. Data'!E32, 73*(iPrd-1), 5*(iEff-1))+OFFSET('Efficiency Dist. Data'!F32, 73*(iPrd-1), 5*(iEff-1)),0)) -> 0.5 | E36: =IF(E$9<$D$5, OFFSET('Efficiency Dist. Data'!E32, 73*(iPrd-1), 5*(iEff-1)), IF(E$9=$D$5, OFFSET('Efficiency Dist. Data'!E32, 73*(iPrd-1), 5*(iEff-1))+OFFSET('Efficiency Dist. Data'!F32, 73*(iPrd-1), 5*(iEff-1)),0)) -> 0.4 | F36: =IF(F$9<$D$5, OFFSET('Efficiency Dist. Data'!F32, 73*(iPrd-1), 5*(iEff-1)), IF(F$9=$D$5, OFFSET('Efficiency Dist. Data'!F32, 73*(iPrd-1), 5*(iEff-1)),0)) -> 0.1 | G36: 1 | I36: 2038 | J36: =IF(AND(iCSL>J$9, StartYear<=$I36),0,IF(AND(iCSL=J$9, StartYear<=$I36), SUM($C36:C36), C36)) -> 0 | K36: =IF(AND(iCSL>K$9, StartYear<=$I36),0,IF(AND(iCSL=K$9, StartYear<=$I36), SUM($C36:D36), D36)) -> 0.5 | L36: =IF(AND(iCSL>L$9, StartYear<=$I36),0,IF(AND(iCSL=L$9, StartYear<=$I36), SUM($C36:E36), E36)) -> 0.4 | M36: =IF(AND(iCSL>M$9, StartYear<=$I36),0,IF(AND(iCSL=M$9, StartYear<=$I36), SUM($C36:F36), F36)) -> 0.1 | N36: 1
B37: 2039 | C37: =IF(C$9<$D$5, OFFSET('Efficiency Dist. Data'!C33, 73*(iPrd-1), 5*(iEff-1)), IF(C$9=$D$5, OFFSET('Efficiency Dist. Data'!C33, 73*(iPrd-1), 5*(iEff-1))+OFFSET('Efficiency Dist. Data'!D33, 73*(iPrd-1), 5*(iEff-1))+OFFSET('Efficiency Dist. Data'!E33, 73*(iPrd-1), 5*(iEff-1))+OFFSET('Efficiency Dist. Data'!F33, 73*(iPrd-1), 5*(iEff-1)),0)) -> 0 | D37: =IF(D$9<$D$5, OFFSET('Efficiency Dist. Data'!D33, 73*(iPrd-1), 5*(iEff-1)), IF(D$9=$D$5, OFFSET('Efficiency Dist. Data'!D33, 73*(iPrd-1), 5*(iEff-1))+OFFSET('Efficiency Dist. Data'!E33, 73*(iPrd-1), 5*(iEff-1))+OFFSET('Efficiency Dist. Data'!F33, 73*(iPrd-1), 5*(iEff-1)),0)) -> 0.5 | E37: =IF(E$9<$D$5, OFFSET('Efficiency Dist. Data'!E33, 73*(iPrd-1), 5*(iEff-1)), IF(E$9=$D$5, OFFSET('Efficiency Dist. Data'!E33, 73*(iPrd-1), 5*(iEff-1))+OFFSET('Efficiency Dist. Data'!F33, 73*(iPrd-1), 5*(iEff-1)),0)) -> 0.4 | F37: =IF(F$9<$D$5, OFFSET('Efficiency Dist. Data'!F33, 73*(iPrd-1), 5*(iEff-1)), IF(F$9=$D$5, OFFSET('Efficiency Dist. Data'!F33, 73*(iPrd-1), 5*(iEff-1)),0)) -> 0.1 | G37: 1 | I37: 2039 | J37: =IF(AND(iCSL>J$9, StartYear<=$I37),0,IF(AND(iCSL=J$9, StartYear<=$I37), SUM($C37:C37), C37)) -> 0 | K37: =IF(AND(iCSL>K$9, StartYear<=$I37),0,IF(AND(iCSL=K$9, StartYear<=$I37), SUM($C37:D37), D37)) -> 0.5 | L37: =IF(AND(iCSL>L$9, StartYear<=$I37),0,IF(AND(iCSL=L$9, StartYear<=$I37), SUM($C37:E37), E37)) -> 0.4 | M37: =IF(AND(iCSL>M$9, StartYear<=$I37),0,IF(AND(iCSL=M$9, StartYear<=$I37), SUM($C37:F37), F37)) -> 0.1 | N37: 1
B38: 2040 | C38: =IF(C$9<$D$5, OFFSET('Efficiency Dist. Data'!C34, 73*(iPrd-1), 5*(iEff-1)), IF(C$9=$D$5, OFFSET('Efficiency Dist. Data'!C34, 73*(iPrd-1), 5*(iEff-1))+OFFSET('Efficiency Dist. Data'!D34, 73*(iPrd-1), 5*(iEff-1))+OFFSET('Efficiency Dist. Data'!E34, 73*(iPrd-1), 5*(iEff-1))+OFFSET('Efficiency Dist. Data'!F34, 73*(iPrd-1), 5*(iEff-1)),0)) -> 0 | D38: =IF(D$9<$D$5, OFFSET('Efficiency Dist. Data'!D34, 73*(iPrd-1), 5*(iEff-1)), IF(D$9=$D$5, OFFSET('Efficiency Dist. Data'!D34, 73*(iPrd-1), 5*(iEff-1))+OFFSET('Efficiency Dist. Data'!E34, 73*(iPrd-1), 5*(iEff-1))+OFFSET('Efficiency Dist. Data'!F34, 73*(iPrd-1), 5*(iEff-1)),0)) -> 0.5 | E38: =IF(E$9<$D$5, OFFSET('Efficiency Dist. Data'!E34, 73*(iPrd-1), 5*(iEff-1)), IF(E$9=$D$5, OFFSET('Efficiency Dist. Data'!E34, 73*(iPrd-1), 5*(iEff-1))+OFFSET('Efficiency Dist. Data'!F34, 73*(iPrd-1), 5*(iEff-1)),0)) -> 0.4 | F38: =IF(F$9<$D$5, OFFSET('Efficiency Dist. Data'!F34, 73*(iPrd-1), 5*(iEff-1)), IF(F$9=$D$5, OFFSET('Efficiency Dist. Data'!F34, 73*(iPrd-1), 5*(iEff-1)),0)) -> 0.1 | G38: 1 | I38: 2040 | J38: =IF(AND(iCSL>J$9, StartYear<=$I38),0,IF(AND(iCSL=J$9, StartYear<=$I38), SUM($C38:C38), C38)) -> 0 | K38: =IF(AND(iCSL>K$9, StartYear<=$I38),0,IF(AND(iCSL=K$9, StartYear<=$I38), SUM($C38:D38), D38)) -> 0.5 | L38: =IF(AND(iCSL>L$9, StartYear<=$I38),0,IF(AND(iCSL=L$9, StartYear<=$I38), SUM($C38:E38), E38)) -> 0.4 | M38: =IF(AND(iCSL>M$9, StartYear<=$I38),0,IF(AND(iCSL=M$9, StartYear<=$I38), SUM($C38:F38), F38)) -> 0.1 | N38: 1
